Workbook

Sheet Dis
H4: LBJ
G5: DISCLAIMER

Sheet Summary
Y3: =+TODAY() -> 2019-11-15
J6: VALUATION
M7: Ke | O7: =+'Valuation & IRR'!E72 -> 10.50%
J8: =+'Valuation & IRR'!J19 -> Shareholder Pre-Tax Equity IRR | L8: =+'Valuation & IRR'!N19 -> 14.05% | M8: NPV %Cintra (million $) | O8: =+'Valuation & IRR'!M33 -> 988,165.61
J9: =+'Valuation & IRR'!J27 -> Shareholder Post-Tax Equity IRR | L9: =+'Valuation & IRR'!N27 -> 13.36% | M9: NPV %Cintra (million EUR) | O9: =+'Valuation & IRR'!M34 -> 821,964.40
C13: FREE CASH FLOW | J13: DEBT SERVICE | Q13: MMRA | S13: DSRA | U13: TIFIA cash trapped | W13: CF for distribution pre tax | Y13: Income tax | AA13: CF for distribution post tax
C14: Revenues | D14: OPEX | E14: Taxes | F14: CAPEX | G14: CFADS proforma | J14: Interests and fees | K14: Repayment | L14: Total Debt Service | M14: Interest income | N14: Capitalized interest | O14: Outstanding Debt | Q14: MMRA net movements | S14: DSRA net movements | U14: TIFIA cash trapped net movements | W14: CF for distribution pre tax | Y14: Income tax | AA14: CF for distribution post tax
B15: 2018 | C15: =+INDEX($108:$108,MATCH($B15,$107:$107,0)) -> 118,886 | D15: =+INDEX($109:$109,MATCH($B15,$107:$107,0)) -> -20,867 | E15: =+INDEX($110:$110,MATCH($B15,$107:$107,0)) -> -446 | F15: =+INDEX($111:$111,MATCH($B15,$107:$107,0)) -> -7,726 | G15: =+INDEX($112:$112,MATCH($B15,$107:$107,0)) -> 89,847 | J15: =+INDEX($115:$115,MATCH($B15,$107:$107,0)) -> -43,758 | K15: =+INDEX($116:$116,MATCH($B15,$107:$107,0)) -> 0 | L15: =+INDEX($117:$117,MATCH($B15,$107:$107,0)) -> -43,758 | M15: =+INDEX($118:$118,MATCH($B15,$107:$107,0)) -> 0 | N15: =+INDEX($119:$119,MATCH($B15,$107:$107,0)) -> 44,111 | O15: =+INDEX($120:$120,MATCH($B15,$107:$107,0)) -> 1,693,486 | Q15: =+INDEX($123:$123,MATCH($B15,$107:$107,0)) -> 0 | S15: =+INDEX($124:$124,MATCH($B15,$107:$107,0)) -> 0 | U15: =+INDEX($126:$126,MATCH($B15,$107:$107,0)) -> -46,089 | W15: =+INDEX($130:$130,MATCH($B15,$107:$107,0)) -> 0 | Y15: =+INDEX($128:$128,MATCH($B15,$107:$107,0)) -> 0 | AA15: =+INDEX($134:$134,MATCH($B15,$107:$107,0)) -> 0
B16: =+B15+1 -> 2019 | C16: 135,523 | D16: -22,075 | E16: -738 | F16: -4,923 | G16: 107,787 | J16: -43,943 | K16: 0 | L16: -43,943 | M16: 2,692 | N16: 45,992 | O16: 1,739,478 | Q16: 0 | S16: 0 | U16: -66,536 | W16: 0 | Y16: 0 | AA16: 0
B17: =+B16+1 -> 2020 | C17: 155,008 | D17: -23,354 | E17: -845 | F17: -3,516 | G17: 127,293 | J17: -82,352 | K17: 1,758 | L17: -80,593 | M17: 3,887 | N17: 43,835 | O17: 1,752,988 | Q17: 10,122 | S17: 21,731 | U17: 165,131 | W17: 247,570 | Y17: 0 | AA17: 247,570
B18: 2021 | C18: 177,173 | D18: -24,706 | E18: -947 | F18: -2,511 | G18: 149,008 | J18: -81,240 | K18: 2,511 | L18: -78,729 | M18: 1,369 | N18: 41,050 | O18: 1,755,499 | Q18: -2,738 | S18: -3,973 | U18: 0 | W18: 64,937 | Y18: 0 | AA18: 64,937
B19: 2022 | C19: 190,618 | D19: -25,771 | E19: -1,019 | F19: -3,208 | G19: 160,620 | J19: -81,397 | K19: 3,208 | L19: -78,190 | M19: 1,585 | N19: 37,233 | O19: 1,758,707 | Q19: -3,037 | S19: -2,187 | U19: 0 | W19: 78,792 | Y19: -780 | AA19: 78,011
B20: 2023 | C20: 205,083 | D20: -26,883 | E20: -1,097 | F20: -4,097 | G20: 173,007 | J20: -81,597 | K20: 4,097 | L20: -77,500 | M20: 1,826 | N20: 35,248 | O20: 1,762,803 | Q20: -2,844 | S20: -404 | U20: 0 | W20: 94,085 | Y20: -1,164 | AA20: 92,920
B21: 2024 | C21: 220,644 | D21: -28,042 | E21: -1,181 | F21: -5,232 | G21: 186,190 | J21: -81,940 | K21: 5,232 | L21: -76,708 | M21: 2,091 | N21: 35,192 | O21: 1,768,035 | Q21: -2,069 | S21: -587 | U21: 0 | W21: 108,917 | Y21: -1,577 | AA21: 107,339
B22: 2025 | C22: 237,385 | D22: -29,251 | E22: -1,270 | F22: -6,682 | G22: 200,182 | J22: -82,496 | K22: 6,682 | L22: -75,813 | M22: 2,235 | N22: 34,973 | O22: 1,774,717 | Q22: -594 | S22: -1,439 | U22: 0 | W22: 124,571 | Y22: -2,021 | AA22: 122,549
B23: 2026 | C23: 255,395 | D23: -30,513 | E23: -1,367 | F23: -8,534 | G23: 214,981 | J23: -83,096 | K23: 8,534 | L23: -74,561 | M23: 2,483 | N23: 34,137 | O23: 1,783,252 | Q23: 1,735 | S23: -1,622 | U23: 0 | W23: 143,016 | Y23: -2,498 | AA23: 140,519
B24: 2027 | C24: 276,228 | D24: -32,044 | E24: -1,478 | F24: -7,834 | G24: 234,873 | J24: -83,800 | K24: 7,834 | L24: -75,966 | M24: 2,702 | N24: 33,212 | O24: 1,791,086 | Q24: 1,227 | S24: -1,803 | U24: 0 | W24: 161,033 | Y24: -3,045 | AA24: 157,988
B25: 2028 | C25: 298,759 | D25: -33,651 | E25: -1,598 | F25: -7,192 | G25: 256,318 | J25: -84,613 | K25: 7,192 | L25: -77,421 | M25: 2,954 | N25: 32,207 | O25: 1,798,278 | Q25: 144 | S25: -1,806 | U25: 0 | W25: 180,189 | Y25: -3,641 | AA25: 176,547
B26: 2029 | C26: 323,124 | D26: -35,339 | E26: -1,727 | F26: -6,602 | G26: 279,455 | J26: -85,238 | K26: 6,602 | L26: -78,636 | M26: 3,106 | N26: 31,005 | O26: 1,804,880 | Q26: -1,688 | S26: -2,105 | U26: 0 | W26: 200,132 | Y26: -4,290 | AA26: 195,842
B27: 2030 | C27: 349,474 | D27: -37,112 | E27: -1,868 | F27: -6,061 | G27: 304,433 | J27: -97,157 | K27: 6,061 | L27: -91,097 | M27: 3,357 | N27: 29,651 | O27: 1,810,941 | Q27: -4,504 | S27: -2,346 | U27: 0 | W27: 209,843 | Y27: -4,996 | AA27: 204,847
B28: 2031 | C28: 377,968 | D28: -38,974 | E28: -2,020 | F28: -5,564 | G28: 331,410 | J28: -87,302 | K28: 5,564 | L28: -81,739 | M28: 3,734 | N28: 28,062 | O28: 1,816,505 | Q28: -8,628 | S28: -2,522 | U28: 0 | W28: 242,256 | Y28: -5,762 | AA28: 236,494
B29: 2032 | C29: 404,275 | D29: -40,741 | E29: -2,166 | F29: -7,544 | G29: 353,824 | J29: -88,206 | K29: 7,544 | L29: -80,662 | M29: 4,032 | N29: 26,436 | O29: 1,824,049 | Q29: -9,102 | S29: -2,537 | U29: 0 | W29: 265,555 | Y29: -21,908 | AA29: 243,647
B30: 2033 | C30: 432,136 | D30: -42,588 | E30: -2,322 | F30: -10,229 | G30: 376,998 | J30: -88,979 | K30: 10,229 | L30: -78,751 | M30: 4,408 | N30: 24,671 | O30: 1,834,277 | Q30: -7,121 | S30: -2,918 | U30: 0 | W30: 292,616 | Y30: -56,072 | AA30: 236,544
B31: 2034 | C31: 461,537 | D31: -44,518 | E31: -2,490 | F31: -13,869 | G31: 400,661 | J31: -90,051 | K31: 13,869 | L31: -76,182 | M31: 4,835 | N31: 22,833 | O31: 1,848,146 | Q31: -2,658 | S31: -3,396 | U31: 0 | W31: 323,259 | Y31: -60,057 | AA31: 263,202
B32: 2035 | C32: 492,417 | D32: -46,536 | E32: -2,669 | F32: -18,805 | G32: 424,407 | J32: -91,543 | K32: 18,805 | L32: -72,738 | M32: 5,183 | N32: 20,831 | O32: 1,866,951 | Q32: 4,594 | S32: -4,363 | U32: 0 | W32: 357,083 | Y32: -64,185 | AA32: 292,898
B33: 2036 | C33: 524,643 | D33: -48,645 | E33: -2,860 | F33: -25,497 | G33: 447,640 | J33: -93,594 | K33: 25,497 | L33: -68,097 | M33: 5,398 | N33: 18,438 | O33: 1,892,448 | Q33: 15,240 | S33: -4,761 | U33: 0 | W33: 395,420 | Y33: -68,434 | AA33: 326,986
B34: 2037 | C34: 562,789 | D34: -51,065 | E34: -3,065 | F34: -17,258 | G34: 491,402 | J34: -95,403 | K34: 17,258 | L34: -78,145 | M34: 5,152 | N34: 15,547 | O34: 1,909,705 | Q34: 9,928 | S34: -4,660 | U34: 0 | W34: 423,676 | Y34: -73,431 | AA34: 350,246
B35: 2038 | C35: 603,709 | D35: -53,605 | E35: -3,286 | F35: -11,681 | G35: 535,137 | J35: -97,040 | K35: 11,681 | L35: -85,360 | M35: 5,153 | N35: 12,551 | O35: 1,921,386 | Q35: 5,666 | S35: -5,104 | U35: 0 | W35: 455,493 | Y35: -78,902 | AA35: 376,590
B36: 2039 | C36: 647,604 | D36: -56,272 | E36: -3,525 | F36: -7,906 | G36: 579,901 | J36: -99,269 | K36: 7,906 | L36: -91,363 | M36: 5,579 | N36: 9,197 | O36: 1,929,292 | Q36: 1,855 | S36: -698 | U36: 0 | W36: 495,275 | Y36: -84,854 | AA36: 410,421
B37: 2040 | C37: 694,691 | D37: -59,071 | E37: -3,779 | F37: -5,351 | G37: 626,489 | J37: -121,035 | K37: 5,351 | L37: -115,684 | M37: 5,604 | N37: 10,408 | O37: 1,934,643 | Q37: -2,011 | S37: -27,326 | U37: 0 | W37: 487,073 | Y37: -91,300 | AA37: 395,773
B38: 2041 | C38: 745,202 | D38: -62,010 | E38: -4,057 | F38: -3,622 | G38: 675,513 | J38: -103,366 | K38: 3,622 | L38: -99,744 | M38: 6,498 | N38: 11,866 | O38: 1,938,265 | Q38: -6,415 | S38: 2,569 | U38: 0 | W38: 578,421 | Y38: -98,266 | AA38: 480,155
B39: 2042 | C39: 792,674 | D39: -64,710 | E39: -4,314 | F39: -5,032 | G39: 718,618 | J39: -104,382 | K39: 5,032 | L39: -99,350 | M39: 6,694 | N39: 6,798 | O39: 1,943,296 | Q39: -7,770 | S39: 4,270 | U39: 0 | W39: 622,462 | Y39: -104,857 | AA39: 517,605
B40: 2043 | C40: 843,171 | D40: -67,529 | E40: -4,588 | F40: -6,990 | G40: 764,064 | J40: -105,017 | K40: 6,990 | L40: -98,027 | M40: 6,954 | N40: 2,620 | O40: 1,950,286 | Q40: -8,148 | S40: 5,281 | U40: 0 | W40: 670,123 | Y40: -129,481 | AA40: 540,642
B41: 2044 | C41: 896,885 | D41: -70,470 | E41: -4,880 | F41: -9,711 | G41: 811,825 | J41: -104,779 | K41: 9,711 | L41: -95,069 | M41: 7,274 | N41: 0 | O41: 1,959,997 | Q41: -7,197 | S41: -278 | U41: 0 | W41: 716,556 | Y41: -149,918 | AA41: 566,637
B42: 2045 | C42: 954,021 | D42: -73,539 | E42: -5,190 | F42: -13,490 | G42: 861,801 | J42: -105,021 | K42: 13,490 | L42: -91,530 | M42: 7,704 | N42: 0 | O42: 1,973,487 | Q42: -4,422 | S42: -76,641 | U42: 0 | W42: 696,911 | Y42: -161,203 | AA42: 535,708
B43: 2046 | C43: 1,014,796 | D43: -76,742 | E43: -5,529 | F43: -18,741 | G43: 913,784 | J43: -104,723 | K43: -58,146 | L43: -162,869 | M43: 9,675 | N43: 0 | O43: 1,915,341 | Q43: 860 | S43: -74,540 | U43: 0 | W43: 686,910 | Y43: -173,594 | AA43: 513,315
B44: 2047 | C44: 1,077,481 | D44: -80,200 | E44: -5,875 | F44: -18,421 | G44: 972,984 | J44: -100,491 | K44: -137,166 | L44: -237,657 | M44: 11,196 | N44: 0 | O44: 1,778,175 | Q44: 493 | S44: -983 | U44: 0 | W44: 746,034 | Y44: -186,983 | AA44: 559,051
B45: 2048 | C45: 1,144,037 | D45: -83,813 | E45: -6,235 | F45: -18,107 | G45: 1,035,881 | J45: -93,234 | K45: -145,649 | L45: -238,883 | M45: 11,354 | N45: 0 | O45: 1,632,526 | Q45: -379 | S45: -471 | U45: 0 | W45: 807,503 | Y45: -201,530 | AA45: 605,972
B46: 2049 | C46: 1,214,705 | D46: -87,590 | E46: -6,618 | F46: -17,798 | G46: 1,102,699 | J46: -85,038 | K46: -154,555 | L46: -239,593 | M46: 11,666 | N46: 0 | O46: 1,477,971 | Q46: -1,810 | S46: -8,710 | U46: 0 | W46: 864,252 | Y46: -217,173 | AA46: 647,078
B47: 2050 | C47: 1,289,738 | D47: -91,536 | E47: -7,026 | F47: -17,494 | G47: 1,173,681 | J47: -94,186 | K47: -180,859 | L47: -275,046 | M47: 12,186 | N47: 0 | O47: 1,297,112 | Q47: -3,858 | S47: -9,947 | U47: 0 | W47: 897,016 | Y47: -230,149 | AA47: 666,867
B48: 2051 | C48: 1,369,405 | D48: -95,660 | E48: -7,459 | F48: -17,196 | G48: 1,249,090 | J48: -66,380 | K48: -209,522 | L48: -275,902 | M48: 12,785 | N48: 0 | O48: 1,087,589 | Q48: -6,589 | S48: 149 | U48: 0 | W48: 979,533 | Y48: -251,906 | AA48: 727,627
B49: 2052 | C49: 1,455,892 | D49: -100,062 | E49: -7,929 | F49: -19,251 | G49: 1,328,650 | J49: -55,234 | K49: -220,522 | L49: -275,756 | M49: 13,266 | N49: 0 | O49: 867,067 | Q49: -7,454 | S49: 465 | U49: 0 | W49: 1,059,171 | Y49: -271,603 | AA49: 787,568
B50: 2053 | C50: 1,547,842 | D50: -104,666 | E50: -8,428 | F50: -21,552 | G50: 1,413,195 | J50: -43,194 | K50: -232,100 | L50: -275,294 | M50: 13,776 | N50: 0 | O50: 634,968 | Q50: -8,537 | S50: 331 | U50: 0 | W50: 1,143,472 | Y50: -292,448 | AA50: 851,024
B51: 2054 | C51: 1,645,598 | D51: -109,482 | E51: -8,958 | F51: -24,128 | G51: 1,503,029 | J51: -30,681 | K51: -244,285 | L51: -274,966 | M51: 14,331 | N51: 0 | O51: 390,683 | Q51: -9,880 | S51: 349 | U51: 0 | W51: 1,232,863 | Y51: -314,460 | AA51: 918,403
B52: 2055 | C52: 1,749,529 | D52: -114,520 | E52: -9,523 | F52: -27,012 | G52: 1,598,474 | J52: -17,510 | K52: -257,110 | L52: -274,620 | M52: 14,933 | N52: 0 | O52: 133,573 | Q52: -11,531 | S52: 135,564 | U52: 0 | W52: 1,462,820 | Y52: -337,774 | AA52: 1,125,045
B53: 2056 | C53: 1,860,023 | D53: -119,790 | E53: -10,109 | F53: -255,963 | G53: 1,474,161 | J53: -5,486 | K53: -133,573 | L53: -139,059 | M53: 12,982 | N53: 0 | O53: 0 | Q53: 99,115 | S53: 138,920 | U53: 0 | W53: 1,586,119 | Y53: -361,561 | AA53: 1,224,558
B54: 2057 | C54: 2,002,219 | D54: -126,656 | E54: -10,878 | F54: 0 | G54: 1,864,685 | J54: 0 | K54: 0 | L54: 0 | M54: 13,266 | N54: 0 | O54: 0 | Q54: 0 | S54: 0 | U54: 0 | W54: 1,877,951 | Y54: -390,657 | AA54: 1,487,294
B55: 2058 | C55: 2,155,287 | D55: -133,916 | E55: -11,704 | F55: 0 | G55: 2,009,666 | J55: 0 | K55: 0 | L55: 0 | M55: 13,210 | N55: 0 | O55: 0 | Q55: 0 | S55: 0 | U55: 0 | W55: 2,022,876 | Y55: -420,681 | AA55: 1,602,195
B56: 2059 | C56: 2,320,056 | D56: -141,593 | E56: -12,593 | F56: 0 | G56: 2,165,870 | J56: 0 | K56: 0 | L56: 0 | M56: 13,149 | N56: 0 | O56: 0 | Q56: 0 | S56: 0 | U56: 0 | W56: 2,179,019 | Y56: -453,022 | AA56: 1,725,997
B57: 2060 | C57: 2,497,421 | D57: -149,709 | E57: -13,550 | F57: 0 | G57: 2,334,162 | J57: 0 | K57: 0 | L57: 0 | M57: 13,043 | N57: 0 | O57: 0 | Q57: 0 | S57: 0 | U57: 0 | W57: 2,347,205 | Y57: -487,855 | AA57: 1,859,350
B58: 2061 | C58: 1,796,688 | D58: -107,117 | E58: -9,866 | F58: 0 | G58: 1,679,705 | J58: 0 | K58: 0 | L58: 0 | M58: 8,605 | N58: 0 | O58: 0 | Q58: 0 | S58: 0 | U58: 0 | W58: 1,688,310 | Y58: -269,793 | AA58: 1,418,517
C59: =+SUM(C15:C58) -> 38,517,738 | D59: =+SUM(D15:D58) -> -2,912,934 | E59: =+SUM(E15:E58) -> -209,074 | F59: =+SUM(F15:F58) -> -692,330 | G59: =+SUM(G15:G58) -> 34,703,401 | J59: =+SUM(J15:J58) -> -3,183,773 | K59: =+SUM(K15:K58) -> -1,751,229 | L59: =+SUM(L15:L58) -> -4,935,002 | N59: =+SUM(N15:N58) -> 688,105 | O59: N.A | Q59: =+SUM(Q15:Q48) -> -41,714 | S59: =+SUM(S15:S48) -> -214,130 | U59: =+SUM(U15:U48) -> 52,505 | W59: N.A | Y59: N.A | AA59: N.A
E107: 2017 | F107: =+E107+1 -> 2018 | G107: 2019 | H107: 2020 | I107: 2021 | J107: 2022 | K107: 2023 | L107: 2024 | M107: 2025 | N107: 2026 | O107: 2027 | P107: 2028 | Q107: 2029 | R107: 2030 | S107: 2031 | T107: 2032 | U107: 2033 | V107: 2034 | W107: 2035 | X107: 2036 | Y107: 2037 | Z107: 2038 | AA107: 2039 | AB107: 2040 | AC107: 2041 | AD107: 2042 | AE107: 2043 | AF107: 2044 | AG107: 2045 | AH107: 2046 | AI107: 2047 | AJ107: 2048 | AK107: 2049 | AL107: 2050 | AM107: 2051 | AN107: 2052 | AO107: 2053 | AP107: 2054 | AQ107: 2055 | AR107: 2056 | AS107: 2057 | AT107: 2058 | AU107: 2059 | AV107: 2060 | AW107: 2061
B108: Revenues | E108: =+CF!R25+CF!R26+CF!R33+CF!R29 -> 0 | F108: =+CF!S25+CF!S26+CF!S33+CF!S29 -> 118,886 | G108: =+CF!T25+CF!T26+CF!T33+CF!T29 -> 135,523 | H108: =+CF!U25+CF!U26+CF!U33+CF!U29 -> 155,008 | I108: =+CF!V25+CF!V26+CF!V33+CF!V29 -> 177,173 | J108: =+CF!W25+CF!W26+CF!W33+CF!W29 -> 190,618 | K108: =+CF!X25+CF!X26+CF!X33+CF!X29 -> 205,083 | L108: =+CF!Y25+CF!Y26+CF!Y33+CF!Y29 -> 220,644 | M108: =+CF!Z25+CF!Z26+CF!Z33+CF!Z29 -> 237,385 | N108: =+CF!AA25+CF!AA26+CF!AA33+CF!AA29 -> 255,395 | O108: =+CF!AB25+CF!AB26+CF!AB33+CF!AB29 -> 276,228 | P108: =+CF!AC25+CF!AC26+CF!AC33+CF!AC29 -> 298,759 | Q108: =+CF!AD25+CF!AD26+CF!AD33+CF!AD29 -> 323,124 | R108: =+CF!AE25+CF!AE26+CF!AE33+CF!AE29 -> 349,474 | S108: =+CF!AF25+CF!AF26+CF!AF33+CF!AF29 -> 377,968 | T108: =+CF!AG25+CF!AG26+CF!AG33+CF!AG29 -> 404,275 | U108: =+CF!AH25+CF!AH26+CF!AH33+CF!AH29 -> 432,136 | V108: =+CF!AI25+CF!AI26+CF!AI33+CF!AI29 -> 461,537 | W108: =+CF!AJ25+CF!AJ26+CF!AJ33+CF!AJ29 -> 492,417 | X108: =+CF!AK25+CF!AK26+CF!AK33+CF!AK29 -> 524,643 | Y108: =+CF!AL25+CF!AL26+CF!AL33+CF!AL29 -> 562,789 | Z108: =+CF!AM25+CF!AM26+CF!AM33+CF!AM29 -> 603,709 | AA108: =+CF!AN25+CF!AN26+CF!AN33+CF!AN29 -> 647,604 | AB108: =+CF!AO25+CF!AO26+CF!AO33+CF!AO29 -> 694,691 | AC108: =+CF!AP25+CF!AP26+CF!AP33+CF!AP29 -> 745,202 | AD108: =+CF!AQ25+CF!AQ26+CF!AQ33+CF!AQ29 -> 792,674 | AE108: =+CF!AR25+CF!AR26+CF!AR33+CF!AR29 -> 843,171 | AF108: =+CF!AS25+CF!AS26+CF!AS33+CF!AS29 -> 896,885 | AG108: =+CF!AT25+CF!AT26+CF!AT33+CF!AT29 -> 954,021 | AH108: =+CF!AU25+CF!AU26+CF!AU33+CF!AU29 -> 1,014,796 | AI108: =+CF!AV25+CF!AV26+CF!AV33+CF!AV29 -> 1,077,481 | AJ108: =+CF!AW25+CF!AW26+CF!AW33+CF!AW29 -> 1,144,037 | AK108: =+CF!AX25+CF!AX26+CF!AX33+CF!AX29 -> 1,214,705 | AL108: =+CF!AY25+CF!AY26+CF!AY33+CF!AY29 -> 1,289,738 | AM108: =+CF!AZ25+CF!AZ26+CF!AZ33+CF!AZ29 -> 1,369,405 | AN108: =+CF!BA25+CF!BA26+CF!BA33+CF!BA29 -> 1,455,892 | AO108: =+CF!BB25+CF!BB26+CF!BB33+CF!BB29 -> 1,547,842 | AP108: =+CF!BC25+CF!BC26+CF!BC33+CF!BC29 -> 1,645,598 | AQ108: =+CF!BD25+CF!BD26+CF!BD33+CF!BD29 -> 1,749,529 | AR108: =+CF!BE25+CF!BE26+CF!BE33+CF!BE29 -> 1,860,023 | AS108: =+CF!BF25+CF!BF26+CF!BF33+CF!BF29 -> 2,002,219 | AT108: =+CF!BG25+CF!BG26+CF!BG33+CF!BG29 -> 2,155,287 | AU108: =+CF!BH25+CF!BH26+CF!BH33+CF!BH29 -> 2,320,056 | AV108: =+CF!BI25+CF!BI26+CF!BI33+CF!BI29 -> 2,497,421 | AW108: =+CF!BJ25+CF!BJ26+CF!BJ33+CF!BJ29 -> 1,796,688
B109: OPEX | E109: =CF!R27 -> 0 | F109: =CF!S27 -> -20,867 | G109: =CF!T27 -> -22,075 | H109: =CF!U27 -> -23,354 | I109: =CF!V27 -> -24,706 | J109: =CF!W27 -> -25,771 | K109: =CF!X27 -> -26,883 | L109: =CF!Y27 -> -28,042 | M109: =CF!Z27 -> -29,251 | N109: =CF!AA27 -> -30,513 | O109: =CF!AB27 -> -32,044 | P109: =CF!AC27 -> -33,651 | Q109: =CF!AD27 -> -35,339 | R109: =CF!AE27 -> -37,112 | S109: =CF!AF27 -> -38,974 | T109: =CF!AG27 -> -40,741 | U109: =CF!AH27 -> -42,588 | V109: =CF!AI27 -> -44,518 | W109: =CF!AJ27 -> -46,536 | X109: =CF!AK27 -> -48,645 | Y109: =CF!AL27 -> -51,065 | Z109: =CF!AM27 -> -53,605 | AA109: =CF!AN27 -> -56,272 | AB109: =CF!AO27 -> -59,071 | AC109: =CF!AP27 -> -62,010 | AD109: =CF!AQ27 -> -64,710 | AE109: =CF!AR27 -> -67,529 | AF109: =CF!AS27 -> -70,470 | AG109: =CF!AT27 -> -73,539 | AH109: =CF!AU27 -> -76,742 | AI109: =CF!AV27 -> -80,200 | AJ109: =CF!AW27 -> -83,813 | AK109: =CF!AX27 -> -87,590 | AL109: =CF!AY27 -> -91,536 | AM109: =CF!AZ27 -> -95,660 | AN109: =CF!BA27 -> -100,062 | AO109: =CF!BB27 -> -104,666 | AP109: =CF!BC27 -> -109,482 | AQ109: =CF!BD27 -> -114,520 | AR109: =CF!BE27 -> -119,790 | AS109: =CF!BF27 -> -126,656 | AT109: =CF!BG27 -> -133,916 | AU109: =CF!BH27 -> -141,593 | AV109: =CF!BI27 -> -149,709 | AW109: =CF!BJ27 -> -107,117
B110: Taxes | E110: =+CF!R32 -> 0 | F110: =+CF!S32 -> -446 | G110: =+CF!T32 -> -738 | H110: =+CF!U32 -> -845 | I110: =+CF!V32 -> -947 | J110: =+CF!W32 -> -1,019 | K110: =+CF!X32 -> -1,097 | L110: =+CF!Y32 -> -1,181 | M110: =+CF!Z32 -> -1,270 | N110: =+CF!AA32 -> -1,367 | O110: =+CF!AB32 -> -1,478 | P110: =+CF!AC32 -> -1,598 | Q110: =+CF!AD32 -> -1,727 | R110: =+CF!AE32 -> -1,868 | S110: =+CF!AF32 -> -2,020 | T110: =+CF!AG32 -> -2,166 | U110: =+CF!AH32 -> -2,322 | V110: =+CF!AI32 -> -2,490 | W110: =+CF!AJ32 -> -2,669 | X110: =+CF!AK32 -> -2,860 | Y110: =+CF!AL32 -> -3,065 | Z110: =+CF!AM32 -> -3,286 | AA110: =+CF!AN32 -> -3,525 | AB110: =+CF!AO32 -> -3,779 | AC110: =+CF!AP32 -> -4,057 | AD110: =+CF!AQ32 -> -4,314 | AE110: =+CF!AR32 -> -4,588 | AF110: =+CF!AS32 -> -4,880 | AG110: =+CF!AT32 -> -5,190 | AH110: =+CF!AU32 -> -5,529 | AI110: =+CF!AV32 -> -5,875 | AJ110: =+CF!AW32 -> -6,235 | AK110: =+CF!AX32 -> -6,618 | AL110: =+CF!AY32 -> -7,026 | AM110: =+CF!AZ32 -> -7,459 | AN110: =+CF!BA32 -> -7,929 | AO110: =+CF!BB32 -> -8,428 | AP110: =+CF!BC32 -> -8,958 | AQ110: =+CF!BD32 -> -9,523 | AR110: =+CF!BE32 -> -10,109 | AS110: =+CF!BF32 -> -10,878 | AT110: =+CF!BG32 -> -11,704 | AU110: =+CF!BH32 -> -12,593 | AV110: =+CF!BI32 -> -13,550 | AW110: =+CF!BJ32 -> -9,866
B111: CAPEX | E111: =+CF!R28+CF!R30+CF!R31 -> 0 | F111: =+CF!S28+CF!S30+CF!S31 -> -7,726 | G111: =+CF!T28+CF!T30+CF!T31 -> -4,923 | H111: =+CF!U28+CF!U30+CF!U31 -> -3,516 | I111: =+CF!V28+CF!V30+CF!V31 -> -2,511 | J111: =+CF!W28+CF!W30+CF!W31 -> -3,208 | K111: =+CF!X28+CF!X30+CF!X31 -> -4,097 | L111: =+CF!Y28+CF!Y30+CF!Y31 -> -5,232 | M111: =+CF!Z28+CF!Z30+CF!Z31 -> -6,682 | N111: =+CF!AA28+CF!AA30+CF!AA31 -> -8,534 | O111: =+CF!AB28+CF!AB30+CF!AB31 -> -7,834 | P111: =+CF!AC28+CF!AC30+CF!AC31 -> -7,192 | Q111: =+CF!AD28+CF!AD30+CF!AD31 -> -6,602 | R111: =+CF!AE28+CF!AE30+CF!AE31 -> -6,061 | S111: =+CF!AF28+CF!AF30+CF!AF31 -> -5,564 | T111: =+CF!AG28+CF!AG30+CF!AG31 -> -7,544 | U111: =+CF!AH28+CF!AH30+CF!AH31 -> -10,229 | V111: =+CF!AI28+CF!AI30+CF!AI31 -> -13,869 | W111: =+CF!AJ28+CF!AJ30+CF!AJ31 -> -18,805 | X111: =+CF!AK28+CF!AK30+CF!AK31 -> -25,497 | Y111: =+CF!AL28+CF!AL30+CF!AL31 -> -17,258 | Z111: =+CF!AM28+CF!AM30+CF!AM31 -> -11,681 | AA111: =+CF!AN28+CF!AN30+CF!AN31 -> -7,906 | AB111: =+CF!AO28+CF!AO30+CF!AO31 -> -5,351 | AC111: =+CF!AP28+CF!AP30+CF!AP31 -> -3,622 | AD111: =+CF!AQ28+CF!AQ30+CF!AQ31 -> -5,032 | AE111: =+CF!AR28+CF!AR30+CF!AR31 -> -6,990 | AF111: =+CF!AS28+CF!AS30+CF!AS31 -> -9,711 | AG111: =+CF!AT28+CF!AT30+CF!AT31 -> -13,490 | AH111: =+CF!AU28+CF!AU30+CF!AU31 -> -18,741 | AI111: =+CF!AV28+CF!AV30+CF!AV31 -> -18,421 | AJ111: =+CF!AW28+CF!AW30+CF!AW31 -> -18,107 | AK111: =+CF!AX28+CF!AX30+CF!AX31 -> -17,798 | AL111: =+CF!AY28+CF!AY30+CF!AY31 -> -17,494 | AM111: =+CF!AZ28+CF!AZ30+CF!AZ31 -> -17,196 | AN111: =+CF!BA28+CF!BA30+CF!BA31 -> -19,251 | AO111: =+CF!BB28+CF!BB30+CF!BB31 -> -21,552 | AP111: =+CF!BC28+CF!BC30+CF!BC31 -> -24,128 | AQ111: =+CF!BD28+CF!BD30+CF!BD31 -> -27,012 | AR111: =+CF!BE28+CF!BE30+CF!BE31 -> -255,963 | AS111: =+CF!BF28+CF!BF30+CF!BF31 -> 0 | AT111: =+CF!BG28+CF!BG30+CF!BG31 -> 0 | AU111: =+CF!BH28+CF!BH30+CF!BH31 -> 0 | AV111: =+CF!BI28+CF!BI30+CF!BI31 -> 0 | AW111: =+CF!BJ28+CF!BJ30+CF!BJ31 -> 0
B112: CFADS | E112: =SUM(E108:E111) -> 0 | F112: 89,847 | G112: 107,787 | H112: 127,293 | I112: 149,008 | J112: 160,620 | K112: 173,007 | L112: 186,190 | M112: 200,182 | N112: 214,981 | O112: 234,873 | P112: 256,318 | Q112: 279,455 | R112: 304,433 | S112: 331,410 | T112: 353,824 | U112: 376,998 | V112: 400,661 | W112: 424,407 | X112: 447,640 | Y112: 491,402 | Z112: 535,137 | AA112: 579,901 | AB112: 626,489 | AC112: 675,513 | AD112: 718,618 | AE112: 764,064 | AF112: 811,825 | AG112: 861,801 | AH112: 913,784 | AI112: 972,984 | AJ112: 1,035,881 | AK112: 1,102,699 | AL112: 1,173,681 | AM112: =SUM(AM108:AM111) -> 1,249,090 | AN112: 1,328,650 | AO112: 1,413,195 | AP112: 1,503,029 | AQ112: 1,598,474 | AR112: 1,474,161 | AS112: 1,864,685 | AT112: 2,009,666 | AU112: 2,165,870 | AV112: 2,334,162 | AW112: 1,679,705
B114: Debt
B115: Interests and fees | E115: =+SUM(CF!R39:R40) -> 0 | F115: =+SUM(CF!S39:S40) -> -43,758 | G115: =+SUM(CF!T39:T40) -> -43,943 | H115: =+SUM(CF!U39:U40) -> -82,352 | I115: =+SUM(CF!V39:V40) -> -81,240 | J115: =+SUM(CF!W39:W40) -> -81,397 | K115: =+SUM(CF!X39:X40) -> -81,597 | L115: =+SUM(CF!Y39:Y40) -> -81,940 | M115: =+SUM(CF!Z39:Z40) -> -82,496 | N115: =+SUM(CF!AA39:AA40) -> -83,096 | O115: =+SUM(CF!AB39:AB40) -> -83,800 | P115: =+SUM(CF!AC39:AC40) -> -84,613 | Q115: =+SUM(CF!AD39:AD40) -> -85,238 | R115: =+SUM(CF!AE39:AE40) -> -97,157 | S115: =+SUM(CF!AF39:AF40) -> -87,302 | T115: =+SUM(CF!AG39:AG40) -> -88,206 | U115: =+SUM(CF!AH39:AH40) -> -88,979 | V115: =+SUM(CF!AI39:AI40) -> -90,051 | W115: =+SUM(CF!AJ39:AJ40) -> -91,543 | X115: =+SUM(CF!AK39:AK40) -> -93,594 | Y115: =+SUM(CF!AL39:AL40) -> -95,403 | Z115: =+SUM(CF!AM39:AM40) -> -97,040 | AA115: =+SUM(CF!AN39:AN40) -> -99,269 | AB115: =+SUM(CF!AO39:AO40) -> -121,035 | AC115: =+SUM(CF!AP39:AP40) -> -103,366 | AD115: =+SUM(CF!AQ39:AQ40) -> -104,382 | AE115: =+SUM(CF!AR39:AR40) -> -105,017 | AF115: =+SUM(CF!AS39:AS40) -> -104,779 | AG115: =+SUM(CF!AT39:AT40) -> -105,021 | AH115: =+SUM(CF!AU39:AU40) -> -104,723 | AI115: =+SUM(CF!AV39:AV40) -> -100,491 | AJ115: =+SUM(CF!AW39:AW40) -> -93,234 | AK115: =+SUM(CF!AX39:AX40) -> -85,038 | AL115: =+SUM(CF!AY39:AY40) -> -94,186 | AM115: =+SUM(CF!AZ39:AZ40) -> -66,380 | AN115: =+SUM(CF!BA39:BA40) -> -55,234 | AO115: =+SUM(CF!BB39:BB40) -> -43,194 | AP115: =+SUM(CF!BC39:BC40) -> -30,681 | AQ115: =+SUM(CF!BD39:BD40) -> -17,510 | AR115: =+SUM(CF!BE39:BE40) -> -5,486 | AS115: =+SUM(CF!BF39:BF40) -> 0.00 | AT115: =+SUM(CF!BG39:BG40) -> 0.00 | AU115: =+SUM(CF!BH39:BH40) -> 0.00 | AV115: =+SUM(CF!BI39:BI40) -> 0.00 | AW115: =+SUM(CF!BJ39:BJ40) -> 0.00
B116: Repayment | E116: =+SUM(CF!R37,CF!R38,CF!R41) -> 0 | F116: =+SUM(CF!S37,CF!S38,CF!S41) -> 0 | G116: =+SUM(CF!T37,CF!T38,CF!T41) -> 0 | H116: =+SUM(CF!U37,CF!U38,CF!U41) -> 1,758 | I116: =+SUM(CF!V37,CF!V38,CF!V41) -> 2,511 | J116: =+SUM(CF!W37,CF!W38,CF!W41) -> 3,208 | K116: =+SUM(CF!X37,CF!X38,CF!X41) -> 4,097 | L116: =+SUM(CF!Y37,CF!Y38,CF!Y41) -> 5,232 | M116: =+SUM(CF!Z37,CF!Z38,CF!Z41) -> 6,682 | N116: =+SUM(CF!AA37,CF!AA38,CF!AA41) -> 8,534 | O116: =+SUM(CF!AB37,CF!AB38,CF!AB41) -> 7,834 | P116: =+SUM(CF!AC37,CF!AC38,CF!AC41) -> 7,192 | Q116: =+SUM(CF!AD37,CF!AD38,CF!AD41) -> 6,602 | R116: =+SUM(CF!AE37,CF!AE38,CF!AE41) -> 6,061 | S116: =+SUM(CF!AF37,CF!AF38,CF!AF41) -> 5,564 | T116: =+SUM(CF!AG37,CF!AG38,CF!AG41) -> 7,544 | U116: =+SUM(CF!AH37,CF!AH38,CF!AH41) -> 10,229 | V116: =+SUM(CF!AI37,CF!AI38,CF!AI41) -> 13,869 | W116: =+SUM(CF!AJ37,CF!AJ38,CF!AJ41) -> 18,805 | X116: =+SUM(CF!AK37,CF!AK38,CF!AK41) -> 25,497 | Y116: =+SUM(CF!AL37,CF!AL38,CF!AL41) -> 17,258 | Z116: =+SUM(CF!AM37,CF!AM38,CF!AM41) -> 11,681 | AA116: =+SUM(CF!AN37,CF!AN38,CF!AN41) -> 7,906 | AB116: =+SUM(CF!AO37,CF!AO38,CF!AO41) -> 5,351 | AC116: =+SUM(CF!AP37,CF!AP38,CF!AP41) -> 3,622 | AD116: =+SUM(CF!AQ37,CF!AQ38,CF!AQ41) -> 5,032 | AE116: =+SUM(CF!AR37,CF!AR38,CF!AR41) -> 6,990 | AF116: =+SUM(CF!AS37,CF!AS38,CF!AS41) -> 9,711 | AG116: =+SUM(CF!AT37,CF!AT38,CF!AT41) -> 13,490 | AH116: =+SUM(CF!AU37,CF!AU38,CF!AU41) -> -58,146 | AI116: =+SUM(CF!AV37,CF!AV38,CF!AV41) -> -137,166 | AJ116: =+SUM(CF!AW37,CF!AW38,CF!AW41) -> -145,649 | AK116: =+SUM(CF!AX37,CF!AX38,CF!AX41) -> -154,555 | AL116: =+SUM(CF!AY37,CF!AY38,CF!AY41) -> -180,859 | AM116: =+SUM(CF!AZ37,CF!AZ38,CF!AZ41) -> -209,522 | AN116: =+SUM(CF!BA37,CF!BA38,CF!BA41) -> -220,522 | AO116: =+SUM(CF!BB37,CF!BB38,CF!BB41) -> -232,100 | AP116: =+SUM(CF!BC37,CF!BC38,CF!BC41) -> -244,285 | AQ116: =+SUM(CF!BD37,CF!BD38,CF!BD41) -> -257,110 | AR116: =+SUM(CF!BE37,CF!BE38,CF!BE41) -> -133,573 | AS116: =+SUM(CF!BF37,CF!BF38,CF!BF41) -> 0.00 | AT116: =+SUM(CF!BG37,CF!BG38,CF!BG41) -> 0.00 | AU116: =+SUM(CF!BH37,CF!BH38,CF!BH41) -> 0.00 | AV116: =+SUM(CF!BI37,CF!BI38,CF!BI41) -> 0.00 | AW116: =+SUM(CF!BJ37,CF!BJ38,CF!BJ41) -> 0.00
B117: Total Debt Service | E117: =SUM(E115:E116) -> 0 | F117: -43,758 | G117: -43,943 | H117: -80,593 | I117: -78,729 | J117: -78,190 | K117: -77,500 | L117: -76,708 | M117: -75,813 | N117: -74,561 | O117: -75,966 | P117: -77,421 | Q117: -78,636 | R117: -91,097 | S117: -81,739 | T117: -80,662 | U117: -78,751 | V117: -76,182 | W117: -72,738 | X117: -68,097 | Y117: -78,145 | Z117: -85,360 | AA117: -91,363 | AB117: -115,684 | AC117: -99,744 | AD117: -99,350 | AE117: -98,027 | AF117: -95,069 | AG117: -91,530 | AH117: -162,869 | AI117: -237,657 | AJ117: -238,883 | AK117: -239,593 | AL117: -275,046 | AM117: -275,902 | AN117: -275,756 | AO117: -275,294 | AP117: -274,966 | AQ117: =SUM(AQ115:AQ116) -> -274,620 | AR117: -139,059 | AS117: 0.00 | AT117: 0.00 | AU117: 0.00 | AV117: 0.00 | AW117: 0.00
B118: Interest income | E118: =+CF!R44 -> 0 | F118: =+CF!S44 -> 0 | G118: =+CF!T44 -> 2,692 | H118: =+CF!U44 -> 3,887 | I118: =+CF!V44 -> 1,369 | J118: =+CF!W44 -> 1,585 | K118: =+CF!X44 -> 1,826 | L118: =+CF!Y44 -> 2,091 | M118: =+CF!Z44 -> 2,235 | N118: =+CF!AA44 -> 2,483 | O118: =+CF!AB44 -> 2,702 | P118: =+CF!AC44 -> 2,954 | Q118: =+CF!AD44 -> 3,106 | R118: =+CF!AE44 -> 3,357 | S118: =+CF!AF44 -> 3,734 | T118: =+CF!AG44 -> 4,032 | U118: =+CF!AH44 -> 4,408 | V118: =+CF!AI44 -> 4,835 | W118: =+CF!AJ44 -> 5,183 | X118: =+CF!AK44 -> 5,398 | Y118: =+CF!AL44 -> 5,152 | Z118: =+CF!AM44 -> 5,153 | AA118: =+CF!AN44 -> 5,579 | AB118: =+CF!AO44 -> 5,604 | AC118: =+CF!AP44 -> 6,498 | AD118: =+CF!AQ44 -> 6,694 | AE118: =+CF!AR44 -> 6,954 | AF118: =+CF!AS44 -> 7,274 | AG118: =+CF!AT44 -> 7,704 | AH118: =+CF!AU44 -> 9,675 | AI118: =+CF!AV44 -> 11,196 | AJ118: =+CF!AW44 -> 11,354 | AK118: =+CF!AX44 -> 11,666 | AL118: =+CF!AY44 -> 12,186 | AM118: =+CF!AZ44 -> 12,785 | AN118: =+CF!BA44 -> 13,266 | AO118: =+CF!BB44 -> 13,776 | AP118: =+CF!BC44 -> 14,331 | AQ118: =+CF!BD44 -> 14,933 | AR118: =+CF!BE44 -> 12,982 | AS118: =+CF!BF44 -> 13,266 | AT118: =+CF!BG44 -> 13,210 | AU118: =+CF!BH44 -> 13,149 | AV118: =+CF!BI44 -> 13,043 | AW118: =+CF!BJ44 -> 8,605
B119: Capitalized interest | E119: =+Fin!R22+Fin!R23+Fin!R30+Fin!R31+Fin!R38+Fin!R39+Fin!R54+Fin!R55 -> 42,307 | F119: =+Fin!S22+Fin!S23+Fin!S30+Fin!S31+Fin!S38+Fin!S39+Fin!S54+Fin!S55 -> 44,111 | G119: =+Fin!T22+Fin!T23+Fin!T30+Fin!T31+Fin!T38+Fin!T39+Fin!T54+Fin!T55 -> 45,992 | H119: =+Fin!U22+Fin!U23+Fin!U30+Fin!U31+Fin!U38+Fin!U39+Fin!U54+Fin!U55 -> 43,835 | I119: =+Fin!V22+Fin!V23+Fin!V30+Fin!V31+Fin!V38+Fin!V39+Fin!V54+Fin!V55 -> 41,050 | J119: =+Fin!W22+Fin!W23+Fin!W30+Fin!W31+Fin!W38+Fin!W39+Fin!W54+Fin!W55 -> 37,233 | K119: =+Fin!X22+Fin!X23+Fin!X30+Fin!X31+Fin!X38+Fin!X39+Fin!X54+Fin!X55 -> 35,248 | L119: =+Fin!Y22+Fin!Y23+Fin!Y30+Fin!Y31+Fin!Y38+Fin!Y39+Fin!Y54+Fin!Y55 -> 35,192 | M119: =+Fin!Z22+Fin!Z23+Fin!Z30+Fin!Z31+Fin!Z38+Fin!Z39+Fin!Z54+Fin!Z55 -> 34,973 | N119: =+Fin!AA22+Fin!AA23+Fin!AA30+Fin!AA31+Fin!AA38+Fin!AA39+Fin!AA54+Fin!AA55 -> 34,137 | O119: =+Fin!AB22+Fin!AB23+Fin!AB30+Fin!AB31+Fin!AB38+Fin!AB39+Fin!AB54+Fin!AB55 -> 33,212 | P119: =+Fin!AC22+Fin!AC23+Fin!AC30+Fin!AC31+Fin!AC38+Fin!AC39+Fin!AC54+Fin!AC55 -> 32,207 | Q119: =+Fin!AD22+Fin!AD23+Fin!AD30+Fin!AD31+Fin!AD38+Fin!AD39+Fin!AD54+Fin!AD55 -> 31,005 | R119: =+Fin!AE22+Fin!AE23+Fin!AE30+Fin!AE31+Fin!AE38+Fin!AE39+Fin!AE54+Fin!AE55 -> 29,651 | S119: =+Fin!AF22+Fin!AF23+Fin!AF30+Fin!AF31+Fin!AF38+Fin!AF39+Fin!AF54+Fin!AF55 -> 28,062 | T119: =+Fin!AG22+Fin!AG23+Fin!AG30+Fin!AG31+Fin!AG38+Fin!AG39+Fin!AG54+Fin!AG55 -> 26,436 | U119: =+Fin!AH22+Fin!AH23+Fin!AH30+Fin!AH31+Fin!AH38+Fin!AH39+Fin!AH54+Fin!AH55 -> 24,671 | V119: =+Fin!AI22+Fin!AI23+Fin!AI30+Fin!AI31+Fin!AI38+Fin!AI39+Fin!AI54+Fin!AI55 -> 22,833 | W119: =+Fin!AJ22+Fin!AJ23+Fin!AJ30+Fin!AJ31+Fin!AJ38+Fin!AJ39+Fin!AJ54+Fin!AJ55 -> 20,831 | X119: =+Fin!AK22+Fin!AK23+Fin!AK30+Fin!AK31+Fin!AK38+Fin!AK39+Fin!AK54+Fin!AK55 -> 18,438 | Y119: =+Fin!AL22+Fin!AL23+Fin!AL30+Fin!AL31+Fin!AL38+Fin!AL39+Fin!AL54+Fin!AL55 -> 15,547 | Z119: =+Fin!AM22+Fin!AM23+Fin!AM30+Fin!AM31+Fin!AM38+Fin!AM39+Fin!AM54+Fin!AM55 -> 12,551 | AA119: =+Fin!AN22+Fin!AN23+Fin!AN30+Fin!AN31+Fin!AN38+Fin!AN39+Fin!AN54+Fin!AN55 -> 9,197 | AB119: =+Fin!AO22+Fin!AO23+Fin!AO30+Fin!AO31+Fin!AO38+Fin!AO39+Fin!AO54+Fin!AO55 -> 10,408 | AC119: =+Fin!AP22+Fin!AP23+Fin!AP30+Fin!AP31+Fin!AP38+Fin!AP39+Fin!AP54+Fin!AP55 -> 11,866 | AD119: =+Fin!AQ22+Fin!AQ23+Fin!AQ30+Fin!AQ31+Fin!AQ38+Fin!AQ39+Fin!AQ54+Fin!AQ55 -> 6,798 | AE119: =+Fin!AR22+Fin!AR23+Fin!AR30+Fin!AR31+Fin!AR38+Fin!AR39+Fin!AR54+Fin!AR55 -> 2,620 | AF119: =+Fin!AS22+Fin!AS23+Fin!AS30+Fin!AS31+Fin!AS38+Fin!AS39+Fin!AS54+Fin!AS55 -> 0 | AG119: =+Fin!AT22+Fin!AT23+Fin!AT30+Fin!AT31+Fin!AT38+Fin!AT39+Fin!AT54+Fin!AT55 -> 0 | AH119: =+Fin!AU22+Fin!AU23+Fin!AU30+Fin!AU31+Fin!AU38+Fin!AU39+Fin!AU54+Fin!AU55 -> 0 | AI119: =+Fin!AV22+Fin!AV23+Fin!AV30+Fin!AV31+Fin!AV38+Fin!AV39+Fin!AV54+Fin!AV55 -> 0 | AJ119: =+Fin!AW22+Fin!AW23+Fin!AW30+Fin!AW31+Fin!AW38+Fin!AW39+Fin!AW54+Fin!AW55 -> 0 | AK119: =+Fin!AX22+Fin!AX23+Fin!AX30+Fin!AX31+Fin!AX38+Fin!AX39+Fin!AX54+Fin!AX55 -> 0 | AL119: =+Fin!AY22+Fin!AY23+Fin!AY30+Fin!AY31+Fin!AY38+Fin!AY39+Fin!AY54+Fin!AY55 -> 0 | AM119: =+Fin!AZ22+Fin!AZ23+Fin!AZ30+Fin!AZ31+Fin!AZ38+Fin!AZ39+Fin!AZ54+Fin!AZ55 -> 0 | AN119: =+Fin!BA22+Fin!BA23+Fin!BA30+Fin!BA31+Fin!BA38+Fin!BA39+Fin!BA54+Fin!BA55 -> 0 | AO119: =+Fin!BB22+Fin!BB23+Fin!BB30+Fin!BB31+Fin!BB38+Fin!BB39+Fin!BB54+Fin!BB55 -> 0 | AP119: =+Fin!BC22+Fin!BC23+Fin!BC30+Fin!BC31+Fin!BC38+Fin!BC39+Fin!BC54+Fin!BC55 -> 0 | AQ119: =+Fin!BD22+Fin!BD23+Fin!BD30+Fin!BD31+Fin!BD38+Fin!BD39+Fin!BD54+Fin!BD55 -> 0 | AR119: =+Fin!BE22+Fin!BE23+Fin!BE30+Fin!BE31+Fin!BE38+Fin!BE39+Fin!BE54+Fin!BE55 -> 0 | AS119: =+Fin!BF22+Fin!BF23+Fin!BF30+Fin!BF31+Fin!BF38+Fin!BF39+Fin!BF54+Fin!BF55 -> 0 | AT119: =+Fin!BG22+Fin!BG23+Fin!BG30+Fin!BG31+Fin!BG38+Fin!BG39+Fin!BG54+Fin!BG55 -> 0 | AU119: =+Fin!BH22+Fin!BH23+Fin!BH30+Fin!BH31+Fin!BH38+Fin!BH39+Fin!BH54+Fin!BH55 -> 0 | AV119: =+Fin!BI22+Fin!BI23+Fin!BI30+Fin!BI31+Fin!BI38+Fin!BI39+Fin!BI54+Fin!BI55 -> 0 | AW119: =+Fin!BJ22+Fin!BJ23+Fin!BJ30+Fin!BJ31+Fin!BJ38+Fin!BJ39+Fin!BJ54+Fin!BJ55 -> 0
B120: Outstanding Debt | E120: =+Fin!R25+Fin!R33+Fin!R46+Fin!R57 -> 1,649,375 | F120: =+Fin!S25+Fin!S33+Fin!S46+Fin!S57 -> 1,693,486 | G120: =+Fin!T25+Fin!T33+Fin!T46+Fin!T57 -> 1,739,478 | H120: =+Fin!U25+Fin!U33+Fin!U46+Fin!U57 -> 1,752,988 | I120: =+Fin!V25+Fin!V33+Fin!V46+Fin!V57 -> 1,755,499 | J120: =+Fin!W25+Fin!W33+Fin!W46+Fin!W57 -> 1,758,707 | K120: =+Fin!X25+Fin!X33+Fin!X46+Fin!X57 -> 1,762,803 | L120: =+Fin!Y25+Fin!Y33+Fin!Y46+Fin!Y57 -> 1,768,035 | M120: =+Fin!Z25+Fin!Z33+Fin!Z46+Fin!Z57 -> 1,774,717 | N120: =+Fin!AA25+Fin!AA33+Fin!AA46+Fin!AA57 -> 1,783,252 | O120: =+Fin!AB25+Fin!AB33+Fin!AB46+Fin!AB57 -> 1,791,086 | P120: =+Fin!AC25+Fin!AC33+Fin!AC46+Fin!AC57 -> 1,798,278 | Q120: =+Fin!AD25+Fin!AD33+Fin!AD46+Fin!AD57 -> 1,804,880 | R120: =+Fin!AE25+Fin!AE33+Fin!AE46+Fin!AE57 -> 1,810,941 | S120: =+Fin!AF25+Fin!AF33+Fin!AF46+Fin!AF57 -> 1,816,505 | T120: =+Fin!AG25+Fin!AG33+Fin!AG46+Fin!AG57 -> 1,824,049 | U120: =+Fin!AH25+Fin!AH33+Fin!AH46+Fin!AH57 -> 1,834,277 | V120: =+Fin!AI25+Fin!AI33+Fin!AI46+Fin!AI57 -> 1,848,146 | W120: =+Fin!AJ25+Fin!AJ33+Fin!AJ46+Fin!AJ57 -> 1,866,951 | X120: =+Fin!AK25+Fin!AK33+Fin!AK46+Fin!AK57 -> 1,892,448 | Y120: =+Fin!AL25+Fin!AL33+Fin!AL46+Fin!AL57 -> 1,909,705 | Z120: =+Fin!AM25+Fin!AM33+Fin!AM46+Fin!AM57 -> 1,921,386 | AA120: =+Fin!AN25+Fin!AN33+Fin!AN46+Fin!AN57 -> 1,929,292 | AB120: =+Fin!AO25+Fin!AO33+Fin!AO46+Fin!AO57 -> 1,934,643 | AC120: =+Fin!AP25+Fin!AP33+Fin!AP46+Fin!AP57 -> 1,938,265 | AD120: =+Fin!AQ25+Fin!AQ33+Fin!AQ46+Fin!AQ57 -> 1,943,296 | AE120: =+Fin!AR25+Fin!AR33+Fin!AR46+Fin!AR57 -> 1,950,286 | AF120: =+Fin!AS25+Fin!AS33+Fin!AS46+Fin!AS57 -> 1,959,997 | AG120: =+Fin!AT25+Fin!AT33+Fin!AT46+Fin!AT57 -> 1,973,487 | AH120: =+Fin!AU25+Fin!AU33+Fin!AU46+Fin!AU57 -> 1,915,341 | AI120: =+Fin!AV25+Fin!AV33+Fin!AV46+Fin!AV57 -> 1,778,175 | AJ120: =+Fin!AW25+Fin!AW33+Fin!AW46+Fin!AW57 -> 1,632,526 | AK120: =+Fin!AX25+Fin!AX33+Fin!AX46+Fin!AX57 -> 1,477,971 | AL120: =+Fin!AY25+Fin!AY33+Fin!AY46+Fin!AY57 -> 1,297,112 | AM120: =+Fin!AZ25+Fin!AZ33+Fin!AZ46+Fin!AZ57 -> 1,087,589 | AN120: =+Fin!BA25+Fin!BA33+Fin!BA46+Fin!BA57 -> 867,067 | AO120: =+Fin!BB25+Fin!BB33+Fin!BB46+Fin!BB57 -> 634,968 | AP120: =+Fin!BC25+Fin!BC33+Fin!BC46+Fin!BC57 -> 390,683 | AQ120: =+Fin!BD25+Fin!BD33+Fin!BD46+Fin!BD57 -> 133,573 | AR120: =+Fin!BE25+Fin!BE33+Fin!BE46+Fin!BE57 -> 0 | AS120: =+Fin!BF25+Fin!BF33+Fin!BF46+Fin!BF57 -> 0 | AT120: =+Fin!BG25+Fin!BG33+Fin!BG46+Fin!BG57 -> 0 | AU120: =+Fin!BH25+Fin!BH33+Fin!BH46+Fin!BH57 -> 0 | AV120: =+Fin!BI25+Fin!BI33+Fin!BI46+Fin!BI57 -> 0 | AW120: =+Fin!BJ25+Fin!BJ33+Fin!BJ46+Fin!BJ57 -> 0
B123: MMRA movements | E123: =+CF!R48 -> 0 | F123: =+CF!S48 -> 0 | G123: =+CF!T48 -> 0 | H123: =+CF!U48 -> 10121.89391 | I123: =+CF!V48 -> -2737.991465 | J123: =+CF!W48 -> -3037.085363 | K123: =+CF!X48 -> -2843.701995 | L123: =+CF!Y48 -> -2068.524035 | M123: =+CF!Z48 -> -593.6076592 | N123: =+CF!AA48 -> 1735.234736 | O123: =+CF!AB48 -> 1227.475906 | P123: =+CF!AC48 -> 144.0243778 | Q123: =+CF!AD48 -> -1687.612166 | R123: =+CF!AE48 -> -4503.971251 | S123: =+CF!AF48 -> -8628.210969 | T123: =+CF!AG48 -> -9101.858056 | U123: =+CF!AH48 -> -7120.575676 | V123: =+CF!AI48 -> -2658.474754 | W123: =+CF!AJ48 -> 4593.520882 | X123: =+CF!AK48 -> 15239.9222 | Y123: =+CF!AL48 -> 9928.009681 | Z123: =+CF!AM48 -> 5666.012793 | AA123: =+CF!AN48 -> 1855.159013 | AB123: =+CF!AO48 -> -2010.824846 | AC123: =+CF!AP48 -> -6414.915714 | AD123: =+CF!AQ48 -> -7769.629758 | AE123: =+CF!AR48 -> -8148.265042 | AF123: =+CF!AS48 -> -7196.555027 | AG123: =+CF!AT48 -> -4421.905597 | AH123: =+CF!AU48 -> 860.4382416 | AI123: =+CF!AV48 -> 493.459841 | AJ123: =+CF!AW48 -> -379.0953209 | AK123: =+CF!AX48 -> -1809.776513 | AL123: =+CF!AY48 -> -3857.548106 | AM123: =+CF!AZ48 -> -6588.554016 | AN123: =+CF!BA48 -> -7453.859149 | AO123: =+CF!BB48 -> -8537.010454 | AP123: =+CF!BC48 -> -9879.684576 | AQ123: =+CF!BD48 -> -11530.67699 | AR123: =+CF!BE48 -> 99114.76292 | AS123: =+CF!BF48 -> 0.00 | AT123: =+CF!BG48 -> 0.00 | AU123: =+CF!BH48 -> 0 | AV123: =+CF!BI48 -> 0 | AW123: =+CF!BJ48 -> 0
B124: DSRA movements | E124: =+CF!R49 -> 0 | F124: =+CF!S49 -> 0 | G124: =+CF!T49 -> 0 | H124: =+CF!U49 -> 21730.86953 | I124: =+CF!V49 -> -3973.307039 | J124: =+CF!W49 -> -2186.781714 | K124: =+CF!X49 -> -404.1548307 | L124: =+CF!Y49 -> -587.4719704 | M124: =+CF!Z49 -> -1438.754301 | N124: =+CF!AA49 -> -1621.809136 | O124: =+CF!AB49 -> -1803.391462 | P124: =+CF!AC49 -> -1805.998431 | Q124: =+CF!AD49 -> -2105.114493 | R124: =+CF!AE49 -> -2345.954792 | S124: =+CF!AF49 -> -2521.598979 | T124: =+CF!AG49 -> -2537.317042 | U124: =+CF!AH49 -> -2918.017098 | V124: =+CF!AI49 -> -3396.254722 | W124: =+CF!AJ49 -> -4362.909429 | X124: =+CF!AK49 -> -4761.275792 | Y124: =+CF!AL49 -> -4660.274302 | Z124: =+CF!AM49 -> -5104.113784 | AA124: =+CF!AN49 -> -697.8086854 | AB124: =+CF!AO49 -> -27326.00612 | AC124: =+CF!AP49 -> 2568.805163 | AD124: =+CF!AQ49 -> 4270.030988 | AE124: =+CF!AR49 -> 5280.653119 | AF124: =+CF!AS49 -> -277.6723551 | AG124: =+CF!AT49 -> -76641.24689 | AH124: =+CF!AU49 -> -74540.15084 | AI124: =+CF!AV49 -> -982.7203265 | AJ124: =+CF!AW49 -> -470.8829164 | AK124: =+CF!AX49 -> -8710.308372 | AL124: =+CF!AY49 -> -9947.234077 | AM124: =+CF!AZ49 -> 148.5887641 | AN124: =+CF!BA49 -> 465.4282347 | AO124: =+CF!BB49 -> 331.3915557 | AP124: =+CF!BC49 -> 348.7896124 | AQ124: =+CF!BD49 -> 135563.6236 | AR124: =+CF!BE49 -> 138920.3494 | AS124: =+CF!BF49 -> 0.00 | AT124: =+CF!BG49 -> 0.00 | AU124: =+CF!BH49 -> 0 | AV124: =+CF!BI49 -> 0 | AW124: =+CF!BJ49 -> 0
B126: TIFIA cash trapped | E126: =+CF!R50 -> 0 | F126: =+CF!S50 -> -46,089 | G126: =+CF!T50 -> -66,536 | H126: =+CF!U50 -> 165,131 | I126: =+CF!V50 -> 0 | J126: =+CF!W50 -> 0 | K126: =+CF!X50 -> 0 | L126: =+CF!Y50 -> 0 | M126: =+CF!Z50 -> 0 | N126: =+CF!AA50 -> 0 | O126: =+CF!AB50 -> 0 | P126: =+CF!AC50 -> 0 | Q126: =+CF!AD50 -> 0 | R126: =+CF!AE50 -> 0 | S126: =+CF!AF50 -> 0 | T126: =+CF!AG50 -> 0 | U126: =+CF!AH50 -> 0 | V126: =+CF!AI50 -> 0 | W126: =+CF!AJ50 -> 0 | X126: =+CF!AK50 -> 0 | Y126: =+CF!AL50 -> 0 | Z126: =+CF!AM50 -> 0 | AA126: =+CF!AN50 -> 0 | AB126: =+CF!AO50 -> 0 | AC126: =+CF!AP50 -> 0 | AD126: =+CF!AQ50 -> 0 | AE126: =+CF!AR50 -> 0 | AF126: =+CF!AS50 -> 0 | AG126: =+CF!AT50 -> 0 | AH126: =+CF!AU50 -> 0 | AI126: =+CF!AV50 -> 0 | AJ126: =+CF!AW50 -> 0 | AK126: =+CF!AX50 -> 0 | AL126: =+CF!AY50 -> 0 | AM126: =+CF!AZ50 -> 0 | AN126: =+CF!BA50 -> 0 | AO126: =+CF!BB50 -> 0 | AP126: =+CF!BC50 -> 0 | AQ126: =+CF!BD50 -> 0 | AR126: =+CF!BE50 -> 0 | AS126: =+CF!BF50 -> 0 | AT126: =+CF!BG50 -> 0 | AU126: =+CF!BH50 -> 0 | AV126: =+CF!BI50 -> 0 | AW126: =+CF!BJ50 -> 0
B128: Income tax | E128: =+'Valuation & IRR'!Y23 -> 0.00 | F128: =+'Valuation & IRR'!Z23 -> 0.00 | G128: =+'Valuation & IRR'!AA23 -> 0.00 | H128: =+'Valuation & IRR'!AB23 -> 0.00 | I128: =+'Valuation & IRR'!AC23 -> 0.00 | J128: =+'Valuation & IRR'!AD23 -> -780.48 | K128: =+'Valuation & IRR'!AE23 -> -1,164.50 | L128: =+'Valuation & IRR'!AF23 -> -1,577.43 | M128: =+'Valuation & IRR'!AG23 -> -2,021.17 | N128: =+'Valuation & IRR'!AH23 -> -2,497.63 | O128: =+'Valuation & IRR'!AI23 -> -3,045.15 | P128: =+'Valuation & IRR'!AJ23 -> -3,641.39 | Q128: =+'Valuation & IRR'!AK23 -> -4,290.20 | R128: =+'Valuation & IRR'!AL23 -> -4,995.67 | S128: =+'Valuation & IRR'!AM23 -> -5,762.32 | T128: =+'Valuation & IRR'!AN23 -> -21,907.56 | U128: =+'Valuation & IRR'!AO23 -> -56,072.34 | V128: =+'Valuation & IRR'!AP23 -> -60,056.51 | W128: =+'Valuation & IRR'!AQ23 -> -64,185.14 | X128: =+'Valuation & IRR'!AR23 -> -68,434.36 | Y128: =+'Valuation & IRR'!AS23 -> -73,430.81 | Z128: =+'Valuation & IRR'!AT23 -> -78,902.46 | AA128: =+'Valuation & IRR'!AU23 -> -84,853.57 | AB128: =+'Valuation & IRR'!AV23 -> -91,300.25 | AC128: =+'Valuation & IRR'!AW23 -> -98,265.58 | AD128: =+'Valuation & IRR'!AX23 -> -104,857.38 | AE128: =+'Valuation & IRR'!AY23 -> -129,480.66 | AF128: =+'Valuation & IRR'!AZ23 -> -149,918.15 | AG128: =+'Valuation & IRR'!BA23 -> -161,202.89 | AH128: =+'Valuation & IRR'!BB23 -> -173,594.49 | AI128: =+'Valuation & IRR'!BC23 -> -186,983.15 | AJ128: =+'Valuation & IRR'!BD23 -> -201,530.43 | AK128: =+'Valuation & IRR'!BE23 -> -217,173.49 | AL128: =+'Valuation & IRR'!BF23 -> -230,148.99 | AM128: =+'Valuation & IRR'!BG23 -> -251,905.67 | AN128: =+'Valuation & IRR'!BH23 -> -271,602.72 | AO128: =+'Valuation & IRR'!BI23 -> -292,448.02 | AP128: =+'Valuation & IRR'!BJ23 -> -314,460.19 | AQ128: =+'Valuation & IRR'!BK23 -> -337,774.35 | AR128: =+'Valuation & IRR'!BL23 -> -361,560.53 | AS128: =+'Valuation & IRR'!BM23 -> -390,657.45 | AT128: =+'Valuation & IRR'!BN23 -> -420,680.82 | AU128: =+'Valuation & IRR'!BO23 -> -453,021.68 | AV128: =+'Valuation & IRR'!BP23 -> -487,854.96 | AW128: =+'Valuation & IRR'!BQ23 -> -269,792.75
B130: Cash Flow available for distributions | E130: =+E112+E117+E124+E123+E126+E118 -> 0 | F130: 0 | G130: 0 | H130: 247,570 | I130: 64,937 | J130: 78,792 | K130: 94,085 | L130: 108,917 | M130: 124,571 | N130: 143,016 | O130: 161,033 | P130: 180,189 | Q130: 200,132 | R130: 209,843 | S130: 242,256 | T130: 265,555 | U130: 292,616 | V130: 323,259 | W130: 357,083 | X130: 395,420 | Y130: 423,676 | Z130: 455,493 | AA130: 495,275 | AB130: 487,073 | AC130: 578,421 | AD130: 622,462 | AE130: 670,123 | AF130: 716,556 | AG130: 696,911 | AH130: 686,910 | AI130: 746,034 | AJ130: 807,503 | AK130: 864,252 | AL130: 897,016 | AM130: 979,533 | AN130: 1,059,171 | AO130: 1,143,472 | AP130: 1,232,863 | AQ130: 1,462,820 | AR130: 1,586,119 | AS130: 1,877,951 | AT130: 2,022,876 | AU130: 2,179,019 | AV130: 2,347,205 | AW130: 1,688,310
B132: Income tax | E132: =-E128 -> 0.00 | F132: 0.00 | G132: 0.00 | H132: 0.00 | I132: 0.00 | J132: 780.48 | K132: 1,164.50 | L132: 1,577.43 | M132: 2,021.17 | N132: 2,497.63 | O132: 3,045.15 | P132: 3,641.39 | Q132: 4,290.20 | R132: 4,995.67 | S132: 5,762.32 | T132: 21,907.56 | U132: 56,072.34 | V132: 60,056.51 | W132: 64,185.14 | X132: 68,434.36 | Y132: 73,430.81 | Z132: 78,902.46 | AA132: 84,853.57 | AB132: 91,300.25 | AC132: 98,265.58 | AD132: 104,857.38 | AE132: 129,480.66 | AF132: 149,918.15 | AG132: 161,202.89 | AH132: 173,594.49 | AI132: 186,983.15 | AJ132: 201,530.43 | AK132: 217,173.49 | AL132: 230,148.99 | AM132: 251,905.67 | AN132: 271,602.72 | AO132: 292,448.02 | AP132: 314,460.19 | AQ132: 337,774.35 | AR132: 361,560.53 | AS132: 390,657.45 | AT132: 420,680.82 | AU132: 453,021.68 | AV132: 487,854.96 | AW132: 269,792.75
B134: Cash Flow available for distributions post tax | E134: =+E130-E132 -> 0 | F134: 0 | G134: 0 | H134: 247,570 | I134: 64,937 | J134: 78,011 | K134: 92,920 | L134: 107,339 | M134: 122,549 | N134: 140,519 | O134: 157,988 | P134: 176,547 | Q134: 195,842 | R134: 204,847 | S134: 236,494 | T134: 243,647 | U134: 236,544 | V134: 263,202 | W134: 292,898 | X134: 326,986 | Y134: 350,246 | Z134: 376,590 | AA134: 410,421 | AB134: 395,773 | AC134: 480,155 | AD134: 517,605 | AE134: 540,642 | AF134: 566,637 | AG134: 535,708 | AH134: 513,315 | AI134: 559,051 | AJ134: 605,972 | AK134: 647,078 | AL134: 666,867 | AM134: 727,627 | AN134: 787,568 | AO134: 851,024 | AP134: 918,403 | AQ134: 1,125,045 | AR134: 1,224,558 | AS134: 1,487,294 | AT134: 1,602,195 | AU134: 1,725,997 | AV134: 1,859,350 | AW134: 1,418,517
B138: CF | F138: 2017 | G138: =+F138+1 -> 2018 | H138: 2019 | I138: 2020 | J138: 2021 | K138: 2022 | L138: 2023 | M138: 2024 | N138: 2025 | O138: 2026 | P138: 2027 | Q138: 2028 | R138: 2029 | S138: 2030 | T138: 2031 | U138: 2032 | V138: 2033 | W138: 2034 | X138: 2035 | Y138: 2036 | Z138: 2037 | AA138: 2038 | AB138: 2039 | AC138: 2040 | AD138: 2041 | AE138: 2042 | AF138: 2043 | AG138: 2044 | AH138: 2045 | AI138: 2046 | AJ138: 2047 | AK138: 2048 | AL138: 2049 | AM138: 2050 | AN138: 2051 | AO138: 2052 | AP138: 2053 | AQ138: 2054 | AR138: 2055 | AS138: 2056 | AT138: 2057 | AU138: 2058 | AV138: 2059 | AW138: 2060 | AX138: 2061
B140: Toll Revenues | F140: =+CF!R25 -> 0 | G140: =+CF!S25 -> 120,886 | H140: =+CF!T25 -> 137,801 | I140: =+CF!U25 -> 157,083 | J140: =+CF!V25 -> 179,064 | K140: =+CF!W25 -> 192,605 | L140: =+CF!X25 -> 207,170 | M140: =+CF!Y25 -> 222,837 | N140: =+CF!Z25 -> 239,688 | O140: =+CF!AA25 -> 257,814 | P140: =+CF!AB25 -> 278,762 | Q140: =+CF!AC25 -> 301,413 | R140: =+CF!AD25 -> 325,904 | S140: =+CF!AE25 -> 352,384 | T140: =+CF!AF25 -> 381,016 | U140: =+CF!AG25 -> 408,456 | V140: =+CF!AH25 -> 437,872 | W140: =+CF!AI25 -> 469,406 | X140: =+CF!AJ25 -> 503,212 | Y140: =+CF!AK25 -> 539,451 | Z140: =+CF!AL25 -> 578,675 | AA140: =+CF!AM25 -> 620,749 | AB140: =+CF!AN25 -> 665,884 | AC140: =+CF!AO25 -> 714,299 | AD140: =+CF!AP25 -> 766,235 | AE140: =+CF!AQ25 -> 815,048 | AF140: =+CF!AR25 -> 866,970 | AG140: =+CF!AS25 -> 922,200 | AH140: =+CF!AT25 -> 980,949 | AI140: =+CF!AU25 -> 1,043,440 | AJ140: =+CF!AV25 -> 1,107,893 | AK140: =+CF!AW25 -> 1,176,328 | AL140: =+CF!AX25 -> 1,248,991 | AM140: =+CF!AY25 -> 1,326,141 | AN140: =+CF!AZ25 -> 1,408,058 | AO140: =+CF!BA25 -> 1,496,986 | AP140: =+CF!BB25 -> 1,591,531 | AQ140: =+CF!BC25 -> 1,692,046 | AR140: =+CF!BD25 -> 1,798,910 | AS140: =+CF!BE25 -> 1,912,524 | AT140: =+CF!BF25 -> 2,058,734 | AU140: =+CF!BG25 -> 2,216,121 | AV140: =+CF!BH25 -> 2,385,541 | AW140: =+CF!BI25 -> 2,567,913 | AX140: =+CF!BJ25 -> 1,870,586
B141: Revenue Sharing | F141: =+CF!R26 -> 0 | G141: =+CF!S26 -> -2,500 | H141: =+CF!T26 -> -2,278 | I141: =+CF!U26 -> -2,076 | J141: =+CF!V26 -> -1,891 | K141: =+CF!W26 -> -1,987 | L141: =+CF!X26 -> -2,087 | M141: =+CF!Y26 -> -2,193 | N141: =+CF!Z26 -> -2,303 | O141: =+CF!AA26 -> -2,420 | P141: =+CF!AB26 -> -2,534 | Q141: =+CF!AC26 -> -2,654 | R141: =+CF!AD26 -> -2,779 | S141: =+CF!AE26 -> -2,911 | T141: =+CF!AF26 -> -3,048 | U141: =+CF!AG26 -> -4,181 | V141: =+CF!AH26 -> -5,736 | W141: =+CF!AI26 -> -7,869 | X141: =+CF!AJ26 -> -10,795 | Y141: =+CF!AK26 -> -14,808 | Z141: =+CF!AL26 -> -15,885 | AA141: =+CF!AM26 -> -17,040 | AB141: =+CF!AN26 -> -18,279 | AC141: =+CF!AO26 -> -19,608 | AD141: =+CF!AP26 -> -21,034 | AE141: =+CF!AQ26 -> -22,374 | AF141: =+CF!AR26 -> -23,799 | AG141: =+CF!AS26 -> -25,315 | AH141: =+CF!AT26 -> -26,928 | AI141: =+CF!AU26 -> -28,643 | AJ141: =+CF!AV26 -> -30,413 | AK141: =+CF!AW26 -> -32,291 | AL141: =+CF!AX26 -> -34,286 | AM141: =+CF!AY26 -> -36,404 | AN141: =+CF!AZ26 -> -38,653 | AO141: =+CF!BA26 -> -41,094 | AP141: =+CF!BB26 -> -43,689 | AQ141: =+CF!BC26 -> -46,448 | AR141: =+CF!BD26 -> -49,382 | AS141: =+CF!BE26 -> -52,501 | AT141: =+CF!BF26 -> -56,514 | AU141: =+CF!BG26 -> -60,835 | AV141: =+CF!BH26 -> -65,485 | AW141: =+CF!BI26 -> -70,492 | AX141: =+CF!BJ26 -> -75,881
B142: O&M | F142: =+CF!R27 -> 0 | G142: =+CF!S27 -> -20,867 | H142: =+CF!T27 -> -22,075 | I142: =+CF!U27 -> -23,354 | J142: =+CF!V27 -> -24,706 | K142: =+CF!W27 -> -25,771 | L142: =+CF!X27 -> -26,883 | M142: =+CF!Y27 -> -28,042 | N142: =+CF!Z27 -> -29,251 | O142: =+CF!AA27 -> -30,513 | P142: =+CF!AB27 -> -32,044 | Q142: =+CF!AC27 -> -33,651 | R142: =+CF!AD27 -> -35,339 | S142: =+CF!AE27 -> -37,112 | T142: =+CF!AF27 -> -38,974 | U142: =+CF!AG27 -> -40,741 | V142: =+CF!AH27 -> -42,588 | W142: =+CF!AI27 -> -44,518 | X142: =+CF!AJ27 -> -46,536 | Y142: =+CF!AK27 -> -48,645 | Z142: =+CF!AL27 -> -51,065 | AA142: =+CF!AM27 -> -53,605 | AB142: =+CF!AN27 -> -56,272 | AC142: =+CF!AO27 -> -59,071 | AD142: =+CF!AP27 -> -62,010 | AE142: =+CF!AQ27 -> -64,710 | AF142: =+CF!AR27 -> -67,529 | AG142: =+CF!AS27 -> -70,470 | AH142: =+CF!AT27 -> -73,539 | AI142: =+CF!AU27 -> -76,742 | AJ142: =+CF!AV27 -> -80,200 | AK142: =+CF!AW27 -> -83,813 | AL142: =+CF!AX27 -> -87,590 | AM142: =+CF!AY27 -> -91,536 | AN142: =+CF!AZ27 -> -95,660 | AO142: =+CF!BA27 -> -100,062 | AP142: =+CF!BB27 -> -104,666 | AQ142: =+CF!BC27 -> -109,482 | AR142: =+CF!BD27 -> -114,520 | AS142: =+CF!BE27 -> -119,790 | AT142: =+CF!BF27 -> -126,656 | AU142: =+CF!BG27 -> -133,916 | AV142: =+CF!BH27 -> -141,593 | AW142: =+CF!BI27 -> -149,709 | AX142: =+CF!BJ27 -> -107,117
B143: Major Maintenance Capex | F143: =+CF!R28 -> 0 | G143: =+CF!S28 -> -7,726 | H143: =+CF!T28 -> -4,923 | I143: =+CF!U28 -> -3,516 | J143: =+CF!V28 -> -2,511 | K143: =+CF!W28 -> -3,208 | L143: =+CF!X28 -> -4,097 | M143: =+CF!Y28 -> -5,232 | N143: =+CF!Z28 -> -6,682 | O143: =+CF!AA28 -> -8,534 | P143: =+CF!AB28 -> -7,834 | Q143: =+CF!AC28 -> -7,192 | R143: =+CF!AD28 -> -6,602 | S143: =+CF!AE28 -> -6,061 | T143: =+CF!AF28 -> -5,564 | U143: =+CF!AG28 -> -7,544 | V143: =+CF!AH28 -> -10,229 | W143: =+CF!AI28 -> -13,869 | X143: =+CF!AJ28 -> -18,805 | Y143: =+CF!AK28 -> -25,497 | Z143: =+CF!AL28 -> -17,258 | AA143: =+CF!AM28 -> -11,681 | AB143: =+CF!AN28 -> -7,906 | AC143: =+CF!AO28 -> -5,351 | AD143: =+CF!AP28 -> -3,622 | AE143: =+CF!AQ28 -> -5,032 | AF143: =+CF!AR28 -> -6,990 | AG143: =+CF!AS28 -> -9,711 | AH143: =+CF!AT28 -> -13,490 | AI143: =+CF!AU28 -> -18,741 | AJ143: =+CF!AV28 -> -18,421 | AK143: =+CF!AW28 -> -18,107 | AL143: =+CF!AX28 -> -17,798 | AM143: =+CF!AY28 -> -17,494 | AN143: =+CF!AZ28 -> -17,196 | AO143: =+CF!BA28 -> -19,251 | AP143: =+CF!BB28 -> -21,552 | AQ143: =+CF!BC28 -> -24,128 | AR143: =+CF!BD28 -> -27,012 | AS143: =+CF!BE28 -> -30,240 | AT143: =+CF!BF28 -> -34,374 | AU143: =+CF!BG28 -> -39,072 | AV143: =+CF!BH28 -> -44,412 | AW143: =+CF!BI28 -> -50,482 | AX143: =+CF!BJ28+CF!BJ31 -> -190,951
B144: Government subsidy | F144: =+CF!R29 -> 0 | G144: =+CF!S29 -> 500 | H144: =+CF!T29 -> 0 | I144: =+CF!U29 -> 0 | J144: =+CF!V29 -> 0 | K144: =+CF!W29 -> 0 | L144: =+CF!X29 -> 0 | M144: =+CF!Y29 -> 0 | N144: =+CF!Z29 -> 0 | O144: =+CF!AA29 -> 0 | P144: =+CF!AB29 -> 0 | Q144: =+CF!AC29 -> 0 | R144: =+CF!AD29 -> 0 | S144: =+CF!AE29 -> 0 | T144: =+CF!AF29 -> 0 | U144: =+CF!AG29 -> 0 | V144: =+CF!AH29 -> 0 | W144: =+CF!AI29 -> 0 | X144: =+CF!AJ29 -> 0 | Y144: =+CF!AK29 -> 0 | Z144: =+CF!AL29 -> 0 | AA144: =+CF!AM29 -> 0 | AB144: =+CF!AN29 -> 0 | AC144: =+CF!AO29 -> 0 | AD144: =+CF!AP29 -> 0 | AE144: =+CF!AQ29 -> 0 | AF144: =+CF!AR29 -> 0 | AG144: =+CF!AS29 -> 0 | AH144: =+CF!AT29 -> 0 | AI144: =+CF!AU29 -> 0 | AJ144: =+CF!AV29 -> 0 | AK144: =+CF!AW29 -> 0 | AL144: =+CF!AX29 -> 0 | AM144: =+CF!AY29 -> 0 | AN144: =+CF!AZ29 -> 0 | AO144: =+CF!BA29 -> 0 | AP144: =+CF!BB29 -> 0 | AQ144: =+CF!BC29 -> 0 | AR144: =+CF!BD29 -> 0 | AS144: =+CF!BE29 -> 0 | AT144: =+CF!BF29 -> 0 | AU144: =+CF!BG29 -> 0 | AV144: =+CF!BH29 -> 0 | AW144: =+CF!BI29 -> 0 | AX144: =+CF!BJ29 -> 0
B145: Handback Reserve | F145: =+CF!R30 -> 0 | G145: =+CF!S30 -> 0 | H145: =+CF!T30 -> 0 | I145: =+CF!U30 -> 0 | J145: =+CF!V30 -> 0 | K145: =+CF!W30 -> 0 | L145: =+CF!X30 -> 0 | M145: =+CF!Y30 -> 0 | N145: =+CF!Z30 -> 0 | O145: =+CF!AA30 -> 0 | P145: =+CF!AB30 -> 0 | Q145: =+CF!AC30 -> 0 | R145: =+CF!AD30 -> 0 | S145: =+CF!AE30 -> 0 | T145: =+CF!AF30 -> 0 | U145: =+CF!AG30 -> 0 | V145: =+CF!AH30 -> 0 | W145: =+CF!AI30 -> 0 | X145: =+CF!AJ30 -> 0 | Y145: =+CF!AK30 -> 0 | Z145: =+CF!AL30 -> 0 | AA145: =+CF!AM30 -> 0 | AB145: =+CF!AN30 -> 0 | AC145: =+CF!AO30 -> 0 | AD145: =+CF!AP30 -> 0 | AE145: =+CF!AQ30 -> 0 | AF145: =+CF!AR30 -> 0 | AG145: =+CF!AS30 -> 0 | AH145: =+CF!AT30 -> 0 | AI145: =+CF!AU30 -> 0 | AJ145: =+CF!AV30 -> 0 | AK145: =+CF!AW30 -> 0 | AL145: =+CF!AX30 -> 0 | AM145: =+CF!AY30 -> 0 | AN145: =+CF!AZ30 -> 0 | AO145: =+CF!BA30 -> 0 | AP145: =+CF!BB30 -> 0 | AQ145: =+CF!BC30 -> 0 | AR145: =+CF!BD30 -> 0 | AS145: =+CF!BE30 -> -225,723 | AT145: =+CF!BF30 -> 34,374 | AU145: =+CF!BG30 -> 39,072 | AV145: =+CF!BH30 -> 44,412 | AW145: =+CF!BI30 -> 50,482 | AX145: =+CF!BJ30 -> 190,951
B146: Margin Tax | F146: =+CF!R32 -> 0 | G146: =+CF!S32 -> -446 | H146: =+CF!T32 -> -738 | I146: =+CF!U32 -> -845 | J146: =+CF!V32 -> -947 | K146: =+CF!W32 -> -1,019 | L146: =+CF!X32 -> -1,097 | M146: =+CF!Y32 -> -1,181 | N146: =+CF!Z32 -> -1,270 | O146: =+CF!AA32 -> -1,367 | P146: =+CF!AB32 -> -1,478 | Q146: =+CF!AC32 -> -1,598 | R146: =+CF!AD32 -> -1,727 | S146: =+CF!AE32 -> -1,868 | T146: =+CF!AF32 -> -2,020 | U146: =+CF!AG32 -> -2,166 | V146: =+CF!AH32 -> -2,322 | W146: =+CF!AI32 -> -2,490 | X146: =+CF!AJ32 -> -2,669 | Y146: =+CF!AK32 -> -2,860 | Z146: =+CF!AL32 -> -3,065 | AA146: =+CF!AM32 -> -3,286 | AB146: =+CF!AN32 -> -3,525 | AC146: =+CF!AO32 -> -3,779 | AD146: =+CF!AP32 -> -4,057 | AE146: =+CF!AQ32 -> -4,314 | AF146: =+CF!AR32 -> -4,588 | AG146: =+CF!AS32 -> -4,880 | AH146: =+CF!AT32 -> -5,190 | AI146: =+CF!AU32 -> -5,529 | AJ146: =+CF!AV32 -> -5,875 | AK146: =+CF!AW32 -> -6,235 | AL146: =+CF!AX32 -> -6,618 | AM146: =+CF!AY32 -> -7,026 | AN146: =+CF!AZ32 -> -7,459 | AO146: =+CF!BA32 -> -7,929 | AP146: =+CF!BB32 -> -8,428 | AQ146: =+CF!BC32 -> -8,958 | AR146: =+CF!BD32 -> -9,523 | AS146: =+CF!BE32 -> -10,109 | AT146: =+CF!BF32 -> -10,878 | AU146: =+CF!BG32 -> -11,704 | AV146: =+CF!BH32 -> -12,593 | AW146: =+CF!BI32 -> -13,550 | AX146: =+CF!BJ32 -> -9,866
B147: Operating Cash Balance | F147: =+CF!R33 -> 0 | G147: =+CF!S33 -> 0 | H147: =+CF!T33 -> 0 | I147: =+CF!U33 -> 0 | J147: =+CF!V33 -> 0 | K147: =+CF!W33 -> 0 | L147: =+CF!X33 -> 0 | M147: =+CF!Y33 -> 0 | N147: =+CF!Z33 -> 0 | O147: =+CF!AA33 -> 0 | P147: =+CF!AB33 -> 0 | Q147: =+CF!AC33 -> 0 | R147: =+CF!AD33 -> 0 | S147: =+CF!AE33 -> 0 | T147: =+CF!AF33 -> 0 | U147: =+CF!AG33 -> 0 | V147: =+CF!AH33 -> 0 | W147: =+CF!AI33 -> 0 | X147: =+CF!AJ33 -> 0 | Y147: =+CF!AK33 -> 0 | Z147: =+CF!AL33 -> 0 | AA147: =+CF!AM33 -> 0 | AB147: =+CF!AN33 -> 0 | AC147: =+CF!AO33 -> 0 | AD147: =+CF!AP33 -> 0 | AE147: =+CF!AQ33 -> 0 | AF147: =+CF!AR33 -> 0 | AG147: =+CF!AS33 -> 0 | AH147: =+CF!AT33 -> 0 | AI147: =+CF!AU33 -> 0 | AJ147: =+CF!AV33 -> 0 | AK147: =+CF!AW33 -> 0 | AL147: =+CF!AX33 -> 0 | AM147: =+CF!AY33 -> 0 | AN147: =+CF!AZ33 -> 0 | AO147: =+CF!BA33 -> 0 | AP147: =+CF!BB33 -> 0 | AQ147: =+CF!BC33 -> 0 | AR147: =+CF!BD33 -> 0 | AS147: =+CF!BE33 -> 0 | AT147: =+CF!BF33 -> 0 | AU147: =+CF!BG33 -> 0 | AV147: =+CF!BH33 -> 0 | AW147: =+CF!BI33 -> 0 | AX147: =+CF!BJ33 -> 1,983
B148: Debt draws | F148: =+CF!R37 -> 0 | G148: =+CF!S37 -> 0 | H148: =+CF!T37 -> 0 | I148: =+CF!U37 -> 616,759 | J148: =+CF!V37 -> 3,591 | K148: =+CF!W37 -> 4,761 | L148: =+CF!X37 -> 6,174 | M148: =+CF!Y37 -> 7,890 | N148: =+CF!Z37 -> 26,282 | O148: =+CF!AA37 -> 29,663 | P148: =+CF!AB37 -> 32,042 | Q148: =+CF!AC37 -> 34,807 | R148: =+CF!AD37 -> 37,987 | S148: =+CF!AE37 -> 99,715 | T148: =+CF!AF37 -> 44,663 | U148: =+CF!AG37 -> 48,687 | V148: =+CF!AH37 -> 53,506 | W148: =+CF!AI37 -> 59,372 | X148: =+CF!AJ37 -> 76,628 | Y148: =+CF!AK37 -> 95,737 | Z148: =+CF!AL37 -> 90,385 | AA148: =+CF!AM37 -> 87,848 | AB148: =+CF!AN37 -> 127,274 | AC148: =+CF!AO37 -> 242,143 | AD148: =+CF!AP37 -> 124,113 | AE148: =+CF!AQ37 -> 104,523 | AF148: =+CF!AR37 -> 76,477 | AG148: =+CF!AS37 -> 9,711 | AH148: =+CF!AT37 -> 13,490 | AI148: =+CF!AU37 -> 18,741 | AJ148: =+CF!AV37 -> 18,421 | AK148: =+CF!AW37 -> 18,107 | AL148: =+CF!AX37 -> 17,798 | AM148: =+CF!AY37 -> 132,082 | AN148: =+CF!AZ37 -> 0 | AO148: =+CF!BA37 -> 0 | AP148: =+CF!BB37 -> 0 | AQ148: =+CF!BC37 -> 0 | AR148: =+CF!BD37 -> 0 | AS148: =+CF!BE37 -> 0 | AT148: =+CF!BF37 -> 0 | AU148: =+CF!BG37 -> 0 | AV148: =+CF!BH37 -> 0 | AW148: =+CF!BI37 -> 0 | AX148: =+CF!BJ37 -> 0
B149: Debt Fees | F149: =+CF!R39 -> 0 | G149: =+CF!S39 -> 0 | H149: =+CF!T39 -> -186 | I149: =+CF!U39 -> -8,235 | J149: =+CF!V39 -> -422 | K149: =+CF!W39 -> -422 | L149: =+CF!X39 -> -420 | M149: =+CF!Y39 -> -415 | N149: =+CF!Z39 -> -602 | O149: =+CF!AA39 -> -599 | P149: =+CF!AB39 -> -606 | Q149: =+CF!AC39 -> -621 | R149: =+CF!AD39 -> -643 | S149: =+CF!AE39 -> -11,811 | T149: =+CF!AF39 -> -1,198 | U149: =+CF!AG39 -> -1,206 | V149: =+CF!AH39 -> -1,207 | W149: =+CF!AI39 -> -1,199 | X149: =+CF!AJ39 -> -1,297 | Y149: =+CF!AK39 -> -1,377 | Z149: =+CF!AL39 -> -1,316 | AA149: =+CF!AM39 -> -1,290 | AB149: =+CF!AN39 -> -1,768 | AC149: =+CF!AO39 -> -21,626 | AD149: =+CF!AP39 -> -2,280 | AE149: =+CF!AQ39 -> -2,021 | AF149: =+CF!AR39 -> -1,648 | AG149: =+CF!AS39 -> -572 | AH149: =+CF!AT39 -> -535 | AI149: =+CF!AU39 -> -484 | AJ149: =+CF!AV39 -> -411 | AK149: =+CF!AW39 -> -340 | AL149: =+CF!AX39 -> -270 | AM149: =+CF!AY39 -> -17,962 | AN149: =+CF!AZ39 -> -124 | AO149: =+CF!BA39 -> -127 | AP149: =+CF!BB39 -> -130 | AQ149: =+CF!BC39 -> -133 | AR149: =+CF!BD39 -> -136 | AS149: =+CF!BE39 -> -139 | AT149: =+CF!BF39 -> 0 | AU149: =+CF!BG39 -> 0 | AV149: =+CF!BH39 -> 0 | AW149: =+CF!BI39 -> 0 | AX149: =+CF!BJ39 -> 0
B150: Debt Interests | F150: =+CF!R40 -> 0 | G150: =+CF!S40 -> -43,758 | H150: =+CF!T40 -> -43,758 | I150: =+CF!U40 -> -74,117 | J150: =+CF!V40 -> -80,819 | K150: =+CF!W40 -> -80,975 | L150: =+CF!X40 -> -81,177 | M150: =+CF!Y40 -> -81,525 | N150: =+CF!Z40 -> -81,894 | O150: =+CF!AA40 -> -82,497 | P150: =+CF!AB40 -> -83,194 | Q150: =+CF!AC40 -> -83,992 | R150: =+CF!AD40 -> -84,596 | S150: =+CF!AE40 -> -85,347 | T150: =+CF!AF40 -> -86,104 | U150: =+CF!AG40 -> -86,999 | V150: =+CF!AH40 -> -87,772 | W150: =+CF!AI40 -> -88,852 | X150: =+CF!AJ40 -> -90,246 | Y150: =+CF!AK40 -> -92,216 | Z150: =+CF!AL40 -> -94,087 | AA150: =+CF!AM40 -> -95,750 | AB150: =+CF!AN40 -> -97,501 | AC150: =+CF!AO40 -> -99,409 | AD150: =+CF!AP40 -> -101,086 | AE150: =+CF!AQ40 -> -102,361 | AF150: =+CF!AR40 -> -103,370 | AG150: =+CF!AS40 -> -104,208 | AH150: =+CF!AT40 -> -104,486 | AI150: =+CF!AU40 -> -104,240 | AJ150: =+CF!AV40 -> -100,079 | AK150: =+CF!AW40 -> -92,894 | AL150: =+CF!AX40 -> -84,767 | AM150: =+CF!AY40 -> -76,224 | AN150: =+CF!AZ40 -> -66,256 | AO150: =+CF!BA40 -> -55,107 | AP150: =+CF!BB40 -> -43,065 | AQ150: =+CF!BC40 -> -30,548 | AR150: =+CF!BD40 -> -17,374 | AS150: =+CF!BE40 -> -5,347 | AT150: =+CF!BF40 -> 0 | AU150: =+CF!BG40 -> 0 | AV150: =+CF!BH40 -> 0 | AW150: =+CF!BI40 -> 0 | AX150: =+CF!BJ40 -> 0
B151: Debt Principal Repayments | F151: =+CF!R41 -> 0 | G151: =+CF!S41 -> 0 | H151: =+CF!T41 -> 0 | I151: =+CF!U41 -> -615,000 | J151: =+CF!V41 -> -1,079 | K151: =+CF!W41 -> -1,553 | L151: =+CF!X41 -> -2,078 | M151: =+CF!Y41 -> -2,658 | N151: =+CF!Z41 -> -19,600 | O151: =+CF!AA41 -> -21,129 | P151: =+CF!AB41 -> -24,207 | Q151: =+CF!AC41 -> -27,615 | R151: =+CF!AD41 -> -31,385 | S151: =+CF!AE41 -> -93,654 | T151: =+CF!AF41 -> -39,099 | U151: =+CF!AG41 -> -41,143 | V151: =+CF!AH41 -> -43,277 | W151: =+CF!AI41 -> -45,503 | X151: =+CF!AJ41 -> -57,824 | Y151: =+CF!AK41 -> -70,240 | Z151: =+CF!AL41 -> -73,127 | AA151: =+CF!AM41 -> -76,167 | AB151: =+CF!AN41 -> -119,368 | AC151: =+CF!AO41 -> -236,792 | AD151: =+CF!AP41 -> -120,491 | AE151: =+CF!AQ41 -> -99,491 | AF151: =+CF!AR41 -> -69,487 | AG151: =+CF!AS41 -> 0 | AH151: =+CF!AT41 -> 0 | AI151: =+CF!AU41 -> -76,887 | AJ151: =+CF!AV41 -> -155,588 | AK151: =+CF!AW41 -> -163,756 | AL151: =+CF!AX41 -> -172,353 | AM151: =+CF!AY41 -> -312,941 | AN151: =+CF!AZ41 -> -209,522 | AO151: =+CF!BA41 -> -220,522 | AP151: =+CF!BB41 -> -232,100 | AQ151: =+CF!BC41 -> -244,285 | AR151: =+CF!BD41 -> -257,110 | AS151: =+CF!BE41 -> -133,573 | AT151: =+CF!BF41 -> 0 | AU151: =+CF!BG41 -> 0 | AV151: =+CF!BH41 -> 0 | AW151: =+CF!BI41 -> 0 | AX151: =+CF!BJ41 -> 0
B152: Interest earned / (paid) on cash balances | F152: =+CF!R44 -> 0 | G152: =+CF!S44 -> 0 | H152: =+CF!T44 -> 2,692 | I152: =+CF!U44 -> 3,887 | J152: =+CF!V44 -> 1,369 | K152: =+CF!W44 -> 1,585 | L152: =+CF!X44 -> 1,826 | M152: =+CF!Y44 -> 2,091 | N152: =+CF!Z44 -> 2,235 | O152: =+CF!AA44 -> 2,483 | P152: =+CF!AB44 -> 2,702 | Q152: =+CF!AC44 -> 2,954 | R152: =+CF!AD44 -> 3,106 | S152: =+CF!AE44 -> 3,357 | T152: =+CF!AF44 -> 3,734 | U152: =+CF!AG44 -> 4,032 | V152: =+CF!AH44 -> 4,408 | W152: =+CF!AI44 -> 4,835 | X152: =+CF!AJ44 -> 5,183 | Y152: =+CF!AK44 -> 5,398 | Z152: =+CF!AL44 -> 5,152 | AA152: =+CF!AM44 -> 5,153 | AB152: =+CF!AN44 -> 5,579 | AC152: =+CF!AO44 -> 5,604 | AD152: =+CF!AP44 -> 6,498 | AE152: =+CF!AQ44 -> 6,694 | AF152: =+CF!AR44 -> 6,954 | AG152: =+CF!AS44 -> 7,274 | AH152: =+CF!AT44 -> 7,704 | AI152: =+CF!AU44 -> 9,675 | AJ152: =+CF!AV44 -> 11,196 | AK152: =+CF!AW44 -> 11,354 | AL152: =+CF!AX44 -> 11,666 | AM152: =+CF!AY44 -> 12,186 | AN152: =+CF!AZ44 -> 12,785 | AO152: =+CF!BA44 -> 13,266 | AP152: =+CF!BB44 -> 13,776 | AQ152: =+CF!BC44 -> 14,331 | AR152: =+CF!BD44 -> 14,933 | AS152: =+CF!BE44 -> 12,982 | AT152: =+CF!BF44 -> 13,266 | AU152: =+CF!BG44 -> 13,210 | AV152: =+CF!BH44 -> 13,149 | AW152: =+CF!BI44 -> 13,043 | AX152: =+CF!BJ44 -> 8,605
B153: MMRA | F153: =+CF!R48 -> 0 | G153: =+CF!S48 -> 0 | H153: =+CF!T48 -> 0 | I153: =+CF!U48 -> 10,122 | J153: =+CF!V48 -> -2,738 | K153: =+CF!W48 -> -3,037 | L153: =+CF!X48 -> -2,844 | M153: =+CF!Y48 -> -2,069 | N153: =+CF!Z48 -> -594 | O153: =+CF!AA48 -> 1,735 | P153: =+CF!AB48 -> 1,227 | Q153: =+CF!AC48 -> 144 | R153: =+CF!AD48 -> -1,688 | S153: =+CF!AE48 -> -4,504 | T153: =+CF!AF48 -> -8,628 | U153: =+CF!AG48 -> -9,102 | V153: =+CF!AH48 -> -7,121 | W153: =+CF!AI48 -> -2,658 | X153: =+CF!AJ48 -> 4,594 | Y153: =+CF!AK48 -> 15,240 | Z153: =+CF!AL48 -> 9,928 | AA153: =+CF!AM48 -> 5,666 | AB153: =+CF!AN48 -> 1,855 | AC153: =+CF!AO48 -> -2,011 | AD153: =+CF!AP48 -> -6,415 | AE153: =+CF!AQ48 -> -7,770 | AF153: =+CF!AR48 -> -8,148 | AG153: =+CF!AS48 -> -7,197 | AH153: =+CF!AT48 -> -4,422 | AI153: =+CF!AU48 -> 860 | AJ153: =+CF!AV48 -> 493 | AK153: =+CF!AW48 -> -379 | AL153: =+CF!AX48 -> -1,810 | AM153: =+CF!AY48 -> -3,858 | AN153: =+CF!AZ48 -> -6,589 | AO153: =+CF!BA48 -> -7,454 | AP153: =+CF!BB48 -> -8,537 | AQ153: =+CF!BC48 -> -9,880 | AR153: =+CF!BD48 -> -11,531 | AS153: =+CF!BE48 -> 99,115 | AT153: =+CF!BF48 -> 0 | AU153: =+CF!BG48 -> 0 | AV153: =+CF!BH48 -> 0 | AW153: =+CF!BI48 -> 0 | AX153: =+CF!BJ48 -> 0
B154: DSRA | F154: =+CF!R49 -> 0 | G154: =+CF!S49 -> 0 | H154: =+CF!T49 -> 0 | I154: =+CF!U49 -> 21,731 | J154: =+CF!V49 -> -3,973 | K154: =+CF!W49 -> -2,187 | L154: =+CF!X49 -> -404 | M154: =+CF!Y49 -> -587 | N154: =+CF!Z49 -> -1,439 | O154: =+CF!AA49 -> -1,622 | P154: =+CF!AB49 -> -1,803 | Q154: =+CF!AC49 -> -1,806 | R154: =+CF!AD49 -> -2,105 | S154: =+CF!AE49 -> -2,346 | T154: =+CF!AF49 -> -2,522 | U154: =+CF!AG49 -> -2,537 | V154: =+CF!AH49 -> -2,918 | W154: =+CF!AI49 -> -3,396 | X154: =+CF!AJ49 -> -4,363 | Y154: =+CF!AK49 -> -4,761 | Z154: =+CF!AL49 -> -4,660 | AA154: =+CF!AM49 -> -5,104 | AB154: =+CF!AN49 -> -698 | AC154: =+CF!AO49 -> -27,326 | AD154: =+CF!AP49 -> 2,569 | AE154: =+CF!AQ49 -> 4,270 | AF154: =+CF!AR49 -> 5,281 | AG154: =+CF!AS49 -> -278 | AH154: =+CF!AT49 -> -76,641 | AI154: =+CF!AU49 -> -74,540 | AJ154: =+CF!AV49 -> -983 | AK154: =+CF!AW49 -> -471 | AL154: =+CF!AX49 -> -8,710 | AM154: =+CF!AY49 -> -9,947 | AN154: =+CF!AZ49 -> 149 | AO154: =+CF!BA49 -> 465 | AP154: =+CF!BB49 -> 331 | AQ154: =+CF!BC49 -> 349 | AR154: =+CF!BD49 -> 135,564 | AS154: =+CF!BE49 -> 138,920 | AT154: =+CF!BF49 -> 0 | AU154: =+CF!BG49 -> 0 | AV154: =+CF!BH49 -> 0 | AW154: =+CF!BI49 -> 0 | AX154: =+CF!BJ49 -> 0
B155: TIFIA Cash Trapped | F155: =+CF!R50 -> 0 | G155: =+CF!S50 -> -46,089 | H155: =+CF!T50 -> -66,536 | I155: =+CF!U50 -> 165,131 | J155: =+CF!V50 -> 0 | K155: =+CF!W50 -> 0 | L155: =+CF!X50 -> 0 | M155: =+CF!Y50 -> 0 | N155: =+CF!Z50 -> 0 | O155: =+CF!AA50 -> 0 | P155: =+CF!AB50 -> 0 | Q155: =+CF!AC50 -> 0 | R155: =+CF!AD50 -> 0 | S155: =+CF!AE50 -> 0 | T155: =+CF!AF50 -> 0 | U155: =+CF!AG50 -> 0 | V155: =+CF!AH50 -> 0 | W155: =+CF!AI50 -> 0 | X155: =+CF!AJ50 -> 0 | Y155: =+CF!AK50 -> 0 | Z155: =+CF!AL50 -> 0 | AA155: =+CF!AM50 -> 0 | AB155: =+CF!AN50 -> 0 | AC155: =+CF!AO50 -> 0 | AD155: =+CF!AP50 -> 0 | AE155: =+CF!AQ50 -> 0 | AF155: =+CF!AR50 -> 0 | AG155: =+CF!AS50 -> 0 | AH155: =+CF!AT50 -> 0 | AI155: =+CF!AU50 -> 0 | AJ155: =+CF!AV50 -> 0 | AK155: =+CF!AW50 -> 0 | AL155: =+CF!AX50 -> 0 | AM155: =+CF!AY50 -> 0 | AN155: =+CF!AZ50 -> 0 | AO155: =+CF!BA50 -> 0 | AP155: =+CF!BB50 -> 0 | AQ155: =+CF!BC50 -> 0 | AR155: =+CF!BD50 -> 0 | AS155: =+CF!BE50 -> 0 | AT155: =+CF!BF50 -> 0 | AU155: =+CF!BG50 -> 0 | AV155: =+CF!BH50 -> 0 | AW155: =+CF!BI50 -> 0 | AX155: =+CF!BJ50 -> 0
B156: Cash Available for Distribution | F156: =+CF!R52 -> 0 | G156: =+CF!S52 -> 0 | H156: =+CF!T52 -> 0 | I156: =+CF!U52 -> 247,570 | J156: =+CF!V52 -> 64,937 | K156: =+CF!W52 -> 78,792 | L156: =+CF!X52 -> 94,085 | M156: =+CF!Y52 -> 108,917 | N156: =+CF!Z52 -> 124,571 | O156: =+CF!AA52 -> 143,016 | P156: =+CF!AB52 -> 161,033 | Q156: =+CF!AC52 -> 180,189 | R156: =+CF!AD52 -> 200,132 | S156: =+CF!AE52 -> 209,843 | T156: =+CF!AF52 -> 242,256 | U156: =+CF!AG52 -> 265,555 | V156: =+CF!AH52 -> 292,616 | W156: =+CF!AI52 -> 323,259 | X156: =+CF!AJ52 -> 357,083 | Y156: =+CF!AK52 -> 395,420 | Z156: =+CF!AL52 -> 423,676 | AA156: =+CF!AM52 -> 455,493 | AB156: =+CF!AN52 -> 495,275 | AC156: =+CF!AO52 -> 487,073 | AD156: =+CF!AP52 -> 578,421 | AE156: =+CF!AQ52 -> 622,462 | AF156: =+CF!AR52 -> 670,123 | AG156: =+CF!AS52 -> 716,556 | AH156: =+CF!AT52 -> 696,911 | AI156: =+CF!AU52 -> 686,910 | AJ156: =+CF!AV52 -> 746,034 | AK156: =+CF!AW52 -> 807,503 | AL156: =+CF!AX52 -> 864,252 | AM156: =+CF!AY52 -> 897,016 | AN156: =+CF!AZ52 -> 979,533 | AO156: =+CF!BA52 -> 1,059,171 | AP156: =+CF!BB52 -> 1,143,472 | AQ156: =+CF!BC52 -> 1,232,863 | AR156: =+CF!BD52 -> 1,462,820 | AS156: =+CF!BE52 -> 1,586,119 | AT156: =+CF!BF52 -> 1,877,951 | AU156: =+CF!BG52 -> 2,022,876 | AV156: =+CF!BH52 -> 2,179,019 | AW156: =+CF!BI52 -> 2,347,205 | AX156: =+CF!BJ52 -> 1,688,310
B157: Cash changes
B159: Revenues | F159: =+(F140+F141+F144+(MAX(F153,0)+MAX(F154,0)+MAX(F155,0)+MAX(F145,0)+MAX(F147,0))+F152)/10^3 -> 0 | G159: =+(G140+G141+G144+(MAX(G153,0)+MAX(G154,0)+MAX(G155,0)+MAX(G145,0)+MAX(G147,0))+G152)/10^3 -> 119 | H159: 138 | I159: 356 | J159: 179 | K159: 192 | L159: 207 | M159: 223 | N159: 240 | O159: 260 | P159: 280 | Q159: 302 | R159: 326 | S159: 353 | T159: 382 | U159: 408 | V159: 437 | W159: 466 | X159: 502 | Y159: 545 | Z159: 578 | AA159: 615 | AB159: 655 | AC159: 700 | AD159: 754 | AE159: 804 | AF159: 855 | AG159: 904 | AH159: 962 | AI159: 1,025 | AJ159: 1,089 | AK159: 1,155 | AL159: 1,226 | AM159: 1,302 | AN159: 1,382 | AO159: 1,470 | AP159: 1,562 | AQ159: 1,660 | AR159: 1,900 | AS159: 2,111 | AT159: 2,050 | AU159: 2,208 | AV159: 2,378 | AW159: 2,561 | AX159: 1,996
B160: Operation Costs | F160: =-F142/10^3 -> 0 | G160: 21 | H160: 22 | I160: 23 | J160: 25 | K160: 26 | L160: 27 | M160: 28 | N160: 29 | O160: 31 | P160: 32 | Q160: 34 | R160: 35 | S160: 37 | T160: 39 | U160: 41 | V160: 43 | W160: 45 | X160: 47 | Y160: 49 | Z160: 51 | AA160: 54 | AB160: 56 | AC160: 59 | AD160: 62 | AE160: 65 | AF160: 68 | AG160: 70 | AH160: 74 | AI160: 77 | AJ160: 80 | AK160: 84 | AL160: 88 | AM160: 92 | AN160: 96 | AO160: 100 | AP160: 105 | AQ160: 109 | AR160: 115 | AS160: 120 | AT160: 127 | AU160: 134 | AV160: 142 | AW160: 150 | AX160: 107
B161: Taxes | F161: =-F146/10^3 -> 0 | G161: 0 | H161: 1 | I161: 1 | J161: 1 | K161: 1 | L161: 1 | M161: 1 | N161: 1 | O161: 1 | P161: 1 | Q161: 2 | R161: 2 | S161: 2 | T161: 2 | U161: 2 | V161: 2 | W161: 2 | X161: 3 | Y161: 3 | Z161: 3 | AA161: 3 | AB161: 4 | AC161: 4 | AD161: 4 | AE161: 4 | AF161: 5 | AG161: 5 | AH161: 5 | AI161: 6 | AJ161: 6 | AK161: 6 | AL161: 7 | AM161: 7 | AN161: 7 | AO161: 8 | AP161: 8 | AQ161: 9 | AR161: 10 | AS161: 10 | AT161: 11 | AU161: 12 | AV161: 13 | AW161: 14 | AX161: 10
B162: Life Cycle CAPEX | F162: =-F143/10^3 -> 0 | G162: 8 | H162: 5 | I162: 4 | J162: 3 | K162: 3 | L162: 4 | M162: 5 | N162: 7 | O162: 9 | P162: 8 | Q162: 7 | R162: 7 | S162: 6 | T162: 6 | U162: 8 | V162: 10 | W162: 14 | X162: 19 | Y162: 25 | Z162: 17 | AA162: 12 | AB162: 8 | AC162: 5 | AD162: 4 | AE162: 5 | AF162: 7 | AG162: 10 | AH162: 13 | AI162: 19 | AJ162: 18 | AK162: 18 | AL162: 18 | AM162: 17 | AN162: 17 | AO162: 19 | AP162: 22 | AQ162: 24 | AR162: 27 | AS162: 30 | AT162: 34 | AU162: 39 | AV162: 44 | AW162: 50 | AX162: 191
B163: Financial costs | F163: =(-F150-F149)/10^3 -> 0 | G163: 44 | H163: 44 | I163: 82 | J163: 81 | K163: 81 | L163: 82 | M163: 82 | N163: 82 | O163: 83 | P163: 84 | Q163: 85 | R163: 85 | S163: 97 | T163: 87 | U163: 88 | V163: 89 | W163: 90 | X163: 92 | Y163: 94 | Z163: 95 | AA163: 97 | AB163: 99 | AC163: 121 | AD163: 103 | AE163: 104 | AF163: 105 | AG163: 105 | AH163: 105 | AI163: 105 | AJ163: 100 | AK163: 93 | AL163: 85 | AM163: 94 | AN163: 66 | AO163: 55 | AP163: 43 | AQ163: 31 | AR163: 18 | AS163: 5 | AT163: 0 | AU163: 0 | AV163: 0 | AW163: 0 | AX163: 0
B164: Drawdowns/Repayments | F164: =(-F148-F151)/10^3 -> 0 | G164: 0 | H164: 0 | I164: -2 | J164: -3 | K164: -3 | L164: -4 | M164: -5 | N164: -7 | O164: -9 | P164: -8 | Q164: -7 | R164: -7 | S164: -6 | T164: -6 | U164: -8 | V164: -10 | W164: -14 | X164: -19 | Y164: -25 | Z164: -17 | AA164: -12 | AB164: -8 | AC164: -5 | AD164: -4 | AE164: -5 | AF164: -7 | AG164: -10 | AH164: -13 | AI164: 58 | AJ164: 137 | AK164: 146 | AL164: 155 | AM164: 181 | AN164: 210 | AO164: 221 | AP164: 232 | AQ164: 244 | AR164: 257 | AS164: 134 | AT164: 0 | AU164: 0 | AV164: 0 | AW164: 0 | AX164: 0
B165: Reserve Accounts | F165: =-(MIN(F153,0)+MIN(F154,0)+MIN(F145,0)+MIN(F155,0)+MIN(F147,0))/10^3 -> 0 | G165: 46 | H165: 67 | I165: 0 | J165: 7 | K165: 5 | L165: 3 | M165: 3 | N165: 2 | O165: 2 | P165: 2 | Q165: 2 | R165: 4 | S165: 7 | T165: 11 | U165: 12 | V165: 10 | W165: 6 | X165: 4 | Y165: 5 | Z165: 5 | AA165: 5 | AB165: 1 | AC165: 29 | AD165: 6 | AE165: 8 | AF165: 8 | AG165: 7 | AH165: 81 | AI165: 75 | AJ165: 1 | AK165: 1 | AL165: 11 | AM165: 14 | AN165: 7 | AO165: 7 | AP165: 9 | AQ165: 10 | AR165: 12 | AS165: 226 | AT165: 0 | AU165: 0 | AV165: 0 | AW165: 0 | AX165: 0
B166: Equity distribution | F166: =F156/10^3 -> 0 | G166: 0 | H166: 0 | I166: 248 | J166: 65 | K166: 79 | L166: 94 | M166: 109 | N166: 125 | O166: 143 | P166: 161 | Q166: 180 | R166: 200 | S166: 210 | T166: 242 | U166: 266 | V166: 293 | W166: 323 | X166: 357 | Y166: 395 | Z166: 424 | AA166: 455 | AB166: 495 | AC166: 487 | AD166: 578 | AE166: 622 | AF166: 670 | AG166: 717 | AH166: 697 | AI166: 687 | AJ166: 746 | AK166: 808 | AL166: 864 | AM166: 897 | AN166: 980 | AO166: 1,059 | AP166: 1,143 | AQ166: 1,233 | AR166: 1,463 | AS166: 1,586 | AT166: 1,878 | AU166: 2,023 | AV166: 2,179 | AW166: 2,347 | AX166: 1,688
B168: Check | D168: =+IF(ROUND(SUM(F168:CI168),0)=0,"Ok","Error") -> Ok | F168: =+F159-SUM(F160:F166) -> 0 | G168: 0 | H168: 0 | I168: 0 | J168: 0 | K168: 0 | L168: 0 | M168: 0 | N168: 0 | O168: 0 | P168: 0 | Q168: 0 | R168: 0 | S168: 0 | T168: 0 | U168: 0 | V168: 0 | W168: 0 | X168: 0 | Y168: 0 | Z168: 0 | AA168: 0 | AB168: 0 | AC168: 0 | AD168: 0 | AE168: 0 | AF168: 0 | AG168: 0 | AH168: 0 | AI168: 0 | AJ168: 0 | AK168: 0 | AL168: 0 | AM168: 0 | AN168: 0 | AO168: 0 | AP168: 0 | AQ168: 0 | AR168: 0 | AS168: 0 | AT168: 0 | AU168: 0 | AV168: 0 | AW168: 0 | AX168: 0

Sheet Inputs
C2: Project: | G2: LBJ Infrastructure Group LLC IH-635 Mananged Lanes Project
C3: Worksheet: | G3: Inputs
C4: Model Integrity : | G4: =+SUM(L192:L204) -> 0
K7: Scenario | L7: 1
P8: =O8 + 1 -> 1 | Q8: 2 | R8: 3
C9: Scenario Description | G9: =IF(ISTEXT(INDEX(P9:R9,1,$L$7)),INDEX(P9:R9,1,$L$7),INDEX(P9:R9,1,1)) -> Base Case | K9: Unit | L9: Value | P9: Base Case
C11: OPERATING SENSITIVITIES
C13: Input Cases
C14: Revenue | K14: Number | L14: =+INDEX($P14:$R14,1,Scenario) -> 1 | P14: 1
C15: TxDOT Revenue Sharing (Wishbone) | K15: Number | L15: =+INDEX($P15:$R15,1,Scenario) -> 1 | P15: 1
C16: O&M | K16: Number | L16: =+INDEX($P16:$R16,1,Scenario) -> 1 | P16: 1
C17: Major Maintenance Capex | K17: Number | L17: =+INDEX($P17:$R17,1,Scenario) -> 1 | P17: 1
C18: Construction costs | K18: Number | L18: =+INDEX($P18:$R18,1,Scenario) -> 1 | P18: 1
C20: CPI Assumptions
C21: CPI (2017-2021) | K21: % | L21: =+INDEX($P21:$R21,1,Scenario) -> 2.25% | P21: 2.25%
C22: LT CPI (2022 onwards) | K22: % | L22: =+INDEX($P22:$R22,1,Scenario) -> 2.30% | P22: 2.30%
C25: OPERATING ASSUMPTIONS
C27: Concession Start | L27: 2009-09-04
C28: Construction Start | L28: 2010-06-22
C29: Construction End | L29: 2015-06-30
C30: Operation Start | L30: 2015-10-01
C31: Concession End | L31: 2061-09-04
C33: Revenues
A34: 1 | C34: 2018 | K34: $000s | L34: =+INDEX($P34:$R34,1,Scenario) -> 100,817 | P34: 100,817
A35: =+A34+1 -> 2 | C35: =+C34+3 -> 2021 | K35: $000s | L35: 139,693 | P35: 139,693
A36: =+A35+1 -> 3 | C36: =+C35+5 -> 2026 | K36: $000s | L36: 179,513 | P36: 179,513
A37: 4 | C37: 2031 | K37: $000s | L37: 236,785 | P37: 236,785
A38: 5 | C38: 2036 | K38: $000s | L38: 299,216 | P38: 299,216
A39: 6 | C39: 2041 | K39: $000s | L39: 379,329 | P39: 379,329
A40: 7 | C40: 2046 | K40: $000s | L40: 461,044 | P40: 461,044
A41: 8 | C41: 2051 | K41: $000s | L41: 555,287 | P41: 555,287
A42: 9 | C42: 2056 | K42: $000s | L42: 673,172 | P42: 673,172
A43: 10 | C43: 2061 | K43: $000s | L43: 868,390 | P43: 868,390
C45: TxDOT Revenue Sharing (Wishbone)
A46: 1 | C46: 2018 | K46: $000s | L46: =+INDEX($P46:$R46,1,Scenario) -> 2,085 | P46: 2,085
A47: =+A46+1 -> 2 | C47: =+C46+3 -> 2021 | K47: $000s | L47: 1,475 | P47: 1,475
A48: =+A47+1 -> 3 | C48: =+C47+5 -> 2026 | K48: $000s | L48: 1,685 | P48: 1,685
A49: 4 | C49: 2031 | K49: $000s | L49: 1,894 | P49: 1,894
A50: 5 | C50: 2036 | K50: $000s | L50: 8,214 | P50: 8,214
A51: 6 | C51: 2041 | K51: $000s | L51: 10,413 | P51: 10,413
A52: 7 | C52: 2046 | K52: $000s | L52: 12,656 | P52: 12,656
A53: 8 | C53: 2051 | K53: $000s | L53: 15,243 | P53: 15,243
A54: 9 | C54: 2056 | K54: $000s | L54: 18,479 | P54: 18,479
A55: 10 | C55: 2061 | K55: $000s | L55: 23,838 | P55: 23,838
C57: O&M
A58: =+A34 -> 1 | C58: =+C34 -> 2018 | K58: $000s | L58: =+INDEX($P58:$R58,1,Scenario) -> 17,403 | P58: 17,403
A59: 2 | C59: 2021 | K59: $000s | L59: 19,274 | P59: 19,274
A60: 3 | C60: 2026 | K60: $000s | L60: 21,246 | P60: 21,246
A61: 4 | C61: 2031 | K61: $000s | L61: 24,221 | P61: 24,221
A62: 5 | C62: 2036 | K62: $000s | L62: 26,982 | P62: 26,982
A63: 6 | C63: 2041 | K63: $000s | L63: 30,698 | P63: 30,698
A64: 7 | C64: 2046 | K64: $000s | L64: 33,909 | P64: 33,909
A65: 8 | C65: 2051 | K65: $000s | L65: 37,725 | P65: 37,725
A66: 9 | C66: 2056 | K66: $000s | L66: 42,164 | P66: 42,164
A67: 10 | C67: 2061 | K67: $000s | L67: 49,727 | P67: 49,727
C69: Major Maintenance Capex
A70: =+A58 -> 1 | C70: =+C58 -> 2018 | K70: $000s | L70: =+INDEX($P70:$R70,1,Scenario) -> 5,749 | P70: 5,749
A71: 2 | C71: 2021 | K71: $000s | L71: 1,959 | P71: 1,959
A72: 3 | C72: 2026 | K72: $000s | L72: 5,942 | P72: 5,942
A73: 4 | C73: 2031 | K73: $000s | L73: 3,458 | P73: 3,458
A74: 5 | C74: 2036 | K74: $000s | L74: 14,142 | P74: 14,142
A75: 6 | C75: 2041 | K75: $000s | L75: 1,793 | P75: 1,793
A76: 7 | C76: 2046 | K76: $000s | L76: 8,281 | P76: 8,281
A77: 8 | C77: 2051 | K77: $000s | L77: 6,781 | P77: 6,781
A78: 9 | C78: 2056 | K78: $000s | L78: 10,644 | P78: 10,644
A79: 10 | C79: 2061 | K79: $000s | L79: 18,027 | P79: 18,027
C81: Construction cost | K81: $000s | L81: =+INDEX($P81:$R81,1,Scenario) -> 695 | P81: 695
C83: Margin Tax | K83: $000s | L83: =+INDEX($P83:$R83,1,Scenario) -> 446 | P83: 446
C85: Government Subsidy | K85: $000s | L85: =+INDEX($P85:$R85,1,Scenario) -> 500 | P85: 500
C87: TAXES
C89: Federal Rate | K89: % | L89: =+INDEX($P89:$R89,1,Scenario) -> 21.00% | P89: 21.00%
C91: Federal Tax Carried Forward Losses | K91: % | L91: =+INDEX($P91:$R91,1,Scenario) -> 80.00% | P91: 80.00%
C93: Financial Expenses Deducibility Limit
C94: EBIT | K94: year | L94: =+INDEX($P94:$R94,1,Scenario) -> 2021 | P94: 2021
C95: Limit | K95: % | L95: =+INDEX($P95:$R95,1,Scenario) -> 30% | P95: 30.00%
C96: Expired | K96: year | L96: =+INDEX($P96:$R96,1,Scenario) -> 100 | P96: 100
C98: State Tax | E98: (1=Yes,0=No) | K98: Switch | L98: =+INDEX($P98:$R98,1,Scenario) -> 1 | P98: 1
C99: Margin Tax | K99: % | L99: =+INDEX($P99:$R99,1,Scenario) -> 0.75% | P99: 0.75%
C100: Applicable to __% of Total Revenue | K100: % | L100: =+INDEX($P100:$R100,1,Scenario) -> 70.00% | P100: 70.00%
C103: FINANCIAL ASSUMPTIONS
B105: a) Current Debt Assumptions
C107: TIFIA
C108: Repayment start date | K108: Date | L108: 2041-06-30
C109: Repayment end date | K109: Date | L109: 2049-12-31
C110: Credit Rating Fee | K110: $000s | L110: 93
C111: Maintenance Fee | K111: $000s | L111: 12
C112: Start Date | K112: Date | L112: 2020-06-30
C113: % to share | K113: % | L113: 50.00%
C114: Refinance TIFIA Repayments | K114: Switch | L114: 1
C115: Repayment Interest start date | K115: Date | L115: 2020-12-31
C116: % to TIFIA Refinancing | K116: % | L116: 50.00%
C118: PABs
C119: All-in interest rate | K119: % | L119: 7.12%
C121: Cash accounts
C122: Major Maintenance Reserve account
C123: % of future period debt service to reserve for
C124: 1st year | K124: % | L124: 95.00%
C125: 2nd year | K125: % | L125: 75.00%
C126: 3rd year | K126: % | L126: 55.00%
C127: 4th year | K127: % | L127: 35.00%
C128: 5th year | K128: % | L128: 15.00%
C131: Handback Reserve
C132: Start Date | K132: Date | L132: 2056
C133: End Date | K133: Date | L133: 2061
C134: Release to TxDOT | K134: $000s | L134: -133,569
C135: Base Case Capex to Handback Reserve Account | L135: 201,426
C137: Funding targget (%Capex)
C138: 2056 | K138: % | L138: 25%
C139: 2057 | K139: % | L139: 100%
C140: 2058 | K140: % | L140: 100%
C141: 2059 | K141: % | L141: 100%
C142: 2060 | K142: % | L142: 100%
C143: 2061 | K143: % | L143: 100%
C145: TIFIA Cash Trapped
C146: Cash Trapped Release Flag | K146: Date | L146: 2020-12-31
C149: DSRA
C150: Minimum amount until 2019 | K150: $000s | L150: 61500
B152: b) Refinancing Assumptions
C153: Use? | K153: Switch | L153: =+INDEX($P153:$R153,1,Scenario) -> 1 | P153: 1
C154: Date | K154: Date | L154: 2020-06-30 | P154: 2020-06-30
C155: Tail | K155: Years | L155: 5 | P155: 5
C156: Repayment Period | K156: Years | L156: 11 | P156: 11
C157: Upfront fee | K157: % | L157: 1.20% | P157: 1.20%
C158: Base rate | K158: % | L158: 5.25% | P158: 5.25%
C159: Margin | K159: % | L159: 0.00% | P159: 0.00%
C160: Credit Spread | K160: % | L160: 0.00% | P160: 0.00%
C162: Capex Facility
C163: Use? | K163: Switch | L163: =+INDEX($P163:$R163,1,Scenario) -> 1 | P163: 1
C164: Base rate | K164: % | L164: =+INDEX($P164:$R164,1,Scenario) -> 5.25% | P164: 5.25%
C166: End Date
C167: Facility 3 | K167: Date | L167: =+INDEX($P167:$R167,1,Scenario) -> 2050-12-31 | P167: 2050-12-31
C169: Agency fees | K169: $000s | L169: =+INDEX($P169:$R169,1,Scenario) -> 50 | P169: 50
C171: Upfront fee | K171: % | L171: =+INDEX($P171:$R171,1,Scenario) -> 1.20% | P171: 1.20%
C172: Commitment fee | K172: % | L172: =+INDEX($P172:$R172,1,Scenario) -> 0.40% | P172: 0.40%
C175: VALUATION
C177: Valuation (1. APV 2. DDM) | L177: =+INDEX($P177:$R177,1,Scenario) -> 2 | P177: 2
C178: Cintra share | K178: % | L178: 55%
B180: 1) APV
C181: Ku | K181: % | L181: =+INDEX($P181:$R181,1,Scenario) -> 3.00% | P181: 3.00%
C182: Beta unlevered | L182: =+INDEX($P182:$R182,1,Scenario) -> 0.85 | P182: 0.85
C183: ERP | K183: % | L183: =+INDEX($P183:$R183,1,Scenario) -> 6.00% | P183: 6.00%
C184: Exchange rate | K184: $ | L184: =+INDEX($P184:$R184,1,Scenario) -> 1.20 | P184: 1.20
B186: 2) DDM
C187: Ke | K187: % | L187: =+INDEX($P187:$R187,1,Scenario) -> 10.50% | P187: 10.50%
C190: ERROR CHECK
C192: Balance Sheet | L192: =+Acc!N67 -> 0
C193: Sources & Uses ? | L193: =+Acc!N101 -> 0
C194: Debt Facilities | L194: =IF(ROUND(AND(Fin!N26+Fin!N47+Fin!N58+Fin!N34+Fin!N96+Fin!N140+Fin!N189),2)=0,0,1) -> 0
C195: Depreciation | L195: =Tax!N52 -> 0
C196: Minimun interest deduction | L196: =+Tax!N80 -> 0
C197: Tax Carried Forward Losses | L197: =+Tax!N33 -> 0
C198: Cash Trapped | L198: =+Fin!N308 -> 0
C199: DSRA | L199: =+Fin!N277 -> 0
C200: MMRA | L200: =+Fin!N251 -> 0
C201: Working Capital | L201: =Fin!N318 -> 0
C202: Handback | L202: =Fin!N292 -> 0
C203: Cash Balances | L203: =+CF!N58 -> 0
C204: Copy / Paste macro fully run | L204: =IF(Mac!$M$21 = "OK",0,1) -> 0
B207: FINANCIAL STATEMENTS
L209: 2017
B210: Balance
C212: Assets
C214: Current Assets | L214: =SUM(L215:L220) -> 135,988
C215: MMRA | L215: 20,000
C216: DSRA | L216: 61,500
C217: Working Capital | L217: 1,983
C218: Handback Reserve | L218: 0
C219: TIFIA Cash Trapped | L219: 52,505
C220: Cash | L220: 0
C223: Non-current assets | L223: =SUM(L224:L224) -> 1,915,503
C224: Net Book Value | L224: 1,915,503
C226: Total assets | L226: =+L223+L214 -> 2,051,492
C230: Equity | L230: =SUM(L231:L232) -> 402,117
C231: Shared capital | L231: 671,913
C232: Retained earnings | L232: (269,796)
C235: Non-current liabilities | L235: =SUM(L236:L239) -> 1,649,375
C237: Bond Facility (PABs) outstanding | L237: 615,000
C238: TIFIA outstanding | L238: 1,034,374
C241: Total liabilities | L241: =+L235+L230 -> 2,051,492
L242: =ROUND(L241-L226,0) -> 0
C246: Depreciation | L246: -125,529
C248: Tax Carry Forward Loss | L248: 471,899

Sheet Oper
C2: Project: | F2: =+Inputs!$G$2 -> LBJ Infrastructure Group LLC IH-635 Mananged Lanes Project
C3: Worksheet: | F3: Oper
C4: Model Integrity : | F4: =+Inputs!G4 -> 0
R6: =+IFERROR(INDEX(Inputs!$A$34:$A$43,MATCH(R7,Inputs!$C$34:$C$43,0),1),Oper!Q6) -> 0 | S6: =+IFERROR(INDEX(Inputs!$A$34:$A$43,MATCH(S7,Inputs!$C$34:$C$43,0),1),Oper!R6) -> 1 | T6: =+IFERROR(INDEX(Inputs!$A$34:$A$43,MATCH(T7,Inputs!$C$34:$C$43,0),1),Oper!S6) -> 1 | U6: =+IFERROR(INDEX(Inputs!$A$34:$A$43,MATCH(U7,Inputs!$C$34:$C$43,0),1),Oper!T6) -> 1 | V6: =+IFERROR(INDEX(Inputs!$A$34:$A$43,MATCH(V7,Inputs!$C$34:$C$43,0),1),Oper!U6) -> 2 | W6: =+IFERROR(INDEX(Inputs!$A$34:$A$43,MATCH(W7,Inputs!$C$34:$C$43,0),1),Oper!V6) -> 2 | X6: =+IFERROR(INDEX(Inputs!$A$34:$A$43,MATCH(X7,Inputs!$C$34:$C$43,0),1),Oper!W6) -> 2 | Y6: =+IFERROR(INDEX(Inputs!$A$34:$A$43,MATCH(Y7,Inputs!$C$34:$C$43,0),1),Oper!X6) -> 2 | Z6: =+IFERROR(INDEX(Inputs!$A$34:$A$43,MATCH(Z7,Inputs!$C$34:$C$43,0),1),Oper!Y6) -> 2 | AA6: =+IFERROR(INDEX(Inputs!$A$34:$A$43,MATCH(AA7,Inputs!$C$34:$C$43,0),1),Oper!Z6) -> 3 | AB6: =+IFERROR(INDEX(Inputs!$A$34:$A$43,MATCH(AB7,Inputs!$C$34:$C$43,0),1),Oper!AA6) -> 3 | AC6: =+IFERROR(INDEX(Inputs!$A$34:$A$43,MATCH(AC7,Inputs!$C$34:$C$43,0),1),Oper!AB6) -> 3 | AD6: =+IFERROR(INDEX(Inputs!$A$34:$A$43,MATCH(AD7,Inputs!$C$34:$C$43,0),1),Oper!AC6) -> 3 | AE6: =+IFERROR(INDEX(Inputs!$A$34:$A$43,MATCH(AE7,Inputs!$C$34:$C$43,0),1),Oper!AD6) -> 3 | AF6: =+IFERROR(INDEX(Inputs!$A$34:$A$43,MATCH(AF7,Inputs!$C$34:$C$43,0),1),Oper!AE6) -> 4 | AG6: =+IFERROR(INDEX(Inputs!$A$34:$A$43,MATCH(AG7,Inputs!$C$34:$C$43,0),1),Oper!AF6) -> 4 | AH6: =+IFERROR(INDEX(Inputs!$A$34:$A$43,MATCH(AH7,Inputs!$C$34:$C$43,0),1),Oper!AG6) -> 4 | AI6: =+IFERROR(INDEX(Inputs!$A$34:$A$43,MATCH(AI7,Inputs!$C$34:$C$43,0),1),Oper!AH6) -> 4 | AJ6: =+IFERROR(INDEX(Inputs!$A$34:$A$43,MATCH(AJ7,Inputs!$C$34:$C$43,0),1),Oper!AI6) -> 4 | AK6: =+IFERROR(INDEX(Inputs!$A$34:$A$43,MATCH(AK7,Inputs!$C$34:$C$43,0),1),Oper!AJ6) -> 5 | AL6: =+IFERROR(INDEX(Inputs!$A$34:$A$43,MATCH(AL7,Inputs!$C$34:$C$43,0),1),Oper!AK6) -> 5 | AM6: =+IFERROR(INDEX(Inputs!$A$34:$A$43,MATCH(AM7,Inputs!$C$34:$C$43,0),1),Oper!AL6) -> 5 | AN6: =+IFERROR(INDEX(Inputs!$A$34:$A$43,MATCH(AN7,Inputs!$C$34:$C$43,0),1),Oper!AM6) -> 5 | AO6: =+IFERROR(INDEX(Inputs!$A$34:$A$43,MATCH(AO7,Inputs!$C$34:$C$43,0),1),Oper!AN6) -> 5 | AP6: =+IFERROR(INDEX(Inputs!$A$34:$A$43,MATCH(AP7,Inputs!$C$34:$C$43,0),1),Oper!AO6) -> 6 | AQ6: =+IFERROR(INDEX(Inputs!$A$34:$A$43,MATCH(AQ7,Inputs!$C$34:$C$43,0),1),Oper!AP6) -> 6 | AR6: =+IFERROR(INDEX(Inputs!$A$34:$A$43,MATCH(AR7,Inputs!$C$34:$C$43,0),1),Oper!AQ6) -> 6 | AS6: =+IFERROR(INDEX(Inputs!$A$34:$A$43,MATCH(AS7,Inputs!$C$34:$C$43,0),1),Oper!AR6) -> 6 | AT6: =+IFERROR(INDEX(Inputs!$A$34:$A$43,MATCH(AT7,Inputs!$C$34:$C$43,0),1),Oper!AS6) -> 6 | AU6: =+IFERROR(INDEX(Inputs!$A$34:$A$43,MATCH(AU7,Inputs!$C$34:$C$43,0),1),Oper!AT6) -> 7 | AV6: =+IFERROR(INDEX(Inputs!$A$34:$A$43,MATCH(AV7,Inputs!$C$34:$C$43,0),1),Oper!AU6) -> 7 | AW6: =+IFERROR(INDEX(Inputs!$A$34:$A$43,MATCH(AW7,Inputs!$C$34:$C$43,0),1),Oper!AV6) -> 7 | AX6: =+IFERROR(INDEX(Inputs!$A$34:$A$43,MATCH(AX7,Inputs!$C$34:$C$43,0),1),Oper!AW6) -> 7 | AY6: =+IFERROR(INDEX(Inputs!$A$34:$A$43,MATCH(AY7,Inputs!$C$34:$C$43,0),1),Oper!AX6) -> 7 | AZ6: =+IFERROR(INDEX(Inputs!$A$34:$A$43,MATCH(AZ7,Inputs!$C$34:$C$43,0),1),Oper!AY6) -> 8 | BA6: =+IFERROR(INDEX(Inputs!$A$34:$A$43,MATCH(BA7,Inputs!$C$34:$C$43,0),1),Oper!AZ6) -> 8 | BB6: =+IFERROR(INDEX(Inputs!$A$34:$A$43,MATCH(BB7,Inputs!$C$34:$C$43,0),1),Oper!BA6) -> 8 | BC6: =+IFERROR(INDEX(Inputs!$A$34:$A$43,MATCH(BC7,Inputs!$C$34:$C$43,0),1),Oper!BB6) -> 8 | BD6: =+IFERROR(INDEX(Inputs!$A$34:$A$43,MATCH(BD7,Inputs!$C$34:$C$43,0),1),Oper!BC6) -> 8 | BE6: =+IFERROR(INDEX(Inputs!$A$34:$A$43,MATCH(BE7,Inputs!$C$34:$C$43,0),1),Oper!BD6) -> 9 | BF6: =+IFERROR(INDEX(Inputs!$A$34:$A$43,MATCH(BF7,Inputs!$C$34:$C$43,0),1),Oper!BE6) -> 9 | BG6: =+IFERROR(INDEX(Inputs!$A$34:$A$43,MATCH(BG7,Inputs!$C$34:$C$43,0),1),Oper!BF6) -> 9 | BH6: =+IFERROR(INDEX(Inputs!$A$34:$A$43,MATCH(BH7,Inputs!$C$34:$C$43,0),1),Oper!BG6) -> 9 | BI6: =+IFERROR(INDEX(Inputs!$A$34:$A$43,MATCH(BI7,Inputs!$C$34:$C$43,0),1),Oper!BH6) -> 9 | BJ6: =+IFERROR(INDEX(Inputs!$A$34:$A$43,MATCH(BJ7,Inputs!$C$34:$C$43,0),1),Oper!BI6) -> 10 | BK6: =+IFERROR(INDEX(Inputs!$A$34:$A$43,MATCH(BK7,Inputs!$C$34:$C$43,0),1),Oper!BJ6) -> 10 | BL6: =+IFERROR(INDEX(Inputs!$A$34:$A$43,MATCH(BL7,Inputs!$C$34:$C$43,0),1),Oper!BK6) -> 10 | BM6: =+IFERROR(INDEX(Inputs!$A$34:$A$43,MATCH(BM7,Inputs!$C$34:$C$43,0),1),Oper!BL6) -> 10 | BN6: =+IFERROR(INDEX(Inputs!$A$34:$A$43,MATCH(BN7,Inputs!$C$34:$C$43,0),1),Oper!BM6) -> 10 | BO6: =+IFERROR(INDEX(Inputs!$A$34:$A$43,MATCH(BO7,Inputs!$C$34:$C$43,0),1),Oper!BN6) -> 10 | BP6: =+IFERROR(INDEX(Inputs!$A$34:$A$43,MATCH(BP7,Inputs!$C$34:$C$43,0),1),Oper!BO6) -> 10 | BQ6: =+IFERROR(INDEX(Inputs!$A$34:$A$43,MATCH(BQ7,Inputs!$C$34:$C$43,0),1),Oper!BP6) -> 10 | BR6: =+IFERROR(INDEX(Inputs!$A$34:$A$43,MATCH(BR7,Inputs!$C$34:$C$43,0),1),Oper!BQ6) -> 10 | BS6: =+IFERROR(INDEX(Inputs!$A$34:$A$43,MATCH(BS7,Inputs!$C$34:$C$43,0),1),Oper!BR6) -> 10 | BT6: =+IFERROR(INDEX(Inputs!$A$34:$A$43,MATCH(BT7,Inputs!$C$34:$C$43,0),1),Oper!BS6) -> 10 | BU6: =+IFERROR(INDEX(Inputs!$A$34:$A$43,MATCH(BU7,Inputs!$C$34:$C$43,0),1),Oper!BT6) -> 10 | BV6: =+IFERROR(INDEX(Inputs!$A$34:$A$43,MATCH(BV7,Inputs!$C$34:$C$43,0),1),Oper!BU6) -> 10 | BW6: =+IFERROR(INDEX(Inputs!$A$34:$A$43,MATCH(BW7,Inputs!$C$34:$C$43,0),1),Oper!BV6) -> 10 | BX6: =+IFERROR(INDEX(Inputs!$A$34:$A$43,MATCH(BX7,Inputs!$C$34:$C$43,0),1),Oper!BW6) -> 10 | BY6: =+IFERROR(INDEX(Inputs!$A$34:$A$43,MATCH(BY7,Inputs!$C$34:$C$43,0),1),Oper!BX6) -> 10 | BZ6: =+IFERROR(INDEX(Inputs!$A$34:$A$43,MATCH(BZ7,Inputs!$C$34:$C$43,0),1),Oper!BY6) -> 10 | CA6: =+IFERROR(INDEX(Inputs!$A$34:$A$43,MATCH(CA7,Inputs!$C$34:$C$43,0),1),Oper!BZ6) -> 10 | CB6: =+IFERROR(INDEX(Inputs!$A$34:$A$43,MATCH(CB7,Inputs!$C$34:$C$43,0),1),Oper!CA6) -> 10 | CC6: =+IFERROR(INDEX(Inputs!$A$34:$A$43,MATCH(CC7,Inputs!$C$34:$C$43,0),1),Oper!CB6) -> 10 | CD6: =+IFERROR(INDEX(Inputs!$A$34:$A$43,MATCH(CD7,Inputs!$C$34:$C$43,0),1),Oper!CC6) -> 10 | CE6: =+IFERROR(INDEX(Inputs!$A$34:$A$43,MATCH(CE7,Inputs!$C$34:$C$43,0),1),Oper!CD6) -> 10 | CF6: =+IFERROR(INDEX(Inputs!$A$34:$A$43,MATCH(CF7,Inputs!$C$34:$C$43,0),1),Oper!CE6) -> 10 | CG6: =+IFERROR(INDEX(Inputs!$A$34:$A$43,MATCH(CG7,Inputs!$C$34:$C$43,0),1),Oper!CF6) -> 10 | CH6: =+IFERROR(INDEX(Inputs!$A$34:$A$43,MATCH(CH7,Inputs!$C$34:$C$43,0),1),Oper!CG6) -> 10 | CI6: =+IFERROR(INDEX(Inputs!$A$34:$A$43,MATCH(CI7,Inputs!$C$34:$C$43,0),1),Oper!CH6) -> 10 | CJ6: =+IFERROR(INDEX(Inputs!$A$34:$A$43,MATCH(CJ7,Inputs!$C$34:$C$43,0),1),Oper!CI6) -> 10 | CK6: =+IFERROR(INDEX(Inputs!$A$34:$A$43,MATCH(CK7,Inputs!$C$34:$C$43,0),1),Oper!CJ6) -> 10 | CL6: =+IFERROR(INDEX(Inputs!$A$34:$A$43,MATCH(CL7,Inputs!$C$34:$C$43,0),1),Oper!CK6) -> 10 | CM6: =+IFERROR(INDEX(Inputs!$A$34:$A$43,MATCH(CM7,Inputs!$C$34:$C$43,0),1),Oper!CL6) -> 10 | CN6: =+IFERROR(INDEX(Inputs!$A$34:$A$43,MATCH(CN7,Inputs!$C$34:$C$43,0),1),Oper!CM6) -> 10 | CO6: =+IFERROR(INDEX(Inputs!$A$34:$A$43,MATCH(CO7,Inputs!$C$34:$C$43,0),1),Oper!CN6) -> 10 | CP6: =+IFERROR(INDEX(Inputs!$A$34:$A$43,MATCH(CP7,Inputs!$C$34:$C$43,0),1),Oper!CO6) -> 10 | CQ6: =+IFERROR(INDEX(Inputs!$A$34:$A$43,MATCH(CQ7,Inputs!$C$34:$C$43,0),1),Oper!CP6) -> 10 | CR6: =+IFERROR(INDEX(Inputs!$A$34:$A$43,MATCH(CR7,Inputs!$C$34:$C$43,0),1),Oper!CQ6) -> 10 | CS6: =+IFERROR(INDEX(Inputs!$A$34:$A$43,MATCH(CS7,Inputs!$C$34:$C$43,0),1),Oper!CR6) -> 10 | CT6: =+IFERROR(INDEX(Inputs!$A$34:$A$43,MATCH(CT7,Inputs!$C$34:$C$43,0),1),Oper!CS6) -> 10 | CU6: =+IFERROR(INDEX(Inputs!$A$34:$A$43,MATCH(CU7,Inputs!$C$34:$C$43,0),1),Oper!CT6) -> 10 | CV6: =+IFERROR(INDEX(Inputs!$A$34:$A$43,MATCH(CV7,Inputs!$C$34:$C$43,0),1),Oper!CU6) -> 10 | CW6: =+IFERROR(INDEX(Inputs!$A$34:$A$43,MATCH(CW7,Inputs!$C$34:$C$43,0),1),Oper!CV6) -> 10 | CX6: =+IFERROR(INDEX(Inputs!$A$34:$A$43,MATCH(CX7,Inputs!$C$34:$C$43,0),1),Oper!CW6) -> 10 | CY6: =+IFERROR(INDEX(Inputs!$A$34:$A$43,MATCH(CY7,Inputs!$C$34:$C$43,0),1),Oper!CX6) -> 10 | CZ6: =+IFERROR(INDEX(Inputs!$A$34:$A$43,MATCH(CZ7,Inputs!$C$34:$C$43,0),1),Oper!CY6) -> 10 | DA6: =+IFERROR(INDEX(Inputs!$A$34:$A$43,MATCH(DA7,Inputs!$C$34:$C$43,0),1),Oper!CZ6) -> 10 | DB6: =+IFERROR(INDEX(Inputs!$A$34:$A$43,MATCH(DB7,Inputs!$C$34:$C$43,0),1),Oper!DA6) -> 10 | DC6: =+IFERROR(INDEX(Inputs!$A$34:$A$43,MATCH(DC7,Inputs!$C$34:$C$43,0),1),Oper!DB6) -> 10 | DD6: =+IFERROR(INDEX(Inputs!$A$34:$A$43,MATCH(DD7,Inputs!$C$34:$C$43,0),1),Oper!DC6) -> 10 | DE6: =+IFERROR(INDEX(Inputs!$A$34:$A$43,MATCH(DE7,Inputs!$C$34:$C$43,0),1),Oper!DD6) -> 10 | DF6: =+IFERROR(INDEX(Inputs!$A$34:$A$43,MATCH(DF7,Inputs!$C$34:$C$43,0),1),Oper!DE6) -> 10 | DG6: =+IFERROR(INDEX(Inputs!$A$34:$A$43,MATCH(DG7,Inputs!$C$34:$C$43,0),1),Oper!DF6) -> 10 | DH6: =+IFERROR(INDEX(Inputs!$A$34:$A$43,MATCH(DH7,Inputs!$C$34:$C$43,0),1),Oper!DG6) -> 10 | DI6: =+IFERROR(INDEX(Inputs!$A$34:$A$43,MATCH(DI7,Inputs!$C$34:$C$43,0),1),Oper!DH6) -> 10 | DJ6: =+IFERROR(INDEX(Inputs!$A$34:$A$43,MATCH(DJ7,Inputs!$C$34:$C$43,0),1),Oper!DI6) -> 10 | DK6: =+IFERROR(INDEX(Inputs!$A$34:$A$43,MATCH(DK7,Inputs!$C$34:$C$43,0),1),Oper!DJ6) -> 10 | DL6: =+IFERROR(INDEX(Inputs!$A$34:$A$43,MATCH(DL7,Inputs!$C$34:$C$43,0),1),Oper!DK6) -> 10 | DM6: =+IFERROR(INDEX(Inputs!$A$34:$A$43,MATCH(DM7,Inputs!$C$34:$C$43,0),1),Oper!DL6) -> 10 | DN6: =+IFERROR(INDEX(Inputs!$A$34:$A$43,MATCH(DN7,Inputs!$C$34:$C$43,0),1),Oper!DM6) -> 10 | DO6: =+IFERROR(INDEX(Inputs!$A$34:$A$43,MATCH(DO7,Inputs!$C$34:$C$43,0),1),Oper!DN6) -> 10 | DP6: =+IFERROR(INDEX(Inputs!$A$34:$A$43,MATCH(DP7,Inputs!$C$34:$C$43,0),1),Oper!DO6) -> 10
C7: Year | Q7: =+YEAR(Q9) -> 2016 | R7: 2017 | S7: 2018 | T7: 2019 | U7: 2020 | V7: 2021 | W7: 2022 | X7: 2023 | Y7: 2024 | Z7: 2025 | AA7: 2026 | AB7: 2027 | AC7: 2028 | AD7: 2029 | AE7: 2030 | AF7: 2031 | AG7: 2032 | AH7: 2033 | AI7: 2034 | AJ7: 2035 | AK7: 2036 | AL7: 2037 | AM7: 2038 | AN7: 2039 | AO7: 2040 | AP7: 2041 | AQ7: 2042 | AR7: 2043 | AS7: 2044 | AT7: 2045 | AU7: 2046 | AV7: 2047 | AW7: 2048 | AX7: 2049 | AY7: 2050 | AZ7: 2051 | BA7: 2052 | BB7: 2053 | BC7: 2054 | BD7: 2055 | BE7: 2056 | BF7: 2057 | BG7: 2058 | BH7: 2059 | BI7: 2060 | BJ7: 2061 | BK7: 2062 | BL7: 2063 | BM7: 2064 | BN7: 2065 | BO7: 2066 | BP7: 2067 | BQ7: 2068 | BR7: 2069 | BS7: 2070 | BT7: 2071 | BU7: 2072 | BV7: 2073 | BW7: =+YEAR(BW9) -> 2074 | BX7: 2075 | BY7: 2076 | BZ7: 2077 | CA7: 2078 | CB7: 2079 | CC7: 2080 | CD7: 2081 | CE7: 2082 | CF7: 2083 | CG7: 2084 | CH7: 2085 | CI7: 2086 | CJ7: 2087 | CK7: 2088 | CL7: 2089 | CM7: 2090 | CN7: 2091 | CO7: 2092 | CP7: 2093 | CQ7: 2094 | CR7: 2095 | CS7: 2096 | CT7: 2097 | CU7: 2098 | CV7: 2099 | CW7: 2100 | CX7: 2101 | CY7: 2102 | CZ7: 2103 | DA7: 2104 | DB7: 2105 | DC7: 2106 | DD7: 2107 | DE7: 2108 | DF7: 2109 | DG7: 2110 | DH7: 2111 | DI7: 2112 | DJ7: 2113 | DK7: 2114 | DL7: 2115 | DM7: 2116 | DN7: 2117 | DO7: 2118 | DP7: 2119
C8: Period start date | Q8: 2016-01-01 | R8: =+Q9+1 -> 2017-01-01 | S8: 2018-01-01 | T8: 2019-01-01 | U8: 2020-01-01 | V8: 2021-01-01 | W8: 2022-01-01 | X8: 2023-01-01 | Y8: 2024-01-01 | Z8: 2025-01-01 | AA8: 2026-01-01 | AB8: 2027-01-01 | AC8: 2028-01-01 | AD8: 2029-01-01 | AE8: 2030-01-01 | AF8: 2031-01-01 | AG8: 2032-01-01 | AH8: 2033-01-01 | AI8: 2034-01-01 | AJ8: 2035-01-01 | AK8: 2036-01-01 | AL8: 2037-01-01 | AM8: 2038-01-01 | AN8: 2039-01-01 | AO8: 2040-01-01 | AP8: 2041-01-01 | AQ8: 2042-01-01 | AR8: 2043-01-01 | AS8: 2044-01-01 | AT8: 2045-01-01 | AU8: 2046-01-01 | AV8: 2047-01-01 | AW8: 2048-01-01 | AX8: 2049-01-01 | AY8: 2050-01-01 | AZ8: 2051-01-01 | BA8: 2052-01-01 | BB8: 2053-01-01 | BC8: 2054-01-01 | BD8: 2055-01-01 | BE8: 2056-01-01 | BF8: 2057-01-01 | BG8: 2058-01-01 | BH8: 2059-01-01 | BI8: 2060-01-01 | BJ8: 2061-01-01 | BK8: 2062-01-01 | BL8: 2063-01-01 | BM8: 2064-01-01 | BN8: 2065-01-01 | BO8: 2066-01-01 | BP8: 2067-01-01 | BQ8: 2068-01-01 | BR8: 2069-01-01 | BS8: 2070-01-01 | BT8: 2071-01-01 | BU8: 2072-01-01 | BV8: 2073-01-01 | BW8: =+BV9+1 -> 2074-01-01 | BX8: 2075-01-01 | BY8: 2076-01-01 | BZ8: 2077-01-01 | CA8: 2078-01-01 | CB8: 2079-01-01 | CC8: 2080-01-01 | CD8: 2081-01-01 | CE8: 2082-01-01 | CF8: 2083-01-01 | CG8: 2084-01-01 | CH8: 2085-01-01 | CI8: 2086-01-01 | CJ8: 2087-01-01 | CK8: 2088-01-01 | CL8: 2089-01-01 | CM8: 2090-01-01 | CN8: 2091-01-01 | CO8: 2092-01-01 | CP8: 2093-01-01 | CQ8: 2094-01-01 | CR8: 2095-01-01 | CS8: 2096-01-01 | CT8: 2097-01-01 | CU8: 2098-01-01 | CV8: 2099-01-01 | CW8: 2100-01-01 | CX8: 2101-01-01 | CY8: 2102-01-01 | CZ8: 2103-01-01 | DA8: 2104-01-01 | DB8: 2105-01-01 | DC8: 2106-01-01 | DD8: 2107-01-01 | DE8: 2108-01-01 | DF8: 2109-01-01 | DG8: 2110-01-01 | DH8: 2111-01-01 | DI8: 2112-01-01 | DJ8: 2113-01-01 | DK8: 2114-01-01 | DL8: 2115-01-01 | DM8: 2116-01-01 | DN8: 2117-01-01 | DO8: 2118-01-01 | DP8: 2119-01-01
C9: Period end date | Q9: =+EOMONTH(Q8,11) -> 2016-12-31 | R9: 2017-12-31 | S9: 2018-12-31 | T9: 2019-12-31 | U9: 2020-12-31 | V9: 2021-12-31 | W9: 2022-12-31 | X9: 2023-12-31 | Y9: 2024-12-31 | Z9: 2025-12-31 | AA9: 2026-12-31 | AB9: 2027-12-31 | AC9: 2028-12-31 | AD9: 2029-12-31 | AE9: 2030-12-31 | AF9: 2031-12-31 | AG9: 2032-12-31 | AH9: 2033-12-31 | AI9: 2034-12-31 | AJ9: 2035-12-31 | AK9: 2036-12-31 | AL9: 2037-12-31 | AM9: 2038-12-31 | AN9: 2039-12-31 | AO9: 2040-12-31 | AP9: 2041-12-31 | AQ9: 2042-12-31 | AR9: 2043-12-31 | AS9: 2044-12-31 | AT9: 2045-12-31 | AU9: 2046-12-31 | AV9: 2047-12-31 | AW9: 2048-12-31 | AX9: 2049-12-31 | AY9: 2050-12-31 | AZ9: 2051-12-31 | BA9: 2052-12-31 | BB9: 2053-12-31 | BC9: 2054-12-31 | BD9: 2055-12-31 | BE9: 2056-12-31 | BF9: 2057-12-31 | BG9: 2058-12-31 | BH9: 2059-12-31 | BI9: 2060-12-31 | BJ9: 2061-12-31 | BK9: 2062-12-31 | BL9: 2063-12-31 | BM9: 2064-12-31 | BN9: 2065-12-31 | BO9: 2066-12-31 | BP9: 2067-12-31 | BQ9: 2068-12-31 | BR9: 2069-12-31 | BS9: 2070-12-31 | BT9: 2071-12-31 | BU9: 2072-12-31 | BV9: =+EOMONTH(BV8,11) -> 2073-12-31 | BW9: 2074-12-31 | BX9: 2075-12-31 | BY9: 2076-12-31 | BZ9: 2077-12-31 | CA9: 2078-12-31 | CB9: 2079-12-31 | CC9: 2080-12-31 | CD9: 2081-12-31 | CE9: 2082-12-31 | CF9: 2083-12-31 | CG9: 2084-12-31 | CH9: 2085-12-31 | CI9: 2086-12-31 | CJ9: 2087-12-31 | CK9: 2088-12-31 | CL9: 2089-12-31 | CM9: 2090-12-31 | CN9: 2091-12-31 | CO9: 2092-12-31 | CP9: 2093-12-31 | CQ9: 2094-12-31 | CR9: 2095-12-31 | CS9: 2096-12-31 | CT9: 2097-12-31 | CU9: 2098-12-31 | CV9: 2099-12-31 | CW9: 2100-12-31 | CX9: 2101-12-31 | CY9: 2102-12-31 | CZ9: 2103-12-31 | DA9: 2104-12-31 | DB9: 2105-12-31 | DC9: 2106-12-31 | DD9: 2107-12-31 | DE9: 2108-12-31 | DF9: 2109-12-31 | DG9: 2110-12-31 | DH9: 2111-12-31 | DI9: 2112-12-31 | DJ9: 2113-12-31 | DK9: 2114-12-31 | DL9: 2115-12-31 | DM9: 2116-12-31 | DN9: 2117-12-31 | DO9: 2118-12-31 | DP9: 2119-12-31
K10: Unit | L10: Value | N10: Sum
C12: Concession period in % | K12: % | Q12: =+IF(OR(CF!Q7<YEAR(Inputs!$L$30),CF!Q7>YEAR(Inputs!$L$31)),0,IF(CF!Q7=YEAR(Inputs!$L$31),(Inputs!$L$31-CF!Q8+1)/CF!Q$15,IF(CF!Q7=YEAR(Inputs!$L$30),(CF!Q9-Inputs!$L$30+1)/CF!Q15,1))) -> 100.00% | R12: =+IF(OR(CF!R7<YEAR(Inputs!$L$30),CF!R7>YEAR(Inputs!$L$31)),0,IF(CF!R7=YEAR(Inputs!$L$31),(Inputs!$L$31-CF!R8+1)/CF!R$15,IF(CF!R7=YEAR(Inputs!$L$30),(CF!R9-Inputs!$L$30+1)/CF!R15,1))) -> 100.00% | S12: =+IF(OR(CF!S7<YEAR(Inputs!$L$30),CF!S7>YEAR(Inputs!$L$31)),0,IF(CF!S7=YEAR(Inputs!$L$31),(Inputs!$L$31-CF!S8+1)/CF!S$15,IF(CF!S7=YEAR(Inputs!$L$30),(CF!S9-Inputs!$L$30+1)/CF!S15,1))) -> 100.00% | T12: =+IF(OR(CF!T7<YEAR(Inputs!$L$30),CF!T7>YEAR(Inputs!$L$31)),0,IF(CF!T7=YEAR(Inputs!$L$31),(Inputs!$L$31-CF!T8+1)/CF!T$15,IF(CF!T7=YEAR(Inputs!$L$30),(CF!T9-Inputs!$L$30+1)/CF!T15,1))) -> 100.00% | U12: =+IF(OR(CF!U7<YEAR(Inputs!$L$30),CF!U7>YEAR(Inputs!$L$31)),0,IF(CF!U7=YEAR(Inputs!$L$31),(Inputs!$L$31-CF!U8+1)/CF!U$15,IF(CF!U7=YEAR(Inputs!$L$30),(CF!U9-Inputs!$L$30+1)/CF!U15,1))) -> 100.00% | V12: =+IF(OR(CF!V7<YEAR(Inputs!$L$30),CF!V7>YEAR(Inputs!$L$31)),0,IF(CF!V7=YEAR(Inputs!$L$31),(Inputs!$L$31-CF!V8+1)/CF!V$15,IF(CF!V7=YEAR(Inputs!$L$30),(CF!V9-Inputs!$L$30+1)/CF!V15,1))) -> 100.00% | W12: =+IF(OR(CF!W7<YEAR(Inputs!$L$30),CF!W7>YEAR(Inputs!$L$31)),0,IF(CF!W7=YEAR(Inputs!$L$31),(Inputs!$L$31-CF!W8+1)/CF!W$15,IF(CF!W7=YEAR(Inputs!$L$30),(CF!W9-Inputs!$L$30+1)/CF!W15,1))) -> 100.00% | X12: =+IF(OR(CF!X7<YEAR(Inputs!$L$30),CF!X7>YEAR(Inputs!$L$31)),0,IF(CF!X7=YEAR(Inputs!$L$31),(Inputs!$L$31-CF!X8+1)/CF!X$15,IF(CF!X7=YEAR(Inputs!$L$30),(CF!X9-Inputs!$L$30+1)/CF!X15,1))) -> 100.00% | Y12: =+IF(OR(CF!Y7<YEAR(Inputs!$L$30),CF!Y7>YEAR(Inputs!$L$31)),0,IF(CF!Y7=YEAR(Inputs!$L$31),(Inputs!$L$31-CF!Y8+1)/CF!Y$15,IF(CF!Y7=YEAR(Inputs!$L$30),(CF!Y9-Inputs!$L$30+1)/CF!Y15,1))) -> 100.00% | Z12: =+IF(OR(CF!Z7<YEAR(Inputs!$L$30),CF!Z7>YEAR(Inputs!$L$31)),0,IF(CF!Z7=YEAR(Inputs!$L$31),(Inputs!$L$31-CF!Z8+1)/CF!Z$15,IF(CF!Z7=YEAR(Inputs!$L$30),(CF!Z9-Inputs!$L$30+1)/CF!Z15,1))) -> 100.00% | AA12: =+IF(OR(CF!AA7<YEAR(Inputs!$L$30),CF!AA7>YEAR(Inputs!$L$31)),0,IF(CF!AA7=YEAR(Inputs!$L$31),(Inputs!$L$31-CF!AA8+1)/CF!AA$15,IF(CF!AA7=YEAR(Inputs!$L$30),(CF!AA9-Inputs!$L$30+1)/CF!AA15,1))) -> 100.00% | AB12: =+IF(OR(CF!AB7<YEAR(Inputs!$L$30),CF!AB7>YEAR(Inputs!$L$31)),0,IF(CF!AB7=YEAR(Inputs!$L$31),(Inputs!$L$31-CF!AB8+1)/CF!AB$15,IF(CF!AB7=YEAR(Inputs!$L$30),(CF!AB9-Inputs!$L$30+1)/CF!AB15,1))) -> 100.00% | AC12: =+IF(OR(CF!AC7<YEAR(Inputs!$L$30),CF!AC7>YEAR(Inputs!$L$31)),0,IF(CF!AC7=YEAR(Inputs!$L$31),(Inputs!$L$31-CF!AC8+1)/CF!AC$15,IF(CF!AC7=YEAR(Inputs!$L$30),(CF!AC9-Inputs!$L$30+1)/CF!AC15,1))) -> 100.00% | AD12: =+IF(OR(CF!AD7<YEAR(Inputs!$L$30),CF!AD7>YEAR(Inputs!$L$31)),0,IF(CF!AD7=YEAR(Inputs!$L$31),(Inputs!$L$31-CF!AD8+1)/CF!AD$15,IF(CF!AD7=YEAR(Inputs!$L$30),(CF!AD9-Inputs!$L$30+1)/CF!AD15,1))) -> 100.00% | AE12: =+IF(OR(CF!AE7<YEAR(Inputs!$L$30),CF!AE7>YEAR(Inputs!$L$31)),0,IF(CF!AE7=YEAR(Inputs!$L$31),(Inputs!$L$31-CF!AE8+1)/CF!AE$15,IF(CF!AE7=YEAR(Inputs!$L$30),(CF!AE9-Inputs!$L$30+1)/CF!AE15,1))) -> 100.00% | AF12: =+IF(OR(CF!AF7<YEAR(Inputs!$L$30),CF!AF7>YEAR(Inputs!$L$31)),0,IF(CF!AF7=YEAR(Inputs!$L$31),(Inputs!$L$31-CF!AF8+1)/CF!AF$15,IF(CF!AF7=YEAR(Inputs!$L$30),(CF!AF9-Inputs!$L$30+1)/CF!AF15,1))) -> 100.00% | AG12: =+IF(OR(CF!AG7<YEAR(Inputs!$L$30),CF!AG7>YEAR(Inputs!$L$31)),0,IF(CF!AG7=YEAR(Inputs!$L$31),(Inputs!$L$31-CF!AG8+1)/CF!AG$15,IF(CF!AG7=YEAR(Inputs!$L$30),(CF!AG9-Inputs!$L$30+1)/CF!AG15,1))) -> 100.00% | AH12: =+IF(OR(CF!AH7<YEAR(Inputs!$L$30),CF!AH7>YEAR(Inputs!$L$31)),0,IF(CF!AH7=YEAR(Inputs!$L$31),(Inputs!$L$31-CF!AH8+1)/CF!AH$15,IF(CF!AH7=YEAR(Inputs!$L$30),(CF!AH9-Inputs!$L$30+1)/CF!AH15,1))) -> 100.00% | AI12: =+IF(OR(CF!AI7<YEAR(Inputs!$L$30),CF!AI7>YEAR(Inputs!$L$31)),0,IF(CF!AI7=YEAR(Inputs!$L$31),(Inputs!$L$31-CF!AI8+1)/CF!AI$15,IF(CF!AI7=YEAR(Inputs!$L$30),(CF!AI9-Inputs!$L$30+1)/CF!AI15,1))) -> 100.00% | AJ12: =+IF(OR(CF!AJ7<YEAR(Inputs!$L$30),CF!AJ7>YEAR(Inputs!$L$31)),0,IF(CF!AJ7=YEAR(Inputs!$L$31),(Inputs!$L$31-CF!AJ8+1)/CF!AJ$15,IF(CF!AJ7=YEAR(Inputs!$L$30),(CF!AJ9-Inputs!$L$30+1)/CF!AJ15,1))) -> 100.00% | AK12: =+IF(OR(CF!AK7<YEAR(Inputs!$L$30),CF!AK7>YEAR(Inputs!$L$31)),0,IF(CF!AK7=YEAR(Inputs!$L$31),(Inputs!$L$31-CF!AK8+1)/CF!AK$15,IF(CF!AK7=YEAR(Inputs!$L$30),(CF!AK9-Inputs!$L$30+1)/CF!AK15,1))) -> 100.00% | AL12: =+IF(OR(CF!AL7<YEAR(Inputs!$L$30),CF!AL7>YEAR(Inputs!$L$31)),0,IF(CF!AL7=YEAR(Inputs!$L$31),(Inputs!$L$31-CF!AL8+1)/CF!AL$15,IF(CF!AL7=YEAR(Inputs!$L$30),(CF!AL9-Inputs!$L$30+1)/CF!AL15,1))) -> 100.00% | AM12: =+IF(OR(CF!AM7<YEAR(Inputs!$L$30),CF!AM7>YEAR(Inputs!$L$31)),0,IF(CF!AM7=YEAR(Inputs!$L$31),(Inputs!$L$31-CF!AM8+1)/CF!AM$15,IF(CF!AM7=YEAR(Inputs!$L$30),(CF!AM9-Inputs!$L$30+1)/CF!AM15,1))) -> 100.00% | AN12: =+IF(OR(CF!AN7<YEAR(Inputs!$L$30),CF!AN7>YEAR(Inputs!$L$31)),0,IF(CF!AN7=YEAR(Inputs!$L$31),(Inputs!$L$31-CF!AN8+1)/CF!AN$15,IF(CF!AN7=YEAR(Inputs!$L$30),(CF!AN9-Inputs!$L$30+1)/CF!AN15,1))) -> 100.00% | AO12: =+IF(OR(CF!AO7<YEAR(Inputs!$L$30),CF!AO7>YEAR(Inputs!$L$31)),0,IF(CF!AO7=YEAR(Inputs!$L$31),(Inputs!$L$31-CF!AO8+1)/CF!AO$15,IF(CF!AO7=YEAR(Inputs!$L$30),(CF!AO9-Inputs!$L$30+1)/CF!AO15,1))) -> 100.00% | AP12: =+IF(OR(CF!AP7<YEAR(Inputs!$L$30),CF!AP7>YEAR(Inputs!$L$31)),0,IF(CF!AP7=YEAR(Inputs!$L$31),(Inputs!$L$31-CF!AP8+1)/CF!AP$15,IF(CF!AP7=YEAR(Inputs!$L$30),(CF!AP9-Inputs!$L$30+1)/CF!AP15,1))) -> 100.00% | AQ12: =+IF(OR(CF!AQ7<YEAR(Inputs!$L$30),CF!AQ7>YEAR(Inputs!$L$31)),0,IF(CF!AQ7=YEAR(Inputs!$L$31),(Inputs!$L$31-CF!AQ8+1)/CF!AQ$15,IF(CF!AQ7=YEAR(Inputs!$L$30),(CF!AQ9-Inputs!$L$30+1)/CF!AQ15,1))) -> 100.00% | AR12: =+IF(OR(CF!AR7<YEAR(Inputs!$L$30),CF!AR7>YEAR(Inputs!$L$31)),0,IF(CF!AR7=YEAR(Inputs!$L$31),(Inputs!$L$31-CF!AR8+1)/CF!AR$15,IF(CF!AR7=YEAR(Inputs!$L$30),(CF!AR9-Inputs!$L$30+1)/CF!AR15,1))) -> 100.00% | AS12: =+IF(OR(CF!AS7<YEAR(Inputs!$L$30),CF!AS7>YEAR(Inputs!$L$31)),0,IF(CF!AS7=YEAR(Inputs!$L$31),(Inputs!$L$31-CF!AS8+1)/CF!AS$15,IF(CF!AS7=YEAR(Inputs!$L$30),(CF!AS9-Inputs!$L$30+1)/CF!AS15,1))) -> 100.00% | AT12: =+IF(OR(CF!AT7<YEAR(Inputs!$L$30),CF!AT7>YEAR(Inputs!$L$31)),0,IF(CF!AT7=YEAR(Inputs!$L$31),(Inputs!$L$31-CF!AT8+1)/CF!AT$15,IF(CF!AT7=YEAR(Inputs!$L$30),(CF!AT9-Inputs!$L$30+1)/CF!AT15,1))) -> 100.00% | AU12: =+IF(OR(CF!AU7<YEAR(Inputs!$L$30),CF!AU7>YEAR(Inputs!$L$31)),0,IF(CF!AU7=YEAR(Inputs!$L$31),(Inputs!$L$31-CF!AU8+1)/CF!AU$15,IF(CF!AU7=YEAR(Inputs!$L$30),(CF!AU9-Inputs!$L$30+1)/CF!AU15,1))) -> 100.00% | AV12: =+IF(OR(CF!AV7<YEAR(Inputs!$L$30),CF!AV7>YEAR(Inputs!$L$31)),0,IF(CF!AV7=YEAR(Inputs!$L$31),(Inputs!$L$31-CF!AV8+1)/CF!AV$15,IF(CF!AV7=YEAR(Inputs!$L$30),(CF!AV9-Inputs!$L$30+1)/CF!AV15,1))) -> 100.00% | AW12: =+IF(OR(CF!AW7<YEAR(Inputs!$L$30),CF!AW7>YEAR(Inputs!$L$31)),0,IF(CF!AW7=YEAR(Inputs!$L$31),(Inputs!$L$31-CF!AW8+1)/CF!AW$15,IF(CF!AW7=YEAR(Inputs!$L$30),(CF!AW9-Inputs!$L$30+1)/CF!AW15,1))) -> 100.00% | AX12: =+IF(OR(CF!AX7<YEAR(Inputs!$L$30),CF!AX7>YEAR(Inputs!$L$31)),0,IF(CF!AX7=YEAR(Inputs!$L$31),(Inputs!$L$31-CF!AX8+1)/CF!AX$15,IF(CF!AX7=YEAR(Inputs!$L$30),(CF!AX9-Inputs!$L$30+1)/CF!AX15,1))) -> 100.00% | AY12: =+IF(OR(CF!AY7<YEAR(Inputs!$L$30),CF!AY7>YEAR(Inputs!$L$31)),0,IF(CF!AY7=YEAR(Inputs!$L$31),(Inputs!$L$31-CF!AY8+1)/CF!AY$15,IF(CF!AY7=YEAR(Inputs!$L$30),(CF!AY9-Inputs!$L$30+1)/CF!AY15,1))) -> 100.00% | AZ12: =+IF(OR(CF!AZ7<YEAR(Inputs!$L$30),CF!AZ7>YEAR(Inputs!$L$31)),0,IF(CF!AZ7=YEAR(Inputs!$L$31),(Inputs!$L$31-CF!AZ8+1)/CF!AZ$15,IF(CF!AZ7=YEAR(Inputs!$L$30),(CF!AZ9-Inputs!$L$30+1)/CF!AZ15,1))) -> 100.00% | BA12: =+IF(OR(CF!BA7<YEAR(Inputs!$L$30),CF!BA7>YEAR(Inputs!$L$31)),0,IF(CF!BA7=YEAR(Inputs!$L$31),(Inputs!$L$31-CF!BA8+1)/CF!BA$15,IF(CF!BA7=YEAR(Inputs!$L$30),(CF!BA9-Inputs!$L$30+1)/CF!BA15,1))) -> 100.00% | BB12: =+IF(OR(CF!BB7<YEAR(Inputs!$L$30),CF!BB7>YEAR(Inputs!$L$31)),0,IF(CF!BB7=YEAR(Inputs!$L$31),(Inputs!$L$31-CF!BB8+1)/CF!BB$15,IF(CF!BB7=YEAR(Inputs!$L$30),(CF!BB9-Inputs!$L$30+1)/CF!BB15,1))) -> 100.00% | BC12: =+IF(OR(CF!BC7<YEAR(Inputs!$L$30),CF!BC7>YEAR(Inputs!$L$31)),0,IF(CF!BC7=YEAR(Inputs!$L$31),(Inputs!$L$31-CF!BC8+1)/CF!BC$15,IF(CF!BC7=YEAR(Inputs!$L$30),(CF!BC9-Inputs!$L$30+1)/CF!BC15,1))) -> 100.00% | BD12: =+IF(OR(CF!BD7<YEAR(Inputs!$L$30),CF!BD7>YEAR(Inputs!$L$31)),0,IF(CF!BD7=YEAR(Inputs!$L$31),(Inputs!$L$31-CF!BD8+1)/CF!BD$15,IF(CF!BD7=YEAR(Inputs!$L$30),(CF!BD9-Inputs!$L$30+1)/CF!BD15,1))) -> 100.00% | BE12: =+IF(OR(CF!BE7<YEAR(Inputs!$L$30),CF!BE7>YEAR(Inputs!$L$31)),0,IF(CF!BE7=YEAR(Inputs!$L$31),(Inputs!$L$31-CF!BE8+1)/CF!BE$15,IF(CF!BE7=YEAR(Inputs!$L$30),(CF!BE9-Inputs!$L$30+1)/CF!BE15,1))) -> 100.00% | BF12: =+IF(OR(CF!BF7<YEAR(Inputs!$L$30),CF!BF7>YEAR(Inputs!$L$31)),0,IF(CF!BF7=YEAR(Inputs!$L$31),(Inputs!$L$31-CF!BF8+1)/CF!BF$15,IF(CF!BF7=YEAR(Inputs!$L$30),(CF!BF9-Inputs!$L$30+1)/CF!BF15,1))) -> 100.00% | BG12: =+IF(OR(CF!BG7<YEAR(Inputs!$L$30),CF!BG7>YEAR(Inputs!$L$31)),0,IF(CF!BG7=YEAR(Inputs!$L$31),(Inputs!$L$31-CF!BG8+1)/CF!BG$15,IF(CF!BG7=YEAR(Inputs!$L$30),(CF!BG9-Inputs!$L$30+1)/CF!BG15,1))) -> 100.00% | BH12: =+IF(OR(CF!BH7<YEAR(Inputs!$L$30),CF!BH7>YEAR(Inputs!$L$31)),0,IF(CF!BH7=YEAR(Inputs!$L$31),(Inputs!$L$31-CF!BH8+1)/CF!BH$15,IF(CF!BH7=YEAR(Inputs!$L$30),(CF!BH9-Inputs!$L$30+1)/CF!BH15,1))) -> 100.00% | BI12: =+IF(OR(CF!BI7<YEAR(Inputs!$L$30),CF!BI7>YEAR(Inputs!$L$31)),0,IF(CF!BI7=YEAR(Inputs!$L$31),(Inputs!$L$31-CF!BI8+1)/CF!BI$15,IF(CF!BI7=YEAR(Inputs!$L$30),(CF!BI9-Inputs!$L$30+1)/CF!BI15,1))) -> 100.00% | BJ12: =+IF(OR(CF!BJ7<YEAR(Inputs!$L$30),CF!BJ7>YEAR(Inputs!$L$31)),0,IF(CF!BJ7=YEAR(Inputs!$L$31),(Inputs!$L$31-CF!BJ8+1)/CF!BJ$15,IF(CF!BJ7=YEAR(Inputs!$L$30),(CF!BJ9-Inputs!$L$30+1)/CF!BJ15,1))) -> 67.67% | BK12: =+IF(OR(CF!BK7<YEAR(Inputs!$L$30),CF!BK7>YEAR(Inputs!$L$31)),0,IF(CF!BK7=YEAR(Inputs!$L$31),(Inputs!$L$31-CF!BK8+1)/CF!BK$15,IF(CF!BK7=YEAR(Inputs!$L$30),(CF!BK9-Inputs!$L$30+1)/CF!BK15,1))) -> 0.00% | BL12: =+IF(OR(CF!BL7<YEAR(Inputs!$L$30),CF!BL7>YEAR(Inputs!$L$31)),0,IF(CF!BL7=YEAR(Inputs!$L$31),(Inputs!$L$31-CF!BL8+1)/CF!BL$15,IF(CF!BL7=YEAR(Inputs!$L$30),(CF!BL9-Inputs!$L$30+1)/CF!BL15,1))) -> 0.00% | BM12: =+IF(OR(CF!BM7<YEAR(Inputs!$L$30),CF!BM7>YEAR(Inputs!$L$31)),0,IF(CF!BM7=YEAR(Inputs!$L$31),(Inputs!$L$31-CF!BM8+1)/CF!BM$15,IF(CF!BM7=YEAR(Inputs!$L$30),(CF!BM9-Inputs!$L$30+1)/CF!BM15,1))) -> 0.00% | BN12: =+IF(OR(CF!BN7<YEAR(Inputs!$L$30),CF!BN7>YEAR(Inputs!$L$31)),0,IF(CF!BN7=YEAR(Inputs!$L$31),(Inputs!$L$31-CF!BN8+1)/CF!BN$15,IF(CF!BN7=YEAR(Inputs!$L$30),(CF!BN9-Inputs!$L$30+1)/CF!BN15,1))) -> 0.00% | BO12: =+IF(OR(CF!BO7<YEAR(Inputs!$L$30),CF!BO7>YEAR(Inputs!$L$31)),0,IF(CF!BO7=YEAR(Inputs!$L$31),(Inputs!$L$31-CF!BO8+1)/CF!BO$15,IF(CF!BO7=YEAR(Inputs!$L$30),(CF!BO9-Inputs!$L$30+1)/CF!BO15,1))) -> 0.00% | BP12: =+IF(OR(CF!BP7<YEAR(Inputs!$L$30),CF!BP7>YEAR(Inputs!$L$31)),0,IF(CF!BP7=YEAR(Inputs!$L$31),(Inputs!$L$31-CF!BP8+1)/CF!BP$15,IF(CF!BP7=YEAR(Inputs!$L$30),(CF!BP9-Inputs!$L$30+1)/CF!BP15,1))) -> 0.00% | BQ12: =+IF(OR(CF!BQ7<YEAR(Inputs!$L$30),CF!BQ7>YEAR(Inputs!$L$31)),0,IF(CF!BQ7=YEAR(Inputs!$L$31),(Inputs!$L$31-CF!BQ8+1)/CF!BQ$15,IF(CF!BQ7=YEAR(Inputs!$L$30),(CF!BQ9-Inputs!$L$30+1)/CF!BQ15,1))) -> 0.00% | BR12: =+IF(OR(CF!BR7<YEAR(Inputs!$L$30),CF!BR7>YEAR(Inputs!$L$31)),0,IF(CF!BR7=YEAR(Inputs!$L$31),(Inputs!$L$31-CF!BR8+1)/CF!BR$15,IF(CF!BR7=YEAR(Inputs!$L$30),(CF!BR9-Inputs!$L$30+1)/CF!BR15,1))) -> 0.00% | BS12: =+IF(OR(CF!BS7<YEAR(Inputs!$L$30),CF!BS7>YEAR(Inputs!$L$31)),0,IF(CF!BS7=YEAR(Inputs!$L$31),(Inputs!$L$31-CF!BS8+1)/CF!BS$15,IF(CF!BS7=YEAR(Inputs!$L$30),(CF!BS9-Inputs!$L$30+1)/CF!BS15,1))) -> 0.00% | BT12: =+IF(OR(CF!BT7<YEAR(Inputs!$L$30),CF!BT7>YEAR(Inputs!$L$31)),0,IF(CF!BT7=YEAR(Inputs!$L$31),(Inputs!$L$31-CF!BT8+1)/CF!BT$15,IF(CF!BT7=YEAR(Inputs!$L$30),(CF!BT9-Inputs!$L$30+1)/CF!BT15,1))) -> 0.00% | BU12: =+IF(OR(CF!BU7<YEAR(Inputs!$L$30),CF!BU7>YEAR(Inputs!$L$31)),0,IF(CF!BU7=YEAR(Inputs!$L$31),(Inputs!$L$31-CF!BU8+1)/CF!BU$15,IF(CF!BU7=YEAR(Inputs!$L$30),(CF!BU9-Inputs!$L$30+1)/CF!BU15,1))) -> 0.00% | BV12: =+IF(OR(CF!BV7<YEAR(Inputs!$L$30),CF!BV7>YEAR(Inputs!$L$31)),0,IF(CF!BV7=YEAR(Inputs!$L$31),(Inputs!$L$31-CF!BV8+1)/CF!BV$15,IF(CF!BV7=YEAR(Inputs!$L$30),(CF!BV9-Inputs!$L$30+1)/CF!BV15,1))) -> 0.00% | BW12: =+IF(OR(CF!BW7<YEAR(Inputs!$L$30),CF!BW7>YEAR(Inputs!$L$31)),0,IF(CF!BW7=YEAR(Inputs!$L$31),(Inputs!$L$31-CF!BW8+1)/CF!BW$15,IF(CF!BW7=YEAR(Inputs!$L$30),(CF!BW9-Inputs!$L$30+1)/CF!BW15,1))) -> 0.00% | BX12: =+IF(OR(CF!BX7<YEAR(Inputs!$L$30),CF!BX7>YEAR(Inputs!$L$31)),0,IF(CF!BX7=YEAR(Inputs!$L$31),(Inputs!$L$31-CF!BX8+1)/CF!BX$15,IF(CF!BX7=YEAR(Inputs!$L$30),(CF!BX9-Inputs!$L$30+1)/CF!BX15,1))) -> 0.00% | BY12: =+IF(OR(CF!BY7<YEAR(Inputs!$L$30),CF!BY7>YEAR(Inputs!$L$31)),0,IF(CF!BY7=YEAR(Inputs!$L$31),(Inputs!$L$31-CF!BY8+1)/CF!BY$15,IF(CF!BY7=YEAR(Inputs!$L$30),(CF!BY9-Inputs!$L$30+1)/CF!BY15,1))) -> 0.00% | BZ12: =+IF(OR(CF!BZ7<YEAR(Inputs!$L$30),CF!BZ7>YEAR(Inputs!$L$31)),0,IF(CF!BZ7=YEAR(Inputs!$L$31),(Inputs!$L$31-CF!BZ8+1)/CF!BZ$15,IF(CF!BZ7=YEAR(Inputs!$L$30),(CF!BZ9-Inputs!$L$30+1)/CF!BZ15,1))) -> 0.00% | CA12: =+IF(OR(CF!CA7<YEAR(Inputs!$L$30),CF!CA7>YEAR(Inputs!$L$31)),0,IF(CF!CA7=YEAR(Inputs!$L$31),(Inputs!$L$31-CF!CA8+1)/CF!CA$15,IF(CF!CA7=YEAR(Inputs!$L$30),(CF!CA9-Inputs!$L$30+1)/CF!CA15,1))) -> 0.00% | CB12: =+IF(OR(CF!CB7<YEAR(Inputs!$L$30),CF!CB7>YEAR(Inputs!$L$31)),0,IF(CF!CB7=YEAR(Inputs!$L$31),(Inputs!$L$31-CF!CB8+1)/CF!CB$15,IF(CF!CB7=YEAR(Inputs!$L$30),(CF!CB9-Inputs!$L$30+1)/CF!CB15,1))) -> 0.00% | CC12: =+IF(OR(CF!CC7<YEAR(Inputs!$L$30),CF!CC7>YEAR(Inputs!$L$31)),0,IF(CF!CC7=YEAR(Inputs!$L$31),(Inputs!$L$31-CF!CC8+1)/CF!CC$15,IF(CF!CC7=YEAR(Inputs!$L$30),(CF!CC9-Inputs!$L$30+1)/CF!CC15,1))) -> 0.00% | CD12: =+IF(OR(CF!CD7<YEAR(Inputs!$L$30),CF!CD7>YEAR(Inputs!$L$31)),0,IF(CF!CD7=YEAR(Inputs!$L$31),(Inputs!$L$31-CF!CD8+1)/CF!CD$15,IF(CF!CD7=YEAR(Inputs!$L$30),(CF!CD9-Inputs!$L$30+1)/CF!CD15,1))) -> 0.00% | CE12: =+IF(OR(CF!CE7<YEAR(Inputs!$L$30),CF!CE7>YEAR(Inputs!$L$31)),0,IF(CF!CE7=YEAR(Inputs!$L$31),(Inputs!$L$31-CF!CE8+1)/CF!CE$15,IF(CF!CE7=YEAR(Inputs!$L$30),(CF!CE9-Inputs!$L$30+1)/CF!CE15,1))) -> 0.00% | CF12: =+IF(OR(CF!CF7<YEAR(Inputs!$L$30),CF!CF7>YEAR(Inputs!$L$31)),0,IF(CF!CF7=YEAR(Inputs!$L$31),(Inputs!$L$31-CF!CF8+1)/CF!CF$15,IF(CF!CF7=YEAR(Inputs!$L$30),(CF!CF9-Inputs!$L$30+1)/CF!CF15,1))) -> 0.00% | CG12: =+IF(OR(CF!CG7<YEAR(Inputs!$L$30),CF!CG7>YEAR(Inputs!$L$31)),0,IF(CF!CG7=YEAR(Inputs!$L$31),(Inputs!$L$31-CF!CG8+1)/CF!CG$15,IF(CF!CG7=YEAR(Inputs!$L$30),(CF!CG9-Inputs!$L$30+1)/CF!CG15,1))) -> 0.00% | CH12: =+IF(OR(CF!CH7<YEAR(Inputs!$L$30),CF!CH7>YEAR(Inputs!$L$31)),0,IF(CF!CH7=YEAR(Inputs!$L$31),(Inputs!$L$31-CF!CH8+1)/CF!CH$15,IF(CF!CH7=YEAR(Inputs!$L$30),(CF!CH9-Inputs!$L$30+1)/CF!CH15,1))) -> 0.00% | CI12: =+IF(OR(CF!CI7<YEAR(Inputs!$L$30),CF!CI7>YEAR(Inputs!$L$31)),0,IF(CF!CI7=YEAR(Inputs!$L$31),(Inputs!$L$31-CF!CI8+1)/CF!CI$15,IF(CF!CI7=YEAR(Inputs!$L$30),(CF!CI9-Inputs!$L$30+1)/CF!CI15,1))) -> 0.00% | CJ12: =+IF(OR(CF!CJ7<YEAR(Inputs!$L$30),CF!CJ7>YEAR(Inputs!$L$31)),0,IF(CF!CJ7=YEAR(Inputs!$L$31),(Inputs!$L$31-CF!CJ8+1)/CF!CJ$15,IF(CF!CJ7=YEAR(Inputs!$L$30),(CF!CJ9-Inputs!$L$30+1)/CF!CJ15,1))) -> 0.00% | CK12: =+IF(OR(CF!CK7<YEAR(Inputs!$L$30),CF!CK7>YEAR(Inputs!$L$31)),0,IF(CF!CK7=YEAR(Inputs!$L$31),(Inputs!$L$31-CF!CK8+1)/CF!CK$15,IF(CF!CK7=YEAR(Inputs!$L$30),(CF!CK9-Inputs!$L$30+1)/CF!CK15,1))) -> 0.00% | CL12: =+IF(OR(CF!CL7<YEAR(Inputs!$L$30),CF!CL7>YEAR(Inputs!$L$31)),0,IF(CF!CL7=YEAR(Inputs!$L$31),(Inputs!$L$31-CF!CL8+1)/CF!CL$15,IF(CF!CL7=YEAR(Inputs!$L$30),(CF!CL9-Inputs!$L$30+1)/CF!CL15,1))) -> 0.00% | CM12: =+IF(OR(CF!CM7<YEAR(Inputs!$L$30),CF!CM7>YEAR(Inputs!$L$31)),0,IF(CF!CM7=YEAR(Inputs!$L$31),(Inputs!$L$31-CF!CM8+1)/CF!CM$15,IF(CF!CM7=YEAR(Inputs!$L$30),(CF!CM9-Inputs!$L$30+1)/CF!CM15,1))) -> 0.00% | CN12: =+IF(OR(CF!CN7<YEAR(Inputs!$L$30),CF!CN7>YEAR(Inputs!$L$31)),0,IF(CF!CN7=YEAR(Inputs!$L$31),(Inputs!$L$31-CF!CN8+1)/CF!CN$15,IF(CF!CN7=YEAR(Inputs!$L$30),(CF!CN9-Inputs!$L$30+1)/CF!CN15,1))) -> 0.00% | CO12: =+IF(OR(CF!CO7<YEAR(Inputs!$L$30),CF!CO7>YEAR(Inputs!$L$31)),0,IF(CF!CO7=YEAR(Inputs!$L$31),(Inputs!$L$31-CF!CO8+1)/CF!CO$15,IF(CF!CO7=YEAR(Inputs!$L$30),(CF!CO9-Inputs!$L$30+1)/CF!CO15,1))) -> 0.00% | CP12: =+IF(OR(CF!CP7<YEAR(Inputs!$L$30),CF!CP7>YEAR(Inputs!$L$31)),0,IF(CF!CP7=YEAR(Inputs!$L$31),(Inputs!$L$31-CF!CP8+1)/CF!CP$15,IF(CF!CP7=YEAR(Inputs!$L$30),(CF!CP9-Inputs!$L$30+1)/CF!CP15,1))) -> 0.00% | CQ12: =+IF(OR(CF!CQ7<YEAR(Inputs!$L$30),CF!CQ7>YEAR(Inputs!$L$31)),0,IF(CF!CQ7=YEAR(Inputs!$L$31),(Inputs!$L$31-CF!CQ8+1)/CF!CQ$15,IF(CF!CQ7=YEAR(Inputs!$L$30),(CF!CQ9-Inputs!$L$30+1)/CF!CQ15,1))) -> 0.00% | CR12: =+IF(OR(CF!CR7<YEAR(Inputs!$L$30),CF!CR7>YEAR(Inputs!$L$31)),0,IF(CF!CR7=YEAR(Inputs!$L$31),(Inputs!$L$31-CF!CR8+1)/CF!CR$15,IF(CF!CR7=YEAR(Inputs!$L$30),(CF!CR9-Inputs!$L$30+1)/CF!CR15,1))) -> 0.00% | CS12: =+IF(OR(CF!CS7<YEAR(Inputs!$L$30),CF!CS7>YEAR(Inputs!$L$31)),0,IF(CF!CS7=YEAR(Inputs!$L$31),(Inputs!$L$31-CF!CS8+1)/CF!CS$15,IF(CF!CS7=YEAR(Inputs!$L$30),(CF!CS9-Inputs!$L$30+1)/CF!CS15,1))) -> 0.00% | CT12: =+IF(OR(CF!CT7<YEAR(Inputs!$L$30),CF!CT7>YEAR(Inputs!$L$31)),0,IF(CF!CT7=YEAR(Inputs!$L$31),(Inputs!$L$31-CF!CT8+1)/CF!CT$15,IF(CF!CT7=YEAR(Inputs!$L$30),(CF!CT9-Inputs!$L$30+1)/CF!CT15,1))) -> 0.00% | CU12: =+IF(OR(CF!CU7<YEAR(Inputs!$L$30),CF!CU7>YEAR(Inputs!$L$31)),0,IF(CF!CU7=YEAR(Inputs!$L$31),(Inputs!$L$31-CF!CU8+1)/CF!CU$15,IF(CF!CU7=YEAR(Inputs!$L$30),(CF!CU9-Inputs!$L$30+1)/CF!CU15,1))) -> 0.00% | CV12: =+IF(OR(CF!CV7<YEAR(Inputs!$L$30),CF!CV7>YEAR(Inputs!$L$31)),0,IF(CF!CV7=YEAR(Inputs!$L$31),(Inputs!$L$31-CF!CV8+1)/CF!CV$15,IF(CF!CV7=YEAR(Inputs!$L$30),(CF!CV9-Inputs!$L$30+1)/CF!CV15,1))) -> 0.00% | CW12: =+IF(OR(CF!CW7<YEAR(Inputs!$L$30),CF!CW7>YEAR(Inputs!$L$31)),0,IF(CF!CW7=YEAR(Inputs!$L$31),(Inputs!$L$31-CF!CW8+1)/CF!CW$15,IF(CF!CW7=YEAR(Inputs!$L$30),(CF!CW9-Inputs!$L$30+1)/CF!CW15,1))) -> 0.00% | CX12: =+IF(OR(CF!CX7<YEAR(Inputs!$L$30),CF!CX7>YEAR(Inputs!$L$31)),0,IF(CF!CX7=YEAR(Inputs!$L$31),(Inputs!$L$31-CF!CX8+1)/CF!CX$15,IF(CF!CX7=YEAR(Inputs!$L$30),(CF!CX9-Inputs!$L$30+1)/CF!CX15,1))) -> 0.00% | CY12: =+IF(OR(CF!CY7<YEAR(Inputs!$L$30),CF!CY7>YEAR(Inputs!$L$31)),0,IF(CF!CY7=YEAR(Inputs!$L$31),(Inputs!$L$31-CF!CY8+1)/CF!CY$15,IF(CF!CY7=YEAR(Inputs!$L$30),(CF!CY9-Inputs!$L$30+1)/CF!CY15,1))) -> 0.00% | CZ12: =+IF(OR(CF!CZ7<YEAR(Inputs!$L$30),CF!CZ7>YEAR(Inputs!$L$31)),0,IF(CF!CZ7=YEAR(Inputs!$L$31),(Inputs!$L$31-CF!CZ8+1)/CF!CZ$15,IF(CF!CZ7=YEAR(Inputs!$L$30),(CF!CZ9-Inputs!$L$30+1)/CF!CZ15,1))) -> 0.00% | DA12: =+IF(OR(CF!DA7<YEAR(Inputs!$L$30),CF!DA7>YEAR(Inputs!$L$31)),0,IF(CF!DA7=YEAR(Inputs!$L$31),(Inputs!$L$31-CF!DA8+1)/CF!DA$15,IF(CF!DA7=YEAR(Inputs!$L$30),(CF!DA9-Inputs!$L$30+1)/CF!DA15,1))) -> 0.00% | DB12: =+IF(OR(CF!DB7<YEAR(Inputs!$L$30),CF!DB7>YEAR(Inputs!$L$31)),0,IF(CF!DB7=YEAR(Inputs!$L$31),(Inputs!$L$31-CF!DB8+1)/CF!DB$15,IF(CF!DB7=YEAR(Inputs!$L$30),(CF!DB9-Inputs!$L$30+1)/CF!DB15,1))) -> 0.00% | DC12: =+IF(OR(CF!DC7<YEAR(Inputs!$L$30),CF!DC7>YEAR(Inputs!$L$31)),0,IF(CF!DC7=YEAR(Inputs!$L$31),(Inputs!$L$31-CF!DC8+1)/CF!DC$15,IF(CF!DC7=YEAR(Inputs!$L$30),(CF!DC9-Inputs!$L$30+1)/CF!DC15,1))) -> 0.00% | DD12: =+IF(OR(CF!DD7<YEAR(Inputs!$L$30),CF!DD7>YEAR(Inputs!$L$31)),0,IF(CF!DD7=YEAR(Inputs!$L$31),(Inputs!$L$31-CF!DD8+1)/CF!DD$15,IF(CF!DD7=YEAR(Inputs!$L$30),(CF!DD9-Inputs!$L$30+1)/CF!DD15,1))) -> 0.00% | DE12: =+IF(OR(CF!DE7<YEAR(Inputs!$L$30),CF!DE7>YEAR(Inputs!$L$31)),0,IF(CF!DE7=YEAR(Inputs!$L$31),(Inputs!$L$31-CF!DE8+1)/CF!DE$15,IF(CF!DE7=YEAR(Inputs!$L$30),(CF!DE9-Inputs!$L$30+1)/CF!DE15,1))) -> 0.00% | DF12: =+IF(OR(CF!DF7<YEAR(Inputs!$L$30),CF!DF7>YEAR(Inputs!$L$31)),0,IF(CF!DF7=YEAR(Inputs!$L$31),(Inputs!$L$31-CF!DF8+1)/CF!DF$15,IF(CF!DF7=YEAR(Inputs!$L$30),(CF!DF9-Inputs!$L$30+1)/CF!DF15,1))) -> 0.00% | DG12: =+IF(OR(CF!DG7<YEAR(Inputs!$L$30),CF!DG7>YEAR(Inputs!$L$31)),0,IF(CF!DG7=YEAR(Inputs!$L$31),(Inputs!$L$31-CF!DG8+1)/CF!DG$15,IF(CF!DG7=YEAR(Inputs!$L$30),(CF!DG9-Inputs!$L$30+1)/CF!DG15,1))) -> 0.00% | DH12: =+IF(OR(CF!DH7<YEAR(Inputs!$L$30),CF!DH7>YEAR(Inputs!$L$31)),0,IF(CF!DH7=YEAR(Inputs!$L$31),(Inputs!$L$31-CF!DH8+1)/CF!DH$15,IF(CF!DH7=YEAR(Inputs!$L$30),(CF!DH9-Inputs!$L$30+1)/CF!DH15,1))) -> 0.00% | DI12: =+IF(OR(CF!DI7<YEAR(Inputs!$L$30),CF!DI7>YEAR(Inputs!$L$31)),0,IF(CF!DI7=YEAR(Inputs!$L$31),(Inputs!$L$31-CF!DI8+1)/CF!DI$15,IF(CF!DI7=YEAR(Inputs!$L$30),(CF!DI9-Inputs!$L$30+1)/CF!DI15,1))) -> 0.00% | DJ12: =+IF(OR(CF!DJ7<YEAR(Inputs!$L$30),CF!DJ7>YEAR(Inputs!$L$31)),0,IF(CF!DJ7=YEAR(Inputs!$L$31),(Inputs!$L$31-CF!DJ8+1)/CF!DJ$15,IF(CF!DJ7=YEAR(Inputs!$L$30),(CF!DJ9-Inputs!$L$30+1)/CF!DJ15,1))) -> 0.00% | DK12: =+IF(OR(CF!DK7<YEAR(Inputs!$L$30),CF!DK7>YEAR(Inputs!$L$31)),0,IF(CF!DK7=YEAR(Inputs!$L$31),(Inputs!$L$31-CF!DK8+1)/CF!DK$15,IF(CF!DK7=YEAR(Inputs!$L$30),(CF!DK9-Inputs!$L$30+1)/CF!DK15,1))) -> 0.00% | DL12: =+IF(OR(CF!DL7<YEAR(Inputs!$L$30),CF!DL7>YEAR(Inputs!$L$31)),0,IF(CF!DL7=YEAR(Inputs!$L$31),(Inputs!$L$31-CF!DL8+1)/CF!DL$15,IF(CF!DL7=YEAR(Inputs!$L$30),(CF!DL9-Inputs!$L$30+1)/CF!DL15,1))) -> 0.00% | DM12: =+IF(OR(CF!DM7<YEAR(Inputs!$L$30),CF!DM7>YEAR(Inputs!$L$31)),0,IF(CF!DM7=YEAR(Inputs!$L$31),(Inputs!$L$31-CF!DM8+1)/CF!DM$15,IF(CF!DM7=YEAR(Inputs!$L$30),(CF!DM9-Inputs!$L$30+1)/CF!DM15,1))) -> 0.00% | DN12: =+IF(OR(CF!DN7<YEAR(Inputs!$L$30),CF!DN7>YEAR(Inputs!$L$31)),0,IF(CF!DN7=YEAR(Inputs!$L$31),(Inputs!$L$31-CF!DN8+1)/CF!DN$15,IF(CF!DN7=YEAR(Inputs!$L$30),(CF!DN9-Inputs!$L$30+1)/CF!DN15,1))) -> 0.00% | DO12: =+IF(OR(CF!DO7<YEAR(Inputs!$L$30),CF!DO7>YEAR(Inputs!$L$31)),0,IF(CF!DO7=YEAR(Inputs!$L$31),(Inputs!$L$31-CF!DO8+1)/CF!DO$15,IF(CF!DO7=YEAR(Inputs!$L$30),(CF!DO9-Inputs!$L$30+1)/CF!DO15,1))) -> 0.00% | DP12: =+IF(OR(CF!DP7<YEAR(Inputs!$L$30),CF!DP7>YEAR(Inputs!$L$31)),0,IF(CF!DP7=YEAR(Inputs!$L$31),(Inputs!$L$31-CF!DP8+1)/CF!DP$15,IF(CF!DP7=YEAR(Inputs!$L$30),(CF!DP9-Inputs!$L$30+1)/CF!DP15,1))) -> 0.00%
C14: PROJECT CF SUMMARY
C16: Revenues | N16: =+SUM(Q16:BJ16) -> 39,545,579 | R16: =+R33 -> 0 | S16: 120,886 | T16: 137,801 | U16: 157,083 | V16: 179,064 | W16: 192,605 | X16: 207,170 | Y16: 222,837 | Z16: 239,688 | AA16: 257,814 | AB16: 278,762 | AC16: 301,413 | AD16: 325,904 | AE16: 352,384 | AF16: 381,016 | AG16: 408,456 | AH16: 437,872 | AI16: 469,406 | AJ16: 503,212 | AK16: 539,451 | AL16: 578,675 | AM16: 620,749 | AN16: 665,884 | AO16: 714,299 | AP16: =+AP33 -> 766,235 | AQ16: 815,048 | AR16: 866,970 | AS16: 922,200 | AT16: 980,949 | AU16: 1,043,440 | AV16: 1,107,893 | AW16: 1,176,328 | AX16: 1,248,991 | AY16: 1,326,141 | AZ16: 1,408,058 | BA16: 1,496,986 | BB16: 1,591,531 | BC16: 1,692,046 | BD16: 1,798,910 | BE16: 1,912,524 | BF16: 2,058,734 | BG16: 2,216,121 | BH16: 2,385,541 | BI16: 2,567,913 | BJ16: 1,870,586 | BK16: 0 | BL16: 0 | BM16: 0 | BN16: 0 | BO16: 0 | BP16: 0 | BQ16: 0 | BR16: 0 | BS16: 0 | BT16: 0 | BU16: 0 | BV16: =+BV33 -> 0 | BW16: 0 | BX16: 0 | BY16: 0 | BZ16: 0 | CA16: 0 | CB16: 0 | CC16: 0 | CD16: 0 | CE16: 0 | CF16: 0 | CG16: 0 | CH16: 0 | CI16: 0 | CJ16: 0 | CK16: 0 | CL16: 0 | CM16: 0 | CN16: 0 | CO16: 0 | CP16: 0 | CQ16: 0 | CR16: 0 | CS16: 0 | CT16: 0 | CU16: 0 | CV16: 0 | CW16: 0 | CX16: 0 | CY16: 0 | CZ16: 0 | DA16: 0 | DB16: =+DB33 -> 0 | DC16: 0 | DD16: 0 | DE16: 0 | DF16: 0 | DG16: 0 | DH16: 0 | DI16: 0 | DJ16: 0 | DK16: 0 | DL16: 0 | DM16: 0 | DN16: 0 | DO16: 0 | DP16: 0
C17: Revenue Sharing | N17: =+SUM(Q17:BJ17) -> (1,030,323) | R17: =+R106 -> 0 | S17: (2,500) | T17: (2,278) | U17: (2,076) | V17: (1,891) | W17: (1,987) | X17: (2,087) | Y17: (2,193) | Z17: (2,303) | AA17: (2,420) | AB17: (2,534) | AC17: (2,654) | AD17: (2,779) | AE17: (2,911) | AF17: (3,048) | AG17: (4,181) | AH17: (5,736) | AI17: (7,869) | AJ17: (10,795) | AK17: (14,808) | AL17: (15,885) | AM17: (17,040) | AN17: (18,279) | AO17: (19,608) | AP17: =+AP106 -> (21,034) | AQ17: (22,374) | AR17: (23,799) | AS17: (25,315) | AT17: (26,928) | AU17: (28,643) | AV17: (30,413) | AW17: (32,291) | AX17: (34,286) | AY17: (36,404) | AZ17: (38,653) | BA17: (41,094) | BB17: (43,689) | BC17: (46,448) | BD17: (49,382) | BE17: (52,501) | BF17: (56,514) | BG17: (60,835) | BH17: (65,485) | BI17: (70,492) | BJ17: (75,881) | BK17: 0 | BL17: 0 | BM17: 0 | BN17: 0 | BO17: 0 | BP17: 0 | BQ17: 0 | BR17: 0 | BS17: 0 | BT17: 0 | BU17: 0 | BV17: =+BV106 -> 0 | BW17: 0 | BX17: 0 | BY17: 0 | BZ17: 0 | CA17: 0 | CB17: 0 | CC17: 0 | CD17: 0 | CE17: 0 | CF17: 0 | CG17: 0 | CH17: 0 | CI17: 0 | CJ17: 0 | CK17: 0 | CL17: 0 | CM17: 0 | CN17: 0 | CO17: 0 | CP17: 0 | CQ17: 0 | CR17: 0 | CS17: 0 | CT17: 0 | CU17: 0 | CV17: 0 | CW17: 0 | CX17: 0 | CY17: 0 | CZ17: 0 | DA17: 0 | DB17: =+DB106 -> 0 | DC17: 0 | DD17: 0 | DE17: 0 | DF17: 0 | DG17: 0 | DH17: 0 | DI17: 0 | DJ17: 0 | DK17: 0 | DL17: 0 | DM17: 0 | DN17: 0 | DO17: 0 | DP17: 0
C18: O&M | N18: 2,912,934 | R18: =+R41 -> 0 | S18: 20,867 | T18: 22,075 | U18: 23,354 | V18: 24,706 | W18: 25,771 | X18: 26,883 | Y18: 28,042 | Z18: 29,251 | AA18: 30,513 | AB18: 32,044 | AC18: 33,651 | AD18: 35,339 | AE18: 37,112 | AF18: 38,974 | AG18: 40,741 | AH18: 42,588 | AI18: 44,518 | AJ18: 46,536 | AK18: 48,645 | AL18: 51,065 | AM18: 53,605 | AN18: 56,272 | AO18: 59,071 | AP18: 62,010 | AQ18: 64,710 | AR18: 67,529 | AS18: 70,470 | AT18: 73,539 | AU18: 76,742 | AV18: 80,200 | AW18: 83,813 | AX18: 87,590 | AY18: 91,536 | AZ18: 95,660 | BA18: 100,062 | BB18: 104,666 | BC18: 109,482 | BD18: 114,520 | BE18: 119,790 | BF18: 126,656 | BG18: 133,916 | BH18: 141,593 | BI18: 149,709 | BJ18: 107,117 | BK18: 0 | BL18: 0 | BM18: 0 | BN18: 0 | BO18: 0 | BP18: 0 | BQ18: 0 | BR18: 0 | BS18: 0 | BT18: 0 | BU18: 0 | BV18: 0 | BW18: =+BW41 -> 0 | BX18: 0 | BY18: 0 | BZ18: 0 | CA18: 0 | CB18: 0 | CC18: 0 | CD18: 0 | CE18: 0 | CF18: 0 | CG18: 0 | CH18: 0 | CI18: 0 | CJ18: 0 | CK18: 0 | CL18: 0 | CM18: 0 | CN18: 0 | CO18: 0 | CP18: 0 | CQ18: 0 | CR18: 0 | CS18: 0 | CT18: 0 | CU18: 0 | CV18: 0 | CW18: 0 | CX18: 0 | CY18: 0 | CZ18: 0 | DA18: 0 | DB18: 0 | DC18: 0 | DD18: 0 | DE18: 0 | DF18: 0 | DG18: 0 | DH18: 0 | DI18: 0 | DJ18: 0 | DK18: 0 | DL18: 0 | DM18: 0 | DN18: 0 | DO18: 0 | DP18: 0 | DQ18: 0
C19: Major Maintenance Capex | N19: 691,497 | R19: =+R49 -> 0 | S19: 6,893 | T19: 4,923 | U19: 3,516 | V19: 2,511 | W19: 3,208 | X19: 4,097 | Y19: 5,232 | Z19: 6,682 | AA19: 8,534 | AB19: 7,834 | AC19: 7,192 | AD19: 6,602 | AE19: 6,061 | AF19: 5,564 | AG19: 7,544 | AH19: 10,229 | AI19: 13,869 | AJ19: 18,805 | AK19: 25,497 | AL19: 17,258 | AM19: 11,681 | AN19: 7,906 | AO19: 5,351 | AP19: =+AP49 -> 3,622 | AQ19: 5,032 | AR19: 6,990 | AS19: 9,711 | AT19: 13,490 | AU19: 18,741 | AV19: 18,421 | AW19: 18,107 | AX19: 17,798 | AY19: 17,494 | AZ19: 17,196 | BA19: 19,251 | BB19: 21,552 | BC19: 24,128 | BD19: 27,012 | BE19: 30,240 | BF19: 34,374 | BG19: 39,072 | BH19: 44,412 | BI19: 50,482 | BJ19: 57,382 | BK19: 0 | BL19: 0 | BM19: 0 | BN19: 0 | BO19: 0 | BP19: 0 | BQ19: 0 | BR19: 0 | BS19: 0 | BT19: 0 | BU19: 0 | BV19: =+BV49 -> 0 | BW19: 0 | BX19: 0 | BY19: 0 | BZ19: 0 | CA19: 0 | CB19: 0 | CC19: 0 | CD19: 0 | CE19: 0 | CF19: 0 | CG19: 0 | CH19: 0 | CI19: 0 | CJ19: 0 | CK19: 0 | CL19: 0 | CM19: 0 | CN19: 0 | CO19: 0 | CP19: 0 | CQ19: 0 | CR19: 0 | CS19: 0 | CT19: 0 | CU19: 0 | CV19: 0 | CW19: 0 | CX19: 0 | CY19: 0 | CZ19: 0 | DA19: 0 | DB19: =+DB49 -> 0 | DC19: 0 | DD19: 0 | DE19: 0 | DF19: 0 | DG19: 0 | DH19: 0 | DI19: 0 | DJ19: 0 | DK19: 0 | DL19: 0 | DM19: 0 | DN19: 0 | DO19: 0 | DP19: 0 | DQ19: 0
C20: Construction cost | N20: 833 | R20: =+R56 -> 0 | S20: =+S56 -> 833 | T20: =+T56 -> 0 | U20: 0 | V20: 0 | W20: 0 | X20: 0 | Y20: 0 | Z20: 0 | AA20: 0 | AB20: 0 | AC20: 0 | AD20: 0 | AE20: 0 | AF20: 0 | AG20: 0 | AH20: 0 | AI20: 0 | AJ20: 0 | AK20: 0 | AL20: 0 | AM20: 0 | AN20: 0 | AO20: 0 | AP20: 0 | AQ20: 0 | AR20: 0 | AS20: 0 | AT20: 0 | AU20: 0 | AV20: 0 | AW20: 0 | AX20: 0 | AY20: 0 | AZ20: 0 | BA20: 0 | BB20: 0 | BC20: 0 | BD20: 0 | BE20: 0 | BF20: 0 | BG20: 0 | BH20: 0 | BI20: 0 | BJ20: 0 | BK20: =+BK56 -> 0 | BL20: 0 | BM20: 0 | BN20: 0 | BO20: 0 | BP20: 0 | BQ20: 0 | BR20: 0 | BS20: 0 | BT20: 0 | BU20: 0 | BV20: 0 | BW20: 0 | BX20: 0 | BY20: 0 | BZ20: 0 | CA20: 0 | CB20: 0 | CC20: 0 | CD20: 0 | CE20: =+CE56 -> 0 | CF20: 0 | CG20: 0 | CH20: 0 | CI20: 0 | CJ20: 0 | CK20: 0 | CL20: 0 | CM20: 0 | CN20: 0 | CO20: 0 | CP20: 0 | CQ20: 0 | CR20: 0 | CS20: 0 | CT20: 0 | CU20: 0 | CV20: 0 | CW20: 0 | CX20: 0 | CY20: 0 | CZ20: 0 | DA20: 0 | DB20: 0 | DC20: 0 | DD20: 0 | DE20: 0 | DF20: 0 | DG20: 0 | DH20: 0 | DI20: 0 | DJ20: 0 | DK20: 0 | DL20: 0 | DM20: 0 | DN20: 0 | DO20: 0 | DP20: 0
B22: OPERATIONS
C24: CPI | R24: =+IF(R7<=2021,Inputs!$L$21,Inputs!$L$22) -> 2.25% | S24: =+IF(S7<=2021,Inputs!$L$21,Inputs!$L$22) -> 2.25% | T24: =+IF(T7<=2021,Inputs!$L$21,Inputs!$L$22) -> 2.25% | U24: =+IF(U7<=2021,Inputs!$L$21,Inputs!$L$22) -> 2.25% | V24: =+IF(V7<=2021,Inputs!$L$21,Inputs!$L$22) -> 2.25% | W24: =+IF(W7<=2021,Inputs!$L$21,Inputs!$L$22) -> 2.30% | X24: =+IF(X7<=2021,Inputs!$L$21,Inputs!$L$22) -> 2.30% | Y24: =+IF(Y7<=2021,Inputs!$L$21,Inputs!$L$22) -> 2.30% | Z24: =+IF(Z7<=2021,Inputs!$L$21,Inputs!$L$22) -> 2.30% | AA24: =+IF(AA7<=2021,Inputs!$L$21,Inputs!$L$22) -> 2.30% | AB24: =+IF(AB7<=2021,Inputs!$L$21,Inputs!$L$22) -> 2.30% | AC24: =+IF(AC7<=2021,Inputs!$L$21,Inputs!$L$22) -> 2.30% | AD24: =+IF(AD7<=2021,Inputs!$L$21,Inputs!$L$22) -> 2.30% | AE24: =+IF(AE7<=2021,Inputs!$L$21,Inputs!$L$22) -> 2.30% | AF24: =+IF(AF7<=2021,Inputs!$L$21,Inputs!$L$22) -> 2.30% | AG24: =+IF(AG7<=2021,Inputs!$L$21,Inputs!$L$22) -> 2.30% | AH24: =+IF(AH7<=2021,Inputs!$L$21,Inputs!$L$22) -> 2.30% | AI24: =+IF(AI7<=2021,Inputs!$L$21,Inputs!$L$22) -> 2.30% | AJ24: =+IF(AJ7<=2021,Inputs!$L$21,Inputs!$L$22) -> 2.30% | AK24: =+IF(AK7<=2021,Inputs!$L$21,Inputs!$L$22) -> 2.30% | AL24: =+IF(AL7<=2021,Inputs!$L$21,Inputs!$L$22) -> 2.30% | AM24: =+IF(AM7<=2021,Inputs!$L$21,Inputs!$L$22) -> 2.30% | AN24: =+IF(AN7<=2021,Inputs!$L$21,Inputs!$L$22) -> 2.30% | AO24: =+IF(AO7<=2021,Inputs!$L$21,Inputs!$L$22) -> 2.30% | AP24: =+IF(AP7<=2021,Inputs!$L$21,Inputs!$L$22) -> 2.30% | AQ24: =+IF(AQ7<=2021,Inputs!$L$21,Inputs!$L$22) -> 2.30% | AR24: =+IF(AR7<=2021,Inputs!$L$21,Inputs!$L$22) -> 2.30% | AS24: =+IF(AS7<=2021,Inputs!$L$21,Inputs!$L$22) -> 2.30% | AT24: =+IF(AT7<=2021,Inputs!$L$21,Inputs!$L$22) -> 2.30% | AU24: =+IF(AU7<=2021,Inputs!$L$21,Inputs!$L$22) -> 2.30% | AV24: =+IF(AV7<=2021,Inputs!$L$21,Inputs!$L$22) -> 2.30% | AW24: =+IF(AW7<=2021,Inputs!$L$21,Inputs!$L$22) -> 2.30% | AX24: =+IF(AX7<=2021,Inputs!$L$21,Inputs!$L$22) -> 2.30% | AY24: =+IF(AY7<=2021,Inputs!$L$21,Inputs!$L$22) -> 2.30% | AZ24: =+IF(AZ7<=2021,Inputs!$L$21,Inputs!$L$22) -> 2.30% | BA24: =+IF(BA7<=2021,Inputs!$L$21,Inputs!$L$22) -> 2.30% | BB24: =+IF(BB7<=2021,Inputs!$L$21,Inputs!$L$22) -> 2.30% | BC24: =+IF(BC7<=2021,Inputs!$L$21,Inputs!$L$22) -> 2.30% | BD24: =+IF(BD7<=2021,Inputs!$L$21,Inputs!$L$22) -> 2.30% | BE24: =+IF(BE7<=2021,Inputs!$L$21,Inputs!$L$22) -> 2.30% | BF24: =+IF(BF7<=2021,Inputs!$L$21,Inputs!$L$22) -> 2.30% | BG24: =+IF(BG7<=2021,Inputs!$L$21,Inputs!$L$22) -> 2.30% | BH24: =+IF(BH7<=2021,Inputs!$L$21,Inputs!$L$22) -> 2.30% | BI24: =+IF(BI7<=2021,Inputs!$L$21,Inputs!$L$22) -> 2.30% | BJ24: =+IF(BJ7<=2021,Inputs!$L$21,Inputs!$L$22) -> 2.30% | BK24: =+Inputs!$L$22 -> 2.30% | BL24: =+Inputs!$L$22 -> 2.30% | BM24: =+Inputs!$L$22 -> 2.30% | BN24: =+Inputs!$L$22 -> 2.30% | BO24: =+Inputs!$L$22 -> 2.30% | BP24: =+Inputs!$L$22 -> 2.30% | BQ24: =+Inputs!$L$22 -> 2.30% | BR24: =+Inputs!$L$22 -> 2.30% | BS24: =+Inputs!$L$22 -> 2.30% | BT24: =+Inputs!$L$22 -> 2.30% | BU24: =+Inputs!$L$22 -> 2.30% | BV24: =+Inputs!$L$22 -> 2.30% | BW24: =+Inputs!$L$22 -> 2.30% | BX24: =+Inputs!$L$22 -> 2.30% | BY24: =+Inputs!$L$22 -> 2.30% | BZ24: =+Inputs!$L$22 -> 2.30% | CA24: =+Inputs!$L$22 -> 2.30% | CB24: =+Inputs!$L$22 -> 2.30% | CC24: =+Inputs!$L$22 -> 2.30% | CD24: =+Inputs!$L$22 -> 2.30% | CE24: =+Inputs!$L$22 -> 2.30% | CF24: =+Inputs!$L$22 -> 2.30% | CG24: =+Inputs!$L$22 -> 2.30% | CH24: =+Inputs!$L$22 -> 2.30% | CI24: =+Inputs!$L$22 -> 2.30% | CJ24: =+Inputs!$L$22 -> 2.30% | CK24: =+Inputs!$L$22 -> 2.30% | CL24: =+Inputs!$L$22 -> 2.30% | CM24: =+Inputs!$L$22 -> 2.30% | CN24: =+Inputs!$L$22 -> 2.30% | CO24: =+Inputs!$L$22 -> 2.30% | CP24: =+Inputs!$L$22 -> 2.30% | CQ24: =+Inputs!$L$22 -> 2.30% | CR24: =+Inputs!$L$22 -> 2.30% | CS24: =+Inputs!$L$22 -> 2.30% | CT24: =+Inputs!$L$22 -> 2.30% | CU24: =+Inputs!$L$22 -> 2.30% | CV24: =+Inputs!$L$22 -> 2.30% | CW24: =+Inputs!$L$22 -> 2.30% | CX24: =+Inputs!$L$22 -> 2.30% | CY24: =+Inputs!$L$22 -> 2.30% | CZ24: =+Inputs!$L$22 -> 2.30% | DA24: =+Inputs!$L$22 -> 2.30% | DB24: =+Inputs!$L$22 -> 2.30% | DC24: =+Inputs!$L$22 -> 2.30% | DD24: =+Inputs!$L$22 -> 2.30% | DE24: =+Inputs!$L$22 -> 2.30% | DF24: =+Inputs!$L$22 -> 2.30% | DG24: =+Inputs!$L$22 -> 2.30% | DH24: =+Inputs!$L$22 -> 2.30% | DI24: =+Inputs!$L$22 -> 2.30% | DJ24: =+Inputs!$L$22 -> 2.30% | DK24: =+Inputs!$L$22 -> 2.30% | DL24: =+Inputs!$L$22 -> 2.30% | DM24: =+Inputs!$L$22 -> 2.30% | DN24: =+Inputs!$L$22 -> 2.30% | DO24: =+Inputs!$L$22 -> 2.30% | DP24: =+Inputs!$L$22 -> 2.30%
C25: Annual Basis | R25: 1.1727 | S25: =+R25*(1+S24) -> 1.1991 | T25: 1.2260 | U25: 1.2536 | V25: 1.2818 | W25: 1.3113 | X25: 1.3415 | Y25: 1.3723 | Z25: 1.4039 | AA25: 1.4362 | AB25: 1.4692 | AC25: 1.5030 | AD25: 1.5376 | AE25: 1.5729 | AF25: 1.6091 | AG25: 1.6461 | AH25: 1.6840 | AI25: 1.7227 | AJ25: 1.7624 | AK25: 1.8029 | AL25: 1.8444 | AM25: 1.8868 | AN25: 1.9302 | AO25: 1.9746 | AP25: 2.0200 | AQ25: 2.0664 | AR25: 2.1140 | AS25: 2.1626 | AT25: 2.2123 | AU25: 2.2632 | AV25: 2.3153 | AW25: 2.3685 | AX25: 2.4230 | AY25: 2.4787 | AZ25: 2.5357 | BA25: 2.5940 | BB25: 2.6537 | BC25: 2.7147 | BD25: 2.7772 | BE25: 2.8411 | BF25: 2.9064 | BG25: 2.9733 | BH25: 3.0416 | BI25: 3.1116 | BJ25: 3.1832 | BK25: 3.2564 | BL25: 3.3313 | BM25: 3.4079 | BN25: 3.4863 | BO25: 3.5665 | BP25: 3.6485 | BQ25: 3.7324 | BR25: 3.8182 | BS25: 3.9061 | BT25: 3.9959 | BU25: 4.0878 | BV25: 4.1818 | BW25: =+BV25*(1+BW24) -> 4.2780 | BX25: 4.3764 | BY25: 4.4771 | BZ25: 4.5800 | CA25: 4.6854 | CB25: 4.7931 | CC25: 4.9034 | CD25: 5.0162 | CE25: 5.1315 | CF25: 5.2496 | CG25: 5.3703 | CH25: 5.4938 | CI25: 5.6202 | CJ25: 5.7494 | CK25: 5.8817 | CL25: 6.0170 | CM25: 6.1553 | CN25: 6.2969 | CO25: 6.4417 | CP25: 6.5899 | CQ25: 6.7415 | CR25: 6.8965 | CS25: 7.0551 | CT25: 7.2174 | CU25: 7.3834 | CV25: 7.5532 | CW25: 7.7270 | CX25: 7.9047 | CY25: 8.0865 | CZ25: 8.2725 | DA25: 8.4627 | DB25: 8.6574 | DC25: 8.8565 | DD25: 9.0602 | DE25: 9.2686 | DF25: 9.4818 | DG25: 9.6999 | DH25: 9.9229 | DI25: 10.1512 | DJ25: 10.3847 | DK25: 10.6235 | DL25: 10.8678 | DM25: 11.1178 | DN25: 11.3735 | DO25: 11.6351 | DP25: 11.9027
C27: Revenues
C28: Growth | T28: =+POWER(INDEX(Inputs!$L$34:$L43,S$6+1,1)/INDEX(Inputs!$L$34:$L$43,S$6,1),1/(INDEX(Inputs!$C$34:$C$43,S$6+1,1)-INDEX(Inputs!$C$34:$C$43,S$6,1)))-1 -> 11.5% | U28: =+POWER(INDEX(Inputs!$L$34:$L43,T$6+1,1)/INDEX(Inputs!$L$34:$L$43,T$6,1),1/(INDEX(Inputs!$C$34:$C$43,T$6+1,1)-INDEX(Inputs!$C$34:$C$43,T$6,1)))-1 -> 11.5% | V28: =+POWER(INDEX(Inputs!$L$34:$L43,U$6+1,1)/INDEX(Inputs!$L$34:$L$43,U$6,1),1/(INDEX(Inputs!$C$34:$C$43,U$6+1,1)-INDEX(Inputs!$C$34:$C$43,U$6,1)))-1 -> 11.5% | W28: =+POWER(INDEX(Inputs!$L$34:$L43,V$6+1,1)/INDEX(Inputs!$L$34:$L$43,V$6,1),1/(INDEX(Inputs!$C$34:$C$43,V$6+1,1)-INDEX(Inputs!$C$34:$C$43,V$6,1)))-1 -> 5.1% | X28: =+POWER(INDEX(Inputs!$L$34:$L43,W$6+1,1)/INDEX(Inputs!$L$34:$L$43,W$6,1),1/(INDEX(Inputs!$C$34:$C$43,W$6+1,1)-INDEX(Inputs!$C$34:$C$43,W$6,1)))-1 -> 5.1% | Y28: =+POWER(INDEX(Inputs!$L$34:$L43,X$6+1,1)/INDEX(Inputs!$L$34:$L$43,X$6,1),1/(INDEX(Inputs!$C$34:$C$43,X$6+1,1)-INDEX(Inputs!$C$34:$C$43,X$6,1)))-1 -> 5.1% | Z28: =+POWER(INDEX(Inputs!$L$34:$L43,Y$6+1,1)/INDEX(Inputs!$L$34:$L$43,Y$6,1),1/(INDEX(Inputs!$C$34:$C$43,Y$6+1,1)-INDEX(Inputs!$C$34:$C$43,Y$6,1)))-1 -> 5.1% | AA28: =+POWER(INDEX(Inputs!$L$34:$L43,Z$6+1,1)/INDEX(Inputs!$L$34:$L$43,Z$6,1),1/(INDEX(Inputs!$C$34:$C$43,Z$6+1,1)-INDEX(Inputs!$C$34:$C$43,Z$6,1)))-1 -> 5.1% | AB28: =+POWER(INDEX(Inputs!$L$34:$L43,AA$6+1,1)/INDEX(Inputs!$L$34:$L$43,AA$6,1),1/(INDEX(Inputs!$C$34:$C$43,AA$6+1,1)-INDEX(Inputs!$C$34:$C$43,AA$6,1)))-1 -> 5.7% | AC28: =+POWER(INDEX(Inputs!$L$34:$L43,AB$6+1,1)/INDEX(Inputs!$L$34:$L$43,AB$6,1),1/(INDEX(Inputs!$C$34:$C$43,AB$6+1,1)-INDEX(Inputs!$C$34:$C$43,AB$6,1)))-1 -> 5.7% | AD28: =+POWER(INDEX(Inputs!$L$34:$L43,AC$6+1,1)/INDEX(Inputs!$L$34:$L$43,AC$6,1),1/(INDEX(Inputs!$C$34:$C$43,AC$6+1,1)-INDEX(Inputs!$C$34:$C$43,AC$6,1)))-1 -> 5.7% | AE28: =+POWER(INDEX(Inputs!$L$34:$L43,AD$6+1,1)/INDEX(Inputs!$L$34:$L$43,AD$6,1),1/(INDEX(Inputs!$C$34:$C$43,AD$6+1,1)-INDEX(Inputs!$C$34:$C$43,AD$6,1)))-1 -> 5.7% | AF28: =+POWER(INDEX(Inputs!$L$34:$L43,AE$6+1,1)/INDEX(Inputs!$L$34:$L$43,AE$6,1),1/(INDEX(Inputs!$C$34:$C$43,AE$6+1,1)-INDEX(Inputs!$C$34:$C$43,AE$6,1)))-1 -> 5.7% | AG28: =+POWER(INDEX(Inputs!$L$34:$L43,AF$6+1,1)/INDEX(Inputs!$L$34:$L$43,AF$6,1),1/(INDEX(Inputs!$C$34:$C$43,AF$6+1,1)-INDEX(Inputs!$C$34:$C$43,AF$6,1)))-1 -> 4.8% | AH28: =+POWER(INDEX(Inputs!$L$34:$L43,AG$6+1,1)/INDEX(Inputs!$L$34:$L$43,AG$6,1),1/(INDEX(Inputs!$C$34:$C$43,AG$6+1,1)-INDEX(Inputs!$C$34:$C$43,AG$6,1)))-1 -> 4.8% | AI28: =+POWER(INDEX(Inputs!$L$34:$L43,AH$6+1,1)/INDEX(Inputs!$L$34:$L$43,AH$6,1),1/(INDEX(Inputs!$C$34:$C$43,AH$6+1,1)-INDEX(Inputs!$C$34:$C$43,AH$6,1)))-1 -> 4.8% | AJ28: =+POWER(INDEX(Inputs!$L$34:$L43,AI$6+1,1)/INDEX(Inputs!$L$34:$L$43,AI$6,1),1/(INDEX(Inputs!$C$34:$C$43,AI$6+1,1)-INDEX(Inputs!$C$34:$C$43,AI$6,1)))-1 -> 4.8% | AK28: =+POWER(INDEX(Inputs!$L$34:$L43,AJ$6+1,1)/INDEX(Inputs!$L$34:$L$43,AJ$6,1),1/(INDEX(Inputs!$C$34:$C$43,AJ$6+1,1)-INDEX(Inputs!$C$34:$C$43,AJ$6,1)))-1 -> 4.8% | AL28: =+POWER(INDEX(Inputs!$L$34:$L43,AK$6+1,1)/INDEX(Inputs!$L$34:$L$43,AK$6,1),1/(INDEX(Inputs!$C$34:$C$43,AK$6+1,1)-INDEX(Inputs!$C$34:$C$43,AK$6,1)))-1 -> 4.9% | AM28: =+POWER(INDEX(Inputs!$L$34:$L43,AL$6+1,1)/INDEX(Inputs!$L$34:$L$43,AL$6,1),1/(INDEX(Inputs!$C$34:$C$43,AL$6+1,1)-INDEX(Inputs!$C$34:$C$43,AL$6,1)))-1 -> 4.9% | AN28: =+POWER(INDEX(Inputs!$L$34:$L43,AM$6+1,1)/INDEX(Inputs!$L$34:$L$43,AM$6,1),1/(INDEX(Inputs!$C$34:$C$43,AM$6+1,1)-INDEX(Inputs!$C$34:$C$43,AM$6,1)))-1 -> 4.9% | AO28: =+POWER(INDEX(Inputs!$L$34:$L43,AN$6+1,1)/INDEX(Inputs!$L$34:$L$43,AN$6,1),1/(INDEX(Inputs!$C$34:$C$43,AN$6+1,1)-INDEX(Inputs!$C$34:$C$43,AN$6,1)))-1 -> 4.9% | AP28: =+POWER(INDEX(Inputs!$L$34:$L43,AO$6+1,1)/INDEX(Inputs!$L$34:$L$43,AO$6,1),1/(INDEX(Inputs!$C$34:$C$43,AO$6+1,1)-INDEX(Inputs!$C$34:$C$43,AO$6,1)))-1 -> 4.9% | AQ28: =+POWER(INDEX(Inputs!$L$34:$L43,AP$6+1,1)/INDEX(Inputs!$L$34:$L$43,AP$6,1),1/(INDEX(Inputs!$C$34:$C$43,AP$6+1,1)-INDEX(Inputs!$C$34:$C$43,AP$6,1)))-1 -> 4.0% | AR28: =+POWER(INDEX(Inputs!$L$34:$L43,AQ$6+1,1)/INDEX(Inputs!$L$34:$L$43,AQ$6,1),1/(INDEX(Inputs!$C$34:$C$43,AQ$6+1,1)-INDEX(Inputs!$C$34:$C$43,AQ$6,1)))-1 -> 4.0% | AS28: =+POWER(INDEX(Inputs!$L$34:$L43,AR$6+1,1)/INDEX(Inputs!$L$34:$L$43,AR$6,1),1/(INDEX(Inputs!$C$34:$C$43,AR$6+1,1)-INDEX(Inputs!$C$34:$C$43,AR$6,1)))-1 -> 4.0% | AT28: =+POWER(INDEX(Inputs!$L$34:$L43,AS$6+1,1)/INDEX(Inputs!$L$34:$L$43,AS$6,1),1/(INDEX(Inputs!$C$34:$C$43,AS$6+1,1)-INDEX(Inputs!$C$34:$C$43,AS$6,1)))-1 -> 4.0% | AU28: =+POWER(INDEX(Inputs!$L$34:$L43,AT$6+1,1)/INDEX(Inputs!$L$34:$L$43,AT$6,1),1/(INDEX(Inputs!$C$34:$C$43,AT$6+1,1)-INDEX(Inputs!$C$34:$C$43,AT$6,1)))-1 -> 4.0% | AV28: =+POWER(INDEX(Inputs!$L$34:$L43,AU$6+1,1)/INDEX(Inputs!$L$34:$L$43,AU$6,1),1/(INDEX(Inputs!$C$34:$C$43,AU$6+1,1)-INDEX(Inputs!$C$34:$C$43,AU$6,1)))-1 -> 3.8% | AW28: =+POWER(INDEX(Inputs!$L$34:$L43,AV$6+1,1)/INDEX(Inputs!$L$34:$L$43,AV$6,1),1/(INDEX(Inputs!$C$34:$C$43,AV$6+1,1)-INDEX(Inputs!$C$34:$C$43,AV$6,1)))-1 -> 3.8% | AX28: =+POWER(INDEX(Inputs!$L$34:$L43,AW$6+1,1)/INDEX(Inputs!$L$34:$L$43,AW$6,1),1/(INDEX(Inputs!$C$34:$C$43,AW$6+1,1)-INDEX(Inputs!$C$34:$C$43,AW$6,1)))-1 -> 3.8% | AY28: =+POWER(INDEX(Inputs!$L$34:$L43,AX$6+1,1)/INDEX(Inputs!$L$34:$L$43,AX$6,1),1/(INDEX(Inputs!$C$34:$C$43,AX$6+1,1)-INDEX(Inputs!$C$34:$C$43,AX$6,1)))-1 -> 3.8% | AZ28: =+POWER(INDEX(Inputs!$L$34:$L43,AY$6+1,1)/INDEX(Inputs!$L$34:$L$43,AY$6,1),1/(INDEX(Inputs!$C$34:$C$43,AY$6+1,1)-INDEX(Inputs!$C$34:$C$43,AY$6,1)))-1 -> 3.8% | BA28: =+POWER(INDEX(Inputs!$L$34:$L43,AZ$6+1,1)/INDEX(Inputs!$L$34:$L$43,AZ$6,1),1/(INDEX(Inputs!$C$34:$C$43,AZ$6+1,1)-INDEX(Inputs!$C$34:$C$43,AZ$6,1)))-1 -> 3.9% | BB28: =+POWER(INDEX(Inputs!$L$34:$L43,BA$6+1,1)/INDEX(Inputs!$L$34:$L$43,BA$6,1),1/(INDEX(Inputs!$C$34:$C$43,BA$6+1,1)-INDEX(Inputs!$C$34:$C$43,BA$6,1)))-1 -> 3.9% | BC28: =+POWER(INDEX(Inputs!$L$34:$L43,BB$6+1,1)/INDEX(Inputs!$L$34:$L$43,BB$6,1),1/(INDEX(Inputs!$C$34:$C$43,BB$6+1,1)-INDEX(Inputs!$C$34:$C$43,BB$6,1)))-1 -> 3.9% | BD28: =+POWER(INDEX(Inputs!$L$34:$L43,BC$6+1,1)/INDEX(Inputs!$L$34:$L$43,BC$6,1),1/(INDEX(Inputs!$C$34:$C$43,BC$6+1,1)-INDEX(Inputs!$C$34:$C$43,BC$6,1)))-1 -> 3.9% | BE28: =+POWER(INDEX(Inputs!$L$34:$L43,BD$6+1,1)/INDEX(Inputs!$L$34:$L$43,BD$6,1),1/(INDEX(Inputs!$C$34:$C$43,BD$6+1,1)-INDEX(Inputs!$C$34:$C$43,BD$6,1)))-1 -> 3.9% | BF28: =+POWER(INDEX(Inputs!$L$34:$L43,BE$6+1,1)/INDEX(Inputs!$L$34:$L$43,BE$6,1),1/(INDEX(Inputs!$C$34:$C$43,BE$6+1,1)-INDEX(Inputs!$C$34:$C$43,BE$6,1)))-1 -> 5.2% | BG28: =+POWER(INDEX(Inputs!$L$34:$L43,BF$6+1,1)/INDEX(Inputs!$L$34:$L$43,BF$6,1),1/(INDEX(Inputs!$C$34:$C$43,BF$6+1,1)-INDEX(Inputs!$C$34:$C$43,BF$6,1)))-1 -> 5.2% | BH28: =+POWER(INDEX(Inputs!$L$34:$L43,BG$6+1,1)/INDEX(Inputs!$L$34:$L$43,BG$6,1),1/(INDEX(Inputs!$C$34:$C$43,BG$6+1,1)-INDEX(Inputs!$C$34:$C$43,BG$6,1)))-1 -> 5.2% | BI28: =+POWER(INDEX(Inputs!$L$34:$L43,BH$6+1,1)/INDEX(Inputs!$L$34:$L$43,BH$6,1),1/(INDEX(Inputs!$C$34:$C$43,BH$6+1,1)-INDEX(Inputs!$C$34:$C$43,BH$6,1)))-1 -> 5.2% | BJ28: =+POWER(INDEX(Inputs!$L$34:$L43,BI$6+1,1)/INDEX(Inputs!$L$34:$L$43,BI$6,1),1/(INDEX(Inputs!$C$34:$C$43,BI$6+1,1)-INDEX(Inputs!$C$34:$C$43,BI$6,1)))-1 -> 5.2%
C29: Revenues | H29: =+Inputs!L14 -> 1 | K29: $000s | N29: =+SUM(Q29:BJ29) -> 17,218,416 | S29: =+CHOOSE($H$29,S30,S31) -> 100,817 | T29: 112,395 | U29: 125,303 | V29: 139,693 | W29: 146,879 | X29: 154,434 | Y29: 162,378 | Z29: 170,730 | AA29: 179,513 | AB29: 189,735 | AC29: 200,539 | AD29: 211,958 | AE29: 224,028 | AF29: 236,785 | AG29: 248,130 | AH29: 260,019 | AI29: 272,478 | AJ29: 285,534 | AK29: 299,216 | AL29: 313,755 | AM29: 329,001 | AN29: 344,987 | AO29: 361,751 | AP29: 379,329 | AQ29: 394,422 | AR29: 410,116 | AS29: 426,434 | AT29: 443,402 | AU29: 461,044 | AV29: 478,517 | AW29: =+CHOOSE($H$29,AW30,AW31) -> 496,653 | AX29: 515,475 | AY29: 535,011 | AZ29: 555,287 | BA29: 577,085 | BB29: 599,737 | BC29: 623,279 | BD29: 647,745 | BE29: 673,172 | BF29: 708,343 | BG29: 745,352 | BH29: 784,294 | BI29: 825,272 | BJ29: 868,390 | BK29: 0 | BL29: 0 | BM29: 0 | BN29: 0 | BO29: 0 | BP29: 0 | BQ29: 0 | BR29: 0 | BS29: 0 | BT29: 0 | BU29: 0 | BV29: 0 | BW29: 0 | BX29: 0 | BY29: 0 | BZ29: 0 | CA29: 0 | CB29: 0 | CC29: =+CHOOSE($H$29,CC30,CC31) -> 0 | CD29: 0 | CE29: 0 | CF29: 0 | CG29: 0 | CH29: 0 | CI29: 0 | CJ29: 0 | CK29: 0 | CL29: 0 | CM29: 0 | CN29: 0 | CO29: 0 | CP29: 0 | CQ29: 0 | CR29: 0 | CS29: 0 | CT29: 0 | CU29: 0 | CV29: 0 | CW29: 0 | CX29: 0 | CY29: 0 | CZ29: 0 | DA29: 0 | DB29: 0 | DC29: 0 | DD29: 0 | DE29: 0 | DF29: 0 | DG29: 0 | DH29: 0 | DI29: =+CHOOSE($H$29,DI30,DI31) -> 0 | DJ29: 0 | DK29: 0 | DL29: 0 | DM29: 0 | DN29: 0 | DO29: 0 | DP29: 0
C30: Revenues Base Case | S30: =+IF(S$6<>R$6,INDEX(Inputs!$L$34:$L$43,S$6,1),R30*(1+S28)) -> 100,817 | T30: =+IF(T$6<>S$6,INDEX(Inputs!$L$34:$L$43,T$6,1),S30*(1+T28)) -> 112,395 | U30: =+IF(U$6<>T$6,INDEX(Inputs!$L$34:$L$43,U$6,1),T30*(1+U28)) -> 125,303 | V30: =+IF(V$6<>U$6,INDEX(Inputs!$L$34:$L$43,V$6,1),U30*(1+V28)) -> 139,693 | W30: =+IF(W$6<>V$6,INDEX(Inputs!$L$34:$L$43,W$6,1),V30*(1+W28)) -> 146,879 | X30: =+IF(X$6<>W$6,INDEX(Inputs!$L$34:$L$43,X$6,1),W30*(1+X28)) -> 154,434 | Y30: =+IF(Y$6<>X$6,INDEX(Inputs!$L$34:$L$43,Y$6,1),X30*(1+Y28)) -> 162,378 | Z30: =+IF(Z$6<>Y$6,INDEX(Inputs!$L$34:$L$43,Z$6,1),Y30*(1+Z28)) -> 170,730 | AA30: =+IF(AA$6<>Z$6,INDEX(Inputs!$L$34:$L$43,AA$6,1),Z30*(1+AA28)) -> 179,513 | AB30: =+IF(AB$6<>AA$6,INDEX(Inputs!$L$34:$L$43,AB$6,1),AA30*(1+AB28)) -> 189,735 | AC30: =+IF(AC$6<>AB$6,INDEX(Inputs!$L$34:$L$43,AC$6,1),AB30*(1+AC28)) -> 200,539 | AD30: =+IF(AD$6<>AC$6,INDEX(Inputs!$L$34:$L$43,AD$6,1),AC30*(1+AD28)) -> 211,958 | AE30: =+IF(AE$6<>AD$6,INDEX(Inputs!$L$34:$L$43,AE$6,1),AD30*(1+AE28)) -> 224,028 | AF30: =+IF(AF$6<>AE$6,INDEX(Inputs!$L$34:$L$43,AF$6,1),AE30*(1+AF28)) -> 236,785 | AG30: =+IF(AG$6<>AF$6,INDEX(Inputs!$L$34:$L$43,AG$6,1),AF30*(1+AG28)) -> 248,130 | AH30: =+IF(AH$6<>AG$6,INDEX(Inputs!$L$34:$L$43,AH$6,1),AG30*(1+AH28)) -> 260,019 | AI30: =+IF(AI$6<>AH$6,INDEX(Inputs!$L$34:$L$43,AI$6,1),AH30*(1+AI28)) -> 272,478 | AJ30: =+IF(AJ$6<>AI$6,INDEX(Inputs!$L$34:$L$43,AJ$6,1),AI30*(1+AJ28)) -> 285,534 | AK30: =+IF(AK$6<>AJ$6,INDEX(Inputs!$L$34:$L$43,AK$6,1),AJ30*(1+AK28)) -> 299,216 | AL30: =+IF(AL$6<>AK$6,INDEX(Inputs!$L$34:$L$43,AL$6,1),AK30*(1+AL28)) -> 313,755 | AM30: =+IF(AM$6<>AL$6,INDEX(Inputs!$L$34:$L$43,AM$6,1),AL30*(1+AM28)) -> 329,001 | AN30: =+IF(AN$6<>AM$6,INDEX(Inputs!$L$34:$L$43,AN$6,1),AM30*(1+AN28)) -> 344,987 | AO30: =+IF(AO$6<>AN$6,INDEX(Inputs!$L$34:$L$43,AO$6,1),AN30*(1+AO28)) -> 361,751 | AP30: =+IF(AP$6<>AO$6,INDEX(Inputs!$L$34:$L$43,AP$6,1),AO30*(1+AP28)) -> 379,329 | AQ30: =+IF(AQ$6<>AP$6,INDEX(Inputs!$L$34:$L$43,AQ$6,1),AP30*(1+AQ28)) -> 394,422 | AR30: =+IF(AR$6<>AQ$6,INDEX(Inputs!$L$34:$L$43,AR$6,1),AQ30*(1+AR28)) -> 410,116 | AS30: =+IF(AS$6<>AR$6,INDEX(Inputs!$L$34:$L$43,AS$6,1),AR30*(1+AS28)) -> 426,434 | AT30: =+IF(AT$6<>AS$6,INDEX(Inputs!$L$34:$L$43,AT$6,1),AS30*(1+AT28)) -> 443,402 | AU30: =+IF(AU$6<>AT$6,INDEX(Inputs!$L$34:$L$43,AU$6,1),AT30*(1+AU28)) -> 461,044 | AV30: =+IF(AV$6<>AU$6,INDEX(Inputs!$L$34:$L$43,AV$6,1),AU30*(1+AV28)) -> 478,517 | AW30: =+IF(AW$6<>AV$6,INDEX(Inputs!$L$34:$L$43,AW$6,1),AV30*(1+AW28)) -> 496,653 | AX30: =+IF(AX$6<>AW$6,INDEX(Inputs!$L$34:$L$43,AX$6,1),AW30*(1+AX28)) -> 515,475 | AY30: =+IF(AY$6<>AX$6,INDEX(Inputs!$L$34:$L$43,AY$6,1),AX30*(1+AY28)) -> 535,011 | AZ30: =+IF(AZ$6<>AY$6,INDEX(Inputs!$L$34:$L$43,AZ$6,1),AY30*(1+AZ28)) -> 555,287 | BA30: =+IF(BA$6<>AZ$6,INDEX(Inputs!$L$34:$L$43,BA$6,1),AZ30*(1+BA28)) -> 577,085 | BB30: =+IF(BB$6<>BA$6,INDEX(Inputs!$L$34:$L$43,BB$6,1),BA30*(1+BB28)) -> 599,737 | BC30: =+IF(BC$6<>BB$6,INDEX(Inputs!$L$34:$L$43,BC$6,1),BB30*(1+BC28)) -> 623,279 | BD30: =+IF(BD$6<>BC$6,INDEX(Inputs!$L$34:$L$43,BD$6,1),BC30*(1+BD28)) -> 647,745 | BE30: =+IF(BE$6<>BD$6,INDEX(Inputs!$L$34:$L$43,BE$6,1),BD30*(1+BE28)) -> 673,172 | BF30: =+IF(BF$6<>BE$6,INDEX(Inputs!$L$34:$L$43,BF$6,1),BE30*(1+BF28)) -> 708,343 | BG30: =+IF(BG$6<>BF$6,INDEX(Inputs!$L$34:$L$43,BG$6,1),BF30*(1+BG28)) -> 745,352 | BH30: =+IF(BH$6<>BG$6,INDEX(Inputs!$L$34:$L$43,BH$6,1),BG30*(1+BH28)) -> 784,294 | BI30: =+IF(BI$6<>BH$6,INDEX(Inputs!$L$34:$L$43,BI$6,1),BH30*(1+BI28)) -> 825,272 | BJ30: =+IF(BJ$6<>BI$6,INDEX(Inputs!$L$34:$L$43,BJ$6,1),BI30*(1+BJ28)) -> 868,390
C33: Revenues (NOMINAL) | K33: $000s | N33: =+SUM(Q33:BJ33) -> 39,545,579 | S33: =+S29*S25*S12 -> 120,886 | T33: 137,801 | U33: 157,083 | V33: 179,064 | W33: 192,605 | X33: 207,170 | Y33: 222,837 | Z33: 239,688 | AA33: 257,814 | AB33: 278,762 | AC33: 301,413 | AD33: 325,904 | AE33: 352,384 | AF33: 381,016 | AG33: 408,456 | AH33: 437,872 | AI33: 469,406 | AJ33: 503,212 | AK33: 539,451 | AL33: 578,675 | AM33: 620,749 | AN33: 665,884 | AO33: 714,299 | AP33: 766,235 | AQ33: 815,048 | AR33: 866,970 | AS33: 922,200 | AT33: 980,949 | AU33: 1,043,440 | AV33: 1,107,893 | AW33: 1,176,328 | AX33: 1,248,991 | AY33: =+AY29*AY25*AY12 -> 1,326,141 | AZ33: 1,408,058 | BA33: 1,496,986 | BB33: 1,591,531 | BC33: 1,692,046 | BD33: 1,798,910 | BE33: 1,912,524 | BF33: 2,058,734 | BG33: 2,216,121 | BH33: 2,385,541 | BI33: 2,567,913 | BJ33: 1,870,586 | BK33: 0 | BL33: 0 | BM33: 0 | BN33: 0 | BO33: 0 | BP33: 0 | BQ33: 0 | BR33: 0 | BS33: 0 | BT33: 0 | BU33: 0 | BV33: 0 | BW33: 0 | BX33: 0 | BY33: 0 | BZ33: 0 | CA33: 0 | CB33: 0 | CC33: 0 | CD33: 0 | CE33: =+CE29*CE25*CE12 -> 0 | CF33: 0 | CG33: 0 | CH33: 0 | CI33: 0 | CJ33: 0 | CK33: 0 | CL33: 0 | CM33: 0 | CN33: 0 | CO33: 0 | CP33: 0 | CQ33: 0 | CR33: 0 | CS33: 0 | CT33: 0 | CU33: 0 | CV33: 0 | CW33: 0 | CX33: 0 | CY33: 0 | CZ33: 0 | DA33: 0 | DB33: 0 | DC33: 0 | DD33: 0 | DE33: 0 | DF33: 0 | DG33: 0 | DH33: 0 | DI33: 0 | DJ33: 0 | DK33: =+DK29*DK25*DK12 -> 0 | DL33: 0 | DM33: 0 | DN33: 0 | DO33: 0 | DP33: 0
C35: O&M
C36: Growth | T36: =+POWER(INDEX(Inputs!$L$58:$L67,S$6+1,1)/INDEX(Inputs!$L$58:$L$67,S$6,1),1/(INDEX(Inputs!$C$58:$C$67,S$6+1,1)-INDEX(Inputs!$C$58:$C$67,S$6,1)))-1 -> 3.5% | U36: =+POWER(INDEX(Inputs!$L$58:$L67,T$6+1,1)/INDEX(Inputs!$L$58:$L$67,T$6,1),1/(INDEX(Inputs!$C$58:$C$67,T$6+1,1)-INDEX(Inputs!$C$58:$C$67,T$6,1)))-1 -> 3.5% | V36: =+POWER(INDEX(Inputs!$L$58:$L67,U$6+1,1)/INDEX(Inputs!$L$58:$L$67,U$6,1),1/(INDEX(Inputs!$C$58:$C$67,U$6+1,1)-INDEX(Inputs!$C$58:$C$67,U$6,1)))-1 -> 3.5% | W36: =+POWER(INDEX(Inputs!$L$58:$L67,V$6+1,1)/INDEX(Inputs!$L$58:$L$67,V$6,1),1/(INDEX(Inputs!$C$58:$C$67,V$6+1,1)-INDEX(Inputs!$C$58:$C$67,V$6,1)))-1 -> 2.0% | X36: =+POWER(INDEX(Inputs!$L$58:$L67,W$6+1,1)/INDEX(Inputs!$L$58:$L$67,W$6,1),1/(INDEX(Inputs!$C$58:$C$67,W$6+1,1)-INDEX(Inputs!$C$58:$C$67,W$6,1)))-1 -> 2.0% | Y36: =+POWER(INDEX(Inputs!$L$58:$L67,X$6+1,1)/INDEX(Inputs!$L$58:$L$67,X$6,1),1/(INDEX(Inputs!$C$58:$C$67,X$6+1,1)-INDEX(Inputs!$C$58:$C$67,X$6,1)))-1 -> 2.0% | Z36: =+POWER(INDEX(Inputs!$L$58:$L67,Y$6+1,1)/INDEX(Inputs!$L$58:$L$67,Y$6,1),1/(INDEX(Inputs!$C$58:$C$67,Y$6+1,1)-INDEX(Inputs!$C$58:$C$67,Y$6,1)))-1 -> 2.0% | AA36: =+POWER(INDEX(Inputs!$L$58:$L67,Z$6+1,1)/INDEX(Inputs!$L$58:$L$67,Z$6,1),1/(INDEX(Inputs!$C$58:$C$67,Z$6+1,1)-INDEX(Inputs!$C$58:$C$67,Z$6,1)))-1 -> 2.0% | AB36: =+POWER(INDEX(Inputs!$L$58:$L67,AA$6+1,1)/INDEX(Inputs!$L$58:$L$67,AA$6,1),1/(INDEX(Inputs!$C$58:$C$67,AA$6+1,1)-INDEX(Inputs!$C$58:$C$67,AA$6,1)))-1 -> 2.7% | AC36: =+POWER(INDEX(Inputs!$L$58:$L67,AB$6+1,1)/INDEX(Inputs!$L$58:$L$67,AB$6,1),1/(INDEX(Inputs!$C$58:$C$67,AB$6+1,1)-INDEX(Inputs!$C$58:$C$67,AB$6,1)))-1 -> 2.7% | AD36: =+POWER(INDEX(Inputs!$L$58:$L67,AC$6+1,1)/INDEX(Inputs!$L$58:$L$67,AC$6,1),1/(INDEX(Inputs!$C$58:$C$67,AC$6+1,1)-INDEX(Inputs!$C$58:$C$67,AC$6,1)))-1 -> 2.7% | AE36: =+POWER(INDEX(Inputs!$L$58:$L67,AD$6+1,1)/INDEX(Inputs!$L$58:$L$67,AD$6,1),1/(INDEX(Inputs!$C$58:$C$67,AD$6+1,1)-INDEX(Inputs!$C$58:$C$67,AD$6,1)))-1 -> 2.7% | AF36: =+POWER(INDEX(Inputs!$L$58:$L67,AE$6+1,1)/INDEX(Inputs!$L$58:$L$67,AE$6,1),1/(INDEX(Inputs!$C$58:$C$67,AE$6+1,1)-INDEX(Inputs!$C$58:$C$67,AE$6,1)))-1 -> 2.7% | AG36: =+POWER(INDEX(Inputs!$L$58:$L67,AF$6+1,1)/INDEX(Inputs!$L$58:$L$67,AF$6,1),1/(INDEX(Inputs!$C$58:$C$67,AF$6+1,1)-INDEX(Inputs!$C$58:$C$67,AF$6,1)))-1 -> 2.2% | AH36: =+POWER(INDEX(Inputs!$L$58:$L67,AG$6+1,1)/INDEX(Inputs!$L$58:$L$67,AG$6,1),1/(INDEX(Inputs!$C$58:$C$67,AG$6+1,1)-INDEX(Inputs!$C$58:$C$67,AG$6,1)))-1 -> 2.2% | AI36: =+POWER(INDEX(Inputs!$L$58:$L67,AH$6+1,1)/INDEX(Inputs!$L$58:$L$67,AH$6,1),1/(INDEX(Inputs!$C$58:$C$67,AH$6+1,1)-INDEX(Inputs!$C$58:$C$67,AH$6,1)))-1 -> 2.2% | AJ36: =+POWER(INDEX(Inputs!$L$58:$L67,AI$6+1,1)/INDEX(Inputs!$L$58:$L$67,AI$6,1),1/(INDEX(Inputs!$C$58:$C$67,AI$6+1,1)-INDEX(Inputs!$C$58:$C$67,AI$6,1)))-1 -> 2.2% | AK36: =+POWER(INDEX(Inputs!$L$58:$L67,AJ$6+1,1)/INDEX(Inputs!$L$58:$L$67,AJ$6,1),1/(INDEX(Inputs!$C$58:$C$67,AJ$6+1,1)-INDEX(Inputs!$C$58:$C$67,AJ$6,1)))-1 -> 2.2% | AL36: =+POWER(INDEX(Inputs!$L$58:$L67,AK$6+1,1)/INDEX(Inputs!$L$58:$L$67,AK$6,1),1/(INDEX(Inputs!$C$58:$C$67,AK$6+1,1)-INDEX(Inputs!$C$58:$C$67,AK$6,1)))-1 -> 2.6% | AM36: =+POWER(INDEX(Inputs!$L$58:$L67,AL$6+1,1)/INDEX(Inputs!$L$58:$L$67,AL$6,1),1/(INDEX(Inputs!$C$58:$C$67,AL$6+1,1)-INDEX(Inputs!$C$58:$C$67,AL$6,1)))-1 -> 2.6% | AN36: =+POWER(INDEX(Inputs!$L$58:$L67,AM$6+1,1)/INDEX(Inputs!$L$58:$L$67,AM$6,1),1/(INDEX(Inputs!$C$58:$C$67,AM$6+1,1)-INDEX(Inputs!$C$58:$C$67,AM$6,1)))-1 -> 2.6% | AO36: =+POWER(INDEX(Inputs!$L$58:$L67,AN$6+1,1)/INDEX(Inputs!$L$58:$L$67,AN$6,1),1/(INDEX(Inputs!$C$58:$C$67,AN$6+1,1)-INDEX(Inputs!$C$58:$C$67,AN$6,1)))-1 -> 2.6% | AP36: =+POWER(INDEX(Inputs!$L$58:$L67,AO$6+1,1)/INDEX(Inputs!$L$58:$L$67,AO$6,1),1/(INDEX(Inputs!$C$58:$C$67,AO$6+1,1)-INDEX(Inputs!$C$58:$C$67,AO$6,1)))-1 -> 2.6% | AQ36: =+POWER(INDEX(Inputs!$L$58:$L67,AP$6+1,1)/INDEX(Inputs!$L$58:$L$67,AP$6,1),1/(INDEX(Inputs!$C$58:$C$67,AP$6+1,1)-INDEX(Inputs!$C$58:$C$67,AP$6,1)))-1 -> 2.0% | AR36: =+POWER(INDEX(Inputs!$L$58:$L67,AQ$6+1,1)/INDEX(Inputs!$L$58:$L$67,AQ$6,1),1/(INDEX(Inputs!$C$58:$C$67,AQ$6+1,1)-INDEX(Inputs!$C$58:$C$67,AQ$6,1)))-1 -> 2.0% | AS36: =+POWER(INDEX(Inputs!$L$58:$L67,AR$6+1,1)/INDEX(Inputs!$L$58:$L$67,AR$6,1),1/(INDEX(Inputs!$C$58:$C$67,AR$6+1,1)-INDEX(Inputs!$C$58:$C$67,AR$6,1)))-1 -> 2.0% | AT36: =+POWER(INDEX(Inputs!$L$58:$L67,AS$6+1,1)/INDEX(Inputs!$L$58:$L$67,AS$6,1),1/(INDEX(Inputs!$C$58:$C$67,AS$6+1,1)-INDEX(Inputs!$C$58:$C$67,AS$6,1)))-1 -> 2.0% | AU36: =+POWER(INDEX(Inputs!$L$58:$L67,AT$6+1,1)/INDEX(Inputs!$L$58:$L$67,AT$6,1),1/(INDEX(Inputs!$C$58:$C$67,AT$6+1,1)-INDEX(Inputs!$C$58:$C$67,AT$6,1)))-1 -> 2.0% | AV36: =+POWER(INDEX(Inputs!$L$58:$L67,AU$6+1,1)/INDEX(Inputs!$L$58:$L$67,AU$6,1),1/(INDEX(Inputs!$C$58:$C$67,AU$6+1,1)-INDEX(Inputs!$C$58:$C$67,AU$6,1)))-1 -> 2.2% | AW36: =+POWER(INDEX(Inputs!$L$58:$L67,AV$6+1,1)/INDEX(Inputs!$L$58:$L$67,AV$6,1),1/(INDEX(Inputs!$C$58:$C$67,AV$6+1,1)-INDEX(Inputs!$C$58:$C$67,AV$6,1)))-1 -> 2.2% | AX36: =+POWER(INDEX(Inputs!$L$58:$L67,AW$6+1,1)/INDEX(Inputs!$L$58:$L$67,AW$6,1),1/(INDEX(Inputs!$C$58:$C$67,AW$6+1,1)-INDEX(Inputs!$C$58:$C$67,AW$6,1)))-1 -> 2.2% | AY36: =+POWER(INDEX(Inputs!$L$58:$L67,AX$6+1,1)/INDEX(Inputs!$L$58:$L$67,AX$6,1),1/(INDEX(Inputs!$C$58:$C$67,AX$6+1,1)-INDEX(Inputs!$C$58:$C$67,AX$6,1)))-1 -> 2.2% | AZ36: =+POWER(INDEX(Inputs!$L$58:$L67,AY$6+1,1)/INDEX(Inputs!$L$58:$L$67,AY$6,1),1/(INDEX(Inputs!$C$58:$C$67,AY$6+1,1)-INDEX(Inputs!$C$58:$C$67,AY$6,1)))-1 -> 2.2% | BA36: =+POWER(INDEX(Inputs!$L$58:$L67,AZ$6+1,1)/INDEX(Inputs!$L$58:$L$67,AZ$6,1),1/(INDEX(Inputs!$C$58:$C$67,AZ$6+1,1)-INDEX(Inputs!$C$58:$C$67,AZ$6,1)))-1 -> 2.2% | BB36: =+POWER(INDEX(Inputs!$L$58:$L67,BA$6+1,1)/INDEX(Inputs!$L$58:$L$67,BA$6,1),1/(INDEX(Inputs!$C$58:$C$67,BA$6+1,1)-INDEX(Inputs!$C$58:$C$67,BA$6,1)))-1 -> 2.2% | BC36: =+POWER(INDEX(Inputs!$L$58:$L67,BB$6+1,1)/INDEX(Inputs!$L$58:$L$67,BB$6,1),1/(INDEX(Inputs!$C$58:$C$67,BB$6+1,1)-INDEX(Inputs!$C$58:$C$67,BB$6,1)))-1 -> 2.2% | BD36: =+POWER(INDEX(Inputs!$L$58:$L67,BC$6+1,1)/INDEX(Inputs!$L$58:$L$67,BC$6,1),1/(INDEX(Inputs!$C$58:$C$67,BC$6+1,1)-INDEX(Inputs!$C$58:$C$67,BC$6,1)))-1 -> 2.2% | BE36: =+POWER(INDEX(Inputs!$L$58:$L67,BD$6+1,1)/INDEX(Inputs!$L$58:$L$67,BD$6,1),1/(INDEX(Inputs!$C$58:$C$67,BD$6+1,1)-INDEX(Inputs!$C$58:$C$67,BD$6,1)))-1 -> 2.2% | BF36: =+POWER(INDEX(Inputs!$L$58:$L67,BE$6+1,1)/INDEX(Inputs!$L$58:$L$67,BE$6,1),1/(INDEX(Inputs!$C$58:$C$67,BE$6+1,1)-INDEX(Inputs!$C$58:$C$67,BE$6,1)))-1 -> 3.4% | BG36: =+POWER(INDEX(Inputs!$L$58:$L67,BF$6+1,1)/INDEX(Inputs!$L$58:$L$67,BF$6,1),1/(INDEX(Inputs!$C$58:$C$67,BF$6+1,1)-INDEX(Inputs!$C$58:$C$67,BF$6,1)))-1 -> 3.4% | BH36: =+POWER(INDEX(Inputs!$L$58:$L67,BG$6+1,1)/INDEX(Inputs!$L$58:$L$67,BG$6,1),1/(INDEX(Inputs!$C$58:$C$67,BG$6+1,1)-INDEX(Inputs!$C$58:$C$67,BG$6,1)))-1 -> 3.4% | BI36: =+POWER(INDEX(Inputs!$L$58:$L67,BH$6+1,1)/INDEX(Inputs!$L$58:$L$67,BH$6,1),1/(INDEX(Inputs!$C$58:$C$67,BH$6+1,1)-INDEX(Inputs!$C$58:$C$67,BH$6,1)))-1 -> 3.4% | BJ36: =+POWER(INDEX(Inputs!$L$58:$L67,BI$6+1,1)/INDEX(Inputs!$L$58:$L$67,BI$6,1),1/(INDEX(Inputs!$C$58:$C$67,BI$6+1,1)-INDEX(Inputs!$C$58:$C$67,BI$6,1)))-1 -> 3.4%
C37: O&M | H37: =+Inputs!L16 -> 1 | K37: $000s | N37: =+SUM(Q37:BJ37) -> 1,344,228 | S37: =+CHOOSE($H$37,S38,S39) -> 17,403 | T37: 18,005 | U37: 18,629 | V37: 19,274 | W37: 19,653 | X37: 20,040 | Y37: 20,434 | Z37: 20,836 | AA37: 21,246 | AB37: 21,810 | AC37: 22,389 | AD37: 22,984 | AE37: 23,594 | AF37: 24,221 | AG37: 24,749 | AH37: 25,290 | AI37: 25,842 | AJ37: 26,406 | AK37: 26,982 | AL37: 27,687 | AM37: 28,411 | AN37: 29,154 | AO37: 29,916 | AP37: 30,698 | AQ37: 31,315 | AR37: 31,944 | AS37: 32,586 | AT37: 33,241 | AU37: 33,909 | AV37: 34,640 | AW37: 35,386 | AX37: 36,149 | AY37: 36,929 | AZ37: 37,725 | BA37: 38,574 | BB37: 39,441 | BC37: 40,329 | BD37: 41,236 | BE37: 42,164 | BF37: 43,578 | BG37: 45,040 | BH37: 46,551 | BI37: 48,113 | BJ37: 49,727 | BK37: 0 | BL37: 0 | BM37: 0 | BN37: 0 | BO37: 0 | BP37: 0 | BQ37: 0 | BR37: 0 | BS37: 0 | BT37: 0 | BU37: 0 | BV37: 0 | BW37: 0 | BX37: 0 | BY37: 0 | BZ37: 0 | CA37: 0 | CB37: 0 | CC37: 0 | CD37: 0 | CE37: =+CHOOSE($H$37,CE38,CE39) -> 0 | CF37: 0 | CG37: 0 | CH37: 0 | CI37: 0 | CJ37: 0 | CK37: 0 | CL37: 0 | CM37: 0 | CN37: 0 | CO37: 0 | CP37: 0 | CQ37: 0 | CR37: 0 | CS37: 0 | CT37: 0 | CU37: 0 | CV37: 0 | CW37: 0 | CX37: 0 | CY37: 0 | CZ37: 0 | DA37: 0 | DB37: 0 | DC37: 0 | DD37: 0 | DE37: 0 | DF37: 0 | DG37: 0 | DH37: 0 | DI37: 0 | DJ37: 0 | DK37: 0 | DL37: 0 | DM37: 0 | DN37: 0 | DO37: 0 | DP37: 0
C38: O&M Base Case | S38: =+IF(S$6<>R$6,INDEX(Inputs!$L$58:$L$67,S$6,1),R38*(1+S36)) -> 17,403 | T38: =+IF(T$6<>S$6,INDEX(Inputs!$L$58:$L$67,T$6,1),S38*(1+T36)) -> 18,005 | U38: =+IF(U$6<>T$6,INDEX(Inputs!$L$58:$L$67,U$6,1),T38*(1+U36)) -> 18,629 | V38: =+IF(V$6<>U$6,INDEX(Inputs!$L$58:$L$67,V$6,1),U38*(1+V36)) -> 19,274 | W38: =+IF(W$6<>V$6,INDEX(Inputs!$L$58:$L$67,W$6,1),V38*(1+W36)) -> 19,653 | X38: =+IF(X$6<>W$6,INDEX(Inputs!$L$58:$L$67,X$6,1),W38*(1+X36)) -> 20,040 | Y38: =+IF(Y$6<>X$6,INDEX(Inputs!$L$58:$L$67,Y$6,1),X38*(1+Y36)) -> 20,434 | Z38: =+IF(Z$6<>Y$6,INDEX(Inputs!$L$58:$L$67,Z$6,1),Y38*(1+Z36)) -> 20,836 | AA38: =+IF(AA$6<>Z$6,INDEX(Inputs!$L$58:$L$67,AA$6,1),Z38*(1+AA36)) -> 21,246 | AB38: =+IF(AB$6<>AA$6,INDEX(Inputs!$L$58:$L$67,AB$6,1),AA38*(1+AB36)) -> 21,810 | AC38: =+IF(AC$6<>AB$6,INDEX(Inputs!$L$58:$L$67,AC$6,1),AB38*(1+AC36)) -> 22,389 | AD38: =+IF(AD$6<>AC$6,INDEX(Inputs!$L$58:$L$67,AD$6,1),AC38*(1+AD36)) -> 22,984 | AE38: =+IF(AE$6<>AD$6,INDEX(Inputs!$L$58:$L$67,AE$6,1),AD38*(1+AE36)) -> 23,594 | AF38: =+IF(AF$6<>AE$6,INDEX(Inputs!$L$58:$L$67,AF$6,1),AE38*(1+AF36)) -> 24,221 | AG38: =+IF(AG$6<>AF$6,INDEX(Inputs!$L$58:$L$67,AG$6,1),AF38*(1+AG36)) -> 24,749 | AH38: =+IF(AH$6<>AG$6,INDEX(Inputs!$L$58:$L$67,AH$6,1),AG38*(1+AH36)) -> 25,290 | AI38: =+IF(AI$6<>AH$6,INDEX(Inputs!$L$58:$L$67,AI$6,1),AH38*(1+AI36)) -> 25,842 | AJ38: =+IF(AJ$6<>AI$6,INDEX(Inputs!$L$58:$L$67,AJ$6,1),AI38*(1+AJ36)) -> 26,406 | AK38: =+IF(AK$6<>AJ$6,INDEX(Inputs!$L$58:$L$67,AK$6,1),AJ38*(1+AK36)) -> 26,982 | AL38: =+IF(AL$6<>AK$6,INDEX(Inputs!$L$58:$L$67,AL$6,1),AK38*(1+AL36)) -> 27,687 | AM38: =+IF(AM$6<>AL$6,INDEX(Inputs!$L$58:$L$67,AM$6,1),AL38*(1+AM36)) -> 28,411 | AN38: =+IF(AN$6<>AM$6,INDEX(Inputs!$L$58:$L$67,AN$6,1),AM38*(1+AN36)) -> 29,154 | AO38: =+IF(AO$6<>AN$6,INDEX(Inputs!$L$58:$L$67,AO$6,1),AN38*(1+AO36)) -> 29,916 | AP38: =+IF(AP$6<>AO$6,INDEX(Inputs!$L$58:$L$67,AP$6,1),AO38*(1+AP36)) -> 30,698 | AQ38: =+IF(AQ$6<>AP$6,INDEX(Inputs!$L$58:$L$67,AQ$6,1),AP38*(1+AQ36)) -> 31,315 | AR38: =+IF(AR$6<>AQ$6,INDEX(Inputs!$L$58:$L$67,AR$6,1),AQ38*(1+AR36)) -> 31,944 | AS38: =+IF(AS$6<>AR$6,INDEX(Inputs!$L$58:$L$67,AS$6,1),AR38*(1+AS36)) -> 32,586 | AT38: =+IF(AT$6<>AS$6,INDEX(Inputs!$L$58:$L$67,AT$6,1),AS38*(1+AT36)) -> 33,241 | AU38: =+IF(AU$6<>AT$6,INDEX(Inputs!$L$58:$L$67,AU$6,1),AT38*(1+AU36)) -> 33,909 | AV38: =+IF(AV$6<>AU$6,INDEX(Inputs!$L$58:$L$67,AV$6,1),AU38*(1+AV36)) -> 34,640 | AW38: =+IF(AW$6<>AV$6,INDEX(Inputs!$L$58:$L$67,AW$6,1),AV38*(1+AW36)) -> 35,386 | AX38: =+IF(AX$6<>AW$6,INDEX(Inputs!$L$58:$L$67,AX$6,1),AW38*(1+AX36)) -> 36,149 | AY38: =+IF(AY$6<>AX$6,INDEX(Inputs!$L$58:$L$67,AY$6,1),AX38*(1+AY36)) -> 36,929 | AZ38: =+IF(AZ$6<>AY$6,INDEX(Inputs!$L$58:$L$67,AZ$6,1),AY38*(1+AZ36)) -> 37,725 | BA38: =+IF(BA$6<>AZ$6,INDEX(Inputs!$L$58:$L$67,BA$6,1),AZ38*(1+BA36)) -> 38,574 | BB38: =+IF(BB$6<>BA$6,INDEX(Inputs!$L$58:$L$67,BB$6,1),BA38*(1+BB36)) -> 39,441 | BC38: =+IF(BC$6<>BB$6,INDEX(Inputs!$L$58:$L$67,BC$6,1),BB38*(1+BC36)) -> 40,329 | BD38: =+IF(BD$6<>BC$6,INDEX(Inputs!$L$58:$L$67,BD$6,1),BC38*(1+BD36)) -> 41,236 | BE38: =+IF(BE$6<>BD$6,INDEX(Inputs!$L$58:$L$67,BE$6,1),BD38*(1+BE36)) -> 42,164 | BF38: =+IF(BF$6<>BE$6,INDEX(Inputs!$L$58:$L$67,BF$6,1),BE38*(1+BF36)) -> 43,578 | BG38: =+IF(BG$6<>BF$6,INDEX(Inputs!$L$58:$L$67,BG$6,1),BF38*(1+BG36)) -> 45,040 | BH38: =+IF(BH$6<>BG$6,INDEX(Inputs!$L$58:$L$67,BH$6,1),BG38*(1+BH36)) -> 46,551 | BI38: =+IF(BI$6<>BH$6,INDEX(Inputs!$L$58:$L$67,BI$6,1),BH38*(1+BI36)) -> 48,113 | BJ38: =+IF(BJ$6<>BI$6,INDEX(Inputs!$L$58:$L$67,BJ$6,1),BI38*(1+BJ36)) -> 49,727
C41: O&M (NOMINAL) | K41: $000s | N41: =+SUM(Q41:BJ41) -> 2,912,934 | S41: =+S37*S25*S12 -> 20,867 | T41: =+T37*T25*T12 -> 22,075 | U41: 23,354 | V41: 24,706 | W41: 25,771 | X41: 26,883 | Y41: 28,042 | Z41: 29,251 | AA41: 30,513 | AB41: 32,044 | AC41: 33,651 | AD41: 35,339 | AE41: 37,112 | AF41: 38,974 | AG41: 40,741 | AH41: 42,588 | AI41: 44,518 | AJ41: 46,536 | AK41: 48,645 | AL41: 51,065 | AM41: 53,605 | AN41: 56,272 | AO41: 59,071 | AP41: 62,010 | AQ41: 64,710 | AR41: 67,529 | AS41: 70,470 | AT41: 73,539 | AU41: 76,742 | AV41: 80,200 | AW41: 83,813 | AX41: 87,590 | AY41: 91,536 | AZ41: 95,660 | BA41: 100,062 | BB41: 104,666 | BC41: 109,482 | BD41: 114,520 | BE41: 119,790 | BF41: 126,656 | BG41: 133,916 | BH41: 141,593 | BI41: 149,709 | BJ41: 107,117 | BK41: =+BK37*BK25*BK12 -> 0 | BL41: 0 | BM41: 0 | BN41: 0 | BO41: 0 | BP41: 0 | BQ41: 0 | BR41: 0 | BS41: 0 | BT41: 0 | BU41: 0 | BV41: 0 | BW41: 0 | BX41: 0 | BY41: 0 | BZ41: 0 | CA41: 0 | CB41: 0 | CC41: 0 | CD41: 0 | CE41: =+CE37*CE25*CE12 -> 0 | CF41: 0 | CG41: 0 | CH41: 0 | CI41: 0 | CJ41: 0 | CK41: 0 | CL41: 0 | CM41: 0 | CN41: 0 | CO41: 0 | CP41: 0 | CQ41: 0 | CR41: 0 | CS41: 0 | CT41: 0 | CU41: 0 | CV41: 0 | CW41: 0 | CX41: 0 | CY41: 0 | CZ41: 0 | DA41: 0 | DB41: 0 | DC41: 0 | DD41: 0 | DE41: 0 | DF41: 0 | DG41: 0 | DH41: 0 | DI41: 0 | DJ41: 0 | DK41: =+DK37*DK25*DK12 -> 0 | DL41: 0 | DM41: 0 | DN41: 0 | DO41: 0 | DP41: 0
C43: Major Maintenance Capex
C44: Growth | T44: =+IFERROR(+POWER(INDEX(Inputs!$L$70:$L79,S$6+1,1)/INDEX(Inputs!$L$70:$L$79,S$6,1),1/(INDEX(Inputs!$C$70:$C$79,S$6+1,1)-INDEX(Inputs!$C$70:$C$79,S$6,1)))-1,0) -> -30.15% | U44: =+IFERROR(+POWER(INDEX(Inputs!$L$70:$L79,T$6+1,1)/INDEX(Inputs!$L$70:$L$79,T$6,1),1/(INDEX(Inputs!$C$70:$C$79,T$6+1,1)-INDEX(Inputs!$C$70:$C$79,T$6,1)))-1,0) -> -30.15% | V44: =+IFERROR(+POWER(INDEX(Inputs!$L$70:$L79,U$6+1,1)/INDEX(Inputs!$L$70:$L$79,U$6,1),1/(INDEX(Inputs!$C$70:$C$79,U$6+1,1)-INDEX(Inputs!$C$70:$C$79,U$6,1)))-1,0) -> -30.15% | W44: =+IFERROR(+POWER(INDEX(Inputs!$L$70:$L79,V$6+1,1)/INDEX(Inputs!$L$70:$L$79,V$6,1),1/(INDEX(Inputs!$C$70:$C$79,V$6+1,1)-INDEX(Inputs!$C$70:$C$79,V$6,1)))-1,0) -> 24.85% | X44: =+IFERROR(+POWER(INDEX(Inputs!$L$70:$L79,W$6+1,1)/INDEX(Inputs!$L$70:$L$79,W$6,1),1/(INDEX(Inputs!$C$70:$C$79,W$6+1,1)-INDEX(Inputs!$C$70:$C$79,W$6,1)))-1,0) -> 24.85% | Y44: =+IFERROR(+POWER(INDEX(Inputs!$L$70:$L79,X$6+1,1)/INDEX(Inputs!$L$70:$L$79,X$6,1),1/(INDEX(Inputs!$C$70:$C$79,X$6+1,1)-INDEX(Inputs!$C$70:$C$79,X$6,1)))-1,0) -> 24.85% | Z44: =+IFERROR(+POWER(INDEX(Inputs!$L$70:$L79,Y$6+1,1)/INDEX(Inputs!$L$70:$L$79,Y$6,1),1/(INDEX(Inputs!$C$70:$C$79,Y$6+1,1)-INDEX(Inputs!$C$70:$C$79,Y$6,1)))-1,0) -> 24.85% | AA44: =+IFERROR(+POWER(INDEX(Inputs!$L$70:$L79,Z$6+1,1)/INDEX(Inputs!$L$70:$L$79,Z$6,1),1/(INDEX(Inputs!$C$70:$C$79,Z$6+1,1)-INDEX(Inputs!$C$70:$C$79,Z$6,1)))-1,0) -> 24.85% | AB44: =+IFERROR(+POWER(INDEX(Inputs!$L$70:$L79,AA$6+1,1)/INDEX(Inputs!$L$70:$L$79,AA$6,1),1/(INDEX(Inputs!$C$70:$C$79,AA$6+1,1)-INDEX(Inputs!$C$70:$C$79,AA$6,1)))-1,0) -> -10.26% | AC44: =+IFERROR(+POWER(INDEX(Inputs!$L$70:$L79,AB$6+1,1)/INDEX(Inputs!$L$70:$L$79,AB$6,1),1/(INDEX(Inputs!$C$70:$C$79,AB$6+1,1)-INDEX(Inputs!$C$70:$C$79,AB$6,1)))-1,0) -> -10.26% | AD44: =+IFERROR(+POWER(INDEX(Inputs!$L$70:$L79,AC$6+1,1)/INDEX(Inputs!$L$70:$L$79,AC$6,1),1/(INDEX(Inputs!$C$70:$C$79,AC$6+1,1)-INDEX(Inputs!$C$70:$C$79,AC$6,1)))-1,0) -> -10.26% | AE44: =+IFERROR(+POWER(INDEX(Inputs!$L$70:$L79,AD$6+1,1)/INDEX(Inputs!$L$70:$L$79,AD$6,1),1/(INDEX(Inputs!$C$70:$C$79,AD$6+1,1)-INDEX(Inputs!$C$70:$C$79,AD$6,1)))-1,0) -> -10.26% | AF44: =+IFERROR(+POWER(INDEX(Inputs!$L$70:$L79,AE$6+1,1)/INDEX(Inputs!$L$70:$L$79,AE$6,1),1/(INDEX(Inputs!$C$70:$C$79,AE$6+1,1)-INDEX(Inputs!$C$70:$C$79,AE$6,1)))-1,0) -> -10.26% | AG44: =+IFERROR(+POWER(INDEX(Inputs!$L$70:$L79,AF$6+1,1)/INDEX(Inputs!$L$70:$L$79,AF$6,1),1/(INDEX(Inputs!$C$70:$C$79,AF$6+1,1)-INDEX(Inputs!$C$70:$C$79,AF$6,1)))-1,0) -> 32.54% | AH44: =+IFERROR(+POWER(INDEX(Inputs!$L$70:$L79,AG$6+1,1)/INDEX(Inputs!$L$70:$L$79,AG$6,1),1/(INDEX(Inputs!$C$70:$C$79,AG$6+1,1)-INDEX(Inputs!$C$70:$C$79,AG$6,1)))-1,0) -> 32.54% | AI44: =+IFERROR(+POWER(INDEX(Inputs!$L$70:$L79,AH$6+1,1)/INDEX(Inputs!$L$70:$L$79,AH$6,1),1/(INDEX(Inputs!$C$70:$C$79,AH$6+1,1)-INDEX(Inputs!$C$70:$C$79,AH$6,1)))-1,0) -> 32.54% | AJ44: =+IFERROR(+POWER(INDEX(Inputs!$L$70:$L79,AI$6+1,1)/INDEX(Inputs!$L$70:$L$79,AI$6,1),1/(INDEX(Inputs!$C$70:$C$79,AI$6+1,1)-INDEX(Inputs!$C$70:$C$79,AI$6,1)))-1,0) -> 32.54% | AK44: =+IFERROR(+POWER(INDEX(Inputs!$L$70:$L79,AJ$6+1,1)/INDEX(Inputs!$L$70:$L$79,AJ$6,1),1/(INDEX(Inputs!$C$70:$C$79,AJ$6+1,1)-INDEX(Inputs!$C$70:$C$79,AJ$6,1)))-1,0) -> 32.54% | AL44: =+IFERROR(+POWER(INDEX(Inputs!$L$70:$L79,AK$6+1,1)/INDEX(Inputs!$L$70:$L$79,AK$6,1),1/(INDEX(Inputs!$C$70:$C$79,AK$6+1,1)-INDEX(Inputs!$C$70:$C$79,AK$6,1)))-1,0) -> -33.84% | AM44: =+IFERROR(+POWER(INDEX(Inputs!$L$70:$L79,AL$6+1,1)/INDEX(Inputs!$L$70:$L$79,AL$6,1),1/(INDEX(Inputs!$C$70:$C$79,AL$6+1,1)-INDEX(Inputs!$C$70:$C$79,AL$6,1)))-1,0) -> -33.84% | AN44: =+IFERROR(+POWER(INDEX(Inputs!$L$70:$L79,AM$6+1,1)/INDEX(Inputs!$L$70:$L$79,AM$6,1),1/(INDEX(Inputs!$C$70:$C$79,AM$6+1,1)-INDEX(Inputs!$C$70:$C$79,AM$6,1)))-1,0) -> -33.84% | AO44: =+IFERROR(+POWER(INDEX(Inputs!$L$70:$L79,AN$6+1,1)/INDEX(Inputs!$L$70:$L$79,AN$6,1),1/(INDEX(Inputs!$C$70:$C$79,AN$6+1,1)-INDEX(Inputs!$C$70:$C$79,AN$6,1)))-1,0) -> -33.84% | AP44: =+IFERROR(+POWER(INDEX(Inputs!$L$70:$L79,AO$6+1,1)/INDEX(Inputs!$L$70:$L$79,AO$6,1),1/(INDEX(Inputs!$C$70:$C$79,AO$6+1,1)-INDEX(Inputs!$C$70:$C$79,AO$6,1)))-1,0) -> -33.84% | AQ44: =+IFERROR(+POWER(INDEX(Inputs!$L$70:$L79,AP$6+1,1)/INDEX(Inputs!$L$70:$L$79,AP$6,1),1/(INDEX(Inputs!$C$70:$C$79,AP$6+1,1)-INDEX(Inputs!$C$70:$C$79,AP$6,1)))-1,0) -> 35.80% | AR44: =+IFERROR(+POWER(INDEX(Inputs!$L$70:$L79,AQ$6+1,1)/INDEX(Inputs!$L$70:$L$79,AQ$6,1),1/(INDEX(Inputs!$C$70:$C$79,AQ$6+1,1)-INDEX(Inputs!$C$70:$C$79,AQ$6,1)))-1,0) -> 35.80% | AS44: =+IFERROR(+POWER(INDEX(Inputs!$L$70:$L79,AR$6+1,1)/INDEX(Inputs!$L$70:$L$79,AR$6,1),1/(INDEX(Inputs!$C$70:$C$79,AR$6+1,1)-INDEX(Inputs!$C$70:$C$79,AR$6,1)))-1,0) -> 35.80% | AT44: =+IFERROR(+POWER(INDEX(Inputs!$L$70:$L79,AS$6+1,1)/INDEX(Inputs!$L$70:$L$79,AS$6,1),1/(INDEX(Inputs!$C$70:$C$79,AS$6+1,1)-INDEX(Inputs!$C$70:$C$79,AS$6,1)))-1,0) -> 35.80% | AU44: =+IFERROR(+POWER(INDEX(Inputs!$L$70:$L79,AT$6+1,1)/INDEX(Inputs!$L$70:$L$79,AT$6,1),1/(INDEX(Inputs!$C$70:$C$79,AT$6+1,1)-INDEX(Inputs!$C$70:$C$79,AT$6,1)))-1,0) -> 35.80% | AV44: =+IFERROR(+POWER(INDEX(Inputs!$L$70:$L79,AU$6+1,1)/INDEX(Inputs!$L$70:$L$79,AU$6,1),1/(INDEX(Inputs!$C$70:$C$79,AU$6+1,1)-INDEX(Inputs!$C$70:$C$79,AU$6,1)))-1,0) -> -3.92% | AW44: =+IFERROR(+POWER(INDEX(Inputs!$L$70:$L79,AV$6+1,1)/INDEX(Inputs!$L$70:$L$79,AV$6,1),1/(INDEX(Inputs!$C$70:$C$79,AV$6+1,1)-INDEX(Inputs!$C$70:$C$79,AV$6,1)))-1,0) -> -3.92% | AX44: =+IFERROR(+POWER(INDEX(Inputs!$L$70:$L79,AW$6+1,1)/INDEX(Inputs!$L$70:$L$79,AW$6,1),1/(INDEX(Inputs!$C$70:$C$79,AW$6+1,1)-INDEX(Inputs!$C$70:$C$79,AW$6,1)))-1,0) -> -3.92% | AY44: =+IFERROR(+POWER(INDEX(Inputs!$L$70:$L79,AX$6+1,1)/INDEX(Inputs!$L$70:$L$79,AX$6,1),1/(INDEX(Inputs!$C$70:$C$79,AX$6+1,1)-INDEX(Inputs!$C$70:$C$79,AX$6,1)))-1,0) -> -3.92% | AZ44: =+IFERROR(+POWER(INDEX(Inputs!$L$70:$L79,AY$6+1,1)/INDEX(Inputs!$L$70:$L$79,AY$6,1),1/(INDEX(Inputs!$C$70:$C$79,AY$6+1,1)-INDEX(Inputs!$C$70:$C$79,AY$6,1)))-1,0) -> -3.92% | BA44: =+IFERROR(+POWER(INDEX(Inputs!$L$70:$L79,AZ$6+1,1)/INDEX(Inputs!$L$70:$L$79,AZ$6,1),1/(INDEX(Inputs!$C$70:$C$79,AZ$6+1,1)-INDEX(Inputs!$C$70:$C$79,AZ$6,1)))-1,0) -> 9.44% | BB44: =+IFERROR(+POWER(INDEX(Inputs!$L$70:$L79,BA$6+1,1)/INDEX(Inputs!$L$70:$L$79,BA$6,1),1/(INDEX(Inputs!$C$70:$C$79,BA$6+1,1)-INDEX(Inputs!$C$70:$C$79,BA$6,1)))-1,0) -> 9.44% | BC44: =+IFERROR(+POWER(INDEX(Inputs!$L$70:$L79,BB$6+1,1)/INDEX(Inputs!$L$70:$L$79,BB$6,1),1/(INDEX(Inputs!$C$70:$C$79,BB$6+1,1)-INDEX(Inputs!$C$70:$C$79,BB$6,1)))-1,0) -> 9.44% | BD44: =+IFERROR(+POWER(INDEX(Inputs!$L$70:$L79,BC$6+1,1)/INDEX(Inputs!$L$70:$L$79,BC$6,1),1/(INDEX(Inputs!$C$70:$C$79,BC$6+1,1)-INDEX(Inputs!$C$70:$C$79,BC$6,1)))-1,0) -> 9.44% | BE44: =+IFERROR(+POWER(INDEX(Inputs!$L$70:$L79,BD$6+1,1)/INDEX(Inputs!$L$70:$L$79,BD$6,1),1/(INDEX(Inputs!$C$70:$C$79,BD$6+1,1)-INDEX(Inputs!$C$70:$C$79,BD$6,1)))-1,0) -> 9.44% | BF44: =+IFERROR(+POWER(INDEX(Inputs!$L$70:$L79,BE$6+1,1)/INDEX(Inputs!$L$70:$L$79,BE$6,1),1/(INDEX(Inputs!$C$70:$C$79,BE$6+1,1)-INDEX(Inputs!$C$70:$C$79,BE$6,1)))-1,0) -> 11.11% | BG44: =+IFERROR(+POWER(INDEX(Inputs!$L$70:$L79,BF$6+1,1)/INDEX(Inputs!$L$70:$L$79,BF$6,1),1/(INDEX(Inputs!$C$70:$C$79,BF$6+1,1)-INDEX(Inputs!$C$70:$C$79,BF$6,1)))-1,0) -> 11.11% | BH44: =+IFERROR(+POWER(INDEX(Inputs!$L$70:$L79,BG$6+1,1)/INDEX(Inputs!$L$70:$L$79,BG$6,1),1/(INDEX(Inputs!$C$70:$C$79,BG$6+1,1)-INDEX(Inputs!$C$70:$C$79,BG$6,1)))-1,0) -> 11.11% | BI44: =+IFERROR(+POWER(INDEX(Inputs!$L$70:$L79,BH$6+1,1)/INDEX(Inputs!$L$70:$L$79,BH$6,1),1/(INDEX(Inputs!$C$70:$C$79,BH$6+1,1)-INDEX(Inputs!$C$70:$C$79,BH$6,1)))-1,0) -> 11.11% | BJ44: =+IFERROR(+POWER(INDEX(Inputs!$L$70:$L79,BI$6+1,1)/INDEX(Inputs!$L$70:$L$79,BI$6,1),1/(INDEX(Inputs!$C$70:$C$79,BI$6+1,1)-INDEX(Inputs!$C$70:$C$79,BI$6,1)))-1,0) -> 11.11%
C45: Major Maintenance Capex | H45: =+Inputs!L17 -> 1 | K45: $000s | N45: =+SUM(Q45:BJ45) -> 303,949 | S45: =+CHOOSE($H$45,S46,S47) -> 5,749 | T45: 4,015 | U45: 2,805 | V45: 1,959 | W45: 2,446 | X45: 3,054 | Y45: 3,812 | Z45: 4,760 | AA45: 5,942 | AB45: 5,332 | AC45: 4,785 | AD45: 4,294 | AE45: 3,853 | AF45: 3,458 | AG45: 4,583 | AH45: 6,074 | AI45: 8,051 | AJ45: 10,670 | AK45: 14,142 | AL45: 9,357 | AM45: 6,191 | AN45: 4,096 | AO45: 2,710 | AP45: 1,793 | AQ45: 2,435 | AR45: 3,307 | AS45: 4,490 | AT45: 6,098 | AU45: 8,281 | AV45: 7,956 | AW45: 7,645 | AX45: 7,346 | AY45: 7,058 | AZ45: 6,781 | BA45: 7,421 | BB45: 8,122 | BC45: 8,888 | BD45: 9,726 | BE45: 10,644 | BF45: 11,827 | BG45: 13,141 | BH45: 14,601 | BI45: 16,224 | BJ45: 18,027 | BK45: 0 | BL45: 0 | BM45: 0 | BN45: 0 | BO45: 0 | BP45: 0 | BQ45: 0 | BR45: 0 | BS45: 0 | BT45: 0 | BU45: 0 | BV45: 0 | BW45: 0 | BX45: 0 | BY45: 0 | BZ45: 0 | CA45: 0 | CB45: 0 | CC45: 0 | CD45: 0 | CE45: =+CHOOSE($H$45,CE46,CE47) -> 0 | CF45: 0 | CG45: 0 | CH45: 0 | CI45: 0 | CJ45: 0 | CK45: 0 | CL45: 0 | CM45: 0 | CN45: 0 | CO45: 0 | CP45: 0 | CQ45: 0 | CR45: 0 | CS45: 0 | CT45: 0 | CU45: 0 | CV45: 0 | CW45: 0 | CX45: 0 | CY45: 0 | CZ45: 0 | DA45: 0 | DB45: 0 | DC45: 0 | DD45: 0 | DE45: 0 | DF45: 0 | DG45: 0 | DH45: 0 | DI45: 0 | DJ45: 0 | DK45: 0 | DL45: 0 | DM45: 0 | DN45: 0 | DO45: 0 | DP45: 0
C46: Major Maintenance Capex Base Case | S46: =+IF(S$6<>R$6,INDEX(Inputs!$L$70:$L$79,S$6,1),R46*(1+S44)) -> 5,749 | T46: =+IF(T$6<>S$6,INDEX(Inputs!$L$70:$L$79,T$6,1),S46*(1+T44)) -> 4,015 | U46: =+IF(U$6<>T$6,INDEX(Inputs!$L$70:$L$79,U$6,1),T46*(1+U44)) -> 2,805 | V46: =+IF(V$6<>U$6,INDEX(Inputs!$L$70:$L$79,V$6,1),U46*(1+V44)) -> 1,959 | W46: =+IF(W$6<>V$6,INDEX(Inputs!$L$70:$L$79,W$6,1),V46*(1+W44)) -> 2,446 | X46: =+IF(X$6<>W$6,INDEX(Inputs!$L$70:$L$79,X$6,1),W46*(1+X44)) -> 3,054 | Y46: =+IF(Y$6<>X$6,INDEX(Inputs!$L$70:$L$79,Y$6,1),X46*(1+Y44)) -> 3,812 | Z46: =+IF(Z$6<>Y$6,INDEX(Inputs!$L$70:$L$79,Z$6,1),Y46*(1+Z44)) -> 4,760 | AA46: =+IF(AA$6<>Z$6,INDEX(Inputs!$L$70:$L$79,AA$6,1),Z46*(1+AA44)) -> 5,942 | AB46: =+IF(AB$6<>AA$6,INDEX(Inputs!$L$70:$L$79,AB$6,1),AA46*(1+AB44)) -> 5,332 | AC46: =+IF(AC$6<>AB$6,INDEX(Inputs!$L$70:$L$79,AC$6,1),AB46*(1+AC44)) -> 4,785 | AD46: =+IF(AD$6<>AC$6,INDEX(Inputs!$L$70:$L$79,AD$6,1),AC46*(1+AD44)) -> 4,294 | AE46: =+IF(AE$6<>AD$6,INDEX(Inputs!$L$70:$L$79,AE$6,1),AD46*(1+AE44)) -> 3,853 | AF46: =+IF(AF$6<>AE$6,INDEX(Inputs!$L$70:$L$79,AF$6,1),AE46*(1+AF44)) -> 3,458 | AG46: =+IF(AG$6<>AF$6,INDEX(Inputs!$L$70:$L$79,AG$6,1),AF46*(1+AG44)) -> 4,583 | AH46: =+IF(AH$6<>AG$6,INDEX(Inputs!$L$70:$L$79,AH$6,1),AG46*(1+AH44)) -> 6,074 | AI46: =+IF(AI$6<>AH$6,INDEX(Inputs!$L$70:$L$79,AI$6,1),AH46*(1+AI44)) -> 8,051 | AJ46: =+IF(AJ$6<>AI$6,INDEX(Inputs!$L$70:$L$79,AJ$6,1),AI46*(1+AJ44)) -> 10,670 | AK46: =+IF(AK$6<>AJ$6,INDEX(Inputs!$L$70:$L$79,AK$6,1),AJ46*(1+AK44)) -> 14,142 | AL46: =+IF(AL$6<>AK$6,INDEX(Inputs!$L$70:$L$79,AL$6,1),AK46*(1+AL44)) -> 9,357 | AM46: =+IF(AM$6<>AL$6,INDEX(Inputs!$L$70:$L$79,AM$6,1),AL46*(1+AM44)) -> 6,191 | AN46: =+IF(AN$6<>AM$6,INDEX(Inputs!$L$70:$L$79,AN$6,1),AM46*(1+AN44)) -> 4,096 | AO46: =+IF(AO$6<>AN$6,INDEX(Inputs!$L$70:$L$79,AO$6,1),AN46*(1+AO44)) -> 2,710 | AP46: =+IF(AP$6<>AO$6,INDEX(Inputs!$L$70:$L$79,AP$6,1),AO46*(1+AP44)) -> 1,793 | AQ46: =+IF(AQ$6<>AP$6,INDEX(Inputs!$L$70:$L$79,AQ$6,1),AP46*(1+AQ44)) -> 2,435 | AR46: =+IF(AR$6<>AQ$6,INDEX(Inputs!$L$70:$L$79,AR$6,1),AQ46*(1+AR44)) -> 3,307 | AS46: =+IF(AS$6<>AR$6,INDEX(Inputs!$L$70:$L$79,AS$6,1),AR46*(1+AS44)) -> 4,490 | AT46: =+IF(AT$6<>AS$6,INDEX(Inputs!$L$70:$L$79,AT$6,1),AS46*(1+AT44)) -> 6,098 | AU46: =+IF(AU$6<>AT$6,INDEX(Inputs!$L$70:$L$79,AU$6,1),AT46*(1+AU44)) -> 8,281 | AV46: =+IF(AV$6<>AU$6,INDEX(Inputs!$L$70:$L$79,AV$6,1),AU46*(1+AV44)) -> 7,956 | AW46: =+IF(AW$6<>AV$6,INDEX(Inputs!$L$70:$L$79,AW$6,1),AV46*(1+AW44)) -> 7,645 | AX46: =+IF(AX$6<>AW$6,INDEX(Inputs!$L$70:$L$79,AX$6,1),AW46*(1+AX44)) -> 7,346 | AY46: =+IF(AY$6<>AX$6,INDEX(Inputs!$L$70:$L$79,AY$6,1),AX46*(1+AY44)) -> 7,058 | AZ46: =+IF(AZ$6<>AY$6,INDEX(Inputs!$L$70:$L$79,AZ$6,1),AY46*(1+AZ44)) -> 6,781 | BA46: =+IF(BA$6<>AZ$6,INDEX(Inputs!$L$70:$L$79,BA$6,1),AZ46*(1+BA44)) -> 7,421 | BB46: =+IF(BB$6<>BA$6,INDEX(Inputs!$L$70:$L$79,BB$6,1),BA46*(1+BB44)) -> 8,122 | BC46: =+IF(BC$6<>BB$6,INDEX(Inputs!$L$70:$L$79,BC$6,1),BB46*(1+BC44)) -> 8,888 | BD46: =+IF(BD$6<>BC$6,INDEX(Inputs!$L$70:$L$79,BD$6,1),BC46*(1+BD44)) -> 9,726 | BE46: =+IF(BE$6<>BD$6,INDEX(Inputs!$L$70:$L$79,BE$6,1),BD46*(1+BE44)) -> 10,644 | BF46: =+IF(BF$6<>BE$6,INDEX(Inputs!$L$70:$L$79,BF$6,1),BE46*(1+BF44)) -> 11,827 | BG46: =+IF(BG$6<>BF$6,INDEX(Inputs!$L$70:$L$79,BG$6,1),BF46*(1+BG44)) -> 13,141 | BH46: =+IF(BH$6<>BG$6,INDEX(Inputs!$L$70:$L$79,BH$6,1),BG46*(1+BH44)) -> 14,601 | BI46: =+IF(BI$6<>BH$6,INDEX(Inputs!$L$70:$L$79,BI$6,1),BH46*(1+BI44)) -> 16,224 | BJ46: =+IF(BJ$6<>BI$6,INDEX(Inputs!$L$70:$L$79,BJ$6,1),BI46*(1+BJ44)) -> 18,027
C49: Major Maintenance Capex (NOMINAL) | K49: $000s | N49: =+SUM(Q49:BJ49) -> 691,497 | S49: =+S45*S25 -> 6,893 | T49: 4,923 | U49: 3,516 | V49: 2,511 | W49: 3,208 | X49: 4,097 | Y49: 5,232 | Z49: 6,682 | AA49: 8,534 | AB49: 7,834 | AC49: 7,192 | AD49: 6,602 | AE49: 6,061 | AF49: 5,564 | AG49: 7,544 | AH49: 10,229 | AI49: 13,869 | AJ49: 18,805 | AK49: 25,497 | AL49: 17,258 | AM49: 11,681 | AN49: 7,906 | AO49: 5,351 | AP49: 3,622 | AQ49: 5,032 | AR49: 6,990 | AS49: 9,711 | AT49: 13,490 | AU49: 18,741 | AV49: 18,421 | AW49: 18,107 | AX49: =+AX45*AX25 -> 17,798 | AY49: 17,494 | AZ49: 17,196 | BA49: 19,251 | BB49: 21,552 | BC49: 24,128 | BD49: 27,012 | BE49: 30,240 | BF49: 34,374 | BG49: 39,072 | BH49: 44,412 | BI49: 50,482 | BJ49: 57,382 | BK49: 0 | BL49: 0 | BM49: 0 | BN49: 0 | BO49: 0 | BP49: 0 | BQ49: 0 | BR49: 0 | BS49: 0 | BT49: 0 | BU49: 0 | BV49: 0 | BW49: 0 | BX49: 0 | BY49: 0 | BZ49: 0 | CA49: 0 | CB49: 0 | CC49: 0 | CD49: =+CD45*CD25 -> 0 | CE49: 0 | CF49: 0 | CG49: 0 | CH49: 0 | CI49: 0 | CJ49: 0 | CK49: 0 | CL49: 0 | CM49: 0 | CN49: 0 | CO49: 0 | CP49: 0 | CQ49: 0 | CR49: 0 | CS49: 0 | CT49: 0 | CU49: 0 | CV49: 0 | CW49: 0 | CX49: 0 | CY49: 0 | CZ49: 0 | DA49: 0 | DB49: 0 | DC49: 0 | DD49: 0 | DE49: 0 | DF49: 0 | DG49: 0 | DH49: 0 | DI49: 0 | DJ49: =+DJ45*DJ25 -> 0 | DK49: 0 | DL49: 0 | DM49: 0 | DN49: 0 | DO49: 0 | DP49: 0
C51: Construction cost
C52: Major Maintenance Capex | H52: =+Inputs!L18 -> 1 | K52: $000s | N52: =+SUM(Q52:BJ52) -> 695 | S52: =+CHOOSE($H$52,S53,S54) -> 695 | T52: 0 | U52: 0 | V52: 0 | W52: 0 | X52: 0 | Y52: 0 | Z52: 0 | AA52: 0 | AB52: 0 | AC52: 0 | AD52: 0 | AE52: 0 | AF52: 0 | AG52: 0 | AH52: 0 | AI52: 0 | AJ52: 0 | AK52: 0 | AL52: 0 | AM52: 0 | AN52: 0 | AO52: 0 | AP52: 0 | AQ52: 0 | AR52: 0 | AS52: 0 | AT52: 0 | AU52: 0 | AV52: 0 | AW52: 0 | AX52: =+CHOOSE($H$52,AX53,AX54) -> 0 | AY52: 0 | AZ52: 0 | BA52: 0 | BB52: 0 | BC52: 0 | BD52: 0 | BE52: 0 | BF52: 0 | BG52: 0 | BH52: 0 | BI52: 0 | BJ52: 0 | BK52: 0 | BL52: 0 | BM52: 0 | BN52: 0 | BO52: 0 | BP52: 0 | BQ52: 0 | BR52: 0 | BS52: 0 | BT52: 0 | BU52: 0 | BV52: 0 | BW52: 0 | BX52: 0 | BY52: 0 | BZ52: 0 | CA52: 0 | CB52: 0 | CC52: 0 | CD52: =+CHOOSE($H$52,CD53,CD54) -> 0 | CE52: 0 | CF52: 0 | CG52: 0 | CH52: 0 | CI52: 0 | CJ52: 0 | CK52: 0 | CL52: 0 | CM52: 0 | CN52: 0 | CO52: 0 | CP52: 0 | CQ52: 0 | CR52: 0 | CS52: 0 | CT52: 0 | CU52: 0 | CV52: 0 | CW52: 0 | CX52: 0 | CY52: 0 | CZ52: 0 | DA52: 0 | DB52: 0 | DC52: 0 | DD52: 0 | DE52: 0 | DF52: 0 | DG52: 0 | DH52: 0 | DI52: 0 | DJ52: =+CHOOSE($H$52,DJ53,DJ54) -> 0 | DK52: 0 | DL52: 0 | DM52: 0 | DN52: 0 | DO52: 0 | DP52: 0
C53: Major Maintenance Capex Scenario 1 | S53: =+IF(S7=2018,Inputs!$L$81,0) -> 695 | T53: =+IF(T7=2018,Inputs!$L$81,0) -> 0 | U53: =+IF(U7=2018,Inputs!$L$81,0) -> 0 | V53: =+IF(V7=2018,Inputs!$L$81,0) -> 0 | W53: =+IF(W7=2018,Inputs!$L$81,0) -> 0 | X53: =+IF(X7=2018,Inputs!$L$81,0) -> 0 | Y53: =+IF(Y7=2018,Inputs!$L$81,0) -> 0 | Z53: =+IF(Z7=2018,Inputs!$L$81,0) -> 0 | AA53: =+IF(AA7=2018,Inputs!$L$81,0) -> 0 | AB53: =+IF(AB7=2018,Inputs!$L$81,0) -> 0 | AC53: =+IF(AC7=2018,Inputs!$L$81,0) -> 0 | AD53: =+IF(AD7=2018,Inputs!$L$81,0) -> 0 | AE53: =+IF(AE7=2018,Inputs!$L$81,0) -> 0 | AF53: =+IF(AF7=2018,Inputs!$L$81,0) -> 0 | AG53: =+IF(AG7=2018,Inputs!$L$81,0) -> 0 | AH53: =+IF(AH7=2018,Inputs!$L$81,0) -> 0 | AI53: =+IF(AI7=2018,Inputs!$L$81,0) -> 0 | AJ53: =+IF(AJ7=2018,Inputs!$L$81,0) -> 0 | AK53: =+IF(AK7=2018,Inputs!$L$81,0) -> 0 | AL53: =+IF(AL7=2018,Inputs!$L$81,0) -> 0 | AM53: =+IF(AM7=2018,Inputs!$L$81,0) -> 0 | AN53: =+IF(AN7=2018,Inputs!$L$81,0) -> 0 | AO53: =+IF(AO7=2018,Inputs!$L$81,0) -> 0 | AP53: =+IF(AP7=2018,Inputs!$L$81,0) -> 0 | AQ53: =+IF(AQ7=2018,Inputs!$L$81,0) -> 0 | AR53: =+IF(AR7=2018,Inputs!$L$81,0) -> 0 | AS53: =+IF(AS7=2018,Inputs!$L$81,0) -> 0 | AT53: =+IF(AT7=2018,Inputs!$L$81,0) -> 0 | AU53: =+IF(AU7=2018,Inputs!$L$81,0) -> 0 | AV53: =+IF(AV7=2018,Inputs!$L$81,0) -> 0 | AW53: =+IF(AW7=2018,Inputs!$L$81,0) -> 0 | AX53: =+IF(AX7=2018,Inputs!$L$81,0) -> 0 | AY53: =+IF(AY7=2018,Inputs!$L$81,0) -> 0 | AZ53: =+IF(AZ7=2018,Inputs!$L$81,0) -> 0 | BA53: =+IF(BA7=2018,Inputs!$L$81,0) -> 0 | BB53: =+IF(BB7=2018,Inputs!$L$81,0) -> 0 | BC53: =+IF(BC7=2018,Inputs!$L$81,0) -> 0 | BD53: =+IF(BD7=2018,Inputs!$L$81,0) -> 0 | BE53: =+IF(BE7=2018,Inputs!$L$81,0) -> 0 | BF53: =+IF(BF7=2018,Inputs!$L$81,0) -> 0 | BG53: =+IF(BG7=2018,Inputs!$L$81,0) -> 0 | BH53: =+IF(BH7=2018,Inputs!$L$81,0) -> 0 | BI53: =+IF(BI7=2018,Inputs!$L$81,0) -> 0 | BJ53: =+IF(BJ7=2018,Inputs!$L$81,0) -> 0 | BK53: =+IF(BK7=2017,Inputs!$L$81,0) -> 0 | BL53: =+IF(BL7=2017,Inputs!$L$81,0) -> 0 | BM53: =+IF(BM7=2017,Inputs!$L$81,0) -> 0 | BN53: =+IF(BN7=2017,Inputs!$L$81,0) -> 0 | BO53: =+IF(BO7=2017,Inputs!$L$81,0) -> 0 | BP53: =+IF(BP7=2017,Inputs!$L$81,0) -> 0 | BQ53: =+IF(BQ7=2017,Inputs!$L$81,0) -> 0 | BR53: =+IF(BR7=2017,Inputs!$L$81,0) -> 0 | BS53: =+IF(BS7=2017,Inputs!$L$81,0) -> 0 | BT53: =+IF(BT7=2017,Inputs!$L$81,0) -> 0 | BU53: =+IF(BU7=2017,Inputs!$L$81,0) -> 0 | BV53: =+IF(BV7=2017,Inputs!$L$81,0) -> 0 | BW53: =+IF(BW7=2017,Inputs!$L$81,0) -> 0 | BX53: =+IF(BX7=2017,Inputs!$L$81,0) -> 0 | BY53: =+IF(BY7=2017,Inputs!$L$81,0) -> 0 | BZ53: =+IF(BZ7=2017,Inputs!$L$81,0) -> 0 | CA53: =+IF(CA7=2017,Inputs!$L$81,0) -> 0 | CB53: =+IF(CB7=2017,Inputs!$L$81,0) -> 0 | CC53: =+IF(CC7=2017,Inputs!$L$81,0) -> 0 | CD53: =+IF(CD7=2017,Inputs!$L$81,0) -> 0 | CE53: =+IF(CE7=2017,Inputs!$L$81,0) -> 0 | CF53: =+IF(CF7=2017,Inputs!$L$81,0) -> 0 | CG53: =+IF(CG7=2017,Inputs!$L$81,0) -> 0 | CH53: =+IF(CH7=2017,Inputs!$L$81,0) -> 0 | CI53: =+IF(CI7=2017,Inputs!$L$81,0) -> 0 | CJ53: =+IF(CJ7=2017,Inputs!$L$81,0) -> 0 | CK53: =+IF(CK7=2017,Inputs!$L$81,0) -> 0 | CL53: =+IF(CL7=2017,Inputs!$L$81,0) -> 0 | CM53: =+IF(CM7=2017,Inputs!$L$81,0) -> 0 | CN53: =+IF(CN7=2017,Inputs!$L$81,0) -> 0 | CO53: =+IF(CO7=2017,Inputs!$L$81,0) -> 0 | CP53: =+IF(CP7=2017,Inputs!$L$81,0) -> 0 | CQ53: =+IF(CQ7=2017,Inputs!$L$81,0) -> 0 | CR53: =+IF(CR7=2017,Inputs!$L$81,0) -> 0 | CS53: =+IF(CS7=2017,Inputs!$L$81,0) -> 0 | CT53: =+IF(CT7=2017,Inputs!$L$81,0) -> 0 | CU53: =+IF(CU7=2017,Inputs!$L$81,0) -> 0 | CV53: =+IF(CV7=2017,Inputs!$L$81,0) -> 0 | CW53: =+IF(CW7=2017,Inputs!$L$81,0) -> 0 | CX53: =+IF(CX7=2017,Inputs!$L$81,0) -> 0 | CY53: =+IF(CY7=2017,Inputs!$L$81,0) -> 0 | CZ53: =+IF(CZ7=2017,Inputs!$L$81,0) -> 0 | DA53: =+IF(DA7=2017,Inputs!$L$81,0) -> 0 | DB53: =+IF(DB7=2017,Inputs!$L$81,0) -> 0 | DC53: =+IF(DC7=2017,Inputs!$L$81,0) -> 0 | DD53: =+IF(DD7=2017,Inputs!$L$81,0) -> 0 | DE53: =+IF(DE7=2017,Inputs!$L$81,0) -> 0 | DF53: =+IF(DF7=2017,Inputs!$L$81,0) -> 0 | DG53: =+IF(DG7=2017,Inputs!$L$81,0) -> 0 | DH53: =+IF(DH7=2017,Inputs!$L$81,0) -> 0 | DI53: =+IF(DI7=2017,Inputs!$L$81,0) -> 0 | DJ53: =+IF(DJ7=2017,Inputs!$L$81,0) -> 0 | DK53: =+IF(DK7=2017,Inputs!$L$81,0) -> 0 | DL53: =+IF(DL7=2017,Inputs!$L$81,0) -> 0 | DM53: =+IF(DM7=2017,Inputs!$L$81,0) -> 0 | DN53: =+IF(DN7=2017,Inputs!$L$81,0) -> 0 | DO53: =+IF(DO7=2017,Inputs!$L$81,0) -> 0 | DP53: =+IF(DP7=2017,Inputs!$L$81,0) -> 0
C56: Construction cost | S56: =+S52*S25 -> 833 | T56: =+T52*T25 -> 0 | U56: 0 | V56: 0 | W56: 0 | X56: 0 | Y56: 0 | Z56: 0 | AA56: 0 | AB56: 0 | AC56: 0 | AD56: 0 | AE56: 0 | AF56: 0 | AG56: 0 | AH56: 0 | AI56: 0 | AJ56: 0 | AK56: 0 | AL56: 0 | AM56: 0 | AN56: 0 | AO56: 0 | AP56: 0 | AQ56: 0 | AR56: 0 | AS56: 0 | AT56: 0 | AU56: 0 | AV56: 0 | AW56: 0 | AX56: 0 | AY56: 0 | AZ56: 0 | BA56: 0 | BB56: 0 | BC56: 0 | BD56: 0 | BE56: 0 | BF56: 0 | BG56: 0 | BH56: 0 | BI56: 0 | BJ56: 0 | BK56: =+BK52*BK25 -> 0 | BL56: 0 | BM56: 0 | BN56: 0 | BO56: 0 | BP56: 0 | BQ56: 0 | BR56: 0 | BS56: 0 | BT56: 0 | BU56: 0 | BV56: 0 | BW56: 0 | BX56: 0 | BY56: 0 | BZ56: 0 | CA56: 0 | CB56: 0 | CC56: 0 | CD56: 0 | CE56: 0 | CF56: 0 | CG56: 0 | CH56: 0 | CI56: 0 | CJ56: 0 | CK56: 0 | CL56: 0 | CM56: 0 | CN56: 0 | CO56: 0 | CP56: 0 | CQ56: =+CQ52*CQ25 -> 0 | CR56: 0 | CS56: 0 | CT56: 0 | CU56: 0 | CV56: 0 | CW56: 0 | CX56: 0 | CY56: 0 | CZ56: 0 | DA56: 0 | DB56: 0 | DC56: 0 | DD56: 0 | DE56: 0 | DF56: 0 | DG56: 0 | DH56: 0 | DI56: 0 | DJ56: 0 | DK56: 0 | DL56: 0 | DM56: 0 | DN56: 0 | DO56: 0 | DP56: 0
B58: Revenue Sharing TxDOT
C61: Revenue | K61: $000s | N61: =+SUM(Q61:BJ61) -> 39,545,579 | S61: =CF!S25 -> 120,886 | T61: =CF!T25 -> 137,801 | U61: =CF!U25 -> 157,083 | V61: =CF!V25 -> 179,064 | W61: =CF!W25 -> 192,605 | X61: =CF!X25 -> 207,170 | Y61: =CF!Y25 -> 222,837 | Z61: =CF!Z25 -> 239,688 | AA61: =CF!AA25 -> 257,814 | AB61: =CF!AB25 -> 278,762 | AC61: =CF!AC25 -> 301,413 | AD61: =CF!AD25 -> 325,904 | AE61: =CF!AE25 -> 352,384 | AF61: =CF!AF25 -> 381,016 | AG61: =CF!AG25 -> 408,456 | AH61: =CF!AH25 -> 437,872 | AI61: =CF!AI25 -> 469,406 | AJ61: =CF!AJ25 -> 503,212 | AK61: =CF!AK25 -> 539,451 | AL61: =CF!AL25 -> 578,675 | AM61: =CF!AM25 -> 620,749 | AN61: =CF!AN25 -> 665,884 | AO61: =CF!AO25 -> 714,299 | AP61: =CF!AP25 -> 766,235 | AQ61: =CF!AQ25 -> 815,048 | AR61: =CF!AR25 -> 866,970 | AS61: =CF!AS25 -> 922,200 | AT61: =CF!AT25 -> 980,949 | AU61: =CF!AU25 -> 1,043,440 | AV61: =CF!AV25 -> 1,107,893 | AW61: =CF!AW25 -> 1,176,328 | AX61: =CF!AX25 -> 1,248,991 | AY61: =CF!AY25 -> 1,326,141 | AZ61: =CF!AZ25 -> 1,408,058 | BA61: =CF!BA25 -> 1,496,986 | BB61: =CF!BB25 -> 1,591,531 | BC61: =CF!BC25 -> 1,692,046 | BD61: =CF!BD25 -> 1,798,910 | BE61: =CF!BE25 -> 1,912,524 | BF61: =CF!BF25 -> 2,058,734 | BG61: =CF!BG25 -> 2,216,121 | BH61: =CF!BH25 -> 2,385,541 | BI61: =CF!BI25 -> 2,567,913 | BJ61: =CF!BJ25 -> 1,870,586 | BK61: =CF!BK25 -> 0 | BL61: =CF!BL25 -> 0 | BM61: =CF!BM25 -> 0 | BN61: =CF!BN25 -> 0 | BO61: =CF!BO25 -> 0 | BP61: =CF!BP25 -> 0 | BQ61: =CF!BQ25 -> 0 | BR61: =CF!BR25 -> 0 | BS61: =CF!BS25 -> 0 | BT61: =CF!BT25 -> 0 | BU61: =CF!BU25 -> 0 | BV61: =CF!BV25 -> 0 | BW61: =CF!BW25 -> 0 | BX61: =CF!BX25 -> 0 | BY61: =CF!BY25 -> 0 | BZ61: =CF!BZ25 -> 0 | CA61: =CF!CA25 -> 0 | CB61: =CF!CB25 -> 0 | CC61: =CF!CC25 -> 0 | CD61: =CF!CD25 -> 0 | CE61: =CF!CE25 -> 0 | CF61: =CF!CF25 -> 0 | CG61: =CF!CG25 -> 0 | CH61: =CF!CH25 -> 0 | CI61: =CF!CI25 -> 0 | CJ61: =CF!CJ25 -> 0 | CK61: =CF!CK25 -> 0 | CL61: =CF!CL25 -> 0 | CM61: =CF!CM25 -> 0 | CN61: =CF!CN25 -> 0 | CO61: =CF!CO25 -> 0 | CP61: =CF!CP25 -> 0 | CQ61: =CF!CQ25 -> 0 | CR61: =CF!CR25 -> 0 | CS61: =CF!CS25 -> 0 | CT61: =CF!CT25 -> 0 | CU61: =CF!CU25 -> 0 | CV61: =CF!CV25 -> 0 | CW61: =CF!CW25 -> 0 | CX61: =CF!CX25 -> 0 | CY61: =CF!CY25 -> 0 | CZ61: =CF!CZ25 -> 0 | DA61: =CF!DA25 -> 0 | DB61: =CF!DB25 -> 0 | DC61: =CF!DC25 -> 0 | DD61: =CF!DD25 -> 0 | DE61: =CF!DE25 -> 0 | DF61: =CF!DF25 -> 0 | DG61: =CF!DG25 -> 0 | DH61: =CF!DH25 -> 0 | DI61: =CF!DI25 -> 0 | DJ61: =CF!DJ25 -> 0 | DK61: =CF!DK25 -> 0 | DL61: =CF!DL25 -> 0 | DM61: =CF!DM25 -> 0 | DN61: =CF!DN25 -> 0 | DO61: =CF!DO25 -> 0 | DP61: =CF!DP25 -> 0
C62: Cumulative Base Case Toll Revenues | S62: =+R62+S61 -> 120,886 | T62: 258,687 | U62: 415,771 | V62: 594,834 | W62: 787,439 | X62: 994,610 | Y62: 1,217,447 | Z62: 1,457,135 | AA62: 1,714,949 | AB62: 1,993,712 | AC62: 2,295,125 | AD62: 2,621,028 | AE62: 2,973,412 | AF62: 3,354,429 | AG62: 3,762,885 | AH62: 4,200,757 | AI62: 4,670,163 | AJ62: 5,173,375 | AK62: 5,712,826 | AL62: 6,291,501 | AM62: 6,912,250 | AN62: 7,578,134 | AO62: 8,292,433 | AP62: 9,058,669 | AQ62: 9,873,717 | AR62: 10,740,687 | AS62: 11,662,887 | AT62: 12,643,836 | AU62: 13,687,276 | AV62: 14,795,169 | AW62: 15,971,497 | AX62: 17,220,488 | AY62: 18,546,630 | AZ62: 19,954,687 | BA62: 21,451,673 | BB62: 23,043,204 | BC62: 24,735,250 | BD62: 26,534,161 | BE62: 28,446,684 | BF62: 30,505,418 | BG62: 32,721,539 | BH62: 35,107,080 | BI62: 37,674,993 | BJ62: 39,545,579 | BK62: 39,545,579 | BL62: 39,545,579 | BM62: 39,545,579 | BN62: 39,545,579 | BO62: 39,545,579 | BP62: 39,545,579 | BQ62: 39,545,579 | BR62: 39,545,579 | BS62: 39,545,579 | BT62: 39,545,579 | BU62: 39,545,579 | BV62: 39,545,579 | BW62: 39,545,579 | BX62: 39,545,579 | BY62: 39,545,579 | BZ62: 39,545,579 | CA62: 39,545,579 | CB62: 39,545,579 | CC62: 39,545,579 | CD62: 39,545,579 | CE62: =+CD62+CE61 -> 39,545,579 | CF62: 39,545,579 | CG62: 39,545,579 | CH62: 39,545,579 | CI62: 39,545,579 | CJ62: 39,545,579 | CK62: 39,545,579 | CL62: 39,545,579 | CM62: 39,545,579 | CN62: 39,545,579 | CO62: 39,545,579 | CP62: 39,545,579 | CQ62: 39,545,579 | CR62: 39,545,579 | CS62: 39,545,579 | CT62: 39,545,579 | CU62: 39,545,579 | CV62: 39,545,579 | CW62: 39,545,579 | CX62: 39,545,579 | CY62: 39,545,579 | CZ62: 39,545,579 | DA62: 39,545,579 | DB62: 39,545,579 | DC62: 39,545,579 | DD62: 39,545,579 | DE62: 39,545,579 | DF62: 39,545,579 | DG62: 39,545,579 | DH62: 39,545,579 | DI62: 39,545,579 | DJ62: 39,545,579 | DK62: 39,545,579 | DL62: 39,545,579 | DM62: 39,545,579 | DN62: 39,545,579 | DO62: 39,545,579 | DP62: 39,545,579
C64: Band 1 Floor | K64: $000s | S64: 0 | T64: 0 | U64: 0 | V64: 0 | W64: 0 | X64: 0 | Y64: 0 | Z64: 0 | AA64: 0 | AB64: 0 | AC64: 0 | AD64: 0 | AE64: 0 | AF64: 0 | AG64: 0 | AH64: 0 | AI64: 0 | AJ64: 0 | AK64: 0 | AL64: 0 | AM64: 0 | AN64: 0 | AO64: 0 | AP64: 0 | AQ64: 0 | AR64: 0 | AS64: 0 | AT64: 0 | AU64: 0 | AV64: 0 | AW64: 0 | AX64: 0 | AY64: 0 | AZ64: 0 | BA64: 0 | BB64: 0 | BC64: 0 | BD64: 0 | BE64: 0 | BF64: 0 | BG64: 0 | BH64: 0 | BI64: 0 | BJ64: 0 | BK64: 0 | BL64: 0 | BM64: 0 | BN64: 0 | BO64: 0 | BP64: 0 | BQ64: 0 | BR64: 0 | BS64: 0 | BT64: 0 | BU64: 0 | BV64: 0 | BW64: 0 | BX64: 0 | BY64: 0 | BZ64: 0 | CA64: 0 | CB64: 0 | CC64: 0 | CD64: 0 | CE64: 0 | CF64: 0 | CG64: 0 | CH64: 0 | CI64: 0 | CJ64: 0 | CK64: 0 | CL64: 0 | CM64: 0 | CN64: 0 | CO64: 0 | CP64: 0 | CQ64: 0 | CR64: 0 | CS64: 0 | CT64: 0 | CU64: 0 | CV64: 0 | CW64: 0 | CX64: 0 | CY64: 0 | CZ64: 0 | DA64: 0 | DB64: 0 | DC64: 0 | DD64: 0 | DE64: 0 | DF64: 0 | DG64: 0 | DH64: 0 | DI64: 0 | DJ64: 0 | DK64: 0 | DL64: 0 | DM64: 0 | DN64: 0 | DO64: 0 | DP64: 0
C65: Band 1 Ceiling | K65: $000s | N65: =+SUM(Q65:BJ65) -> 725,209,488 | S65: 761,057 | T65: 968,233 | U65: 1,191,047 | V65: 1,430,697 | W65: 1,688,470 | X65: 1,955,904 | Y65: 2,233,853 | Z65: 2,533,361 | AA65: 2,856,125 | AB65: 3,203,982 | AC65: 3,578,043 | AD65: 3,981,949 | AE65: 4,418,608 | AF65: 4,888,617 | AG65: 5,394,523 | AH65: 5,939,067 | AI65: 6,525,201 | AJ65: 7,156,100 | AK65: 7,835,183 | AL65: 8,566,132 | AM65: 9,352,906 | AN65: 10,199,769 | AO65: 11,111,312 | AP65: 12,092,473 | AQ65: 13,148,569 | AR65: 14,285,325 | AS65: 15,508,899 | AT65: 16,825,924 | AU65: 18,243,535 | AV65: 19,769,416 | AW65: 21,411,836 | AX65: 23,179,694 | AY65: 25,082,572 | AZ65: 27,130,781 | BA65: 29,335,420 | BB65: 31,708,438 | BC65: 34,262,695 | BD65: 37,012,031 | BE65: 39,971,346 | BF65: 43,156,678 | BG65: 46,585,287 | BH65: 49,576,144 | BI65: 49,576,144 | BJ65: 49,576,144 | BK65: 0 | BL65: 0 | BM65: 0 | BN65: 0 | BO65: 0 | BP65: 0 | BQ65: 0 | BR65: 0 | BS65: 0 | BT65: 0 | BU65: 0 | BV65: 0 | BW65: 0 | BX65: 0 | BY65: 0 | BZ65: 0 | CA65: 0 | CB65: 0 | CC65: 0 | CD65: 0 | CE65: 0 | CF65: 0 | CG65: 0 | CH65: 0 | CI65: 0 | CJ65: 0 | CK65: 0 | CL65: 0 | CM65: 0 | CN65: 0 | CO65: 0 | CP65: 0 | CQ65: 0 | CR65: 0 | CS65: 0 | CT65: 0 | CU65: 0 | CV65: 0 | CW65: 0 | CX65: 0 | CY65: 0 | CZ65: 0 | DA65: 0 | DB65: 0 | DC65: 0 | DD65: 0 | DE65: 0 | DF65: 0 | DG65: 0 | DH65: 0 | DI65: 0 | DJ65: 0 | DK65: 0 | DL65: 0 | DM65: 0 | DN65: 0 | DO65: 0 | DP65: 0
C67: Band 2 Floor | K67: $000s | S67: =S65 -> 761,057 | T67: 968,233 | U67: 1,191,047 | V67: 1,430,697 | W67: 1,688,470 | X67: 1,955,904 | Y67: 2,233,853 | Z67: 2,533,361 | AA67: 2,856,125 | AB67: 3,203,982 | AC67: 3,578,043 | AD67: 3,981,949 | AE67: 4,418,608 | AF67: 4,888,617 | AG67: 5,394,523 | AH67: 5,939,067 | AI67: 6,525,201 | AJ67: 7,156,100 | AK67: 7,835,183 | AL67: 8,566,132 | AM67: 9,352,906 | AN67: 10,199,769 | AO67: 11,111,312 | AP67: =AP65 -> 12,092,473 | AQ67: 13,148,569 | AR67: 14,285,325 | AS67: 15,508,899 | AT67: 16,825,924 | AU67: 18,243,535 | AV67: 19,769,416 | AW67: 21,411,836 | AX67: 23,179,694 | AY67: 25,082,572 | AZ67: 27,130,781 | BA67: 29,335,420 | BB67: 31,708,438 | BC67: 34,262,695 | BD67: 37,012,031 | BE67: 39,971,346 | BF67: 43,156,678 | BG67: 46,585,287 | BH67: 49,576,144 | BI67: 49,576,144 | BJ67: 49,576,144 | BK67: 0 | BL67: 0 | BM67: 0 | BN67: 0 | BO67: 0 | BP67: 0 | BQ67: 0 | BR67: 0 | BS67: 0 | BT67: 0 | BU67: 0 | BV67: =BV65 -> 0 | BW67: 0 | BX67: 0 | BY67: 0 | BZ67: 0 | CA67: 0 | CB67: 0 | CC67: 0 | CD67: 0 | CE67: 0 | CF67: 0 | CG67: 0 | CH67: 0 | CI67: 0 | CJ67: 0 | CK67: 0 | CL67: 0 | CM67: 0 | CN67: 0 | CO67: 0 | CP67: 0 | CQ67: 0 | CR67: 0 | CS67: 0 | CT67: 0 | CU67: 0 | CV67: 0 | CW67: 0 | CX67: 0 | CY67: 0 | CZ67: 0 | DA67: 0 | DB67: =DB65 -> 0 | DC67: 0 | DD67: 0 | DE67: 0 | DF67: 0 | DG67: 0 | DH67: 0 | DI67: 0 | DJ67: 0 | DK67: 0 | DL67: 0 | DM67: 0 | DN67: 0 | DO67: 0 | DP67: 0
C68: Band 2 Ceiling | K68: $000s | N68: =+SUM(Q68:BJ68) -> 891,801,408 | S68: 935,883 | T68: 1,190,651 | U68: 1,464,650 | V68: 1,759,350 | W68: 2,076,337 | X68: 2,405,205 | Y68: 2,747,004 | Z68: 3,115,313 | AA68: 3,512,222 | AB68: 3,939,986 | AC68: 4,399,975 | AD68: 4,896,664 | AE68: 5,433,631 | AF68: 6,011,609 | AG68: 6,633,729 | AH68: 7,303,364 | AI68: 8,024,141 | AJ68: 8,799,967 | AK68: 9,635,047 | AL68: 10,533,906 | AM68: 11,501,414 | AN68: 12,542,815 | AO68: 13,663,753 | AP68: 14,870,302 | AQ68: 16,169,001 | AR68: 17,566,886 | AS68: 19,071,535 | AT68: 20,691,101 | AU68: 22,434,360 | AV68: 24,310,759 | AW68: 26,330,468 | AX68: 28,504,431 | AY68: 30,844,429 | AZ68: 33,363,144 | BA68: 36,074,224 | BB68: 38,992,361 | BC68: 42,133,369 | BD68: 45,514,271 | BE68: 49,153,387 | BF68: 53,070,439 | BG68: 57,286,654 | BH68: 60,964,556 | BI68: 60,964,556 | BJ68: 60,964,556 | BK68: 0 | BL68: 0 | BM68: 0 | BN68: 0 | BO68: 0 | BP68: 0 | BQ68: 0 | BR68: 0 | BS68: 0 | BT68: 0 | BU68: 0 | BV68: 0 | BW68: 0 | BX68: 0 | BY68: 0 | BZ68: 0 | CA68: 0 | CB68: 0 | CC68: 0 | CD68: 0 | CE68: 0 | CF68: 0 | CG68: 0 | CH68: 0 | CI68: 0 | CJ68: 0 | CK68: 0 | CL68: 0 | CM68: 0 | CN68: 0 | CO68: 0 | CP68: 0 | CQ68: 0 | CR68: 0 | CS68: 0 | CT68: 0 | CU68: 0 | CV68: 0 | CW68: 0 | CX68: 0 | CY68: 0 | CZ68: 0 | DA68: 0 | DB68: 0 | DC68: 0 | DD68: 0 | DE68: 0 | DF68: 0 | DG68: 0 | DH68: 0 | DI68: 0 | DJ68: 0 | DK68: 0 | DL68: 0 | DM68: 0 | DN68: 0 | DO68: 0 | DP68: 0
C70: Band 3 Floor | K70: $000s | S70: =S68 -> 935,883 | T70: 1,190,651 | U70: 1,464,650 | V70: 1,759,350 | W70: 2,076,337 | X70: 2,405,205 | Y70: 2,747,004 | Z70: 3,115,313 | AA70: 3,512,222 | AB70: 3,939,986 | AC70: 4,399,975 | AD70: 4,896,664 | AE70: 5,433,631 | AF70: 6,011,609 | AG70: 6,633,729 | AH70: 7,303,364 | AI70: 8,024,141 | AJ70: 8,799,967 | AK70: 9,635,047 | AL70: 10,533,906 | AM70: 11,501,414 | AN70: 12,542,815 | AO70: 13,663,753 | AP70: =AP68 -> 14,870,302 | AQ70: 16,169,001 | AR70: 17,566,886 | AS70: 19,071,535 | AT70: 20,691,101 | AU70: 22,434,360 | AV70: 24,310,759 | AW70: 26,330,468 | AX70: 28,504,431 | AY70: 30,844,429 | AZ70: 33,363,144 | BA70: 36,074,224 | BB70: 38,992,361 | BC70: 42,133,369 | BD70: 45,514,271 | BE70: 49,153,387 | BF70: 53,070,439 | BG70: 57,286,654 | BH70: 60,964,556 | BI70: 60,964,556 | BJ70: 60,964,556 | BK70: 0 | BL70: 0 | BM70: 0 | BN70: 0 | BO70: 0 | BP70: 0 | BQ70: 0 | BR70: 0 | BS70: 0 | BT70: 0 | BU70: 0 | BV70: =BV68 -> 0 | BW70: 0 | BX70: 0 | BY70: 0 | BZ70: 0 | CA70: 0 | CB70: 0 | CC70: 0 | CD70: 0 | CE70: 0 | CF70: 0 | CG70: 0 | CH70: 0 | CI70: 0 | CJ70: 0 | CK70: 0 | CL70: 0 | CM70: 0 | CN70: 0 | CO70: 0 | CP70: 0 | CQ70: 0 | CR70: 0 | CS70: 0 | CT70: 0 | CU70: 0 | CV70: 0 | CW70: 0 | CX70: 0 | CY70: 0 | CZ70: 0 | DA70: 0 | DB70: =DB68 -> 0 | DC70: 0 | DD70: 0 | DE70: 0 | DF70: 0 | DG70: 0 | DH70: 0 | DI70: 0 | DJ70: 0 | DK70: 0 | DL70: 0 | DM70: 0 | DN70: 0 | DO70: 0 | DP70: 0
C71: Band 3 Ceilling | K71: $000s | N71: =+SUM(Q71:BJ71) -> 1,086,156,277 | S71: 1,139,845 | T71: 1,450,136 | U71: 1,783,848 | V71: 2,142,774 | W71: 2,528,844 | X71: 2,929,384 | Y71: 3,345,673 | Z71: 3,794,250 | AA71: 4,277,658 | AB71: 4,798,647 | AC71: 5,358,885 | AD71: 5,963,820 | AE71: 6,617,811 | AF71: 7,321,750 | AG71: 8,079,452 | AH71: 8,895,023 | AI71: 9,772,883 | AJ71: 10,717,789 | AK71: 11,734,862 | AL71: 12,829,614 | AM71: 14,007,976 | AN71: 15,276,336 | AO71: 16,641,565 | AP71: 18,111,063 | AQ71: 19,692,794 | AR71: 21,395,328 | AS71: 23,227,893 | AT71: 25,200,419 | AU71: 27,323,595 | AV71: 29,608,928 | AW71: 32,068,802 | AX71: 34,716,548 | AY71: 37,566,514 | AZ71: 40,634,145 | BA71: 43,936,065 | BB71: 47,490,167 | BC71: 51,315,711 | BD71: 55,433,430 | BE71: 59,865,638 | BF71: 64,636,353 | BG71: 69,771,429 | BH71: 74,250,876 | BI71: 74,250,876 | BJ71: 74,250,876 | BK71: 0 | BL71: 0 | BM71: 0 | BN71: 0 | BO71: 0 | BP71: 0 | BQ71: 0 | BR71: 0 | BS71: 0 | BT71: 0 | BU71: 0 | BV71: 0 | BW71: 0 | BX71: 0 | BY71: 0 | BZ71: 0 | CA71: 0 | CB71: 0 | CC71: 0 | CD71: 0 | CE71: 0 | CF71: 0 | CG71: 0 | CH71: 0 | CI71: 0 | CJ71: 0 | CK71: 0 | CL71: 0 | CM71: 0 | CN71: 0 | CO71: 0 | CP71: 0 | CQ71: 0 | CR71: 0 | CS71: 0 | CT71: 0 | CU71: 0 | CV71: 0 | CW71: 0 | CX71: 0 | CY71: 0 | CZ71: 0 | DA71: 0 | DB71: 0 | DC71: 0 | DD71: 0 | DE71: 0 | DF71: 0 | DG71: 0 | DH71: 0 | DI71: 0 | DJ71: 0 | DK71: 0 | DL71: 0 | DM71: 0 | DN71: 0 | DO71: 0 | DP71: 0
C73: Band 4 Floor | K73: $000s | S73: =S71 -> 1,139,845 | T73: 1,450,136 | U73: 1,783,848 | V73: 2,142,774 | W73: 2,528,844 | X73: 2,929,384 | Y73: 3,345,673 | Z73: 3,794,250 | AA73: 4,277,658 | AB73: 4,798,647 | AC73: 5,358,885 | AD73: 5,963,820 | AE73: 6,617,811 | AF73: 7,321,750 | AG73: 8,079,452 | AH73: 8,895,023 | AI73: 9,772,883 | AJ73: 10,717,789 | AK73: 11,734,862 | AL73: 12,829,614 | AM73: 14,007,976 | AN73: 15,276,336 | AO73: 16,641,565 | AP73: =AP71 -> 18,111,063 | AQ73: 19,692,794 | AR73: 21,395,328 | AS73: 23,227,893 | AT73: 25,200,419 | AU73: 27,323,595 | AV73: 29,608,928 | AW73: 32,068,802 | AX73: 34,716,548 | AY73: 37,566,514 | AZ73: 40,634,145 | BA73: 43,936,065 | BB73: 47,490,167 | BC73: 51,315,711 | BD73: 55,433,430 | BE73: 59,865,638 | BF73: 64,636,353 | BG73: 69,771,429 | BH73: 74,250,876 | BI73: 74,250,876 | BJ73: 74,250,876 | BK73: 0 | BL73: 0 | BM73: 0 | BN73: 0 | BO73: 0 | BP73: 0 | BQ73: 0 | BR73: 0 | BS73: 0 | BT73: 0 | BU73: 0 | BV73: =BV71 -> 0 | BW73: 0 | BX73: 0 | BY73: 0 | BZ73: 0 | CA73: 0 | CB73: 0 | CC73: 0 | CD73: 0 | CE73: 0 | CF73: 0 | CG73: 0 | CH73: 0 | CI73: 0 | CJ73: 0 | CK73: 0 | CL73: 0 | CM73: 0 | CN73: 0 | CO73: 0 | CP73: 0 | CQ73: 0 | CR73: 0 | CS73: 0 | CT73: 0 | CU73: 0 | CV73: 0 | CW73: 0 | CX73: 0 | CY73: 0 | CZ73: 0 | DA73: 0 | DB73: =DB71 -> 0 | DC73: 0 | DD73: 0 | DE73: 0 | DF73: 0 | DG73: 0 | DH73: 0 | DI73: 0 | DJ73: 0 | DK73: 0 | DL73: 0 | DM73: 0 | DN73: 0 | DO73: 0 | DP73: 0
C74: Band 4 Ceilling | K74: $000s | N74: =+SUM(Q74:BJ74) -> 1,230,225,898 | S74: 1,291,036 | T74: 1,642,484 | U74: 2,020,461 | V74: 2,426,996 | W74: 2,864,275 | X74: 3,317,942 | Y74: 3,789,449 | Z74: 4,297,526 | AA74: 4,845,054 | AB74: 5,435,148 | AC74: 6,069,696 | AD74: 6,754,871 | AE74: 7,495,608 | AF74: 8,292,919 | AG74: 9,151,124 | AH74: 10,074,874 | AI74: 11,069,175 | AJ74: 12,139,415 | AK74: 13,291,395 | AL74: 14,531,356 | AM74: 15,866,018 | AN74: 17,302,615 | AO74: 18,848,931 | AP74: 20,513,346 | AQ74: 22,304,880 | AR74: 24,233,241 | AS74: 26,308,880 | AT74: 28,543,045 | AU74: 30,947,844 | AV74: 33,536,307 | AW74: 36,322,463 | AX74: 39,321,410 | AY74: 42,549,401 | AZ74: 46,023,927 | BA74: 49,763,819 | BB74: 53,789,343 | BC74: 58,122,315 | BD74: 62,786,215 | BE74: 67,806,318 | BF74: 73,209,829 | BG74: 79,026,030 | BH74: 84,099,638 | BI74: 84,099,638 | BJ74: 84,099,638 | BK74: 0 | BL74: 0 | BM74: 0 | BN74: 0 | BO74: 0 | BP74: 0 | BQ74: 0 | BR74: 0 | BS74: 0 | BT74: 0 | BU74: 0 | BV74: 0 | BW74: 0 | BX74: 0 | BY74: 0 | BZ74: 0 | CA74: 0 | CB74: 0 | CC74: 0 | CD74: 0 | CE74: 0 | CF74: 0 | CG74: 0 | CH74: 0 | CI74: 0 | CJ74: 0 | CK74: 0 | CL74: 0 | CM74: 0 | CN74: 0 | CO74: 0 | CP74: 0 | CQ74: 0 | CR74: 0 | CS74: 0 | CT74: 0 | CU74: 0 | CV74: 0 | CW74: 0 | CX74: 0 | CY74: 0 | CZ74: 0 | DA74: 0 | DB74: 0 | DC74: 0 | DD74: 0 | DE74: 0 | DF74: 0 | DG74: 0 | DH74: 0 | DI74: 0 | DJ74: 0 | DK74: 0 | DL74: 0 | DM74: 0 | DN74: 0 | DO74: 0 | DP74: 0
C76: Band 5 Floor | K76: $000s | N76: =+SUM(Q76:BJ76) -> 1,230,225,898 | S76: =S74 -> 1,291,036 | T76: 1,642,484 | U76: 2,020,461 | V76: 2,426,996 | W76: 2,864,275 | X76: 3,317,942 | Y76: 3,789,449 | Z76: 4,297,526 | AA76: 4,845,054 | AB76: 5,435,148 | AC76: 6,069,696 | AD76: 6,754,871 | AE76: 7,495,608 | AF76: 8,292,919 | AG76: 9,151,124 | AH76: 10,074,874 | AI76: 11,069,175 | AJ76: 12,139,415 | AK76: 13,291,395 | AL76: 14,531,356 | AM76: 15,866,018 | AN76: 17,302,615 | AO76: 18,848,931 | AP76: =AP74 -> 20,513,346 | AQ76: 22,304,880 | AR76: 24,233,241 | AS76: 26,308,880 | AT76: 28,543,045 | AU76: 30,947,844 | AV76: 33,536,307 | AW76: 36,322,463 | AX76: 39,321,410 | AY76: 42,549,401 | AZ76: 46,023,927 | BA76: 49,763,819 | BB76: 53,789,343 | BC76: 58,122,315 | BD76: 62,786,215 | BE76: 67,806,318 | BF76: 73,209,829 | BG76: 79,026,030 | BH76: 84,099,638 | BI76: 84,099,638 | BJ76: 84,099,638 | BK76: 0 | BL76: 0 | BM76: 0 | BN76: 0 | BO76: 0 | BP76: 0 | BQ76: 0 | BR76: 0 | BS76: 0 | BT76: 0 | BU76: 0 | BV76: =BV74 -> 0 | BW76: 0 | BX76: 0 | BY76: 0 | BZ76: 0 | CA76: 0 | CB76: 0 | CC76: 0 | CD76: 0 | CE76: 0 | CF76: 0 | CG76: 0 | CH76: 0 | CI76: 0 | CJ76: 0 | CK76: 0 | CL76: 0 | CM76: 0 | CN76: 0 | CO76: 0 | CP76: 0 | CQ76: 0 | CR76: 0 | CS76: 0 | CT76: 0 | CU76: 0 | CV76: 0 | CW76: 0 | CX76: 0 | CY76: 0 | CZ76: 0 | DA76: 0 | DB76: =DB74 -> 0 | DC76: 0 | DD76: 0 | DE76: 0 | DF76: 0 | DG76: 0 | DH76: 0 | DI76: 0 | DJ76: 0 | DK76: 0 | DL76: 0 | DM76: 0 | DN76: 0 | DO76: 0 | DP76: 0
C79: Band 1
C80: Revenue Share % | K80: % | N80: 0.00%
C81: Revenues within Band 1 | K81: $000s | S81: =MAX(MIN(S$62-S64,S65-S64),0) -> 120,886 | T81: 258,687 | U81: 415,771 | V81: 594,834 | W81: 787,439 | X81: 994,610 | Y81: 1,217,447 | Z81: 1,457,135 | AA81: 1,714,949 | AB81: 1,993,712 | AC81: 2,295,125 | AD81: 2,621,028 | AE81: 2,973,412 | AF81: 3,354,429 | AG81: 3,762,885 | AH81: 4,200,757 | AI81: 4,670,163 | AJ81: 5,173,375 | AK81: 5,712,826 | AL81: 6,291,501 | AM81: 6,912,250 | AN81: 7,578,134 | AO81: 8,292,433 | AP81: =MAX(MIN(AP$62-AP64,AP65-AP64),0) -> 9,058,669 | AQ81: 9,873,717 | AR81: 10,740,687 | AS81: 11,662,887 | AT81: 12,643,836 | AU81: 13,687,276 | AV81: 14,795,169 | AW81: 15,971,497 | AX81: 17,220,488 | AY81: 18,546,630 | AZ81: 19,954,687 | BA81: 21,451,673 | BB81: 23,043,204 | BC81: 24,735,250 | BD81: 26,534,161 | BE81: 28,446,684 | BF81: 30,505,418 | BG81: 32,721,539 | BH81: 35,107,080 | BI81: 37,674,993 | BJ81: 39,545,579 | BK81: 0 | BL81: 0 | BM81: 0 | BN81: 0 | BO81: 0 | BP81: 0 | BQ81: 0 | BR81: 0 | BS81: 0 | BT81: 0 | BU81: 0 | BV81: =MAX(MIN(BV$62-BV64,BV65-BV64),0) -> 0 | BW81: 0 | BX81: 0 | BY81: 0 | BZ81: 0 | CA81: 0 | CB81: 0 | CC81: 0 | CD81: 0 | CE81: 0 | CF81: 0 | CG81: 0 | CH81: 0 | CI81: 0 | CJ81: 0 | CK81: 0 | CL81: 0 | CM81: 0 | CN81: 0 | CO81: 0 | CP81: 0 | CQ81: 0 | CR81: 0 | CS81: 0 | CT81: 0 | CU81: 0 | CV81: 0 | CW81: 0 | CX81: 0 | CY81: 0 | CZ81: 0 | DA81: 0 | DB81: =MAX(MIN(DB$62-DB64,DB65-DB64),0) -> 0 | DC81: 0 | DD81: 0 | DE81: 0 | DF81: 0 | DG81: 0 | DH81: 0 | DI81: 0 | DJ81: 0 | DK81: 0 | DL81: 0 | DM81: 0 | DN81: 0 | DO81: 0 | DP81: 0
C82: Band 1 Revenue Share | K82: $000s | N82: =SUM(Q82:DP82) -> 0 | S82: =MAX((S81*$N$80-SUM($P82:R$82)),0)*CF!S$13 -> 0 | T82: =MAX((T81*$N$80-SUM($P82:S$82)),0)*CF!T$13 -> 0 | U82: =MAX((U81*$N$80-SUM($P82:T$82)),0)*CF!U$13 -> 0 | V82: =MAX((V81*$N$80-SUM($P82:U$82)),0)*CF!V$13 -> 0 | W82: =MAX((W81*$N$80-SUM($P82:V$82)),0)*CF!W$13 -> 0 | X82: =MAX((X81*$N$80-SUM($P82:W$82)),0)*CF!X$13 -> 0 | Y82: =MAX((Y81*$N$80-SUM($P82:X$82)),0)*CF!Y$13 -> 0 | Z82: =MAX((Z81*$N$80-SUM($P82:Y$82)),0)*CF!Z$13 -> 0 | AA82: =MAX((AA81*$N$80-SUM($P82:Z$82)),0)*CF!AA$13 -> 0 | AB82: =MAX((AB81*$N$80-SUM($P82:AA$82)),0)*CF!AB$13 -> 0 | AC82: =MAX((AC81*$N$80-SUM($P82:AB$82)),0)*CF!AC$13 -> 0 | AD82: =MAX((AD81*$N$80-SUM($P82:AC$82)),0)*CF!AD$13 -> 0 | AE82: =MAX((AE81*$N$80-SUM($P82:AD$82)),0)*CF!AE$13 -> 0 | AF82: =MAX((AF81*$N$80-SUM($P82:AE$82)),0)*CF!AF$13 -> 0 | AG82: =MAX((AG81*$N$80-SUM($P82:AF$82)),0)*CF!AG$13 -> 0 | AH82: =MAX((AH81*$N$80-SUM($P82:AG$82)),0)*CF!AH$13 -> 0 | AI82: =MAX((AI81*$N$80-SUM($P82:AH$82)),0)*CF!AI$13 -> 0 | AJ82: =MAX((AJ81*$N$80-SUM($P82:AI$82)),0)*CF!AJ$13 -> 0 | AK82: =MAX((AK81*$N$80-SUM($P82:AJ$82)),0)*CF!AK$13 -> 0 | AL82: =MAX((AL81*$N$80-SUM($P82:AK$82)),0)*CF!AL$13 -> 0 | AM82: =MAX((AM81*$N$80-SUM($P82:AL$82)),0)*CF!AM$13 -> 0 | AN82: =MAX((AN81*$N$80-SUM($P82:AM$82)),0)*CF!AN$13 -> 0 | AO82: =MAX((AO81*$N$80-SUM($P82:AN$82)),0)*CF!AO$13 -> 0 | AP82: =MAX((AP81*$N$80-SUM($P82:AO$82)),0)*CF!AP$13 -> 0 | AQ82: =MAX((AQ81*$N$80-SUM($P82:AP$82)),0)*CF!AQ$13 -> 0 | AR82: =MAX((AR81*$N$80-SUM($P82:AQ$82)),0)*CF!AR$13 -> 0 | AS82: =MAX((AS81*$N$80-SUM($P82:AR$82)),0)*CF!AS$13 -> 0 | AT82: =MAX((AT81*$N$80-SUM($P82:AS$82)),0)*CF!AT$13 -> 0 | AU82: =MAX((AU81*$N$80-SUM($P82:AT$82)),0)*CF!AU$13 -> 0 | AV82: =MAX((AV81*$N$80-SUM($P82:AU$82)),0)*CF!AV$13 -> 0 | AW82: =MAX((AW81*$N$80-SUM($P82:AV$82)),0)*CF!AW$13 -> 0 | AX82: =MAX((AX81*$N$80-SUM($P82:AW$82)),0)*CF!AX$13 -> 0 | AY82: =MAX((AY81*$N$80-SUM($P82:AX$82)),0)*CF!AY$13 -> 0 | AZ82: =MAX((AZ81*$N$80-SUM($P82:AY$82)),0)*CF!AZ$13 -> 0 | BA82: =MAX((BA81*$N$80-SUM($P82:AZ$82)),0)*CF!BA$13 -> 0 | BB82: =MAX((BB81*$N$80-SUM($P82:BA$82)),0)*CF!BB$13 -> 0 | BC82: =MAX((BC81*$N$80-SUM($P82:BB$82)),0)*CF!BC$13 -> 0 | BD82: =MAX((BD81*$N$80-SUM($P82:BC$82)),0)*CF!BD$13 -> 0 | BE82: =MAX((BE81*$N$80-SUM($P82:BD$82)),0)*CF!BE$13 -> 0 | BF82: =MAX((BF81*$N$80-SUM($P82:BE$82)),0)*CF!BF$13 -> 0 | BG82: =MAX((BG81*$N$80-SUM($P82:BF$82)),0)*CF!BG$13 -> 0 | BH82: =MAX((BH81*$N$80-SUM($P82:BG$82)),0)*CF!BH$13 -> 0 | BI82: =MAX((BI81*$N$80-SUM($P82:BH$82)),0)*CF!BI$13 -> 0 | BJ82: =MAX((BJ81*$N$80-SUM($P82:BI$82)),0)*CF!BJ$13 -> 0 | BK82: =MAX((BK81*$N$80-SUM($P82:BJ$82)),0)*CF!BK$13 -> 0 | BL82: =MAX((BL81*$N$80-SUM($P82:BK$82)),0)*CF!BL$13 -> 0 | BM82: =MAX((BM81*$N$80-SUM($P82:BL$82)),0)*CF!BM$13 -> 0 | BN82: =MAX((BN81*$N$80-SUM($P82:BM$82)),0)*CF!BN$13 -> 0 | BO82: =MAX((BO81*$N$80-SUM($P82:BN$82)),0)*CF!BO$13 -> 0 | BP82: =MAX((BP81*$N$80-SUM($P82:BO$82)),0)*CF!BP$13 -> 0 | BQ82: =MAX((BQ81*$N$80-SUM($P82:BP$82)),0)*CF!BQ$13 -> 0 | BR82: =MAX((BR81*$N$80-SUM($P82:BQ$82)),0)*CF!BR$13 -> 0 | BS82: =MAX((BS81*$N$80-SUM($P82:BR$82)),0)*CF!BS$13 -> 0 | BT82: =MAX((BT81*$N$80-SUM($P82:BS$82)),0)*CF!BT$13 -> 0 | BU82: =MAX((BU81*$N$80-SUM($P82:BT$82)),0)*CF!BU$13 -> 0 | BV82: =MAX((BV81*$N$80-SUM($P82:BU$82)),0)*CF!BV$13 -> 0 | BW82: =MAX((BW81*$N$80-SUM($P82:BV$82)),0)*CF!BW$13 -> 0 | BX82: =MAX((BX81*$N$80-SUM($P82:BW$82)),0)*CF!BX$13 -> 0 | BY82: =MAX((BY81*$N$80-SUM($P82:BX$82)),0)*CF!BY$13 -> 0 | BZ82: =MAX((BZ81*$N$80-SUM($P82:BY$82)),0)*CF!BZ$13 -> 0 | CA82: =MAX((CA81*$N$80-SUM($P82:BZ$82)),0)*CF!CA$13 -> 0 | CB82: =MAX((CB81*$N$80-SUM($P82:CA$82)),0)*CF!CB$13 -> 0 | CC82: =MAX((CC81*$N$80-SUM($P82:CB$82)),0)*CF!CC$13 -> 0 | CD82: =MAX((CD81*$N$80-SUM($P82:CC$82)),0)*CF!CD$13 -> 0 | CE82: =MAX((CE81*$N$80-SUM($P82:CD$82)),0)*CF!CE$13 -> 0 | CF82: =MAX((CF81*$N$80-SUM($P82:CE$82)),0)*CF!CF$13 -> 0 | CG82: =MAX((CG81*$N$80-SUM($P82:CF$82)),0)*CF!CG$13 -> 0 | CH82: =MAX((CH81*$N$80-SUM($P82:CG$82)),0)*CF!CH$13 -> 0 | CI82: =MAX((CI81*$N$80-SUM($P82:CH$82)),0)*CF!CI$13 -> 0 | CJ82: =MAX((CJ81*$N$80-SUM($P82:CI$82)),0)*CF!CJ$13 -> 0 | CK82: =MAX((CK81*$N$80-SUM($P82:CJ$82)),0)*CF!CK$13 -> 0 | CL82: =MAX((CL81*$N$80-SUM($P82:CK$82)),0)*CF!CL$13 -> 0 | CM82: =MAX((CM81*$N$80-SUM($P82:CL$82)),0)*CF!CM$13 -> 0 | CN82: =MAX((CN81*$N$80-SUM($P82:CM$82)),0)*CF!CN$13 -> 0 | CO82: =MAX((CO81*$N$80-SUM($P82:CN$82)),0)*CF!CO$13 -> 0 | CP82: =MAX((CP81*$N$80-SUM($P82:CO$82)),0)*CF!CP$13 -> 0 | CQ82: =MAX((CQ81*$N$80-SUM($P82:CP$82)),0)*CF!CQ$13 -> 0 | CR82: =MAX((CR81*$N$80-SUM($P82:CQ$82)),0)*CF!CR$13 -> 0 | CS82: =MAX((CS81*$N$80-SUM($P82:CR$82)),0)*CF!CS$13 -> 0 | CT82: =MAX((CT81*$N$80-SUM($P82:CS$82)),0)*CF!CT$13 -> 0 | CU82: =MAX((CU81*$N$80-SUM($P82:CT$82)),0)*CF!CU$13 -> 0 | CV82: =MAX((CV81*$N$80-SUM($P82:CU$82)),0)*CF!CV$13 -> 0 | CW82: =MAX((CW81*$N$80-SUM($P82:CV$82)),0)*CF!CW$13 -> 0 | CX82: =MAX((CX81*$N$80-SUM($P82:CW$82)),0)*CF!CX$13 -> 0 | CY82: =MAX((CY81*$N$80-SUM($P82:CX$82)),0)*CF!CY$13 -> 0 | CZ82: =MAX((CZ81*$N$80-SUM($P82:CY$82)),0)*CF!CZ$13 -> 0 | DA82: =MAX((DA81*$N$80-SUM($P82:CZ$82)),0)*CF!DA$13 -> 0 | DB82: =MAX((DB81*$N$80-SUM($P82:DA$82)),0)*CF!DB$13 -> 0 | DC82: =MAX((DC81*$N$80-SUM($P82:DB$82)),0)*CF!DC$13 -> 0 | DD82: =MAX((DD81*$N$80-SUM($P82:DC$82)),0)*CF!DD$13 -> 0 | DE82: =MAX((DE81*$N$80-SUM($P82:DD$82)),0)*CF!DE$13 -> 0 | DF82: =MAX((DF81*$N$80-SUM($P82:DE$82)),0)*CF!DF$13 -> 0 | DG82: =MAX((DG81*$N$80-SUM($P82:DF$82)),0)*CF!DG$13 -> 0 | DH82: =MAX((DH81*$N$80-SUM($P82:DG$82)),0)*CF!DH$13 -> 0 | DI82: =MAX((DI81*$N$80-SUM($P82:DH$82)),0)*CF!DI$13 -> 0 | DJ82: =MAX((DJ81*$N$80-SUM($P82:DI$82)),0)*CF!DJ$13 -> 0 | DK82: =MAX((DK81*$N$80-SUM($P82:DJ$82)),0)*CF!DK$13 -> 0 | DL82: =MAX((DL81*$N$80-SUM($P82:DK$82)),0)*CF!DL$13 -> 0 | DM82: =MAX((DM81*$N$80-SUM($P82:DL$82)),0)*CF!DM$13 -> 0 | DN82: =MAX((DN81*$N$80-SUM($P82:DM$82)),0)*CF!DN$13 -> 0 | DO82: =MAX((DO81*$N$80-SUM($P82:DN$82)),0)*CF!DO$13 -> 0 | DP82: =MAX((DP81*$N$80-SUM($P82:DO$82)),0)*CF!DP$13 -> 0
C84: Band 2
C85: Revenue Share % | K85: % | N85: 12.50%
C86: Revenues within Band 2 | K86: $000s | S86: =MAX(MIN(S$62-S67,S68-S67),0) -> 0 | T86: 0 | U86: 0 | V86: 0 | W86: 0 | X86: 0 | Y86: 0 | Z86: 0 | AA86: 0 | AB86: 0 | AC86: 0 | AD86: 0 | AE86: 0 | AF86: 0 | AG86: 0 | AH86: 0 | AI86: 0 | AJ86: 0 | AK86: 0 | AL86: 0 | AM86: 0 | AN86: 0 | AO86: 0 | AP86: =MAX(MIN(AP$62-AP67,AP68-AP67),0) -> 0 | AQ86: 0 | AR86: 0 | AS86: 0 | AT86: 0 | AU86: 0 | AV86: 0 | AW86: 0 | AX86: 0 | AY86: 0 | AZ86: 0 | BA86: 0 | BB86: 0 | BC86: 0 | BD86: 0 | BE86: 0 | BF86: 0 | BG86: 0 | BH86: 0 | BI86: 0 | BJ86: 0 | BK86: 0 | BL86: 0 | BM86: 0 | BN86: 0 | BO86: 0 | BP86: 0 | BQ86: 0 | BR86: 0 | BS86: 0 | BT86: 0 | BU86: 0 | BV86: =MAX(MIN(BV$62-BV67,BV68-BV67),0) -> 0 | BW86: 0 | BX86: 0 | BY86: 0 | BZ86: 0 | CA86: 0 | CB86: 0 | CC86: 0 | CD86: 0 | CE86: 0 | CF86: 0 | CG86: 0 | CH86: 0 | CI86: 0 | CJ86: 0 | CK86: 0 | CL86: 0 | CM86: 0 | CN86: 0 | CO86: 0 | CP86: 0 | CQ86: 0 | CR86: 0 | CS86: 0 | CT86: 0 | CU86: 0 | CV86: 0 | CW86: 0 | CX86: 0 | CY86: 0 | CZ86: 0 | DA86: 0 | DB86: =MAX(MIN(DB$62-DB67,DB68-DB67),0) -> 0 | DC86: 0 | DD86: 0 | DE86: 0 | DF86: 0 | DG86: 0 | DH86: 0 | DI86: 0 | DJ86: 0 | DK86: 0 | DL86: 0 | DM86: 0 | DN86: 0 | DO86: 0 | DP86: 0
C87: Band 2 Revenue Share | K87: $000s | N87: =SUM(Q87:DP87) -> 0 | S87: =MAX((S86*$N$85-SUM($P$87:R87)),0)*CF!S$13 -> 0 | T87: =MAX((T86*$N$85-SUM($P$87:S87)),0)*CF!T$13 -> 0 | U87: =MAX((U86*$N$85-SUM($P$87:T87)),0)*CF!U$13 -> 0 | V87: =MAX((V86*$N$85-SUM($P$87:U87)),0)*CF!V$13 -> 0 | W87: =MAX((W86*$N$85-SUM($P$87:V87)),0)*CF!W$13 -> 0 | X87: =MAX((X86*$N$85-SUM($P$87:W87)),0)*CF!X$13 -> 0 | Y87: =MAX((Y86*$N$85-SUM($P$87:X87)),0)*CF!Y$13 -> 0 | Z87: =MAX((Z86*$N$85-SUM($P$87:Y87)),0)*CF!Z$13 -> 0 | AA87: =MAX((AA86*$N$85-SUM($P$87:Z87)),0)*CF!AA$13 -> 0 | AB87: =MAX((AB86*$N$85-SUM($P$87:AA87)),0)*CF!AB$13 -> 0 | AC87: =MAX((AC86*$N$85-SUM($P$87:AB87)),0)*CF!AC$13 -> 0 | AD87: =MAX((AD86*$N$85-SUM($P$87:AC87)),0)*CF!AD$13 -> 0 | AE87: =MAX((AE86*$N$85-SUM($P$87:AD87)),0)*CF!AE$13 -> 0 | AF87: =MAX((AF86*$N$85-SUM($P$87:AE87)),0)*CF!AF$13 -> 0 | AG87: =MAX((AG86*$N$85-SUM($P$87:AF87)),0)*CF!AG$13 -> 0 | AH87: =MAX((AH86*$N$85-SUM($P$87:AG87)),0)*CF!AH$13 -> 0 | AI87: =MAX((AI86*$N$85-SUM($P$87:AH87)),0)*CF!AI$13 -> 0 | AJ87: =MAX((AJ86*$N$85-SUM($P$87:AI87)),0)*CF!AJ$13 -> 0 | AK87: =MAX((AK86*$N$85-SUM($P$87:AJ87)),0)*CF!AK$13 -> 0 | AL87: =MAX((AL86*$N$85-SUM($P$87:AK87)),0)*CF!AL$13 -> 0 | AM87: =MAX((AM86*$N$85-SUM($P$87:AL87)),0)*CF!AM$13 -> 0 | AN87: =MAX((AN86*$N$85-SUM($P$87:AM87)),0)*CF!AN$13 -> 0 | AO87: =MAX((AO86*$N$85-SUM($P$87:AN87)),0)*CF!AO$13 -> 0 | AP87: =MAX((AP86*$N$85-SUM($P$87:AO87)),0)*CF!AP$13 -> 0 | AQ87: =MAX((AQ86*$N$85-SUM($P$87:AP87)),0)*CF!AQ$13 -> 0 | AR87: =MAX((AR86*$N$85-SUM($P$87:AQ87)),0)*CF!AR$13 -> 0 | AS87: =MAX((AS86*$N$85-SUM($P$87:AR87)),0)*CF!AS$13 -> 0 | AT87: =MAX((AT86*$N$85-SUM($P$87:AS87)),0)*CF!AT$13 -> 0 | AU87: =MAX((AU86*$N$85-SUM($P$87:AT87)),0)*CF!AU$13 -> 0 | AV87: =MAX((AV86*$N$85-SUM($P$87:AU87)),0)*CF!AV$13 -> 0 | AW87: =MAX((AW86*$N$85-SUM($P$87:AV87)),0)*CF!AW$13 -> 0 | AX87: =MAX((AX86*$N$85-SUM($P$87:AW87)),0)*CF!AX$13 -> 0 | AY87: =MAX((AY86*$N$85-SUM($P$87:AX87)),0)*CF!AY$13 -> 0 | AZ87: =MAX((AZ86*$N$85-SUM($P$87:AY87)),0)*CF!AZ$13 -> 0 | BA87: =MAX((BA86*$N$85-SUM($P$87:AZ87)),0)*CF!BA$13 -> 0 | BB87: =MAX((BB86*$N$85-SUM($P$87:BA87)),0)*CF!BB$13 -> 0 | BC87: =MAX((BC86*$N$85-SUM($P$87:BB87)),0)*CF!BC$13 -> 0 | BD87: =MAX((BD86*$N$85-SUM($P$87:BC87)),0)*CF!BD$13 -> 0 | BE87: =MAX((BE86*$N$85-SUM($P$87:BD87)),0)*CF!BE$13 -> 0 | BF87: =MAX((BF86*$N$85-SUM($P$87:BE87)),0)*CF!BF$13 -> 0 | BG87: =MAX((BG86*$N$85-SUM($P$87:BF87)),0)*CF!BG$13 -> 0 | BH87: =MAX((BH86*$N$85-SUM($P$87:BG87)),0)*CF!BH$13 -> 0 | BI87: =MAX((BI86*$N$85-SUM($P$87:BH87)),0)*CF!BI$13 -> 0 | BJ87: =MAX((BJ86*$N$85-SUM($P$87:BI87)),0)*CF!BJ$13 -> 0 | BK87: =MAX((BK86*$N$85-SUM($P$87:BJ87)),0)*CF!BK$13 -> 0 | BL87: =MAX((BL86*$N$85-SUM($P$87:BK87)),0)*CF!BL$13 -> 0 | BM87: =MAX((BM86*$N$85-SUM($P$87:BL87)),0)*CF!BM$13 -> 0 | BN87: =MAX((BN86*$N$85-SUM($P$87:BM87)),0)*CF!BN$13 -> 0 | BO87: =MAX((BO86*$N$85-SUM($P$87:BN87)),0)*CF!BO$13 -> 0 | BP87: =MAX((BP86*$N$85-SUM($P$87:BO87)),0)*CF!BP$13 -> 0 | BQ87: =MAX((BQ86*$N$85-SUM($P$87:BP87)),0)*CF!BQ$13 -> 0 | BR87: =MAX((BR86*$N$85-SUM($P$87:BQ87)),0)*CF!BR$13 -> 0 | BS87: =MAX((BS86*$N$85-SUM($P$87:BR87)),0)*CF!BS$13 -> 0 | BT87: =MAX((BT86*$N$85-SUM($P$87:BS87)),0)*CF!BT$13 -> 0 | BU87: =MAX((BU86*$N$85-SUM($P$87:BT87)),0)*CF!BU$13 -> 0 | BV87: =MAX((BV86*$N$85-SUM($P$87:BU87)),0)*CF!BV$13 -> 0 | BW87: =MAX((BW86*$N$85-SUM($P$87:BV87)),0)*CF!BW$13 -> 0 | BX87: =MAX((BX86*$N$85-SUM($P$87:BW87)),0)*CF!BX$13 -> 0 | BY87: =MAX((BY86*$N$85-SUM($P$87:BX87)),0)*CF!BY$13 -> 0 | BZ87: =MAX((BZ86*$N$85-SUM($P$87:BY87)),0)*CF!BZ$13 -> 0 | CA87: =MAX((CA86*$N$85-SUM($P$87:BZ87)),0)*CF!CA$13 -> 0 | CB87: =MAX((CB86*$N$85-SUM($P$87:CA87)),0)*CF!CB$13 -> 0 | CC87: =MAX((CC86*$N$85-SUM($P$87:CB87)),0)*CF!CC$13 -> 0 | CD87: =MAX((CD86*$N$85-SUM($P$87:CC87)),0)*CF!CD$13 -> 0 | CE87: =MAX((CE86*$N$85-SUM($P$87:CD87)),0)*CF!CE$13 -> 0 | CF87: =MAX((CF86*$N$85-SUM($P$87:CE87)),0)*CF!CF$13 -> 0 | CG87: =MAX((CG86*$N$85-SUM($P$87:CF87)),0)*CF!CG$13 -> 0 | CH87: =MAX((CH86*$N$85-SUM($P$87:CG87)),0)*CF!CH$13 -> 0 | CI87: =MAX((CI86*$N$85-SUM($P$87:CH87)),0)*CF!CI$13 -> 0 | CJ87: =MAX((CJ86*$N$85-SUM($P$87:CI87)),0)*CF!CJ$13 -> 0 | CK87: =MAX((CK86*$N$85-SUM($P$87:CJ87)),0)*CF!CK$13 -> 0 | CL87: =MAX((CL86*$N$85-SUM($P$87:CK87)),0)*CF!CL$13 -> 0 | CM87: =MAX((CM86*$N$85-SUM($P$87:CL87)),0)*CF!CM$13 -> 0 | CN87: =MAX((CN86*$N$85-SUM($P$87:CM87)),0)*CF!CN$13 -> 0 | CO87: =MAX((CO86*$N$85-SUM($P$87:CN87)),0)*CF!CO$13 -> 0 | CP87: =MAX((CP86*$N$85-SUM($P$87:CO87)),0)*CF!CP$13 -> 0 | CQ87: =MAX((CQ86*$N$85-SUM($P$87:CP87)),0)*CF!CQ$13 -> 0 | CR87: =MAX((CR86*$N$85-SUM($P$87:CQ87)),0)*CF!CR$13 -> 0 | CS87: =MAX((CS86*$N$85-SUM($P$87:CR87)),0)*CF!CS$13 -> 0 | CT87: =MAX((CT86*$N$85-SUM($P$87:CS87)),0)*CF!CT$13 -> 0 | CU87: =MAX((CU86*$N$85-SUM($P$87:CT87)),0)*CF!CU$13 -> 0 | CV87: =MAX((CV86*$N$85-SUM($P$87:CU87)),0)*CF!CV$13 -> 0 | CW87: =MAX((CW86*$N$85-SUM($P$87:CV87)),0)*CF!CW$13 -> 0 | CX87: =MAX((CX86*$N$85-SUM($P$87:CW87)),0)*CF!CX$13 -> 0 | CY87: =MAX((CY86*$N$85-SUM($P$87:CX87)),0)*CF!CY$13 -> 0 | CZ87: =MAX((CZ86*$N$85-SUM($P$87:CY87)),0)*CF!CZ$13 -> 0 | DA87: =MAX((DA86*$N$85-SUM($P$87:CZ87)),0)*CF!DA$13 -> 0 | DB87: =MAX((DB86*$N$85-SUM($P$87:DA87)),0)*CF!DB$13 -> 0 | DC87: =MAX((DC86*$N$85-SUM($P$87:DB87)),0)*CF!DC$13 -> 0 | DD87: =MAX((DD86*$N$85-SUM($P$87:DC87)),0)*CF!DD$13 -> 0 | DE87: =MAX((DE86*$N$85-SUM($P$87:DD87)),0)*CF!DE$13 -> 0 | DF87: =MAX((DF86*$N$85-SUM($P$87:DE87)),0)*CF!DF$13 -> 0 | DG87: =MAX((DG86*$N$85-SUM($P$87:DF87)),0)*CF!DG$13 -> 0 | DH87: =MAX((DH86*$N$85-SUM($P$87:DG87)),0)*CF!DH$13 -> 0 | DI87: =MAX((DI86*$N$85-SUM($P$87:DH87)),0)*CF!DI$13 -> 0 | DJ87: =MAX((DJ86*$N$85-SUM($P$87:DI87)),0)*CF!DJ$13 -> 0 | DK87: =MAX((DK86*$N$85-SUM($P$87:DJ87)),0)*CF!DK$13 -> 0 | DL87: =MAX((DL86*$N$85-SUM($P$87:DK87)),0)*CF!DL$13 -> 0 | DM87: =MAX((DM86*$N$85-SUM($P$87:DL87)),0)*CF!DM$13 -> 0 | DN87: =MAX((DN86*$N$85-SUM($P$87:DM87)),0)*CF!DN$13 -> 0 | DO87: =MAX((DO86*$N$85-SUM($P$87:DN87)),0)*CF!DO$13 -> 0 | DP87: =MAX((DP86*$N$85-SUM($P$87:DO87)),0)*CF!DP$13 -> 0
C89: Band 3
C90: Revenue Share % | K90: % | N90: 25.00%
C91: Revenues within Band 3 | K91: $000s | S91: =MAX(MIN(S$62-S70,S71-S70),0) -> 0 | T91: 0 | U91: 0 | V91: 0 | W91: 0 | X91: 0 | Y91: 0 | Z91: 0 | AA91: 0 | AB91: 0 | AC91: 0 | AD91: 0 | AE91: 0 | AF91: 0 | AG91: 0 | AH91: 0 | AI91: 0 | AJ91: 0 | AK91: 0 | AL91: 0 | AM91: 0 | AN91: 0 | AO91: 0 | AP91: =MAX(MIN(AP$62-AP70,AP71-AP70),0) -> 0 | AQ91: 0 | AR91: 0 | AS91: 0 | AT91: 0 | AU91: 0 | AV91: 0 | AW91: 0 | AX91: 0 | AY91: 0 | AZ91: 0 | BA91: 0 | BB91: 0 | BC91: 0 | BD91: 0 | BE91: 0 | BF91: 0 | BG91: 0 | BH91: 0 | BI91: 0 | BJ91: 0 | BK91: 0 | BL91: 0 | BM91: 0 | BN91: 0 | BO91: 0 | BP91: 0 | BQ91: 0 | BR91: 0 | BS91: 0 | BT91: 0 | BU91: 0 | BV91: =MAX(MIN(BV$62-BV70,BV71-BV70),0) -> 0 | BW91: 0 | BX91: 0 | BY91: 0 | BZ91: 0 | CA91: 0 | CB91: 0 | CC91: 0 | CD91: 0 | CE91: 0 | CF91: 0 | CG91: 0 | CH91: 0 | CI91: 0 | CJ91: 0 | CK91: 0 | CL91: 0 | CM91: 0 | CN91: 0 | CO91: 0 | CP91: 0 | CQ91: 0 | CR91: 0 | CS91: 0 | CT91: 0 | CU91: 0 | CV91: 0 | CW91: 0 | CX91: 0 | CY91: 0 | CZ91: 0 | DA91: 0 | DB91: =MAX(MIN(DB$62-DB70,DB71-DB70),0) -> 0 | DC91: 0 | DD91: 0 | DE91: 0 | DF91: 0 | DG91: 0 | DH91: 0 | DI91: 0 | DJ91: 0 | DK91: 0 | DL91: 0 | DM91: 0 | DN91: 0 | DO91: 0 | DP91: 0
C92: Band 3 Revenue Share | K92: $000s | N92: =SUM(Q92:DP92) -> 0 | S92: =MAX((S91*$N$90-SUM($P$92:R92)),0)*CF!S$13 -> 0 | T92: =MAX((T91*$N$90-SUM($P$92:S92)),0)*CF!T$13 -> 0 | U92: =MAX((U91*$N$90-SUM($P$92:T92)),0)*CF!U$13 -> 0 | V92: =MAX((V91*$N$90-SUM($P$92:U92)),0)*CF!V$13 -> 0 | W92: =MAX((W91*$N$90-SUM($P$92:V92)),0)*CF!W$13 -> 0 | X92: =MAX((X91*$N$90-SUM($P$92:W92)),0)*CF!X$13 -> 0 | Y92: =MAX((Y91*$N$90-SUM($P$92:X92)),0)*CF!Y$13 -> 0 | Z92: =MAX((Z91*$N$90-SUM($P$92:Y92)),0)*CF!Z$13 -> 0 | AA92: =MAX((AA91*$N$90-SUM($P$92:Z92)),0)*CF!AA$13 -> 0 | AB92: =MAX((AB91*$N$90-SUM($P$92:AA92)),0)*CF!AB$13 -> 0 | AC92: =MAX((AC91*$N$90-SUM($P$92:AB92)),0)*CF!AC$13 -> 0 | AD92: =MAX((AD91*$N$90-SUM($P$92:AC92)),0)*CF!AD$13 -> 0 | AE92: =MAX((AE91*$N$90-SUM($P$92:AD92)),0)*CF!AE$13 -> 0 | AF92: =MAX((AF91*$N$90-SUM($P$92:AE92)),0)*CF!AF$13 -> 0 | AG92: =MAX((AG91*$N$90-SUM($P$92:AF92)),0)*CF!AG$13 -> 0 | AH92: =MAX((AH91*$N$90-SUM($P$92:AG92)),0)*CF!AH$13 -> 0 | AI92: =MAX((AI91*$N$90-SUM($P$92:AH92)),0)*CF!AI$13 -> 0 | AJ92: =MAX((AJ91*$N$90-SUM($P$92:AI92)),0)*CF!AJ$13 -> 0 | AK92: =MAX((AK91*$N$90-SUM($P$92:AJ92)),0)*CF!AK$13 -> 0 | AL92: =MAX((AL91*$N$90-SUM($P$92:AK92)),0)*CF!AL$13 -> 0 | AM92: =MAX((AM91*$N$90-SUM($P$92:AL92)),0)*CF!AM$13 -> 0 | AN92: =MAX((AN91*$N$90-SUM($P$92:AM92)),0)*CF!AN$13 -> 0 | AO92: =MAX((AO91*$N$90-SUM($P$92:AN92)),0)*CF!AO$13 -> 0 | AP92: =MAX((AP91*$N$90-SUM($P$92:AO92)),0)*CF!AP$13 -> 0 | AQ92: =MAX((AQ91*$N$90-SUM($P$92:AP92)),0)*CF!AQ$13 -> 0 | AR92: =MAX((AR91*$N$90-SUM($P$92:AQ92)),0)*CF!AR$13 -> 0 | AS92: =MAX((AS91*$N$90-SUM($P$92:AR92)),0)*CF!AS$13 -> 0 | AT92: =MAX((AT91*$N$90-SUM($P$92:AS92)),0)*CF!AT$13 -> 0 | AU92: =MAX((AU91*$N$90-SUM($P$92:AT92)),0)*CF!AU$13 -> 0 | AV92: =MAX((AV91*$N$90-SUM($P$92:AU92)),0)*CF!AV$13 -> 0 | AW92: =MAX((AW91*$N$90-SUM($P$92:AV92)),0)*CF!AW$13 -> 0 | AX92: =MAX((AX91*$N$90-SUM($P$92:AW92)),0)*CF!AX$13 -> 0 | AY92: =MAX((AY91*$N$90-SUM($P$92:AX92)),0)*CF!AY$13 -> 0 | AZ92: =MAX((AZ91*$N$90-SUM($P$92:AY92)),0)*CF!AZ$13 -> 0 | BA92: =MAX((BA91*$N$90-SUM($P$92:AZ92)),0)*CF!BA$13 -> 0 | BB92: =MAX((BB91*$N$90-SUM($P$92:BA92)),0)*CF!BB$13 -> 0 | BC92: =MAX((BC91*$N$90-SUM($P$92:BB92)),0)*CF!BC$13 -> 0 | BD92: =MAX((BD91*$N$90-SUM($P$92:BC92)),0)*CF!BD$13 -> 0 | BE92: =MAX((BE91*$N$90-SUM($P$92:BD92)),0)*CF!BE$13 -> 0 | BF92: =MAX((BF91*$N$90-SUM($P$92:BE92)),0)*CF!BF$13 -> 0 | BG92: =MAX((BG91*$N$90-SUM($P$92:BF92)),0)*CF!BG$13 -> 0 | BH92: =MAX((BH91*$N$90-SUM($P$92:BG92)),0)*CF!BH$13 -> 0 | BI92: =MAX((BI91*$N$90-SUM($P$92:BH92)),0)*CF!BI$13 -> 0 | BJ92: =MAX((BJ91*$N$90-SUM($P$92:BI92)),0)*CF!BJ$13 -> 0 | BK92: =MAX((BK91*$N$90-SUM($P$92:BJ92)),0)*CF!BK$13 -> 0 | BL92: =MAX((BL91*$N$90-SUM($P$92:BK92)),0)*CF!BL$13 -> 0 | BM92: =MAX((BM91*$N$90-SUM($P$92:BL92)),0)*CF!BM$13 -> 0 | BN92: =MAX((BN91*$N$90-SUM($P$92:BM92)),0)*CF!BN$13 -> 0 | BO92: =MAX((BO91*$N$90-SUM($P$92:BN92)),0)*CF!BO$13 -> 0 | BP92: =MAX((BP91*$N$90-SUM($P$92:BO92)),0)*CF!BP$13 -> 0 | BQ92: =MAX((BQ91*$N$90-SUM($P$92:BP92)),0)*CF!BQ$13 -> 0 | BR92: =MAX((BR91*$N$90-SUM($P$92:BQ92)),0)*CF!BR$13 -> 0 | BS92: =MAX((BS91*$N$90-SUM($P$92:BR92)),0)*CF!BS$13 -> 0 | BT92: =MAX((BT91*$N$90-SUM($P$92:BS92)),0)*CF!BT$13 -> 0 | BU92: =MAX((BU91*$N$90-SUM($P$92:BT92)),0)*CF!BU$13 -> 0 | BV92: =MAX((BV91*$N$90-SUM($P$92:BU92)),0)*CF!BV$13 -> 0 | BW92: =MAX((BW91*$N$90-SUM($P$92:BV92)),0)*CF!BW$13 -> 0 | BX92: =MAX((BX91*$N$90-SUM($P$92:BW92)),0)*CF!BX$13 -> 0 | BY92: =MAX((BY91*$N$90-SUM($P$92:BX92)),0)*CF!BY$13 -> 0 | BZ92: =MAX((BZ91*$N$90-SUM($P$92:BY92)),0)*CF!BZ$13 -> 0 | CA92: =MAX((CA91*$N$90-SUM($P$92:BZ92)),0)*CF!CA$13 -> 0 | CB92: =MAX((CB91*$N$90-SUM($P$92:CA92)),0)*CF!CB$13 -> 0 | CC92: =MAX((CC91*$N$90-SUM($P$92:CB92)),0)*CF!CC$13 -> 0 | CD92: =MAX((CD91*$N$90-SUM($P$92:CC92)),0)*CF!CD$13 -> 0 | CE92: =MAX((CE91*$N$90-SUM($P$92:CD92)),0)*CF!CE$13 -> 0 | CF92: =MAX((CF91*$N$90-SUM($P$92:CE92)),0)*CF!CF$13 -> 0 | CG92: =MAX((CG91*$N$90-SUM($P$92:CF92)),0)*CF!CG$13 -> 0 | CH92: =MAX((CH91*$N$90-SUM($P$92:CG92)),0)*CF!CH$13 -> 0 | CI92: =MAX((CI91*$N$90-SUM($P$92:CH92)),0)*CF!CI$13 -> 0 | CJ92: =MAX((CJ91*$N$90-SUM($P$92:CI92)),0)*CF!CJ$13 -> 0 | CK92: =MAX((CK91*$N$90-SUM($P$92:CJ92)),0)*CF!CK$13 -> 0 | CL92: =MAX((CL91*$N$90-SUM($P$92:CK92)),0)*CF!CL$13 -> 0 | CM92: =MAX((CM91*$N$90-SUM($P$92:CL92)),0)*CF!CM$13 -> 0 | CN92: =MAX((CN91*$N$90-SUM($P$92:CM92)),0)*CF!CN$13 -> 0 | CO92: =MAX((CO91*$N$90-SUM($P$92:CN92)),0)*CF!CO$13 -> 0 | CP92: =MAX((CP91*$N$90-SUM($P$92:CO92)),0)*CF!CP$13 -> 0 | CQ92: =MAX((CQ91*$N$90-SUM($P$92:CP92)),0)*CF!CQ$13 -> 0 | CR92: =MAX((CR91*$N$90-SUM($P$92:CQ92)),0)*CF!CR$13 -> 0 | CS92: =MAX((CS91*$N$90-SUM($P$92:CR92)),0)*CF!CS$13 -> 0 | CT92: =MAX((CT91*$N$90-SUM($P$92:CS92)),0)*CF!CT$13 -> 0 | CU92: =MAX((CU91*$N$90-SUM($P$92:CT92)),0)*CF!CU$13 -> 0 | CV92: =MAX((CV91*$N$90-SUM($P$92:CU92)),0)*CF!CV$13 -> 0 | CW92: =MAX((CW91*$N$90-SUM($P$92:CV92)),0)*CF!CW$13 -> 0 | CX92: =MAX((CX91*$N$90-SUM($P$92:CW92)),0)*CF!CX$13 -> 0 | CY92: =MAX((CY91*$N$90-SUM($P$92:CX92)),0)*CF!CY$13 -> 0 | CZ92: =MAX((CZ91*$N$90-SUM($P$92:CY92)),0)*CF!CZ$13 -> 0 | DA92: =MAX((DA91*$N$90-SUM($P$92:CZ92)),0)*CF!DA$13 -> 0 | DB92: =MAX((DB91*$N$90-SUM($P$92:DA92)),0)*CF!DB$13 -> 0 | DC92: =MAX((DC91*$N$90-SUM($P$92:DB92)),0)*CF!DC$13 -> 0 | DD92: =MAX((DD91*$N$90-SUM($P$92:DC92)),0)*CF!DD$13 -> 0 | DE92: =MAX((DE91*$N$90-SUM($P$92:DD92)),0)*CF!DE$13 -> 0 | DF92: =MAX((DF91*$N$90-SUM($P$92:DE92)),0)*CF!DF$13 -> 0 | DG92: =MAX((DG91*$N$90-SUM($P$92:DF92)),0)*CF!DG$13 -> 0 | DH92: =MAX((DH91*$N$90-SUM($P$92:DG92)),0)*CF!DH$13 -> 0 | DI92: =MAX((DI91*$N$90-SUM($P$92:DH92)),0)*CF!DI$13 -> 0 | DJ92: =MAX((DJ91*$N$90-SUM($P$92:DI92)),0)*CF!DJ$13 -> 0 | DK92: =MAX((DK91*$N$90-SUM($P$92:DJ92)),0)*CF!DK$13 -> 0 | DL92: =MAX((DL91*$N$90-SUM($P$92:DK92)),0)*CF!DL$13 -> 0 | DM92: =MAX((DM91*$N$90-SUM($P$92:DL92)),0)*CF!DM$13 -> 0 | DN92: =MAX((DN91*$N$90-SUM($P$92:DM92)),0)*CF!DN$13 -> 0 | DO92: =MAX((DO91*$N$90-SUM($P$92:DN92)),0)*CF!DO$13 -> 0 | DP92: =MAX((DP91*$N$90-SUM($P$92:DO92)),0)*CF!DP$13 -> 0
C94: Band 4
C95: Revenue Share % | K95: % | N95: 50.00%
C96: Revenues within Band 4 | K96: $000s | S96: =MAX(MIN(S$62-S73,S74-S73),0) -> 0 | T96: 0 | U96: 0 | V96: 0 | W96: 0 | X96: 0 | Y96: 0 | Z96: 0 | AA96: 0 | AB96: 0 | AC96: 0 | AD96: 0 | AE96: 0 | AF96: 0 | AG96: 0 | AH96: 0 | AI96: 0 | AJ96: 0 | AK96: 0 | AL96: 0 | AM96: 0 | AN96: 0 | AO96: 0 | AP96: =MAX(MIN(AP$62-AP73,AP74-AP73),0) -> 0 | AQ96: 0 | AR96: 0 | AS96: 0 | AT96: 0 | AU96: 0 | AV96: 0 | AW96: 0 | AX96: 0 | AY96: 0 | AZ96: 0 | BA96: 0 | BB96: 0 | BC96: 0 | BD96: 0 | BE96: 0 | BF96: 0 | BG96: 0 | BH96: 0 | BI96: 0 | BJ96: 0 | BK96: 0 | BL96: 0 | BM96: 0 | BN96: 0 | BO96: 0 | BP96: 0 | BQ96: 0 | BR96: 0 | BS96: 0 | BT96: 0 | BU96: 0 | BV96: =MAX(MIN(BV$62-BV73,BV74-BV73),0) -> 0 | BW96: 0 | BX96: 0 | BY96: 0 | BZ96: 0 | CA96: 0 | CB96: 0 | CC96: 0 | CD96: 0 | CE96: 0 | CF96: 0 | CG96: 0 | CH96: 0 | CI96: 0 | CJ96: 0 | CK96: 0 | CL96: 0 | CM96: 0 | CN96: 0 | CO96: 0 | CP96: 0 | CQ96: 0 | CR96: 0 | CS96: 0 | CT96: 0 | CU96: 0 | CV96: 0 | CW96: 0 | CX96: 0 | CY96: 0 | CZ96: 0 | DA96: 0 | DB96: =MAX(MIN(DB$62-DB73,DB74-DB73),0) -> 0 | DC96: 0 | DD96: 0 | DE96: 0 | DF96: 0 | DG96: 0 | DH96: 0 | DI96: 0 | DJ96: 0 | DK96: 0 | DL96: 0 | DM96: 0 | DN96: 0 | DO96: 0 | DP96: 0
C97: Band 4 Revenue Share | K97: $000s | N97: =SUM(Q97:DP97) -> 0 | S97: =MAX((S96*$N$95-SUM($P$97:R97)),0)*CF!S$13 -> 0 | T97: =MAX((T96*$N$95-SUM($P$97:S97)),0)*CF!T$13 -> 0 | U97: =MAX((U96*$N$95-SUM($P$97:T97)),0)*CF!U$13 -> 0 | V97: =MAX((V96*$N$95-SUM($P$97:U97)),0)*CF!V$13 -> 0 | W97: =MAX((W96*$N$95-SUM($P$97:V97)),0)*CF!W$13 -> 0 | X97: =MAX((X96*$N$95-SUM($P$97:W97)),0)*CF!X$13 -> 0 | Y97: =MAX((Y96*$N$95-SUM($P$97:X97)),0)*CF!Y$13 -> 0 | Z97: =MAX((Z96*$N$95-SUM($P$97:Y97)),0)*CF!Z$13 -> 0 | AA97: =MAX((AA96*$N$95-SUM($P$97:Z97)),0)*CF!AA$13 -> 0 | AB97: =MAX((AB96*$N$95-SUM($P$97:AA97)),0)*CF!AB$13 -> 0 | AC97: =MAX((AC96*$N$95-SUM($P$97:AB97)),0)*CF!AC$13 -> 0 | AD97: =MAX((AD96*$N$95-SUM($P$97:AC97)),0)*CF!AD$13 -> 0 | AE97: =MAX((AE96*$N$95-SUM($P$97:AD97)),0)*CF!AE$13 -> 0 | AF97: =MAX((AF96*$N$95-SUM($P$97:AE97)),0)*CF!AF$13 -> 0 | AG97: =MAX((AG96*$N$95-SUM($P$97:AF97)),0)*CF!AG$13 -> 0 | AH97: =MAX((AH96*$N$95-SUM($P$97:AG97)),0)*CF!AH$13 -> 0 | AI97: =MAX((AI96*$N$95-SUM($P$97:AH97)),0)*CF!AI$13 -> 0 | AJ97: =MAX((AJ96*$N$95-SUM($P$97:AI97)),0)*CF!AJ$13 -> 0 | AK97: =MAX((AK96*$N$95-SUM($P$97:AJ97)),0)*CF!AK$13 -> 0 | AL97: =MAX((AL96*$N$95-SUM($P$97:AK97)),0)*CF!AL$13 -> 0 | AM97: =MAX((AM96*$N$95-SUM($P$97:AL97)),0)*CF!AM$13 -> 0 | AN97: =MAX((AN96*$N$95-SUM($P$97:AM97)),0)*CF!AN$13 -> 0 | AO97: =MAX((AO96*$N$95-SUM($P$97:AN97)),0)*CF!AO$13 -> 0 | AP97: =MAX((AP96*$N$95-SUM($P$97:AO97)),0)*CF!AP$13 -> 0 | AQ97: =MAX((AQ96*$N$95-SUM($P$97:AP97)),0)*CF!AQ$13 -> 0 | AR97: =MAX((AR96*$N$95-SUM($P$97:AQ97)),0)*CF!AR$13 -> 0 | AS97: =MAX((AS96*$N$95-SUM($P$97:AR97)),0)*CF!AS$13 -> 0 | AT97: =MAX((AT96*$N$95-SUM($P$97:AS97)),0)*CF!AT$13 -> 0 | AU97: =MAX((AU96*$N$95-SUM($P$97:AT97)),0)*CF!AU$13 -> 0 | AV97: =MAX((AV96*$N$95-SUM($P$97:AU97)),0)*CF!AV$13 -> 0 | AW97: =MAX((AW96*$N$95-SUM($P$97:AV97)),0)*CF!AW$13 -> 0 | AX97: =MAX((AX96*$N$95-SUM($P$97:AW97)),0)*CF!AX$13 -> 0 | AY97: =MAX((AY96*$N$95-SUM($P$97:AX97)),0)*CF!AY$13 -> 0 | AZ97: =MAX((AZ96*$N$95-SUM($P$97:AY97)),0)*CF!AZ$13 -> 0 | BA97: =MAX((BA96*$N$95-SUM($P$97:AZ97)),0)*CF!BA$13 -> 0 | BB97: =MAX((BB96*$N$95-SUM($P$97:BA97)),0)*CF!BB$13 -> 0 | BC97: =MAX((BC96*$N$95-SUM($P$97:BB97)),0)*CF!BC$13 -> 0 | BD97: =MAX((BD96*$N$95-SUM($P$97:BC97)),0)*CF!BD$13 -> 0 | BE97: =MAX((BE96*$N$95-SUM($P$97:BD97)),0)*CF!BE$13 -> 0 | BF97: =MAX((BF96*$N$95-SUM($P$97:BE97)),0)*CF!BF$13 -> 0 | BG97: =MAX((BG96*$N$95-SUM($P$97:BF97)),0)*CF!BG$13 -> 0 | BH97: =MAX((BH96*$N$95-SUM($P$97:BG97)),0)*CF!BH$13 -> 0 | BI97: =MAX((BI96*$N$95-SUM($P$97:BH97)),0)*CF!BI$13 -> 0 | BJ97: =MAX((BJ96*$N$95-SUM($P$97:BI97)),0)*CF!BJ$13 -> 0 | BK97: =MAX((BK96*$N$95-SUM($P$97:BJ97)),0)*CF!BK$13 -> 0 | BL97: =MAX((BL96*$N$95-SUM($P$97:BK97)),0)*CF!BL$13 -> 0 | BM97: =MAX((BM96*$N$95-SUM($P$97:BL97)),0)*CF!BM$13 -> 0 | BN97: =MAX((BN96*$N$95-SUM($P$97:BM97)),0)*CF!BN$13 -> 0 | BO97: =MAX((BO96*$N$95-SUM($P$97:BN97)),0)*CF!BO$13 -> 0 | BP97: =MAX((BP96*$N$95-SUM($P$97:BO97)),0)*CF!BP$13 -> 0 | BQ97: =MAX((BQ96*$N$95-SUM($P$97:BP97)),0)*CF!BQ$13 -> 0 | BR97: =MAX((BR96*$N$95-SUM($P$97:BQ97)),0)*CF!BR$13 -> 0 | BS97: =MAX((BS96*$N$95-SUM($P$97:BR97)),0)*CF!BS$13 -> 0 | BT97: =MAX((BT96*$N$95-SUM($P$97:BS97)),0)*CF!BT$13 -> 0 | BU97: =MAX((BU96*$N$95-SUM($P$97:BT97)),0)*CF!BU$13 -> 0 | BV97: =MAX((BV96*$N$95-SUM($P$97:BU97)),0)*CF!BV$13 -> 0 | BW97: =MAX((BW96*$N$95-SUM($P$97:BV97)),0)*CF!BW$13 -> 0 | BX97: =MAX((BX96*$N$95-SUM($P$97:BW97)),0)*CF!BX$13 -> 0 | BY97: =MAX((BY96*$N$95-SUM($P$97:BX97)),0)*CF!BY$13 -> 0 | BZ97: =MAX((BZ96*$N$95-SUM($P$97:BY97)),0)*CF!BZ$13 -> 0 | CA97: =MAX((CA96*$N$95-SUM($P$97:BZ97)),0)*CF!CA$13 -> 0 | CB97: =MAX((CB96*$N$95-SUM($P$97:CA97)),0)*CF!CB$13 -> 0 | CC97: =MAX((CC96*$N$95-SUM($P$97:CB97)),0)*CF!CC$13 -> 0 | CD97: =MAX((CD96*$N$95-SUM($P$97:CC97)),0)*CF!CD$13 -> 0 | CE97: =MAX((CE96*$N$95-SUM($P$97:CD97)),0)*CF!CE$13 -> 0 | CF97: =MAX((CF96*$N$95-SUM($P$97:CE97)),0)*CF!CF$13 -> 0 | CG97: =MAX((CG96*$N$95-SUM($P$97:CF97)),0)*CF!CG$13 -> 0 | CH97: =MAX((CH96*$N$95-SUM($P$97:CG97)),0)*CF!CH$13 -> 0 | CI97: =MAX((CI96*$N$95-SUM($P$97:CH97)),0)*CF!CI$13 -> 0 | CJ97: =MAX((CJ96*$N$95-SUM($P$97:CI97)),0)*CF!CJ$13 -> 0 | CK97: =MAX((CK96*$N$95-SUM($P$97:CJ97)),0)*CF!CK$13 -> 0 | CL97: =MAX((CL96*$N$95-SUM($P$97:CK97)),0)*CF!CL$13 -> 0 | CM97: =MAX((CM96*$N$95-SUM($P$97:CL97)),0)*CF!CM$13 -> 0 | CN97: =MAX((CN96*$N$95-SUM($P$97:CM97)),0)*CF!CN$13 -> 0 | CO97: =MAX((CO96*$N$95-SUM($P$97:CN97)),0)*CF!CO$13 -> 0 | CP97: =MAX((CP96*$N$95-SUM($P$97:CO97)),0)*CF!CP$13 -> 0 | CQ97: =MAX((CQ96*$N$95-SUM($P$97:CP97)),0)*CF!CQ$13 -> 0 | CR97: =MAX((CR96*$N$95-SUM($P$97:CQ97)),0)*CF!CR$13 -> 0 | CS97: =MAX((CS96*$N$95-SUM($P$97:CR97)),0)*CF!CS$13 -> 0 | CT97: =MAX((CT96*$N$95-SUM($P$97:CS97)),0)*CF!CT$13 -> 0 | CU97: =MAX((CU96*$N$95-SUM($P$97:CT97)),0)*CF!CU$13 -> 0 | CV97: =MAX((CV96*$N$95-SUM($P$97:CU97)),0)*CF!CV$13 -> 0 | CW97: =MAX((CW96*$N$95-SUM($P$97:CV97)),0)*CF!CW$13 -> 0 | CX97: =MAX((CX96*$N$95-SUM($P$97:CW97)),0)*CF!CX$13 -> 0 | CY97: =MAX((CY96*$N$95-SUM($P$97:CX97)),0)*CF!CY$13 -> 0 | CZ97: =MAX((CZ96*$N$95-SUM($P$97:CY97)),0)*CF!CZ$13 -> 0 | DA97: =MAX((DA96*$N$95-SUM($P$97:CZ97)),0)*CF!DA$13 -> 0 | DB97: =MAX((DB96*$N$95-SUM($P$97:DA97)),0)*CF!DB$13 -> 0 | DC97: =MAX((DC96*$N$95-SUM($P$97:DB97)),0)*CF!DC$13 -> 0 | DD97: =MAX((DD96*$N$95-SUM($P$97:DC97)),0)*CF!DD$13 -> 0 | DE97: =MAX((DE96*$N$95-SUM($P$97:DD97)),0)*CF!DE$13 -> 0 | DF97: =MAX((DF96*$N$95-SUM($P$97:DE97)),0)*CF!DF$13 -> 0 | DG97: =MAX((DG96*$N$95-SUM($P$97:DF97)),0)*CF!DG$13 -> 0 | DH97: =MAX((DH96*$N$95-SUM($P$97:DG97)),0)*CF!DH$13 -> 0 | DI97: =MAX((DI96*$N$95-SUM($P$97:DH97)),0)*CF!DI$13 -> 0 | DJ97: =MAX((DJ96*$N$95-SUM($P$97:DI97)),0)*CF!DJ$13 -> 0 | DK97: =MAX((DK96*$N$95-SUM($P$97:DJ97)),0)*CF!DK$13 -> 0 | DL97: =MAX((DL96*$N$95-SUM($P$97:DK97)),0)*CF!DL$13 -> 0 | DM97: =MAX((DM96*$N$95-SUM($P$97:DL97)),0)*CF!DM$13 -> 0 | DN97: =MAX((DN96*$N$95-SUM($P$97:DM97)),0)*CF!DN$13 -> 0 | DO97: =MAX((DO96*$N$95-SUM($P$97:DN97)),0)*CF!DO$13 -> 0 | DP97: =MAX((DP96*$N$95-SUM($P$97:DO97)),0)*CF!DP$13 -> 0
C99: Band 5
C100: Revenue Share % | K100: % | N100: 75.00%
C101: Revenues within Band 4 | K101: $000s | S101: =(MAX(S$62-S$76,0))*CF!S$13 -> 0 | T101: =(MAX(T$62-T$76,0))*CF!T$13 -> 0 | U101: =(MAX(U$62-U$76,0))*CF!U$13 -> 0 | V101: =(MAX(V$62-V$76,0))*CF!V$13 -> 0 | W101: =(MAX(W$62-W$76,0))*CF!W$13 -> 0 | X101: =(MAX(X$62-X$76,0))*CF!X$13 -> 0 | Y101: =(MAX(Y$62-Y$76,0))*CF!Y$13 -> 0 | Z101: =(MAX(Z$62-Z$76,0))*CF!Z$13 -> 0 | AA101: =(MAX(AA$62-AA$76,0))*CF!AA$13 -> 0 | AB101: =(MAX(AB$62-AB$76,0))*CF!AB$13 -> 0 | AC101: =(MAX(AC$62-AC$76,0))*CF!AC$13 -> 0 | AD101: =(MAX(AD$62-AD$76,0))*CF!AD$13 -> 0 | AE101: =(MAX(AE$62-AE$76,0))*CF!AE$13 -> 0 | AF101: =(MAX(AF$62-AF$76,0))*CF!AF$13 -> 0 | AG101: =(MAX(AG$62-AG$76,0))*CF!AG$13 -> 0 | AH101: =(MAX(AH$62-AH$76,0))*CF!AH$13 -> 0 | AI101: =(MAX(AI$62-AI$76,0))*CF!AI$13 -> 0 | AJ101: =(MAX(AJ$62-AJ$76,0))*CF!AJ$13 -> 0 | AK101: =(MAX(AK$62-AK$76,0))*CF!AK$13 -> 0 | AL101: =(MAX(AL$62-AL$76,0))*CF!AL$13 -> 0 | AM101: =(MAX(AM$62-AM$76,0))*CF!AM$13 -> 0 | AN101: =(MAX(AN$62-AN$76,0))*CF!AN$13 -> 0 | AO101: =(MAX(AO$62-AO$76,0))*CF!AO$13 -> 0 | AP101: =(MAX(AP$62-AP$76,0))*CF!AP$13 -> 0 | AQ101: =(MAX(AQ$62-AQ$76,0))*CF!AQ$13 -> 0 | AR101: =(MAX(AR$62-AR$76,0))*CF!AR$13 -> 0 | AS101: =(MAX(AS$62-AS$76,0))*CF!AS$13 -> 0 | AT101: =(MAX(AT$62-AT$76,0))*CF!AT$13 -> 0 | AU101: =(MAX(AU$62-AU$76,0))*CF!AU$13 -> 0 | AV101: =(MAX(AV$62-AV$76,0))*CF!AV$13 -> 0 | AW101: =(MAX(AW$62-AW$76,0))*CF!AW$13 -> 0 | AX101: =(MAX(AX$62-AX$76,0))*CF!AX$13 -> 0 | AY101: =(MAX(AY$62-AY$76,0))*CF!AY$13 -> 0 | AZ101: =(MAX(AZ$62-AZ$76,0))*CF!AZ$13 -> 0 | BA101: =(MAX(BA$62-BA$76,0))*CF!BA$13 -> 0 | BB101: =(MAX(BB$62-BB$76,0))*CF!BB$13 -> 0 | BC101: =(MAX(BC$62-BC$76,0))*CF!BC$13 -> 0 | BD101: =(MAX(BD$62-BD$76,0))*CF!BD$13 -> 0 | BE101: =(MAX(BE$62-BE$76,0))*CF!BE$13 -> 0 | BF101: =(MAX(BF$62-BF$76,0))*CF!BF$13 -> 0 | BG101: =(MAX(BG$62-BG$76,0))*CF!BG$13 -> 0 | BH101: =(MAX(BH$62-BH$76,0))*CF!BH$13 -> 0 | BI101: =(MAX(BI$62-BI$76,0))*CF!BI$13 -> 0 | BJ101: =(MAX(BJ$62-BJ$76,0))*CF!BJ$13 -> 0 | BK101: =(MAX(BK$62-BK$76,0))*CF!BK$13 -> 0 | BL101: =(MAX(BL$62-BL$76,0))*CF!BL$13 -> 0 | BM101: =(MAX(BM$62-BM$76,0))*CF!BM$13 -> 0 | BN101: =(MAX(BN$62-BN$76,0))*CF!BN$13 -> 0 | BO101: =(MAX(BO$62-BO$76,0))*CF!BO$13 -> 0 | BP101: =(MAX(BP$62-BP$76,0))*CF!BP$13 -> 0 | BQ101: =(MAX(BQ$62-BQ$76,0))*CF!BQ$13 -> 0 | BR101: =(MAX(BR$62-BR$76,0))*CF!BR$13 -> 0 | BS101: =(MAX(BS$62-BS$76,0))*CF!BS$13 -> 0 | BT101: =(MAX(BT$62-BT$76,0))*CF!BT$13 -> 0 | BU101: =(MAX(BU$62-BU$76,0))*CF!BU$13 -> 0 | BV101: =(MAX(BV$62-BV$76,0))*CF!BV$13 -> 0 | BW101: =(MAX(BW$62-BW$76,0))*CF!BW$13 -> 0 | BX101: =(MAX(BX$62-BX$76,0))*CF!BX$13 -> 0 | BY101: =(MAX(BY$62-BY$76,0))*CF!BY$13 -> 0 | BZ101: =(MAX(BZ$62-BZ$76,0))*CF!BZ$13 -> 0 | CA101: =(MAX(CA$62-CA$76,0))*CF!CA$13 -> 0 | CB101: =(MAX(CB$62-CB$76,0))*CF!CB$13 -> 0 | CC101: =(MAX(CC$62-CC$76,0))*CF!CC$13 -> 0 | CD101: =(MAX(CD$62-CD$76,0))*CF!CD$13 -> 0 | CE101: =(MAX(CE$62-CE$76,0))*CF!CE$13 -> 0 | CF101: =(MAX(CF$62-CF$76,0))*CF!CF$13 -> 0 | CG101: =(MAX(CG$62-CG$76,0))*CF!CG$13 -> 0 | CH101: =(MAX(CH$62-CH$76,0))*CF!CH$13 -> 0 | CI101: =(MAX(CI$62-CI$76,0))*CF!CI$13 -> 0 | CJ101: =(MAX(CJ$62-CJ$76,0))*CF!CJ$13 -> 0 | CK101: =(MAX(CK$62-CK$76,0))*CF!CK$13 -> 0 | CL101: =(MAX(CL$62-CL$76,0))*CF!CL$13 -> 0 | CM101: =(MAX(CM$62-CM$76,0))*CF!CM$13 -> 0 | CN101: =(MAX(CN$62-CN$76,0))*CF!CN$13 -> 0 | CO101: =(MAX(CO$62-CO$76,0))*CF!CO$13 -> 0 | CP101: =(MAX(CP$62-CP$76,0))*CF!CP$13 -> 0 | CQ101: =(MAX(CQ$62-CQ$76,0))*CF!CQ$13 -> 0 | CR101: =(MAX(CR$62-CR$76,0))*CF!CR$13 -> 0 | CS101: =(MAX(CS$62-CS$76,0))*CF!CS$13 -> 0 | CT101: =(MAX(CT$62-CT$76,0))*CF!CT$13 -> 0 | CU101: =(MAX(CU$62-CU$76,0))*CF!CU$13 -> 0 | CV101: =(MAX(CV$62-CV$76,0))*CF!CV$13 -> 0 | CW101: =(MAX(CW$62-CW$76,0))*CF!CW$13 -> 0 | CX101: =(MAX(CX$62-CX$76,0))*CF!CX$13 -> 0 | CY101: =(MAX(CY$62-CY$76,0))*CF!CY$13 -> 0 | CZ101: =(MAX(CZ$62-CZ$76,0))*CF!CZ$13 -> 0 | DA101: =(MAX(DA$62-DA$76,0))*CF!DA$13 -> 0 | DB101: =(MAX(DB$62-DB$76,0))*CF!DB$13 -> 0 | DC101: =(MAX(DC$62-DC$76,0))*CF!DC$13 -> 0 | DD101: =(MAX(DD$62-DD$76,0))*CF!DD$13 -> 0 | DE101: =(MAX(DE$62-DE$76,0))*CF!DE$13 -> 0 | DF101: =(MAX(DF$62-DF$76,0))*CF!DF$13 -> 0 | DG101: =(MAX(DG$62-DG$76,0))*CF!DG$13 -> 0 | DH101: =(MAX(DH$62-DH$76,0))*CF!DH$13 -> 0 | DI101: =(MAX(DI$62-DI$76,0))*CF!DI$13 -> 0 | DJ101: =(MAX(DJ$62-DJ$76,0))*CF!DJ$13 -> 0 | DK101: =(MAX(DK$62-DK$76,0))*CF!DK$13 -> 0 | DL101: =(MAX(DL$62-DL$76,0))*CF!DL$13 -> 0 | DM101: =(MAX(DM$62-DM$76,0))*CF!DM$13 -> 0 | DN101: =(MAX(DN$62-DN$76,0))*CF!DN$13 -> 0 | DO101: =(MAX(DO$62-DO$76,0))*CF!DO$13 -> 0 | DP101: =(MAX(DP$62-DP$76,0))*CF!DP$13 -> 0
C102: Band 4 Revenue Share | K102: $000s | N102: =SUM(Q102:DP102) -> 0 | S102: =MAX((S101*$N$100-SUM($P$102:R102)),0)*CF!S$13 -> 0 | T102: =MAX((T101*$N$100-SUM($P$102:S102)),0)*CF!T$13 -> 0 | U102: =MAX((U101*$N$100-SUM($P$102:T102)),0)*CF!U$13 -> 0 | V102: =MAX((V101*$N$100-SUM($P$102:U102)),0)*CF!V$13 -> 0 | W102: =MAX((W101*$N$100-SUM($P$102:V102)),0)*CF!W$13 -> 0 | X102: =MAX((X101*$N$100-SUM($P$102:W102)),0)*CF!X$13 -> 0 | Y102: =MAX((Y101*$N$100-SUM($P$102:X102)),0)*CF!Y$13 -> 0 | Z102: =MAX((Z101*$N$100-SUM($P$102:Y102)),0)*CF!Z$13 -> 0 | AA102: =MAX((AA101*$N$100-SUM($P$102:Z102)),0)*CF!AA$13 -> 0 | AB102: =MAX((AB101*$N$100-SUM($P$102:AA102)),0)*CF!AB$13 -> 0 | AC102: =MAX((AC101*$N$100-SUM($P$102:AB102)),0)*CF!AC$13 -> 0 | AD102: =MAX((AD101*$N$100-SUM($P$102:AC102)),0)*CF!AD$13 -> 0 | AE102: =MAX((AE101*$N$100-SUM($P$102:AD102)),0)*CF!AE$13 -> 0 | AF102: =MAX((AF101*$N$100-SUM($P$102:AE102)),0)*CF!AF$13 -> 0 | AG102: =MAX((AG101*$N$100-SUM($P$102:AF102)),0)*CF!AG$13 -> 0 | AH102: =MAX((AH101*$N$100-SUM($P$102:AG102)),0)*CF!AH$13 -> 0 | AI102: =MAX((AI101*$N$100-SUM($P$102:AH102)),0)*CF!AI$13 -> 0 | AJ102: =MAX((AJ101*$N$100-SUM($P$102:AI102)),0)*CF!AJ$13 -> 0 | AK102: =MAX((AK101*$N$100-SUM($P$102:AJ102)),0)*CF!AK$13 -> 0 | AL102: =MAX((AL101*$N$100-SUM($P$102:AK102)),0)*CF!AL$13 -> 0 | AM102: =MAX((AM101*$N$100-SUM($P$102:AL102)),0)*CF!AM$13 -> 0 | AN102: =MAX((AN101*$N$100-SUM($P$102:AM102)),0)*CF!AN$13 -> 0 | AO102: =MAX((AO101*$N$100-SUM($P$102:AN102)),0)*CF!AO$13 -> 0 | AP102: =MAX((AP101*$N$100-SUM($P$102:AO102)),0)*CF!AP$13 -> 0 | AQ102: =MAX((AQ101*$N$100-SUM($P$102:AP102)),0)*CF!AQ$13 -> 0 | AR102: =MAX((AR101*$N$100-SUM($P$102:AQ102)),0)*CF!AR$13 -> 0 | AS102: =MAX((AS101*$N$100-SUM($P$102:AR102)),0)*CF!AS$13 -> 0 | AT102: =MAX((AT101*$N$100-SUM($P$102:AS102)),0)*CF!AT$13 -> 0 | AU102: =MAX((AU101*$N$100-SUM($P$102:AT102)),0)*CF!AU$13 -> 0 | AV102: =MAX((AV101*$N$100-SUM($P$102:AU102)),0)*CF!AV$13 -> 0 | AW102: =MAX((AW101*$N$100-SUM($P$102:AV102)),0)*CF!AW$13 -> 0 | AX102: =MAX((AX101*$N$100-SUM($P$102:AW102)),0)*CF!AX$13 -> 0 | AY102: =MAX((AY101*$N$100-SUM($P$102:AX102)),0)*CF!AY$13 -> 0 | AZ102: =MAX((AZ101*$N$100-SUM($P$102:AY102)),0)*CF!AZ$13 -> 0 | BA102: =MAX((BA101*$N$100-SUM($P$102:AZ102)),0)*CF!BA$13 -> 0 | BB102: =MAX((BB101*$N$100-SUM($P$102:BA102)),0)*CF!BB$13 -> 0 | BC102: =MAX((BC101*$N$100-SUM($P$102:BB102)),0)*CF!BC$13 -> 0 | BD102: =MAX((BD101*$N$100-SUM($P$102:BC102)),0)*CF!BD$13 -> 0 | BE102: =MAX((BE101*$N$100-SUM($P$102:BD102)),0)*CF!BE$13 -> 0 | BF102: =MAX((BF101*$N$100-SUM($P$102:BE102)),0)*CF!BF$13 -> 0 | BG102: =MAX((BG101*$N$100-SUM($P$102:BF102)),0)*CF!BG$13 -> 0 | BH102: =MAX((BH101*$N$100-SUM($P$102:BG102)),0)*CF!BH$13 -> 0 | BI102: =MAX((BI101*$N$100-SUM($P$102:BH102)),0)*CF!BI$13 -> 0 | BJ102: =MAX((BJ101*$N$100-SUM($P$102:BI102)),0)*CF!BJ$13 -> 0 | BK102: =MAX((BK101*$N$100-SUM($P$102:BJ102)),0)*CF!BK$13 -> 0 | BL102: =MAX((BL101*$N$100-SUM($P$102:BK102)),0)*CF!BL$13 -> 0 | BM102: =MAX((BM101*$N$100-SUM($P$102:BL102)),0)*CF!BM$13 -> 0 | BN102: =MAX((BN101*$N$100-SUM($P$102:BM102)),0)*CF!BN$13 -> 0 | BO102: =MAX((BO101*$N$100-SUM($P$102:BN102)),0)*CF!BO$13 -> 0 | BP102: =MAX((BP101*$N$100-SUM($P$102:BO102)),0)*CF!BP$13 -> 0 | BQ102: =MAX((BQ101*$N$100-SUM($P$102:BP102)),0)*CF!BQ$13 -> 0 | BR102: =MAX((BR101*$N$100-SUM($P$102:BQ102)),0)*CF!BR$13 -> 0 | BS102: =MAX((BS101*$N$100-SUM($P$102:BR102)),0)*CF!BS$13 -> 0 | BT102: =MAX((BT101*$N$100-SUM($P$102:BS102)),0)*CF!BT$13 -> 0 | BU102: =MAX((BU101*$N$100-SUM($P$102:BT102)),0)*CF!BU$13 -> 0 | BV102: =MAX((BV101*$N$100-SUM($P$102:BU102)),0)*CF!BV$13 -> 0 | BW102: =MAX((BW101*$N$100-SUM($P$102:BV102)),0)*CF!BW$13 -> 0 | BX102: =MAX((BX101*$N$100-SUM($P$102:BW102)),0)*CF!BX$13 -> 0 | BY102: =MAX((BY101*$N$100-SUM($P$102:BX102)),0)*CF!BY$13 -> 0 | BZ102: =MAX((BZ101*$N$100-SUM($P$102:BY102)),0)*CF!BZ$13 -> 0 | CA102: =MAX((CA101*$N$100-SUM($P$102:BZ102)),0)*CF!CA$13 -> 0 | CB102: =MAX((CB101*$N$100-SUM($P$102:CA102)),0)*CF!CB$13 -> 0 | CC102: =MAX((CC101*$N$100-SUM($P$102:CB102)),0)*CF!CC$13 -> 0 | CD102: =MAX((CD101*$N$100-SUM($P$102:CC102)),0)*CF!CD$13 -> 0 | CE102: =MAX((CE101*$N$100-SUM($P$102:CD102)),0)*CF!CE$13 -> 0 | CF102: =MAX((CF101*$N$100-SUM($P$102:CE102)),0)*CF!CF$13 -> 0 | CG102: =MAX((CG101*$N$100-SUM($P$102:CF102)),0)*CF!CG$13 -> 0 | CH102: =MAX((CH101*$N$100-SUM($P$102:CG102)),0)*CF!CH$13 -> 0 | CI102: =MAX((CI101*$N$100-SUM($P$102:CH102)),0)*CF!CI$13 -> 0 | CJ102: =MAX((CJ101*$N$100-SUM($P$102:CI102)),0)*CF!CJ$13 -> 0 | CK102: =MAX((CK101*$N$100-SUM($P$102:CJ102)),0)*CF!CK$13 -> 0 | CL102: =MAX((CL101*$N$100-SUM($P$102:CK102)),0)*CF!CL$13 -> 0 | CM102: =MAX((CM101*$N$100-SUM($P$102:CL102)),0)*CF!CM$13 -> 0 | CN102: =MAX((CN101*$N$100-SUM($P$102:CM102)),0)*CF!CN$13 -> 0 | CO102: =MAX((CO101*$N$100-SUM($P$102:CN102)),0)*CF!CO$13 -> 0 | CP102: =MAX((CP101*$N$100-SUM($P$102:CO102)),0)*CF!CP$13 -> 0 | CQ102: =MAX((CQ101*$N$100-SUM($P$102:CP102)),0)*CF!CQ$13 -> 0 | CR102: =MAX((CR101*$N$100-SUM($P$102:CQ102)),0)*CF!CR$13 -> 0 | CS102: =MAX((CS101*$N$100-SUM($P$102:CR102)),0)*CF!CS$13 -> 0 | CT102: =MAX((CT101*$N$100-SUM($P$102:CS102)),0)*CF!CT$13 -> 0 | CU102: =MAX((CU101*$N$100-SUM($P$102:CT102)),0)*CF!CU$13 -> 0 | CV102: =MAX((CV101*$N$100-SUM($P$102:CU102)),0)*CF!CV$13 -> 0 | CW102: =MAX((CW101*$N$100-SUM($P$102:CV102)),0)*CF!CW$13 -> 0 | CX102: =MAX((CX101*$N$100-SUM($P$102:CW102)),0)*CF!CX$13 -> 0 | CY102: =MAX((CY101*$N$100-SUM($P$102:CX102)),0)*CF!CY$13 -> 0 | CZ102: =MAX((CZ101*$N$100-SUM($P$102:CY102)),0)*CF!CZ$13 -> 0 | DA102: =MAX((DA101*$N$100-SUM($P$102:CZ102)),0)*CF!DA$13 -> 0 | DB102: =MAX((DB101*$N$100-SUM($P$102:DA102)),0)*CF!DB$13 -> 0 | DC102: =MAX((DC101*$N$100-SUM($P$102:DB102)),0)*CF!DC$13 -> 0 | DD102: =MAX((DD101*$N$100-SUM($P$102:DC102)),0)*CF!DD$13 -> 0 | DE102: =MAX((DE101*$N$100-SUM($P$102:DD102)),0)*CF!DE$13 -> 0 | DF102: =MAX((DF101*$N$100-SUM($P$102:DE102)),0)*CF!DF$13 -> 0 | DG102: =MAX((DG101*$N$100-SUM($P$102:DF102)),0)*CF!DG$13 -> 0 | DH102: =MAX((DH101*$N$100-SUM($P$102:DG102)),0)*CF!DH$13 -> 0 | DI102: =MAX((DI101*$N$100-SUM($P$102:DH102)),0)*CF!DI$13 -> 0 | DJ102: =MAX((DJ101*$N$100-SUM($P$102:DI102)),0)*CF!DJ$13 -> 0 | DK102: =MAX((DK101*$N$100-SUM($P$102:DJ102)),0)*CF!DK$13 -> 0 | DL102: =MAX((DL101*$N$100-SUM($P$102:DK102)),0)*CF!DL$13 -> 0 | DM102: =MAX((DM101*$N$100-SUM($P$102:DL102)),0)*CF!DM$13 -> 0 | DN102: =MAX((DN101*$N$100-SUM($P$102:DM102)),0)*CF!DN$13 -> 0 | DO102: =MAX((DO101*$N$100-SUM($P$102:DN102)),0)*CF!DO$13 -> 0 | DP102: =MAX((DP101*$N$100-SUM($P$102:DO102)),0)*CF!DP$13 -> 0
C105: Total Revenue Payment | K105: $000s | N105: =SUM(Q105:DQ105) -> 0 | S105: =S102+S97+S92+S87+S82 -> 0 | T105: 0 | U105: 0 | V105: 0 | W105: 0 | X105: 0 | Y105: 0 | Z105: 0 | AA105: 0 | AB105: 0 | AC105: 0 | AD105: 0 | AE105: 0 | AF105: 0 | AG105: 0 | AH105: 0 | AI105: 0 | AJ105: 0 | AK105: 0 | AL105: 0 | AM105: 0 | AN105: 0 | AO105: 0 | AP105: =AP102+AP97+AP92+AP87+AP82 -> 0 | AQ105: 0 | AR105: 0 | AS105: 0 | AT105: 0 | AU105: 0 | AV105: 0 | AW105: 0 | AX105: 0 | AY105: 0 | AZ105: 0 | BA105: 0 | BB105: 0 | BC105: 0 | BD105: 0 | BE105: 0 | BF105: 0 | BG105: 0 | BH105: 0 | BI105: 0 | BJ105: 0 | BK105: 0 | BL105: 0 | BM105: 0 | BN105: 0 | BO105: 0 | BP105: 0 | BQ105: 0 | BR105: 0 | BS105: 0 | BT105: 0 | BU105: 0 | BV105: =BV102+BV97+BV92+BV87+BV82 -> 0 | BW105: 0 | BX105: 0 | BY105: 0 | BZ105: 0 | CA105: 0 | CB105: 0 | CC105: 0 | CD105: 0 | CE105: 0 | CF105: 0 | CG105: 0 | CH105: 0 | CI105: 0 | CJ105: 0 | CK105: 0 | CL105: 0 | CM105: 0 | CN105: 0 | CO105: 0 | CP105: 0 | CQ105: 0 | CR105: 0 | CS105: 0 | CT105: 0 | CU105: 0 | CV105: 0 | CW105: 0 | CX105: 0 | CY105: 0 | CZ105: 0 | DA105: 0 | DB105: =DB102+DB97+DB92+DB87+DB82 -> 0 | DC105: 0 | DD105: 0 | DE105: 0 | DF105: 0 | DG105: 0 | DH105: 0 | DI105: 0 | DJ105: 0 | DK105: 0 | DL105: 0 | DM105: 0 | DN105: 0 | DO105: 0 | DP105: 0
C106: Revenue Payments TxDOT | K106: $000s | N106: =SUM(Q106:DQ106) -> (1,030,323) | S106: =-S105-S115 -> (2,500) | T106: =-T105-T115 -> (2,278) | U106: (2,076) | V106: (1,891) | W106: (1,987) | X106: (2,087) | Y106: (2,193) | Z106: (2,303) | AA106: (2,420) | AB106: (2,534) | AC106: (2,654) | AD106: (2,779) | AE106: (2,911) | AF106: (3,048) | AG106: (4,181) | AH106: (5,736) | AI106: (7,869) | AJ106: (10,795) | AK106: (14,808) | AL106: (15,885) | AM106: (17,040) | AN106: (18,279) | AO106: (19,608) | AP106: (21,034) | AQ106: (22,374) | AR106: (23,799) | AS106: (25,315) | AT106: (26,928) | AU106: (28,643) | AV106: (30,413) | AW106: (32,291) | AX106: (34,286) | AY106: (36,404) | AZ106: (38,653) | BA106: (41,094) | BB106: (43,689) | BC106: (46,448) | BD106: (49,382) | BE106: (52,501) | BF106: (56,514) | BG106: (60,835) | BH106: (65,485) | BI106: (70,492) | BJ106: (75,881) | BK106: =-BK105 -> 0 | BL106: 0 | BM106: 0 | BN106: 0 | BO106: 0 | BP106: 0 | BQ106: 0 | BR106: 0 | BS106: 0 | BT106: 0 | BU106: 0 | BV106: 0 | BW106: =-BW105 -> 0 | BX106: 0 | BY106: 0 | BZ106: 0 | CA106: 0 | CB106: 0 | CC106: 0 | CD106: 0 | CE106: 0 | CF106: 0 | CG106: 0 | CH106: 0 | CI106: 0 | CJ106: 0 | CK106: 0 | CL106: 0 | CM106: 0 | CN106: 0 | CO106: 0 | CP106: 0 | CQ106: 0 | CR106: 0 | CS106: 0 | CT106: 0 | CU106: 0 | CV106: 0 | CW106: 0 | CX106: 0 | CY106: 0 | CZ106: 0 | DA106: 0 | DB106: 0 | DC106: 0 | DD106: 0 | DE106: 0 | DF106: 0 | DG106: 0 | DH106: 0 | DI106: 0 | DJ106: 0 | DK106: 0 | DL106: 0 | DM106: 0 | DN106: 0 | DO106: 0 | DP106: 0
C109: Revenue Sharing Wishbone
C110: Growth | T110: =+POWER(INDEX(Inputs!$L$46:$L55,S$6+1,1)/INDEX(Inputs!$L$46:$L$55,S$6,1),1/(INDEX(Inputs!$C$46:$C$55,S$6+1,1)-INDEX(Inputs!$C$46:$C$55,S$6,1)))-1 -> -10.9% | U110: =+POWER(INDEX(Inputs!$L$46:$L55,T$6+1,1)/INDEX(Inputs!$L$46:$L$55,T$6,1),1/(INDEX(Inputs!$C$46:$C$55,T$6+1,1)-INDEX(Inputs!$C$46:$C$55,T$6,1)))-1 -> -10.9% | V110: =+POWER(INDEX(Inputs!$L$46:$L55,U$6+1,1)/INDEX(Inputs!$L$46:$L$55,U$6,1),1/(INDEX(Inputs!$C$46:$C$55,U$6+1,1)-INDEX(Inputs!$C$46:$C$55,U$6,1)))-1 -> -10.9% | W110: =+POWER(INDEX(Inputs!$L$46:$L55,V$6+1,1)/INDEX(Inputs!$L$46:$L$55,V$6,1),1/(INDEX(Inputs!$C$46:$C$55,V$6+1,1)-INDEX(Inputs!$C$46:$C$55,V$6,1)))-1 -> 2.7% | X110: =+POWER(INDEX(Inputs!$L$46:$L55,W$6+1,1)/INDEX(Inputs!$L$46:$L$55,W$6,1),1/(INDEX(Inputs!$C$46:$C$55,W$6+1,1)-INDEX(Inputs!$C$46:$C$55,W$6,1)))-1 -> 2.7% | Y110: =+POWER(INDEX(Inputs!$L$46:$L55,X$6+1,1)/INDEX(Inputs!$L$46:$L$55,X$6,1),1/(INDEX(Inputs!$C$46:$C$55,X$6+1,1)-INDEX(Inputs!$C$46:$C$55,X$6,1)))-1 -> 2.7% | Z110: =+POWER(INDEX(Inputs!$L$46:$L55,Y$6+1,1)/INDEX(Inputs!$L$46:$L$55,Y$6,1),1/(INDEX(Inputs!$C$46:$C$55,Y$6+1,1)-INDEX(Inputs!$C$46:$C$55,Y$6,1)))-1 -> 2.7% | AA110: =+POWER(INDEX(Inputs!$L$46:$L55,Z$6+1,1)/INDEX(Inputs!$L$46:$L$55,Z$6,1),1/(INDEX(Inputs!$C$46:$C$55,Z$6+1,1)-INDEX(Inputs!$C$46:$C$55,Z$6,1)))-1 -> 2.7% | AB110: =+POWER(INDEX(Inputs!$L$46:$L55,AA$6+1,1)/INDEX(Inputs!$L$46:$L$55,AA$6,1),1/(INDEX(Inputs!$C$46:$C$55,AA$6+1,1)-INDEX(Inputs!$C$46:$C$55,AA$6,1)))-1 -> 2.4% | AC110: =+POWER(INDEX(Inputs!$L$46:$L55,AB$6+1,1)/INDEX(Inputs!$L$46:$L$55,AB$6,1),1/(INDEX(Inputs!$C$46:$C$55,AB$6+1,1)-INDEX(Inputs!$C$46:$C$55,AB$6,1)))-1 -> 2.4% | AD110: =+POWER(INDEX(Inputs!$L$46:$L55,AC$6+1,1)/INDEX(Inputs!$L$46:$L$55,AC$6,1),1/(INDEX(Inputs!$C$46:$C$55,AC$6+1,1)-INDEX(Inputs!$C$46:$C$55,AC$6,1)))-1 -> 2.4% | AE110: =+POWER(INDEX(Inputs!$L$46:$L55,AD$6+1,1)/INDEX(Inputs!$L$46:$L$55,AD$6,1),1/(INDEX(Inputs!$C$46:$C$55,AD$6+1,1)-INDEX(Inputs!$C$46:$C$55,AD$6,1)))-1 -> 2.4% | AF110: =+POWER(INDEX(Inputs!$L$46:$L55,AE$6+1,1)/INDEX(Inputs!$L$46:$L$55,AE$6,1),1/(INDEX(Inputs!$C$46:$C$55,AE$6+1,1)-INDEX(Inputs!$C$46:$C$55,AE$6,1)))-1 -> 2.4% | AG110: =+POWER(INDEX(Inputs!$L$46:$L55,AF$6+1,1)/INDEX(Inputs!$L$46:$L$55,AF$6,1),1/(INDEX(Inputs!$C$46:$C$55,AF$6+1,1)-INDEX(Inputs!$C$46:$C$55,AF$6,1)))-1 -> 34.1% | AH110: =+POWER(INDEX(Inputs!$L$46:$L55,AG$6+1,1)/INDEX(Inputs!$L$46:$L$55,AG$6,1),1/(INDEX(Inputs!$C$46:$C$55,AG$6+1,1)-INDEX(Inputs!$C$46:$C$55,AG$6,1)))-1 -> 34.1% | AI110: =+POWER(INDEX(Inputs!$L$46:$L55,AH$6+1,1)/INDEX(Inputs!$L$46:$L$55,AH$6,1),1/(INDEX(Inputs!$C$46:$C$55,AH$6+1,1)-INDEX(Inputs!$C$46:$C$55,AH$6,1)))-1 -> 34.1% | AJ110: =+POWER(INDEX(Inputs!$L$46:$L55,AI$6+1,1)/INDEX(Inputs!$L$46:$L$55,AI$6,1),1/(INDEX(Inputs!$C$46:$C$55,AI$6+1,1)-INDEX(Inputs!$C$46:$C$55,AI$6,1)))-1 -> 34.1% | AK110: =+POWER(INDEX(Inputs!$L$46:$L55,AJ$6+1,1)/INDEX(Inputs!$L$46:$L$55,AJ$6,1),1/(INDEX(Inputs!$C$46:$C$55,AJ$6+1,1)-INDEX(Inputs!$C$46:$C$55,AJ$6,1)))-1 -> 34.1% | AL110: =+POWER(INDEX(Inputs!$L$46:$L55,AK$6+1,1)/INDEX(Inputs!$L$46:$L$55,AK$6,1),1/(INDEX(Inputs!$C$46:$C$55,AK$6+1,1)-INDEX(Inputs!$C$46:$C$55,AK$6,1)))-1 -> 4.9% | AM110: =+POWER(INDEX(Inputs!$L$46:$L55,AL$6+1,1)/INDEX(Inputs!$L$46:$L$55,AL$6,1),1/(INDEX(Inputs!$C$46:$C$55,AL$6+1,1)-INDEX(Inputs!$C$46:$C$55,AL$6,1)))-1 -> 4.9% | AN110: =+POWER(INDEX(Inputs!$L$46:$L55,AM$6+1,1)/INDEX(Inputs!$L$46:$L$55,AM$6,1),1/(INDEX(Inputs!$C$46:$C$55,AM$6+1,1)-INDEX(Inputs!$C$46:$C$55,AM$6,1)))-1 -> 4.9% | AO110: =+POWER(INDEX(Inputs!$L$46:$L55,AN$6+1,1)/INDEX(Inputs!$L$46:$L$55,AN$6,1),1/(INDEX(Inputs!$C$46:$C$55,AN$6+1,1)-INDEX(Inputs!$C$46:$C$55,AN$6,1)))-1 -> 4.9% | AP110: =+POWER(INDEX(Inputs!$L$46:$L55,AO$6+1,1)/INDEX(Inputs!$L$46:$L$55,AO$6,1),1/(INDEX(Inputs!$C$46:$C$55,AO$6+1,1)-INDEX(Inputs!$C$46:$C$55,AO$6,1)))-1 -> 4.9% | AQ110: =+POWER(INDEX(Inputs!$L$46:$L55,AP$6+1,1)/INDEX(Inputs!$L$46:$L$55,AP$6,1),1/(INDEX(Inputs!$C$46:$C$55,AP$6+1,1)-INDEX(Inputs!$C$46:$C$55,AP$6,1)))-1 -> 4.0% | AR110: =+POWER(INDEX(Inputs!$L$46:$L55,AQ$6+1,1)/INDEX(Inputs!$L$46:$L$55,AQ$6,1),1/(INDEX(Inputs!$C$46:$C$55,AQ$6+1,1)-INDEX(Inputs!$C$46:$C$55,AQ$6,1)))-1 -> 4.0% | AS110: =+POWER(INDEX(Inputs!$L$46:$L55,AR$6+1,1)/INDEX(Inputs!$L$46:$L$55,AR$6,1),1/(INDEX(Inputs!$C$46:$C$55,AR$6+1,1)-INDEX(Inputs!$C$46:$C$55,AR$6,1)))-1 -> 4.0% | AT110: =+POWER(INDEX(Inputs!$L$46:$L55,AS$6+1,1)/INDEX(Inputs!$L$46:$L$55,AS$6,1),1/(INDEX(Inputs!$C$46:$C$55,AS$6+1,1)-INDEX(Inputs!$C$46:$C$55,AS$6,1)))-1 -> 4.0% | AU110: =+POWER(INDEX(Inputs!$L$46:$L55,AT$6+1,1)/INDEX(Inputs!$L$46:$L$55,AT$6,1),1/(INDEX(Inputs!$C$46:$C$55,AT$6+1,1)-INDEX(Inputs!$C$46:$C$55,AT$6,1)))-1 -> 4.0% | AV110: =+POWER(INDEX(Inputs!$L$46:$L55,AU$6+1,1)/INDEX(Inputs!$L$46:$L$55,AU$6,1),1/(INDEX(Inputs!$C$46:$C$55,AU$6+1,1)-INDEX(Inputs!$C$46:$C$55,AU$6,1)))-1 -> 3.8% | AW110: =+POWER(INDEX(Inputs!$L$46:$L55,AV$6+1,1)/INDEX(Inputs!$L$46:$L$55,AV$6,1),1/(INDEX(Inputs!$C$46:$C$55,AV$6+1,1)-INDEX(Inputs!$C$46:$C$55,AV$6,1)))-1 -> 3.8% | AX110: =+POWER(INDEX(Inputs!$L$46:$L55,AW$6+1,1)/INDEX(Inputs!$L$46:$L$55,AW$6,1),1/(INDEX(Inputs!$C$46:$C$55,AW$6+1,1)-INDEX(Inputs!$C$46:$C$55,AW$6,1)))-1 -> 3.8% | AY110: =+POWER(INDEX(Inputs!$L$46:$L55,AX$6+1,1)/INDEX(Inputs!$L$46:$L$55,AX$6,1),1/(INDEX(Inputs!$C$46:$C$55,AX$6+1,1)-INDEX(Inputs!$C$46:$C$55,AX$6,1)))-1 -> 3.8% | AZ110: =+POWER(INDEX(Inputs!$L$46:$L55,AY$6+1,1)/INDEX(Inputs!$L$46:$L$55,AY$6,1),1/(INDEX(Inputs!$C$46:$C$55,AY$6+1,1)-INDEX(Inputs!$C$46:$C$55,AY$6,1)))-1 -> 3.8% | BA110: =+POWER(INDEX(Inputs!$L$46:$L55,AZ$6+1,1)/INDEX(Inputs!$L$46:$L$55,AZ$6,1),1/(INDEX(Inputs!$C$46:$C$55,AZ$6+1,1)-INDEX(Inputs!$C$46:$C$55,AZ$6,1)))-1 -> 3.9% | BB110: =+POWER(INDEX(Inputs!$L$46:$L55,BA$6+1,1)/INDEX(Inputs!$L$46:$L$55,BA$6,1),1/(INDEX(Inputs!$C$46:$C$55,BA$6+1,1)-INDEX(Inputs!$C$46:$C$55,BA$6,1)))-1 -> 3.9% | BC110: =+POWER(INDEX(Inputs!$L$46:$L55,BB$6+1,1)/INDEX(Inputs!$L$46:$L$55,BB$6,1),1/(INDEX(Inputs!$C$46:$C$55,BB$6+1,1)-INDEX(Inputs!$C$46:$C$55,BB$6,1)))-1 -> 3.9% | BD110: =+POWER(INDEX(Inputs!$L$46:$L55,BC$6+1,1)/INDEX(Inputs!$L$46:$L$55,BC$6,1),1/(INDEX(Inputs!$C$46:$C$55,BC$6+1,1)-INDEX(Inputs!$C$46:$C$55,BC$6,1)))-1 -> 3.9% | BE110: =+POWER(INDEX(Inputs!$L$46:$L55,BD$6+1,1)/INDEX(Inputs!$L$46:$L$55,BD$6,1),1/(INDEX(Inputs!$C$46:$C$55,BD$6+1,1)-INDEX(Inputs!$C$46:$C$55,BD$6,1)))-1 -> 3.9% | BF110: =+POWER(INDEX(Inputs!$L$46:$L55,BE$6+1,1)/INDEX(Inputs!$L$46:$L$55,BE$6,1),1/(INDEX(Inputs!$C$46:$C$55,BE$6+1,1)-INDEX(Inputs!$C$46:$C$55,BE$6,1)))-1 -> 5.2% | BG110: =+POWER(INDEX(Inputs!$L$46:$L55,BF$6+1,1)/INDEX(Inputs!$L$46:$L$55,BF$6,1),1/(INDEX(Inputs!$C$46:$C$55,BF$6+1,1)-INDEX(Inputs!$C$46:$C$55,BF$6,1)))-1 -> 5.2% | BH110: =+POWER(INDEX(Inputs!$L$46:$L55,BG$6+1,1)/INDEX(Inputs!$L$46:$L$55,BG$6,1),1/(INDEX(Inputs!$C$46:$C$55,BG$6+1,1)-INDEX(Inputs!$C$46:$C$55,BG$6,1)))-1 -> 5.2% | BI110: =+POWER(INDEX(Inputs!$L$46:$L55,BH$6+1,1)/INDEX(Inputs!$L$46:$L$55,BH$6,1),1/(INDEX(Inputs!$C$46:$C$55,BH$6+1,1)-INDEX(Inputs!$C$46:$C$55,BH$6,1)))-1 -> 5.2% | BJ110: =+POWER(INDEX(Inputs!$L$46:$L55,BI$6+1,1)/INDEX(Inputs!$L$46:$L$55,BI$6,1),1/(INDEX(Inputs!$C$46:$C$55,BI$6+1,1)-INDEX(Inputs!$C$46:$C$55,BI$6,1)))-1 -> 5.2%
C111: Revenues | H111: =+Inputs!L15 -> 1 | K111: $000s | N111: =+SUM(Q111:BJ111) -> 419,493 | S111: =+CHOOSE($H$29,S112,S113) -> 2,085 | T111: 1,858 | U111: 1,656 | V111: 1,475 | W111: 1,515 | X111: 1,556 | Y111: 1,598 | Z111: 1,641 | AA111: 1,685 | AB111: 1,725 | AC111: 1,766 | AD111: 1,808 | AE111: 1,850 | AF111: 1,894 | AG111: 2,540 | AH111: 3,406 | AI111: 4,568 | AJ111: 6,125 | AK111: 8,214 | AL111: 8,613 | AM111: 9,031 | AN111: 9,470 | AO111: 9,930 | AP111: 10,413 | AQ111: 10,827 | AR111: 11,258 | AS111: 11,706 | AT111: 12,172 | AU111: 12,656 | AV111: 13,136 | AW111: 13,634 | AX111: 14,150 | AY111: 14,687 | AZ111: 15,243 | BA111: 15,842 | BB111: 16,463 | BC111: 17,110 | BD111: 17,781 | BE111: 18,479 | BF111: 19,445 | BG111: 20,461 | BH111: 21,530 | BI111: 22,655 | BJ111: 23,838 | BK111: 0 | BL111: 0 | BM111: 0 | BN111: 0 | BO111: 0 | BP111: 0 | BQ111: 0 | BR111: 0 | BS111: 0 | BT111: 0 | BU111: 0 | BV111: 0 | BW111: 0 | BX111: 0 | BY111: 0 | BZ111: 0 | CA111: 0 | CB111: 0 | CC111: =+CHOOSE($H$29,CC112,CC113) -> 0 | CD111: 0 | CE111: 0 | CF111: 0 | CG111: 0 | CH111: 0 | CI111: 0 | CJ111: 0 | CK111: 0 | CL111: 0 | CM111: 0 | CN111: 0 | CO111: 0 | CP111: 0 | CQ111: 0 | CR111: 0 | CS111: 0 | CT111: 0 | CU111: 0 | CV111: 0 | CW111: 0 | CX111: 0 | CY111: 0 | CZ111: 0 | DA111: 0 | DB111: 0 | DC111: 0 | DD111: 0 | DE111: 0 | DF111: 0 | DG111: 0 | DH111: 0 | DI111: 0 | DJ111: 0 | DK111: 0 | DL111: 0 | DM111: 0 | DN111: 0 | DO111: 0 | DP111: 0
C112: Revenues Base Case | S112: =+IF(S$6<>R$6,INDEX(Inputs!$L$46:$L$55,S$6,1),R112*(1+S110)) -> 2,085 | T112: =+IF(T$6<>S$6,INDEX(Inputs!$L$46:$L$55,T$6,1),S112*(1+T110)) -> 1,858 | U112: =+IF(U$6<>T$6,INDEX(Inputs!$L$46:$L$55,U$6,1),T112*(1+U110)) -> 1,656 | V112: =+IF(V$6<>U$6,INDEX(Inputs!$L$46:$L$55,V$6,1),U112*(1+V110)) -> 1,475 | W112: =+IF(W$6<>V$6,INDEX(Inputs!$L$46:$L$55,W$6,1),V112*(1+W110)) -> 1,515 | X112: =+IF(X$6<>W$6,INDEX(Inputs!$L$46:$L$55,X$6,1),W112*(1+X110)) -> 1,556 | Y112: =+IF(Y$6<>X$6,INDEX(Inputs!$L$46:$L$55,Y$6,1),X112*(1+Y110)) -> 1,598 | Z112: =+IF(Z$6<>Y$6,INDEX(Inputs!$L$46:$L$55,Z$6,1),Y112*(1+Z110)) -> 1,641 | AA112: =+IF(AA$6<>Z$6,INDEX(Inputs!$L$46:$L$55,AA$6,1),Z112*(1+AA110)) -> 1,685 | AB112: =+IF(AB$6<>AA$6,INDEX(Inputs!$L$46:$L$55,AB$6,1),AA112*(1+AB110)) -> 1,725 | AC112: =+IF(AC$6<>AB$6,INDEX(Inputs!$L$46:$L$55,AC$6,1),AB112*(1+AC110)) -> 1,766 | AD112: =+IF(AD$6<>AC$6,INDEX(Inputs!$L$46:$L$55,AD$6,1),AC112*(1+AD110)) -> 1,808 | AE112: =+IF(AE$6<>AD$6,INDEX(Inputs!$L$46:$L$55,AE$6,1),AD112*(1+AE110)) -> 1,850 | AF112: =+IF(AF$6<>AE$6,INDEX(Inputs!$L$46:$L$55,AF$6,1),AE112*(1+AF110)) -> 1,894 | AG112: =+IF(AG$6<>AF$6,INDEX(Inputs!$L$46:$L$55,AG$6,1),AF112*(1+AG110)) -> 2,540 | AH112: =+IF(AH$6<>AG$6,INDEX(Inputs!$L$46:$L$55,AH$6,1),AG112*(1+AH110)) -> 3,406 | AI112: =+IF(AI$6<>AH$6,INDEX(Inputs!$L$46:$L$55,AI$6,1),AH112*(1+AI110)) -> 4,568 | AJ112: =+IF(AJ$6<>AI$6,INDEX(Inputs!$L$46:$L$55,AJ$6,1),AI112*(1+AJ110)) -> 6,125 | AK112: =+IF(AK$6<>AJ$6,INDEX(Inputs!$L$46:$L$55,AK$6,1),AJ112*(1+AK110)) -> 8,214 | AL112: =+IF(AL$6<>AK$6,INDEX(Inputs!$L$46:$L$55,AL$6,1),AK112*(1+AL110)) -> 8,613 | AM112: =+IF(AM$6<>AL$6,INDEX(Inputs!$L$46:$L$55,AM$6,1),AL112*(1+AM110)) -> 9,031 | AN112: =+IF(AN$6<>AM$6,INDEX(Inputs!$L$46:$L$55,AN$6,1),AM112*(1+AN110)) -> 9,470 | AO112: =+IF(AO$6<>AN$6,INDEX(Inputs!$L$46:$L$55,AO$6,1),AN112*(1+AO110)) -> 9,930 | AP112: =+IF(AP$6<>AO$6,INDEX(Inputs!$L$46:$L$55,AP$6,1),AO112*(1+AP110)) -> 10,413 | AQ112: =+IF(AQ$6<>AP$6,INDEX(Inputs!$L$46:$L$55,AQ$6,1),AP112*(1+AQ110)) -> 10,827 | AR112: =+IF(AR$6<>AQ$6,INDEX(Inputs!$L$46:$L$55,AR$6,1),AQ112*(1+AR110)) -> 11,258 | AS112: =+IF(AS$6<>AR$6,INDEX(Inputs!$L$46:$L$55,AS$6,1),AR112*(1+AS110)) -> 11,706 | AT112: =+IF(AT$6<>AS$6,INDEX(Inputs!$L$46:$L$55,AT$6,1),AS112*(1+AT110)) -> 12,172 | AU112: =+IF(AU$6<>AT$6,INDEX(Inputs!$L$46:$L$55,AU$6,1),AT112*(1+AU110)) -> 12,656 | AV112: =+IF(AV$6<>AU$6,INDEX(Inputs!$L$46:$L$55,AV$6,1),AU112*(1+AV110)) -> 13,136 | AW112: =+IF(AW$6<>AV$6,INDEX(Inputs!$L$46:$L$55,AW$6,1),AV112*(1+AW110)) -> 13,634 | AX112: =+IF(AX$6<>AW$6,INDEX(Inputs!$L$46:$L$55,AX$6,1),AW112*(1+AX110)) -> 14,150 | AY112: =+IF(AY$6<>AX$6,INDEX(Inputs!$L$46:$L$55,AY$6,1),AX112*(1+AY110)) -> 14,687 | AZ112: =+IF(AZ$6<>AY$6,INDEX(Inputs!$L$46:$L$55,AZ$6,1),AY112*(1+AZ110)) -> 15,243 | BA112: =+IF(BA$6<>AZ$6,INDEX(Inputs!$L$46:$L$55,BA$6,1),AZ112*(1+BA110)) -> 15,842 | BB112: =+IF(BB$6<>BA$6,INDEX(Inputs!$L$46:$L$55,BB$6,1),BA112*(1+BB110)) -> 16,463 | BC112: =+IF(BC$6<>BB$6,INDEX(Inputs!$L$46:$L$55,BC$6,1),BB112*(1+BC110)) -> 17,110 | BD112: =+IF(BD$6<>BC$6,INDEX(Inputs!$L$46:$L$55,BD$6,1),BC112*(1+BD110)) -> 17,781 | BE112: =+IF(BE$6<>BD$6,INDEX(Inputs!$L$46:$L$55,BE$6,1),BD112*(1+BE110)) -> 18,479 | BF112: =+IF(BF$6<>BE$6,INDEX(Inputs!$L$46:$L$55,BF$6,1),BE112*(1+BF110)) -> 19,445 | BG112: =+IF(BG$6<>BF$6,INDEX(Inputs!$L$46:$L$55,BG$6,1),BF112*(1+BG110)) -> 20,461 | BH112: =+IF(BH$6<>BG$6,INDEX(Inputs!$L$46:$L$55,BH$6,1),BG112*(1+BH110)) -> 21,530 | BI112: =+IF(BI$6<>BH$6,INDEX(Inputs!$L$46:$L$55,BI$6,1),BH112*(1+BI110)) -> 22,655 | BJ112: =+IF(BJ$6<>BI$6,INDEX(Inputs!$L$46:$L$55,BJ$6,1),BI112*(1+BJ110)) -> 23,838
C115: Revenues (NOMINAL) | K115: $000s | N115: =+SUM(Q115:BJ115) -> 1,030,323 | S115: =+S112*S25 -> 2,500 | T115: 2,278 | U115: 2,076 | V115: 1,891 | W115: 1,987 | X115: 2,087 | Y115: 2,193 | Z115: 2,303 | AA115: 2,420 | AB115: 2,534 | AC115: 2,654 | AD115: 2,779 | AE115: 2,911 | AF115: 3,048 | AG115: 4,181 | AH115: 5,736 | AI115: 7,869 | AJ115: 10,795 | AK115: 14,808 | AL115: 15,885 | AM115: 17,040 | AN115: 18,279 | AO115: 19,608 | AP115: 21,034 | AQ115: 22,374 | AR115: 23,799 | AS115: 25,315 | AT115: 26,928 | AU115: 28,643 | AV115: 30,413 | AW115: 32,291 | AX115: 34,286 | AY115: 36,404 | AZ115: 38,653 | BA115: 41,094 | BB115: 43,689 | BC115: 46,448 | BD115: 49,382 | BE115: 52,501 | BF115: 56,514 | BG115: 60,835 | BH115: 65,485 | BI115: 70,492 | BJ115: 75,881 | BK115: =+BK111*BK107*BK93 -> 0 | BL115: 0 | BM115: 0 | BN115: 0 | BO115: 0 | BP115: 0 | BQ115: 0 | BR115: 0 | BS115: 0 | BT115: 0 | BU115: 0 | BV115: 0 | BW115: 0 | BX115: 0 | BY115: 0 | BZ115: 0 | CA115: 0 | CB115: 0 | CC115: 0 | CD115: =+CD111*CD107*CD93 -> 0 | CE115: 0 | CF115: 0 | CG115: 0 | CH115: 0 | CI115: 0 | CJ115: 0 | CK115: 0 | CL115: 0 | CM115: 0 | CN115: 0 | CO115: 0 | CP115: 0 | CQ115: 0 | CR115: 0 | CS115: 0 | CT115: 0 | CU115: 0 | CV115: 0 | CW115: 0 | CX115: 0 | CY115: 0 | CZ115: 0 | DA115: 0 | DB115: 0 | DC115: 0 | DD115: 0 | DE115: 0 | DF115: 0 | DG115: 0 | DH115: 0 | DI115: 0 | DJ115: 0 | DK115: 0 | DL115: 0 | DM115: 0 | DN115: 0 | DO115: 0 | DP115: 0

Sheet Fin
C2: Project: | F2: =+Inputs!$G$2 -> LBJ Infrastructure Group LLC IH-635 Mananged Lanes Project
C3: Worksheet: | F3: Fin
C4: Model Integrity : | F4: =+Inputs!G4 -> 0
C7: Year | Q7: =+Oper!Q7 -> 2016 | R7: =+Oper!R7 -> 2017 | S7: =+Oper!S7 -> 2018 | T7: =+Oper!T7 -> 2019 | U7: =+Oper!U7 -> 2020 | V7: =+Oper!V7 -> 2021 | W7: =+Oper!W7 -> 2022 | X7: =+Oper!X7 -> 2023 | Y7: =+Oper!Y7 -> 2024 | Z7: =+Oper!Z7 -> 2025 | AA7: =+Oper!AA7 -> 2026 | AB7: =+Oper!AB7 -> 2027 | AC7: =+Oper!AC7 -> 2028 | AD7: =+Oper!AD7 -> 2029 | AE7: =+Oper!AE7 -> 2030 | AF7: =+Oper!AF7 -> 2031 | AG7: =+Oper!AG7 -> 2032 | AH7: =+Oper!AH7 -> 2033 | AI7: =+Oper!AI7 -> 2034 | AJ7: =+Oper!AJ7 -> 2035 | AK7: =+Oper!AK7 -> 2036 | AL7: =+Oper!AL7 -> 2037 | AM7: =+Oper!AM7 -> 2038 | AN7: =+Oper!AN7 -> 2039 | AO7: =+Oper!AO7 -> 2040 | AP7: =+Oper!AP7 -> 2041 | AQ7: =+Oper!AQ7 -> 2042 | AR7: =+Oper!AR7 -> 2043 | AS7: =+Oper!AS7 -> 2044 | AT7: =+Oper!AT7 -> 2045 | AU7: =+Oper!AU7 -> 2046 | AV7: =+Oper!AV7 -> 2047 | AW7: =+Oper!AW7 -> 2048 | AX7: =+Oper!AX7 -> 2049 | AY7: =+Oper!AY7 -> 2050 | AZ7: =+Oper!AZ7 -> 2051 | BA7: =+Oper!BA7 -> 2052 | BB7: =+Oper!BB7 -> 2053 | BC7: =+Oper!BC7 -> 2054 | BD7: =+Oper!BD7 -> 2055 | BE7: =+Oper!BE7 -> 2056 | BF7: =+Oper!BF7 -> 2057 | BG7: =+Oper!BG7 -> 2058 | BH7: =+Oper!BH7 -> 2059 | BI7: =+Oper!BI7 -> 2060 | BJ7: =+Oper!BJ7 -> 2061 | BK7: =+Oper!BK7 -> 2062 | BL7: =+Oper!BL7 -> 2063 | BM7: =+Oper!BM7 -> 2064 | BN7: =+Oper!BN7 -> 2065 | BO7: =+Oper!BO7 -> 2066 | BP7: =+Oper!BP7 -> 2067 | BQ7: =+Oper!BQ7 -> 2068 | BR7: =+Oper!BR7 -> 2069 | BS7: =+Oper!BS7 -> 2070 | BT7: =+Oper!BT7 -> 2071 | BU7: =+Oper!BU7 -> 2072
C8: Period start date | Q8: =+Oper!Q8 -> 2016-01-01 | R8: =+Oper!R8 -> 2017-01-01 | S8: =+Oper!S8 -> 2018-01-01 | T8: =+Oper!T8 -> 2019-01-01 | U8: =+Oper!U8 -> 2020-01-01 | V8: =+Oper!V8 -> 2021-01-01 | W8: =+Oper!W8 -> 2022-01-01 | X8: =+Oper!X8 -> 2023-01-01 | Y8: =+Oper!Y8 -> 2024-01-01 | Z8: =+Oper!Z8 -> 2025-01-01 | AA8: =+Oper!AA8 -> 2026-01-01 | AB8: =+Oper!AB8 -> 2027-01-01 | AC8: =+Oper!AC8 -> 2028-01-01 | AD8: =+Oper!AD8 -> 2029-01-01 | AE8: =+Oper!AE8 -> 2030-01-01 | AF8: =+Oper!AF8 -> 2031-01-01 | AG8: =+Oper!AG8 -> 2032-01-01 | AH8: =+Oper!AH8 -> 2033-01-01 | AI8: =+Oper!AI8 -> 2034-01-01 | AJ8: =+Oper!AJ8 -> 2035-01-01 | AK8: =+Oper!AK8 -> 2036-01-01 | AL8: =+Oper!AL8 -> 2037-01-01 | AM8: =+Oper!AM8 -> 2038-01-01 | AN8: =+Oper!AN8 -> 2039-01-01 | AO8: =+Oper!AO8 -> 2040-01-01 | AP8: =+Oper!AP8 -> 2041-01-01 | AQ8: =+Oper!AQ8 -> 2042-01-01 | AR8: =+Oper!AR8 -> 2043-01-01 | AS8: =+Oper!AS8 -> 2044-01-01 | AT8: =+Oper!AT8 -> 2045-01-01 | AU8: =+Oper!AU8 -> 2046-01-01 | AV8: =+Oper!AV8 -> 2047-01-01 | AW8: =+Oper!AW8 -> 2048-01-01 | AX8: =+Oper!AX8 -> 2049-01-01 | AY8: =+Oper!AY8 -> 2050-01-01 | AZ8: =+Oper!AZ8 -> 2051-01-01 | BA8: =+Oper!BA8 -> 2052-01-01 | BB8: =+Oper!BB8 -> 2053-01-01 | BC8: =+Oper!BC8 -> 2054-01-01 | BD8: =+Oper!BD8 -> 2055-01-01 | BE8: =+Oper!BE8 -> 2056-01-01 | BF8: =+Oper!BF8 -> 2057-01-01 | BG8: =+Oper!BG8 -> 2058-01-01 | BH8: =+Oper!BH8 -> 2059-01-01 | BI8: =+Oper!BI8 -> 2060-01-01 | BJ8: =+Oper!BJ8 -> 2061-01-01 | BK8: =+Oper!BK8 -> 2062-01-01 | BL8: =+Oper!BL8 -> 2063-01-01 | BM8: =+Oper!BM8 -> 2064-01-01 | BN8: =+Oper!BN8 -> 2065-01-01 | BO8: =+Oper!BO8 -> 2066-01-01 | BP8: =+Oper!BP8 -> 2067-01-01 | BQ8: =+Oper!BQ8 -> 2068-01-01 | BR8: =+Oper!BR8 -> 2069-01-01 | BS8: =+Oper!BS8 -> 2070-01-01 | BT8: =+Oper!BT8 -> 2071-01-01 | BU8: =+Oper!BU8 -> 2072-01-01
C9: Period end date | Q9: =+Oper!Q9 -> 2016-12-31 | R9: =+Oper!R9 -> 2017-12-31 | S9: =+Oper!S9 -> 2018-12-31 | T9: =+Oper!T9 -> 2019-12-31 | U9: =+Oper!U9 -> 2020-12-31 | V9: =+Oper!V9 -> 2021-12-31 | W9: =+Oper!W9 -> 2022-12-31 | X9: =+Oper!X9 -> 2023-12-31 | Y9: =+Oper!Y9 -> 2024-12-31 | Z9: =+Oper!Z9 -> 2025-12-31 | AA9: =+Oper!AA9 -> 2026-12-31 | AB9: =+Oper!AB9 -> 2027-12-31 | AC9: =+Oper!AC9 -> 2028-12-31 | AD9: =+Oper!AD9 -> 2029-12-31 | AE9: =+Oper!AE9 -> 2030-12-31 | AF9: =+Oper!AF9 -> 2031-12-31 | AG9: =+Oper!AG9 -> 2032-12-31 | AH9: =+Oper!AH9 -> 2033-12-31 | AI9: =+Oper!AI9 -> 2034-12-31 | AJ9: =+Oper!AJ9 -> 2035-12-31 | AK9: =+Oper!AK9 -> 2036-12-31 | AL9: =+Oper!AL9 -> 2037-12-31 | AM9: =+Oper!AM9 -> 2038-12-31 | AN9: =+Oper!AN9 -> 2039-12-31 | AO9: =+Oper!AO9 -> 2040-12-31 | AP9: =+Oper!AP9 -> 2041-12-31 | AQ9: =+Oper!AQ9 -> 2042-12-31 | AR9: =+Oper!AR9 -> 2043-12-31 | AS9: =+Oper!AS9 -> 2044-12-31 | AT9: =+Oper!AT9 -> 2045-12-31 | AU9: =+Oper!AU9 -> 2046-12-31 | AV9: =+Oper!AV9 -> 2047-12-31 | AW9: =+Oper!AW9 -> 2048-12-31 | AX9: =+Oper!AX9 -> 2049-12-31 | AY9: =+Oper!AY9 -> 2050-12-31 | AZ9: =+Oper!AZ9 -> 2051-12-31 | BA9: =+Oper!BA9 -> 2052-12-31 | BB9: =+Oper!BB9 -> 2053-12-31 | BC9: =+Oper!BC9 -> 2054-12-31 | BD9: =+Oper!BD9 -> 2055-12-31 | BE9: =+Oper!BE9 -> 2056-12-31 | BF9: =+Oper!BF9 -> 2057-12-31 | BG9: =+Oper!BG9 -> 2058-12-31 | BH9: =+Oper!BH9 -> 2059-12-31 | BI9: =+Oper!BI9 -> 2060-12-31 | BJ9: =+Oper!BJ9 -> 2061-12-31 | BK9: =+Oper!BK9 -> 2062-12-31 | BL9: =+Oper!BL9 -> 2063-12-31 | BM9: =+Oper!BM9 -> 2064-12-31 | BN9: =+Oper!BN9 -> 2065-12-31 | BO9: =+Oper!BO9 -> 2066-12-31 | BP9: =+Oper!BP9 -> 2067-12-31 | BQ9: =+Oper!BQ9 -> 2068-12-31 | BR9: =+Oper!BR9 -> 2069-12-31 | BS9: =+Oper!BS9 -> 2070-12-31 | BT9: =+Oper!BT9 -> 2071-12-31 | BU9: =+Oper!BU9 -> 2072-12-31
K10: Unit | L10: Value | N10: Sum
C12: Operation Flag | K12: Flag | Q12: =+CF!Q13 -> 1 | R12: =+CF!R13 -> 1 | S12: =+CF!S13 -> 1 | T12: =+CF!T13 -> 1 | U12: =+CF!U13 -> 1 | V12: =+CF!V13 -> 1 | W12: =+CF!W13 -> 1 | X12: =+CF!X13 -> 1 | Y12: =+CF!Y13 -> 1 | Z12: =+CF!Z13 -> 1 | AA12: =+CF!AA13 -> 1 | AB12: =+CF!AB13 -> 1 | AC12: =+CF!AC13 -> 1 | AD12: =+CF!AD13 -> 1 | AE12: =+CF!AE13 -> 1 | AF12: =+CF!AF13 -> 1 | AG12: =+CF!AG13 -> 1 | AH12: =+CF!AH13 -> 1 | AI12: =+CF!AI13 -> 1 | AJ12: =+CF!AJ13 -> 1 | AK12: =+CF!AK13 -> 1 | AL12: =+CF!AL13 -> 1 | AM12: =+CF!AM13 -> 1 | AN12: =+CF!AN13 -> 1 | AO12: =+CF!AO13 -> 1 | AP12: =+CF!AP13 -> 1 | AQ12: =+CF!AQ13 -> 1 | AR12: =+CF!AR13 -> 1 | AS12: =+CF!AS13 -> 1 | AT12: =+CF!AT13 -> 1 | AU12: =+CF!AU13 -> 1 | AV12: =+CF!AV13 -> 1 | AW12: =+CF!AW13 -> 1 | AX12: =+CF!AX13 -> 1 | AY12: =+CF!AY13 -> 1 | AZ12: =+CF!AZ13 -> 1 | BA12: =+CF!BA13 -> 1 | BB12: =+CF!BB13 -> 1 | BC12: =+CF!BC13 -> 1 | BD12: =+CF!BD13 -> 1 | BE12: =+CF!BE13 -> 1 | BF12: =+CF!BF13 -> 1 | BG12: =+CF!BG13 -> 1 | BH12: =+CF!BH13 -> 1 | BI12: =+CF!BI13 -> 1 | BJ12: =+CF!BJ13 -> 1 | BK12: =+CF!BK13 -> 0 | BL12: =+CF!BL13 -> 0 | BM12: =+CF!BM13 -> 0 | BN12: =+CF!BN13 -> 0 | BO12: =+CF!BO13 -> 0 | BP12: =+CF!BP13 -> 0 | BQ12: =+CF!BQ13 -> 0 | BR12: =+CF!BR13 -> 0 | BS12: =+CF!BS13 -> 0 | BT12: =+CF!BT13 -> 0 | BU12: =+CF!BU13 -> 0
C13: Concession flag | K13: Flag | Q13: =+CF!Q12 -> 1 | R13: =+CF!R12 -> 1 | S13: =+CF!S12 -> 1 | T13: =+CF!T12 -> 1 | U13: =+CF!U12 -> 1 | V13: =+CF!V12 -> 1 | W13: =+CF!W12 -> 1 | X13: =+CF!X12 -> 1 | Y13: =+CF!Y12 -> 1 | Z13: =+CF!Z12 -> 1 | AA13: =+CF!AA12 -> 1 | AB13: =+CF!AB12 -> 1 | AC13: =+CF!AC12 -> 1 | AD13: =+CF!AD12 -> 1 | AE13: =+CF!AE12 -> 1 | AF13: =+CF!AF12 -> 1 | AG13: =+CF!AG12 -> 1 | AH13: =+CF!AH12 -> 1 | AI13: =+CF!AI12 -> 1 | AJ13: =+CF!AJ12 -> 1 | AK13: =+CF!AK12 -> 1 | AL13: =+CF!AL12 -> 1 | AM13: =+CF!AM12 -> 1 | AN13: =+CF!AN12 -> 1 | AO13: =+CF!AO12 -> 1 | AP13: =+CF!AP12 -> 1 | AQ13: =+CF!AQ12 -> 1 | AR13: =+CF!AR12 -> 1 | AS13: =+CF!AS12 -> 1 | AT13: =+CF!AT12 -> 1 | AU13: =+CF!AU12 -> 1 | AV13: =+CF!AV12 -> 1 | AW13: =+CF!AW12 -> 1 | AX13: =+CF!AX12 -> 1 | AY13: =+CF!AY12 -> 1 | AZ13: =+CF!AZ12 -> 1 | BA13: =+CF!BA12 -> 1 | BB13: =+CF!BB12 -> 1 | BC13: =+CF!BC12 -> 1 | BD13: =+CF!BD12 -> 1 | BE13: =+CF!BE12 -> 1 | BF13: =+CF!BF12 -> 1 | BG13: =+CF!BG12 -> 1 | BH13: =+CF!BH12 -> 1 | BI13: =+CF!BI12 -> 1 | BJ13: =+CF!BJ12 -> 1 | BK13: =+CF!BK12 -> 0 | BL13: =+CF!BL12 -> 0 | BM13: =+CF!BM12 -> 0 | BN13: =+CF!BN12 -> 0 | BO13: =+CF!BO12 -> 0 | BP13: =+CF!BP12 -> 0 | BQ13: =+CF!BQ12 -> 0 | BR13: =+CF!BR12 -> 0 | BS13: =+CF!BS12 -> 0 | BT13: =+CF!BT12 -> 0 | BU13: =+CF!BU12 -> 0
C14: Periods Remainig | K14: Number | Q14: 46 | R14: =+(Q14 - 1) * R13 -> 45 | S14: 44 | T14: 43 | U14: 42 | V14: 41 | W14: 40 | X14: 39 | Y14: 38 | Z14: 37 | AA14: 36 | AB14: 35 | AC14: 34 | AD14: 33 | AE14: 32 | AF14: 31 | AG14: 30 | AH14: 29 | AI14: 28 | AJ14: 27 | AK14: 26 | AL14: 25 | AM14: 24 | AN14: 23 | AO14: 22 | AP14: 21 | AQ14: 20 | AR14: 19 | AS14: 18 | AT14: 17 | AU14: 16 | AV14: 15 | AW14: 14 | AX14: =+(AW14 - 1) * AX13 -> 13 | AY14: 12 | AZ14: 11 | BA14: 10 | BB14: 9 | BC14: 8 | BD14: 7 | BE14: 6 | BF14: 5 | BG14: 4 | BH14: 3 | BI14: 2 | BJ14: 1 | BK14: 0 | BL14: 0 | BM14: 0 | BN14: 0 | BO14: 0 | BP14: 0 | BQ14: 0 | BR14: 0 | BS14: 0 | BT14: 0 | BU14: 0
C15: Days in Year Assumption | K15: Number | Q15: =+CF!Q15 -> 366 | R15: =+CF!R15 -> 365 | S15: =+CF!S15 -> 365 | T15: =+CF!T15 -> 365 | U15: =+CF!U15 -> 366 | V15: =+CF!V15 -> 365 | W15: =+CF!W15 -> 365 | X15: =+CF!X15 -> 365 | Y15: =+CF!Y15 -> 366 | Z15: =+CF!Z15 -> 365 | AA15: =+CF!AA15 -> 365 | AB15: =+CF!AB15 -> 365 | AC15: =+CF!AC15 -> 366 | AD15: =+CF!AD15 -> 365 | AE15: =+CF!AE15 -> 365 | AF15: =+CF!AF15 -> 365 | AG15: =+CF!AG15 -> 366 | AH15: =+CF!AH15 -> 365 | AI15: =+CF!AI15 -> 365 | AJ15: =+CF!AJ15 -> 365 | AK15: =+CF!AK15 -> 366 | AL15: =+CF!AL15 -> 365 | AM15: =+CF!AM15 -> 365 | AN15: =+CF!AN15 -> 365 | AO15: =+CF!AO15 -> 366 | AP15: =+CF!AP15 -> 365 | AQ15: =+CF!AQ15 -> 365 | AR15: =+CF!AR15 -> 365 | AS15: =+CF!AS15 -> 366 | AT15: =+CF!AT15 -> 365 | AU15: =+CF!AU15 -> 365 | AV15: =+CF!AV15 -> 365 | AW15: =+CF!AW15 -> 366 | AX15: =+CF!AX15 -> 365 | AY15: =+CF!AY15 -> 365 | AZ15: =+CF!AZ15 -> 365 | BA15: =+CF!BA15 -> 366 | BB15: =+CF!BB15 -> 365 | BC15: =+CF!BC15 -> 365 | BD15: =+CF!BD15 -> 365 | BE15: =+CF!BE15 -> 366 | BF15: =+CF!BF15 -> 365 | BG15: =+CF!BG15 -> 365 | BH15: =+CF!BH15 -> 365 | BI15: =+CF!BI15 -> 366 | BJ15: =+CF!BJ15 -> 365 | BK15: =+CF!BK15 -> 365 | BL15: =+CF!BL15 -> 365 | BM15: =+CF!BM15 -> 366 | BN15: =+CF!BN15 -> 365 | BO15: =+CF!BO15 -> 365 | BP15: =+CF!BP15 -> 365 | BQ15: =+CF!BQ15 -> 366 | BR15: =+CF!BR15 -> 365 | BS15: =+CF!BS15 -> 365 | BT15: =+CF!BT15 -> 365 | BU15: =+CF!BU15 -> 366
B17: Debt Summary
B19: PABs
C20: Opening balances | K20: $000s | R20: =+Q25 -> 0 | S20: =+R25 -> 615,000 | T20: =+S25 -> 615,000 | U20: =+T25 -> 615,000 | V20: =+U25 -> 0 | W20: =+V25 -> 0 | X20: =+W25 -> 0 | Y20: =+X25 -> 0 | Z20: =+Y25 -> 0 | AA20: =+Z25 -> 0 | AB20: =+AA25 -> 0 | AC20: =+AB25 -> 0 | AD20: =+AC25 -> 0 | AE20: =+AD25 -> 0 | AF20: =+AE25 -> 0 | AG20: =+AF25 -> 0 | AH20: =+AG25 -> 0 | AI20: =+AH25 -> 0 | AJ20: =+AI25 -> 0 | AK20: =+AJ25 -> 0 | AL20: =+AK25 -> 0 | AM20: =+AL25 -> 0 | AN20: =+AM25 -> 0 | AO20: =+AN25 -> 0 | AP20: =+AO25 -> 0 | AQ20: =+AP25 -> 0 | AR20: =+AQ25 -> 0 | AS20: =+AR25 -> 0 | AT20: =+AS25 -> 0 | AU20: =+AT25 -> 0 | AV20: =+AU25 -> 0 | AW20: =+AV25 -> 0 | AX20: =+AW25 -> 0 | AY20: =+AX25 -> 0 | AZ20: =+AY25 -> 0 | BA20: =+AZ25 -> 0 | BB20: =+BA25 -> 0 | BC20: =+BB25 -> 0 | BD20: =+BC25 -> 0 | BE20: =+BD25 -> 0 | BF20: =+BE25 -> 0 | BG20: =+BF25 -> 0 | BH20: =+BG25 -> 0 | BI20: =+BH25 -> 0 | BJ20: =+BI25 -> 0 | BK20: =+BJ25 -> 0 | BL20: =+BK25 -> 0 | BM20: =+BL25 -> 0 | BN20: =+BM25 -> 0 | BO20: =+BN25 -> 0 | BP20: =+BO25 -> 0 | BQ20: =+BP25 -> 0 | BR20: =+BQ25 -> 0 | BS20: =+BR25 -> 0 | BT20: =+BS25 -> 0 | BU20: =+BT25 -> 0
C21: Draws | K21: $000s | N21: =+R25 -> 615,000 | R21: =+R89 -> 0 | S21: 0 | T21: 0 | U21: 0 | V21: 0 | W21: =+W89 -> 0 | X21: 0 | Y21: 0 | Z21: 0 | AA21: 0 | AB21: 0 | AC21: 0 | AD21: 0 | AE21: 0 | AF21: 0 | AG21: 0 | AH21: 0 | AI21: 0 | AJ21: 0 | AK21: 0 | AL21: 0 | AM21: 0 | AN21: 0 | AO21: 0 | AP21: 0 | AQ21: 0 | AR21: 0 | AS21: 0 | AT21: 0 | AU21: 0 | AV21: 0 | AW21: 0 | AX21: 0 | AY21: 0 | AZ21: 0 | BA21: 0 | BB21: 0 | BC21: 0 | BD21: 0 | BE21: 0 | BF21: 0 | BG21: 0 | BH21: 0 | BI21: 0 | BJ21: 0 | BK21: 0 | BL21: 0 | BM21: 0 | BN21: 0 | BO21: 0 | BP21: 0 | BQ21: 0 | BR21: 0 | BS21: 0 | BT21: 0 | BU21: 0
C22: Interest due | K22: $000s | N22: =SUM(Q22:BU22) -> 153,152 | R22: =+R90 -> 43,758 | S22: =+S90 -> 43,758 | T22: 43,758 | U22: 21,879 | V22: 0 | W22: 0 | X22: 0 | Y22: 0 | Z22: 0 | AA22: 0 | AB22: 0 | AC22: 0 | AD22: 0 | AE22: 0 | AF22: 0 | AG22: 0 | AH22: 0 | AI22: 0 | AJ22: 0 | AK22: 0 | AL22: 0 | AM22: 0 | AN22: 0 | AO22: 0 | AP22: 0 | AQ22: 0 | AR22: 0 | AS22: 0 | AT22: 0 | AU22: 0 | AV22: 0 | AW22: 0 | AX22: 0 | AY22: 0 | AZ22: 0 | BA22: 0 | BB22: 0 | BC22: 0 | BD22: 0 | BE22: 0 | BF22: 0 | BG22: 0 | BH22: 0 | BI22: 0 | BJ22: 0 | BK22: =+BK90 -> 0 | BL22: 0 | BM22: 0 | BN22: 0 | BO22: 0 | BP22: 0 | BQ22: 0 | BR22: 0 | BS22: 0 | BT22: 0 | BU22: 0
C23: Interest paid | K23: $000s | N23: =SUM(Q23:BU23) -> (153,152) | R23: =+ R91 -> (43,758) | S23: =+ S91 -> (43,758) | T23: (43,758) | U23: (21,879) | V23: 0 | W23: 0 | X23: 0 | Y23: 0 | Z23: 0 | AA23: 0 | AB23: 0 | AC23: 0 | AD23: 0 | AE23: 0 | AF23: 0 | AG23: 0 | AH23: 0 | AI23: 0 | AJ23: 0 | AK23: 0 | AL23: 0 | AM23: 0 | AN23: 0 | AO23: 0 | AP23: 0 | AQ23: 0 | AR23: 0 | AS23: 0 | AT23: 0 | AU23: 0 | AV23: 0 | AW23: 0 | AX23: 0 | AY23: 0 | AZ23: 0 | BA23: 0 | BB23: 0 | BC23: 0 | BD23: 0 | BE23: 0 | BF23: 0 | BG23: 0 | BH23: 0 | BI23: 0 | BJ23: 0 | BK23: =+ BK91 -> 0 | BL23: 0 | BM23: 0 | BN23: 0 | BO23: 0 | BP23: 0 | BQ23: 0 | BR23: 0 | BS23: 0 | BT23: 0 | BU23: 0
C24: Refinanced | K24: $000s | N24: =SUM(Q24:BU24) -> (615,000) | R24: =+R92 -> 0 | S24: =+S92 -> 0 | T24: 0 | U24: (615,000) | V24: 0 | W24: 0 | X24: 0 | Y24: 0 | Z24: 0 | AA24: 0 | AB24: 0 | AC24: 0 | AD24: 0 | AE24: 0 | AF24: 0 | AG24: 0 | AH24: 0 | AI24: 0 | AJ24: 0 | AK24: 0 | AL24: 0 | AM24: 0 | AN24: 0 | AO24: 0 | AP24: 0 | AQ24: 0 | AR24: 0 | AS24: 0 | AT24: 0 | AU24: 0 | AV24: 0 | AW24: 0 | AX24: 0 | AY24: 0 | AZ24: 0 | BA24: 0 | BB24: 0 | BC24: 0 | BD24: 0 | BE24: 0 | BF24: 0 | BG24: 0 | BH24: 0 | BI24: 0 | BJ24: 0 | BK24: =+BK92 -> 0 | BL24: 0 | BM24: 0 | BN24: 0 | BO24: 0 | BP24: 0 | BQ24: 0 | BR24: 0 | BS24: 0 | BT24: 0 | BU24: 0
C25: Closing balances | K25: $000s | R25: 615,000 | S25: =SUM(S20:S24) -> 615,000 | T25: 615,000 | U25: =SUM(U20:U24) -> 0 | V25: =SUM(V20:V24) -> 0 | W25: 0 | X25: 0 | Y25: 0 | Z25: 0 | AA25: 0 | AB25: 0 | AC25: 0 | AD25: 0 | AE25: 0 | AF25: 0 | AG25: 0 | AH25: 0 | AI25: 0 | AJ25: 0 | AK25: 0 | AL25: 0 | AM25: 0 | AN25: 0 | AO25: 0 | AP25: 0 | AQ25: 0 | AR25: 0 | AS25: 0 | AT25: 0 | AU25: 0 | AV25: 0 | AW25: 0 | AX25: 0 | AY25: 0 | AZ25: 0 | BA25: 0 | BB25: 0 | BC25: 0 | BD25: 0 | BE25: 0 | BF25: 0 | BG25: 0 | BH25: 0 | BI25: 0 | BJ25: 0 | BK25: 0 | BL25: 0 | BM25: 0 | BN25: 0 | BO25: 0 | BP25: 0 | BQ25: 0 | BR25: 0 | BS25: 0 | BT25: 0 | BU25: 0
N26: =IF(ROUND(SUM(N21:N24),0)<>0,1,0) -> 0
B27: CAPEX Facility
C28: Opening balances | K28: $000s | R28: =+Q33 -> 0 | S28: =+R33 -> 0 | T28: =+S33 -> 0 | U28: =+T33 -> 0 | V28: =+U33 -> 1,758 | W28: =+V33 -> 4,270 | X28: =+W33 -> 7,477 | Y28: =+X33 -> 11,574 | Z28: =+Y33 -> 16,806 | AA28: =+Z33 -> 23,488 | AB28: =+AA33 -> 32,022 | AC28: =+AB33 -> 39,857 | AD28: =+AC33 -> 47,049 | AE28: =+AD33 -> 53,651 | AF28: =+AE33 -> 3,030 | AG28: =+AF33 -> 8,594 | AH28: =+AG33 -> 16,138 | AI28: =+AH33 -> 26,366 | AJ28: =+AI33 -> 40,235 | AK28: =+AJ33 -> 59,040 | AL28: =+AK33 -> 84,537 | AM28: =+AL33 -> 101,795 | AN28: =+AM33 -> 113,475 | AO28: =+AN33 -> 121,381 | AP28: =+AO33 -> 2,676 | AQ28: =+AP33 -> 6,297 | AR28: =+AQ33 -> 11,329 | AS28: =+AR33 -> 18,319 | AT28: =+AS33 -> 28,030 | AU28: =+AT33 -> 41,520 | AV28: =+AU33 -> 60,261 | AW28: =+AV33 -> 78,682 | AX28: =+AW33 -> 96,789 | AY28: =+AX33 -> 114,588 | AZ28: =+AY33 -> 0 | BA28: =+AZ33 -> 0 | BB28: =+BA33 -> 0 | BC28: =+BB33 -> 0 | BD28: =+BC33 -> 0 | BE28: =+BD33 -> 0 | BF28: =+BE33 -> 0 | BG28: =+BF33 -> 0 | BH28: =+BG33 -> 0 | BI28: =+BH33 -> 0 | BJ28: =+BI33 -> 0 | BK28: =+BJ33 -> 0 | BL28: =+BK33 -> 0 | BM28: =+BL33 -> 0 | BN28: =+BM33 -> 0 | BO28: =+BN33 -> 0 | BP28: =+BO33 -> 0 | BQ28: =+BP33 -> 0 | BR28: =+BQ33 -> 0 | BS28: =+BR33 -> 0 | BT28: =+BS33 -> 0 | BU28: =+BT33 -> 0
C29: Draws | K29: $000s | N29: =SUM(Q29:BU29) -> 304,073 | R29: =+R213 -> 0 | S29: 0 | T29: 0 | U29: 1,758 | V29: 2,511 | W29: =+W213 -> 3,208 | X29: =+X213 -> 4,097 | Y29: 5,232 | Z29: 6,682 | AA29: 8,534 | AB29: 7,834 | AC29: 7,192 | AD29: 6,602 | AE29: 6,061 | AF29: 5,564 | AG29: 7,544 | AH29: 10,229 | AI29: 13,869 | AJ29: 18,805 | AK29: =+AK213 -> 25,497 | AL29: 17,258 | AM29: 11,681 | AN29: 7,906 | AO29: 5,351 | AP29: 3,622 | AQ29: 5,032 | AR29: 6,990 | AS29: 9,711 | AT29: 13,490 | AU29: 18,741 | AV29: 18,421 | AW29: 18,107 | AX29: 17,798 | AY29: 8,747 | AZ29: 0 | BA29: 0 | BB29: 0 | BC29: 0 | BD29: 0 | BE29: 0 | BF29: 0 | BG29: 0 | BH29: 0 | BI29: 0 | BJ29: 0 | BK29: 0 | BL29: 0 | BM29: 0 | BN29: 0 | BO29: 0 | BP29: 0 | BQ29: 0 | BR29: 0 | BS29: 0 | BT29: 0 | BU29: 0
C30: Interest due | K30: $000s | N30: =SUM(Q30:BU30) -> 62,715 | R30: =-R209 -> 0 | S30: 0 | T30: 0 | U30: =-U209 -> 0 | V30: =-V209 -> 125 | W30: 266 | X30: 446 | Y30: 676 | Z30: 970 | AA30: 1,345 | AB30: 1,784 | AC30: 2,187 | AD30: 2,557 | AE30: 1,408 | AF30: 232 | AG30: 550 | AH30: 981 | AI30: 1,566 | AJ30: 2,359 | AK30: =-AK209 -> 3,434 | AL30: 4,665 | AM30: 5,498 | AN30: 6,061 | AO30: 3,186 | AP30: 188 | AQ30: 397 | AR30: 687 | AS30: 1,089 | AT30: 1,649 | AU30: 2,426 | AV30: 3,405 | AW30: 4,368 | AX30: 5,315 | AY30: 2,893 | AZ30: 0 | BA30: 0 | BB30: 0 | BC30: 0 | BD30: 0 | BE30: 0 | BF30: 0 | BG30: 0 | BH30: 0 | BI30: 0 | BJ30: 0 | BK30: 0 | BL30: 0 | BM30: 0 | BN30: 0 | BO30: 0 | BP30: 0 | BQ30: 0 | BR30: 0 | BS30: 0 | BT30: 0 | BU30: 0
C31: Interest paid | K31: $000s | N31: =SUM(Q31:BU31) -> (62,715) | R31: =R209 -> 0 | S31: 0 | T31: 0 | U31: =U209 -> 0 | V31: =V209 -> (125) | W31: (266) | X31: (446) | Y31: (676) | Z31: (970) | AA31: (1,345) | AB31: (1,784) | AC31: (2,187) | AD31: (2,557) | AE31: (1,408) | AF31: (232) | AG31: (550) | AH31: (981) | AI31: (1,566) | AJ31: (2,359) | AK31: =AK209 -> (3,434) | AL31: (4,665) | AM31: (5,498) | AN31: (6,061) | AO31: (3,186) | AP31: (188) | AQ31: (397) | AR31: (687) | AS31: (1,089) | AT31: (1,649) | AU31: (2,426) | AV31: (3,405) | AW31: (4,368) | AX31: (5,315) | AY31: (2,893) | AZ31: 0 | BA31: 0 | BB31: 0 | BC31: 0 | BD31: 0 | BE31: 0 | BF31: 0 | BG31: 0 | BH31: 0 | BI31: 0 | BJ31: 0 | BK31: 0 | BL31: 0 | BM31: 0 | BN31: 0 | BO31: 0 | BP31: 0 | BQ31: 0 | BR31: 0 | BS31: 0 | BT31: 0 | BU31: 0
C32: Refinanced | K32: $000s | N32: =SUM(Q32:BU32) -> (304,073) | R32: =+R214 -> 0 | S32: 0 | T32: 0 | U32: =+U214 -> 0 | V32: =+V214 -> 0 | W32: 0 | X32: 0 | Y32: 0 | Z32: 0 | AA32: 0 | AB32: 0 | AC32: 0 | AD32: 0 | AE32: (56,681) | AF32: 0 | AG32: 0 | AH32: 0 | AI32: 0 | AJ32: 0 | AK32: =+AK214 -> 0 | AL32: 0 | AM32: 0 | AN32: 0 | AO32: (124,057) | AP32: 0 | AQ32: 0 | AR32: 0 | AS32: 0 | AT32: 0 | AU32: 0 | AV32: 0 | AW32: 0 | AX32: 0 | AY32: (123,335) | AZ32: 0 | BA32: 0 | BB32: 0 | BC32: 0 | BD32: 0 | BE32: 0 | BF32: 0 | BG32: 0 | BH32: 0 | BI32: 0 | BJ32: 0 | BK32: 0 | BL32: 0 | BM32: 0 | BN32: 0 | BO32: 0 | BP32: 0 | BQ32: 0 | BR32: 0 | BS32: 0 | BT32: 0 | BU32: 0
C33: Closing balances | K33: $000s | R33: =SUM(R28:R32) -> 0 | S33: 0 | T33: 0 | U33: 1,758 | V33: 4,270 | W33: 7,477 | X33: 11,574 | Y33: 16,806 | Z33: 23,488 | AA33: 32,022 | AB33: 39,857 | AC33: 47,049 | AD33: 53,651 | AE33: 3,030 | AF33: 8,594 | AG33: 16,138 | AH33: 26,366 | AI33: 40,235 | AJ33: 59,040 | AK33: =SUM(AK28:AK32) -> 84,537 | AL33: 101,795 | AM33: 113,475 | AN33: 121,381 | AO33: 2,676 | AP33: 6,297 | AQ33: 11,329 | AR33: 18,319 | AS33: 28,030 | AT33: 41,520 | AU33: 60,261 | AV33: 78,682 | AW33: 96,789 | AX33: 114,588 | AY33: 0 | AZ33: 0 | BA33: 0 | BB33: 0 | BC33: 0 | BD33: 0 | BE33: 0 | BF33: 0 | BG33: 0 | BH33: 0 | BI33: 0 | BJ33: 0 | BK33: 0 | BL33: 0 | BM33: 0 | BN33: 0 | BO33: 0 | BP33: 0 | BQ33: 0 | BR33: 0 | BS33: 0 | BT33: 0 | BU33: 0
N34: =IF(ROUND(SUM(N29:N32),0)<>0,1,0) -> 0
B35: TIFIA
C36: Opening balances | K36: $000s | R36: =+Q46 -> 0 | S36: 1,034,374 | T36: 1,078,485 | U36: 1,124,478 | V36: 1,136,229 | W36: 1,135,150 | X36: 1,133,597 | Y36: 1,131,519 | Z36: 1,128,861 | AA36: 1,109,261 | AB36: 1,088,132 | AC36: 1,063,925 | AD36: 1,036,310 | AE36: 1,004,925 | AF36: 967,953 | AG36: 928,853 | AH36: 887,710 | AI36: 844,433 | AJ36: 798,929 | AK36: 741,106 | AL36: 670,866 | AM36: 597,739 | AN36: 521,571 | AO36: 402,204 | AP36: =+AO46 -> 289,469 | AQ36: 168,978 | AR36: 69,487 | AS36: 0 | AT36: 0 | AU36: 0 | AV36: 0 | AW36: 0 | AX36: 0 | AY36: 0 | AZ36: 0 | BA36: 0 | BB36: 0 | BC36: 0 | BD36: 0 | BE36: 0 | BF36: 0 | BG36: 0 | BH36: 0 | BI36: 0 | BJ36: 0 | BK36: 0 | BL36: 0 | BM36: 0 | BN36: 0 | BO36: 0 | BP36: 0 | BQ36: 0 | BR36: 0 | BS36: 0 | BT36: 0 | BU36: 0
C37: Draws | K37: $000s | N37: =SUM(Q37:BU37) -> 992,067 | R37: =+R127 -> 992,067 | S37: 0 | T37: 0 | U37: 0 | V37: 0 | W37: 0 | X37: 0 | Y37: 0 | Z37: 0 | AA37: 0 | AB37: 0 | AC37: 0 | AD37: 0 | AE37: 0 | AF37: 0 | AG37: 0 | AH37: 0 | AI37: 0 | AJ37: 0 | AK37: 0 | AL37: 0 | AM37: 0 | AN37: 0 | AO37: 0 | AP37: =+AP127 -> 0 | AQ37: 0 | AR37: 0 | AS37: 0 | AT37: 0 | AU37: 0 | AV37: 0 | AW37: 0 | AX37: 0 | AY37: 0 | AZ37: 0 | BA37: 0 | BB37: 0 | BC37: 0 | BD37: 0 | BE37: 0 | BF37: 0 | BG37: 0 | BH37: 0 | BI37: 0 | BJ37: 0 | BK37: 0 | BL37: 0 | BM37: 0 | BN37: 0 | BO37: 0 | BP37: 0 | BQ37: 0 | BR37: 0 | BS37: 0 | BT37: 0 | BU37: 0
C38: Interest due | K38: $000s | N38: 970,300 | R38: =+R129 -> 42,307 | S38: =+S129 -> 44,111 | T38: 45,992 | U38: 47,577 | V38: 47,943 | W38: 47,895 | X38: 47,827 | Y38: 47,736 | Z38: 47,535 | AA38: 46,699 | AB38: 45,791 | AC38: 44,752 | AD38: 43,567 | AE38: 42,213 | AF38: 40,641 | AG38: 38,981 | AH38: 37,233 | AI38: 35,395 | AJ38: 33,410 | AK38: 30,904 | AL38: 27,925 | AM38: 24,823 | AN38: 21,381 | AO38: 16,378 | AP38: 11,866 | AQ38: 6,798 | AR38: 2,620 | AS38: 0 | AT38: 0 | AU38: 0 | AV38: 0 | AW38: 0 | AX38: 0 | AY38: 0 | AZ38: 0 | BA38: 0 | BB38: 0 | BC38: 0 | BD38: 0 | BE38: 0 | BF38: 0 | BG38: 0 | BH38: 0 | BI38: 0 | BJ38: 0 | BK38: 0 | BL38: 0 | BM38: 0 | BN38: 0 | BO38: 0 | BP38: 0 | BQ38: 0 | BR38: 0 | BS38: 0 | BT38: 0 | BU38: 0
C39: Mandatory Interest Paid | K39: $000s | N39: (239,888) | R39: =+R130 -> 0 | S39: 0 | T39: 0 | U39: =+U130 -> (3,742) | V39: (6,894) | W39: =+W130 -> (10,662) | X39: =+X130 -> (12,579) | Y39: (12,545) | Z39: (12,562) | AA39: (12,562) | AB39: (12,579) | AC39: (12,545) | AD39: (12,562) | AE39: (12,562) | AF39: (12,579) | AG39: (12,545) | AH39: (12,562) | AI39: (12,562) | AJ39: (12,579) | AK39: (12,466) | AL39: (12,377) | AM39: (12,272) | AN39: (12,183) | AO39: (5,971) | AP39: 0 | AQ39: 0 | AR39: 0 | AS39: 0 | AT39: 0 | AU39: 0 | AV39: 0 | AW39: 0 | AX39: 0 | AY39: 0 | AZ39: 0 | BA39: 0 | BB39: 0 | BC39: 0 | BD39: 0 | BE39: 0 | BF39: 0 | BG39: 0 | BH39: 0 | BI39: 0 | BJ39: 0 | BK39: 0 | BL39: 0 | BM39: 0 | BN39: 0 | BO39: 0 | BP39: 0 | BQ39: 0 | BR39: 0 | BS39: 0 | BT39: 0 | BU39: 0
C40: Scheduled interest Paid | N40: (586,250) | R40: 0 | S40: 0 | T40: 0 | U40: =+U131 -> (32,084) | V40: (41,050) | W40: =+W131 -> (37,233) | X40: =+X131 -> (35,248) | Y40: (35,192) | Z40: (34,973) | AA40: (34,137) | AB40: (33,212) | AC40: (32,207) | AD40: (31,005) | AE40: (29,651) | AF40: (28,062) | AG40: (26,436) | AH40: (24,671) | AI40: (22,833) | AJ40: (20,831) | AK40: (18,438) | AL40: (15,547) | AM40: (12,551) | AN40: (9,197) | AO40: (10,408) | AP40: (11,866) | AQ40: (6,798) | AR40: (2,620) | AS40: 0 | AT40: 0 | AU40: 0 | AV40: 0 | AW40: 0 | AX40: 0 | AY40: 0 | AZ40: 0 | BA40: 0 | BB40: 0 | BC40: 0 | BD40: 0 | BE40: 0 | BF40: 0 | BG40: 0 | BH40: 0 | BI40: 0 | BJ40: 0 | BK40: 0 | BL40: 0 | BM40: 0 | BN40: 0 | BO40: 0 | BP40: 0 | BQ40: 0 | BR40: 0 | BS40: 0 | BT40: 0 | BU40: 0
C41: TIFIA Revenue Sharing | K41: $000s | N41: (427,654) | R41: =+R138 -> 0 | S41: 0 | T41: 0 | U41: 0 | V41: (540) | W41: (777) | X41: (1,039) | Y41: (1,329) | Z41: (9,800) | AA41: (10,564) | AB41: (12,104) | AC41: (13,808) | AD41: (15,692) | AE41: (18,486) | AF41: (19,550) | AG41: (20,572) | AH41: (21,639) | AI41: (22,752) | AJ41: (23,912) | AK41: (25,120) | AL41: (26,564) | AM41: (28,084) | AN41: (29,684) | AO41: (31,367) | AP41: =+AP138 -> (33,138) | AQ41: (31,550) | AR41: (29,586) | AS41: 0 | AT41: 0 | AU41: 0 | AV41: 0 | AW41: 0 | AX41: 0 | AY41: 0 | AZ41: 0 | BA41: 0 | BB41: 0 | BC41: 0 | BD41: 0 | BE41: 0 | BF41: 0 | BG41: 0 | BH41: 0 | BI41: 0 | BJ41: 0 | BK41: 0 | BL41: 0 | BM41: 0 | BN41: 0 | BO41: 0 | BP41: 0 | BQ41: 0 | BR41: 0 | BS41: 0 | BT41: 0 | BU41: 0
C42: Mandatory Principal Paid | K42: $000s | N42: (54,042) | R42: =+R133 -> 0 | S42: 0 | T42: 0 | U42: 0 | V42: 0 | W42: 0 | X42: 0 | Y42: 0 | Z42: 0 | AA42: 0 | AB42: 0 | AC42: 0 | AD42: 0 | AE42: 0 | AF42: 0 | AG42: 0 | AH42: 0 | AI42: 0 | AJ42: 0 | AK42: 0 | AL42: 0 | AM42: 0 | AN42: 0 | AO42: 0 | AP42: =+AP133 -> (27,107) | AQ42: (18,196) | AR42: (8,739) | AS42: 0 | AT42: 0 | AU42: 0 | AV42: 0 | AW42: 0 | AX42: 0 | AY42: 0 | AZ42: 0 | BA42: 0 | BB42: 0 | BC42: 0 | BD42: 0 | BE42: 0 | BF42: 0 | BG42: 0 | BH42: 0 | BI42: 0 | BJ42: 0 | BK42: 0 | BL42: 0 | BM42: 0 | BN42: 0 | BO42: 0 | BP42: 0 | BQ42: 0 | BR42: 0 | BS42: 0 | BT42: 0 | BU42: 0
C43: Scheduled Principal Paid | K43: $000s | N43: (90,000) | R43: =+R134 -> 0 | S43: 0 | T43: 0 | U43: 0 | V43: 0 | W43: 0 | X43: 0 | Y43: 0 | Z43: 0 | AA43: 0 | AB43: 0 | AC43: 0 | AD43: 0 | AE43: 0 | AF43: 0 | AG43: 0 | AH43: 0 | AI43: 0 | AJ43: (5,000) | AK43: (10,000) | AL43: (10,000) | AM43: (10,000) | AN43: (30,000) | AO43: (25,000) | AP43: =+AP134 -> 0 | AQ43: 0 | AR43: 0 | AS43: 0 | AT43: 0 | AU43: 0 | AV43: 0 | AW43: 0 | AX43: 0 | AY43: 0 | AZ43: 0 | BA43: 0 | BB43: 0 | BC43: 0 | BD43: 0 | BE43: 0 | BF43: 0 | BG43: 0 | BH43: 0 | BI43: 0 | BJ43: 0 | BK43: 0 | BL43: 0 | BM43: 0 | BN43: 0 | BO43: 0 | BP43: 0 | BQ43: 0 | BR43: 0 | BS43: 0 | BT43: 0 | BU43: 0
C44: TIFIA Refi payments | K44: $000s | N44: (144,042) | R44: =+R136 -> 0 | S44: 0 | T44: 0 | U44: 0 | V44: 0 | W44: 0 | X44: 0 | Y44: 0 | Z44: 0 | AA44: 0 | AB44: 0 | AC44: 0 | AD44: 0 | AE44: 0 | AF44: 0 | AG44: 0 | AH44: 0 | AI44: 0 | AJ44: (5,000) | AK44: (10,000) | AL44: (10,000) | AM44: (10,000) | AN44: (30,000) | AO44: (25,000) | AP44: =+AP136 -> (27,107) | AQ44: (18,196) | AR44: (8,739) | AS44: 0 | AT44: 0 | AU44: 0 | AV44: 0 | AW44: 0 | AX44: 0 | AY44: 0 | AZ44: 0 | BA44: 0 | BB44: 0 | BC44: 0 | BD44: 0 | BE44: 0 | BF44: 0 | BG44: 0 | BH44: 0 | BI44: 0 | BJ44: 0 | BK44: 0 | BL44: 0 | BM44: 0 | BN44: 0 | BO44: 0 | BP44: 0 | BQ44: 0 | BR44: 0 | BS44: 0 | BT44: 0 | BU44: 0
C45: TIFIA Refi payments from Rev Share | K45: $000s | N45: (420,491) | R45: =+R139 -> 0 | S45: 0 | T45: 0 | U45: 0 | V45: (540) | W45: (777) | X45: (1,039) | Y45: (1,329) | Z45: (9,800) | AA45: (10,564) | AB45: (12,104) | AC45: (13,808) | AD45: (15,692) | AE45: (18,486) | AF45: (19,550) | AG45: (20,572) | AH45: (21,639) | AI45: (22,752) | AJ45: (23,912) | AK45: (25,120) | AL45: (26,564) | AM45: (28,084) | AN45: (29,684) | AO45: (31,367) | AP45: =+AP139 -> (33,138) | AQ45: (31,550) | AR45: (22,422) | AS45: 0 | AT45: 0 | AU45: 0 | AV45: 0 | AW45: 0 | AX45: 0 | AY45: 0 | AZ45: 0 | BA45: 0 | BB45: 0 | BC45: 0 | BD45: 0 | BE45: 0 | BF45: 0 | BG45: 0 | BH45: 0 | BI45: 0 | BJ45: 0 | BK45: 0 | BL45: 0 | BM45: 0 | BN45: 0 | BO45: 0 | BP45: 0 | BQ45: 0 | BR45: 0 | BS45: 0 | BT45: 0 | BU45: 0
C46: Closing balances | K46: $000s | R46: =SUM(R36:R45) -> 1,034,374 | S46: 1,078,485 | T46: 1,124,478 | U46: 1,136,229 | V46: 1,135,150 | W46: 1,133,597 | X46: 1,131,519 | Y46: 1,128,861 | Z46: 1,109,261 | AA46: 1,088,132 | AB46: 1,063,925 | AC46: 1,036,310 | AD46: 1,004,925 | AE46: 967,953 | AF46: 928,853 | AG46: 887,710 | AH46: 844,433 | AI46: 798,929 | AJ46: 741,106 | AK46: 670,866 | AL46: 597,739 | AM46: 521,571 | AN46: 402,204 | AO46: 289,469 | AP46: =SUM(AP36:AP45) -> 168,978 | AQ46: 69,487 | AR46: 0 | AS46: 0 | AT46: 0 | AU46: 0 | AV46: 0 | AW46: 0 | AX46: 0 | AY46: 0 | AZ46: 0 | BA46: 0 | BB46: 0 | BC46: 0 | BD46: 0 | BE46: 0 | BF46: 0 | BG46: 0 | BH46: 0 | BI46: 0 | BJ46: 0 | BK46: 0 | BL46: 0 | BM46: 0 | BN46: 0 | BO46: 0 | BP46: 0 | BQ46: 0 | BR46: 0 | BS46: 0 | BT46: 0 | BU46: 0
N47: =IF(ROUND(SUM(N37:N45),0)<>0,1,0) -> 0
B48: Refinance
C49: Opening balances | K49: $000s | R49: =+Q57 -> 0 | S49: 0 | T49: 0 | U49: 0 | V49: 615,000 | W49: 616,080 | X49: 617,633 | Y49: 619,711 | Z49: 622,368 | AA49: 641,968 | AB49: 663,097 | AC49: 687,304 | AD49: 714,919 | AE49: 746,304 | AF49: 839,958 | AG49: 879,057 | AH49: 920,201 | AI49: 963,478 | AJ49: 1,008,981 | AK49: =+AJ57 -> 1,066,805 | AL49: =+AK57 -> 1,137,045 | AM49: =+AL57 -> 1,210,172 | AN49: =+AM57 -> 1,286,339 | AO49: =+AN57 -> 1,405,707 | AP49: =+AO57 -> 1,642,498 | AQ49: =+AP57 -> 1,762,989 | AR49: =+AQ57 -> 1,862,481 | AS49: =+AR57 -> 1,931,967 | AT49: =+AS57 -> 1,931,967 | AU49: =+AT57 -> 1,931,967 | AV49: =+AU57 -> 1,855,080 | AW49: =+AV57 -> 1,699,493 | AX49: =+AW57 -> 1,535,737 | AY49: =+AX57 -> 1,363,383 | AZ49: =+AY57 -> 1,297,111 | BA49: =+AZ57 -> 1,087,589 | BB49: =+BA57 -> 867,067 | BC49: =+BB57 -> 634,968 | BD49: =+BC57 -> 390,683 | BE49: =+BD57 -> 133,573 | BF49: =+BE57 -> 0 | BG49: =+BF57 -> 0 | BH49: =+BG57 -> 0 | BI49: =+BH57 -> 0 | BJ49: =+BI57 -> 0 | BK49: =+BJ57 -> 0 | BL49: 0 | BM49: 0 | BN49: 0 | BO49: 0 | BP49: 0 | BQ49: 0 | BR49: 0 | BS49: 0 | BT49: 0 | BU49: 0
C50: Draws (Capex, Liq) | K50: $000s | N50: =SUM(Q50:BU50) -> 304,073 | R50: =+R183 -> 0 | S50: 0 | T50: 0 | U50: 0 | V50: 0 | W50: 0 | X50: 0 | Y50: 0 | Z50: 0 | AA50: 0 | AB50: 0 | AC50: 0 | AD50: 0 | AE50: 56,681 | AF50: 0 | AG50: 0 | AH50: 0 | AI50: 0 | AJ50: 0 | AK50: =+AK183 -> 0 | AL50: 0 | AM50: 0 | AN50: 0 | AO50: 124,057 | AP50: 0 | AQ50: 0 | AR50: 0 | AS50: 0 | AT50: 0 | AU50: 0 | AV50: 0 | AW50: 0 | AX50: 0 | AY50: 123,335 | AZ50: 0 | BA50: 0 | BB50: 0 | BC50: 0 | BD50: 0 | BE50: 0 | BF50: 0 | BG50: 0 | BH50: 0 | BI50: 0 | BJ50: 0 | BK50: =+BK183 -> 0 | BL50: 0 | BM50: 0 | BN50: 0 | BO50: 0 | BP50: 0 | BQ50: 0 | BR50: 0 | BS50: 0 | BT50: 0 | BU50: 0
C51: Draws (PABs) | K51: $000s | N51: 615,000 | R51: =+R182 -> 0 | S51: 0 | T51: 0 | U51: 615,000 | V51: 0 | W51: 0 | X51: 0 | Y51: 0 | Z51: 0 | AA51: 0 | AB51: 0 | AC51: 0 | AD51: 0 | AE51: 0 | AF51: 0 | AG51: 0 | AH51: 0 | AI51: 0 | AJ51: 0 | AK51: =+AK182 -> 0 | AL51: 0 | AM51: 0 | AN51: 0 | AO51: 0 | AP51: 0 | AQ51: 0 | AR51: 0 | AS51: 0 | AT51: 0 | AU51: 0 | AV51: 0 | AW51: 0 | AX51: 0 | AY51: 0 | AZ51: 0 | BA51: 0 | BB51: 0 | BC51: 0 | BD51: 0 | BE51: 0 | BF51: 0 | BG51: 0 | BH51: 0 | BI51: 0 | BJ51: 0 | BK51: =+BK182 -> 0 | BL51: 0 | BM51: 0 | BN51: 0 | BO51: 0 | BP51: 0 | BQ51: 0 | BR51: 0 | BS51: 0 | BT51: 0 | BU51: 0
C52: Draws (TIFIA) | K52: $000s | N52: 288,084 | R52: =+R184 -> 0 | S52: 0 | T52: 0 | U52: 0 | V52: 0 | W52: 0 | X52: 0 | Y52: 0 | Z52: 0 | AA52: 0 | AB52: 0 | AC52: 0 | AD52: 0 | AE52: 0 | AF52: 0 | AG52: 0 | AH52: 0 | AI52: 0 | AJ52: 10,000 | AK52: =+AK184 -> 20,000 | AL52: 20,000 | AM52: 20,000 | AN52: 60,000 | AO52: 50,000 | AP52: 54,214 | AQ52: 36,391 | AR52: 17,478 | AS52: 0 | AT52: 0 | AU52: 0 | AV52: 0 | AW52: 0 | AX52: 0 | AY52: 0 | AZ52: 0 | BA52: 0 | BB52: 0 | BC52: 0 | BD52: 0 | BE52: 0 | BF52: 0 | BG52: 0 | BH52: 0 | BI52: 0 | BJ52: 0 | BK52: =+BK184 -> 0 | BL52: 0 | BM52: 0 | BN52: 0 | BO52: 0 | BP52: 0 | BQ52: 0 | BR52: 0 | BS52: 0 | BT52: 0 | BU52: 0
C53: Draws (TIFIA Rev Share) | K53: $000s | N53: 848,145 | R53: =+R185 -> 0 | S53: 0 | T53: 0 | U53: 0 | V53: 1,079 | W53: 1,553 | X53: 2,078 | Y53: 2,658 | Z53: 19,600 | AA53: 21,129 | AB53: 24,207 | AC53: 27,615 | AD53: 31,385 | AE53: 36,973 | AF53: 39,099 | AG53: 41,143 | AH53: 43,277 | AI53: 45,503 | AJ53: 47,824 | AK53: =+AK185 -> 50,240 | AL53: 53,127 | AM53: 56,167 | AN53: 59,368 | AO53: 62,735 | AP53: 66,276 | AQ53: 63,100 | AR53: 52,009 | AS53: 0 | AT53: 0 | AU53: 0 | AV53: 0 | AW53: 0 | AX53: 0 | AY53: 0 | AZ53: 0 | BA53: 0 | BB53: 0 | BC53: 0 | BD53: 0 | BE53: 0 | BF53: 0 | BG53: 0 | BH53: 0 | BI53: 0 | BJ53: 0 | BK53: =+BK185 -> 0 | BL53: 0 | BM53: 0 | BN53: 0 | BO53: 0 | BP53: 0 | BQ53: 0 | BR53: 0 | BS53: 0 | BT53: 0 | BU53: 0
C54: Interest due | K54: $000s | N54: 2,099,749 | R54: =+R186 -> 0 | S54: 0 | T54: 0 | U54: 16,413 | V54: 32,750 | W54: 32,814 | X54: 32,904 | Y54: 33,113 | Z54: 33,389 | AA54: 34,453 | AB54: 35,618 | AC54: 37,053 | AD54: 38,472 | AE54: 41,726 | AF54: 45,231 | AG54: 47,469 | AH54: 49,557 | AI54: 51,891 | AJ54: 54,477 | AK54: =+AK186 -> 57,878 | AL54: 61,497 | AM54: 65,430 | AN54: 70,059 | AO54: 79,845 | AP54: 89,032 | AQ54: 95,166 | AR54: 100,063 | AS54: 103,119 | AT54: 102,837 | AU54: 101,814 | AV54: 96,674 | AW54: 88,525 | AX54: 79,452 | AY54: 73,331 | AZ54: 66,256 | BA54: 55,107 | BB54: 43,065 | BC54: 30,548 | BD54: 17,374 | BE54: 5,347 | BF54: 0 | BG54: 0 | BH54: 0 | BI54: 0 | BJ54: 0 | BK54: =+BK186 -> 0 | BL54: 0 | BM54: 0 | BN54: 0 | BO54: 0 | BP54: 0 | BQ54: 0 | BR54: 0 | BS54: 0 | BT54: 0 | BU54: 0
C55: Interest paid | K55: $000s | N55: (2,099,749) | R55: =+R187 -> 0 | S55: 0 | T55: 0 | U55: (16,413) | V55: (32,750) | W55: (32,814) | X55: (32,904) | Y55: (33,113) | Z55: (33,389) | AA55: (34,453) | AB55: (35,618) | AC55: (37,053) | AD55: (38,472) | AE55: (41,726) | AF55: (45,231) | AG55: (47,469) | AH55: (49,557) | AI55: (51,891) | AJ55: (54,477) | AK55: =+AK187 -> (57,878) | AL55: (61,497) | AM55: (65,430) | AN55: (70,059) | AO55: (79,845) | AP55: (89,032) | AQ55: (95,166) | AR55: (100,063) | AS55: (103,119) | AT55: (102,837) | AU55: (101,814) | AV55: (96,674) | AW55: (88,525) | AX55: (79,452) | AY55: (73,331) | AZ55: (66,256) | BA55: (55,107) | BB55: (43,065) | BC55: (30,548) | BD55: (17,374) | BE55: (5,347) | BF55: 0 | BG55: 0 | BH55: 0 | BI55: 0 | BJ55: 0 | BK55: =+BK187 -> 0 | BL55: 0 | BM55: 0 | BN55: 0 | BO55: 0 | BP55: 0 | BQ55: 0 | BR55: 0 | BS55: 0 | BT55: 0 | BU55: 0
C56: Amortized | K56: $000s | N56: (2,055,302) | R56: =+R188 -> 0 | S56: 0 | T56: 0 | U56: 0 | V56: 0 | W56: 0 | X56: 0 | Y56: 0 | Z56: 0 | AA56: 0 | AB56: 0 | AC56: 0 | AD56: 0 | AE56: 0 | AF56: 0 | AG56: 0 | AH56: 0 | AI56: 0 | AJ56: 0 | AK56: =+AK188 -> 0 | AL56: 0 | AM56: 0 | AN56: 0 | AO56: 0 | AP56: 0 | AQ56: 0 | AR56: 0 | AS56: 0 | AT56: 0 | AU56: (76,887) | AV56: (155,588) | AW56: (163,756) | AX56: (172,353) | AY56: (189,607) | AZ56: (209,522) | BA56: (220,522) | BB56: (232,100) | BC56: (244,285) | BD56: (257,110) | BE56: (133,573) | BF56: 0 | BG56: 0 | BH56: 0 | BI56: 0 | BJ56: 0 | BK56: =+BK188 -> 0 | BL56: 0 | BM56: 0 | BN56: 0 | BO56: 0 | BP56: 0 | BQ56: 0 | BR56: 0 | BS56: 0 | BT56: 0 | BU56: 0
C57: Closing balances | K57: $000s | R57: =SUM(R49:R56) -> 0 | S57: 0 | T57: 0 | U57: 615,000 | V57: 616,080 | W57: 617,633 | X57: 619,711 | Y57: 622,368 | Z57: 641,968 | AA57: 663,097 | AB57: 687,304 | AC57: 714,919 | AD57: 746,304 | AE57: 839,958 | AF57: 879,057 | AG57: 920,201 | AH57: 963,478 | AI57: 1,008,981 | AJ57: 1,066,805 | AK57: =SUM(AK49:AK56) -> 1,137,045 | AL57: 1,210,172 | AM57: 1,286,339 | AN57: 1,405,707 | AO57: 1,642,498 | AP57: 1,762,989 | AQ57: 1,862,481 | AR57: 1,931,967 | AS57: 1,931,967 | AT57: 1,931,967 | AU57: 1,855,080 | AV57: 1,699,493 | AW57: 1,535,737 | AX57: 1,363,383 | AY57: 1,297,111 | AZ57: 1,087,589 | BA57: 867,067 | BB57: 634,968 | BC57: 390,683 | BD57: 133,573 | BE57: 0 | BF57: 0 | BG57: 0 | BH57: 0 | BI57: 0 | BJ57: 0 | BK57: =SUM(BK49:BK56) -> 0 | BL57: 0 | BM57: 0 | BN57: 0 | BO57: 0 | BP57: 0 | BQ57: 0 | BR57: 0 | BS57: 0 | BT57: 0 | BU57: 0
N58: =IF(ROUND(SUM(N50:N56),0)<>0,1,0) -> 0
B59: Fees
C60: Commitment Fees | K60: $000s | N60: =SUM(Q60:BU60) -> 7,399 | R60: =+Mac!R34 -> 0 | S60: =+Mac!S34 -> 0 | T60: =+Mac!T34 -> 0 | U60: =+Mac!U34 -> 0 | V60: =+Mac!V34 -> 215 | W60: =+Mac!W34 -> 205 | X60: =+Mac!X34 -> 192 | Y60: =+Mac!Y34 -> 175 | Z60: =+Mac!Z34 -> 154 | AA60: =+Mac!AA34 -> 128 | AB60: =+Mac!AB34 -> 94 | AC60: =+Mac!AC34 -> 62 | AD60: =+Mac!AD34 -> 33 | AE60: =+Mac!AE34 -> 0 | AF60: =+Mac!AF34 -> 486 | AG60: =+Mac!AG34 -> 463 | AH60: =+Mac!AH34 -> 433 | AI60: =+Mac!AI34 -> 392 | AJ60: =+Mac!AJ34 -> 337 | AK60: =+Mac!AK34 -> 261 | AL60: =+Mac!AL34 -> 159 | AM60: =+Mac!AM34 -> 90 | AN60: =+Mac!AN34 -> 44 | AO60: =+Mac!AO34 -> 0 | AP60: =+Mac!AP34 -> 528 | AQ60: =+Mac!AQ34 -> 514 | AR60: =+Mac!AR34 -> 494 | AS60: =+Mac!AS34 -> 466 | AT60: =+Mac!AT34 -> 427 | AU60: =+Mac!AU34 -> 373 | AV60: =+Mac!AV34 -> 298 | AW60: =+Mac!AW34 -> 224 | AX60: =+Mac!AX34 -> 152 | AY60: =+Mac!AY34 -> 0 | AZ60: =+Mac!AZ34 -> 0 | BA60: =+Mac!BA34 -> 0 | BB60: =+Mac!BB34 -> 0 | BC60: =+Mac!BC34 -> 0 | BD60: =+Mac!BD34 -> 0 | BE60: =+Mac!BE34 -> 0 | BF60: =+Mac!BF34 -> 0 | BG60: =+Mac!BG34 -> 0 | BH60: =+Mac!BH34 -> 0 | BI60: =+Mac!BI34 -> 0 | BJ60: =+Mac!BJ34 -> 0 | BK60: =+Mac!BK34 -> 0 | BL60: =+Mac!BL34 -> 0 | BM60: =+Mac!BM34 -> 0 | BN60: =+Mac!BN34 -> 0 | BO60: =+Mac!BO34 -> 0 | BP60: =+Mac!BP34 -> 0 | BQ60: =+Mac!BQ34 -> 0 | BR60: =+Mac!BR34 -> 0 | BS60: =+Mac!BS34 -> 0 | BT60: =+Mac!BT34 -> 0 | BU60: =+Mac!BU34 -> 0
C61: Upfront fees | K61: $000s | N61: =SUM(Q61:BU61) -> 70,623 | R61: =+Mac!R35 -> 0 | S61: =+Mac!S35 -> 0 | T61: =+Mac!T35 -> 0 | U61: =+Mac!U35 -> 8,045 | V61: =+Mac!V35 -> 13 | W61: =+Mac!W35 -> 19 | X61: =+Mac!X35 -> 25 | Y61: =+Mac!Y35 -> 32 | Z61: =+Mac!Z35 -> 235 | AA61: =+Mac!AA35 -> 254 | AB61: =+Mac!AB35 -> 290 | AC61: =+Mac!AC35 -> 331 | AD61: =+Mac!AD35 -> 377 | AE61: =+Mac!AE35 -> 11,572 | AF61: =+Mac!AF35 -> 469 | AG61: =+Mac!AG35 -> 494 | AH61: =+Mac!AH35 -> 519 | AI61: =+Mac!AI35 -> 546 | AJ61: =+Mac!AJ35 -> 694 | AK61: =+Mac!AK35 -> 843 | AL61: =+Mac!AL35 -> 878 | AM61: =+Mac!AM35 -> 914 | AN61: =+Mac!AN35 -> 1,432 | AO61: =+Mac!AO35 -> 21,327 | AP61: =+Mac!AP35 -> 1,446 | AQ61: =+Mac!AQ35 -> 1,194 | AR61: =+Mac!AR35 -> 834 | AS61: =+Mac!AS35 -> 0 | AT61: =+Mac!AT35 -> 0 | AU61: =+Mac!AU35 -> 0 | AV61: =+Mac!AV35 -> 0 | AW61: =+Mac!AW35 -> 0 | AX61: =+Mac!AX35 -> 0 | AY61: =+Mac!AY35 -> 17,841 | AZ61: =+Mac!AZ35 -> 0 | BA61: =+Mac!BA35 -> 0 | BB61: =+Mac!BB35 -> 0 | BC61: =+Mac!BC35 -> 0 | BD61: =+Mac!BD35 -> 0 | BE61: =+Mac!BE35 -> 0 | BF61: =+Mac!BF35 -> 0 | BG61: =+Mac!BG35 -> 0 | BH61: =+Mac!BH35 -> 0 | BI61: =+Mac!BI35 -> 0 | BJ61: =+Mac!BJ35 -> 0 | BK61: =+Mac!BK35 -> 0 | BL61: =+Mac!BL35 -> 0 | BM61: =+Mac!BM35 -> 0 | BN61: =+Mac!BN35 -> 0 | BO61: =+Mac!BO35 -> 0 | BP61: =+Mac!BP35 -> 0 | BQ61: =+Mac!BQ35 -> 0 | BR61: =+Mac!BR35 -> 0 | BS61: =+Mac!BS35 -> 0 | BT61: =+Mac!BT35 -> 0 | BU61: =+Mac!BU35 -> 0
C62: TIFIA Mantenaince fee | K62: $000s | N62: =SUM(Q62:BU62) -> 4,177 | R62: =R122 -> 0 | S62: 0 | T62: 126 | U62: 128 | V62: 131 | W62: 134 | X62: 137 | Y62: 141 | Z62: 144 | AA62: 147 | AB62: 151 | AC62: 154 | AD62: 158 | AE62: 161 | AF62: 165 | AG62: 169 | AH62: 173 | AI62: 176 | AJ62: 181 | AK62: 185 | AL62: 189 | AM62: 193 | AN62: 198 | AO62: 202 | AP62: =AP122 -> 207 | AQ62: 212 | AR62: 217 | AS62: 0 | AT62: 0 | AU62: 0 | AV62: 0 | AW62: 0 | AX62: 0 | AY62: 0 | AZ62: 0 | BA62: 0 | BB62: 0 | BC62: 0 | BD62: 0 | BE62: 0 | BF62: 0 | BG62: 0 | BH62: 0 | BI62: 0 | BJ62: 0 | BK62: 0 | BL62: 0 | BM62: 0 | BN62: 0 | BO62: 0 | BP62: 0 | BQ62: 0 | BR62: 0 | BS62: 0 | BT62: 0 | BU62: 0
C63: Agency fees | K63: $000s | N63: =SUM(Q63:BU63) -> 3,576 | R63: =R225 -> 0 | S63: 0 | T63: 60 | U63: 61 | V63: 63 | W63: 64 | X63: 66 | Y63: 67 | Z63: 69 | AA63: 70 | AB63: 72 | AC63: 74 | AD63: 75 | AE63: 77 | AF63: 79 | AG63: 81 | AH63: 82 | AI63: 84 | AJ63: 86 | AK63: 88 | AL63: 90 | AM63: 92 | AN63: 94 | AO63: 97 | AP63: =AP225 -> 99 | AQ63: 101 | AR63: 103 | AS63: 106 | AT63: 108 | AU63: 111 | AV63: 113 | AW63: 116 | AX63: 119 | AY63: 121 | AZ63: 124 | BA63: 127 | BB63: 130 | BC63: 133 | BD63: 136 | BE63: 139 | BF63: 0 | BG63: 0 | BH63: 0 | BI63: 0 | BJ63: 0 | BK63: 0 | BL63: 0 | BM63: 0 | BN63: 0 | BO63: 0 | BP63: 0 | BQ63: 0 | BR63: 0 | BS63: 0 | BT63: 0 | BU63: 0
B65: Cash Accounts Closing Balances
C67: Major Maintenance Reserve Account | R67: =R251 -> 20,000 | S67: 20,000 | T67: 20,000 | U67: 9,878 | V67: 12,616 | W67: 15,653 | X67: 18,497 | Y67: 20,565 | Z67: 21,159 | AA67: 19,424 | AB67: 18,196 | AC67: 18,052 | AD67: 19,740 | AE67: 24,244 | AF67: 32,872 | AG67: 41,974 | AH67: 49,095 | AI67: 51,753 | AJ67: 47,159 | AK67: 31,920 | AL67: 21,992 | AM67: 16,326 | AN67: 14,470 | AO67: 16,481 | AP67: =AP251 -> 22,896 | AQ67: 30,666 | AR67: 38,814 | AS67: 46,011 | AT67: 50,432 | AU67: 49,572 | AV67: 49,079 | AW67: 49,458 | AX67: 51,267 | AY67: 55,125 | AZ67: 61,714 | BA67: 69,167 | BB67: 77,704 | BC67: 87,584 | BD67: 99,115 | BE67: 0 | BF67: 0 | BG67: 0 | BH67: 0 | BI67: 0 | BJ67: 0 | BK67: 0 | BL67: 0 | BM67: 0 | BN67: 0 | BO67: 0 | BP67: 0 | BQ67: 0 | BR67: 0 | BS67: 0 | BT67: 0 | BU67: 0
C68: Debt Service Reserve Account | R68: =+R277 -> 61,500 | S68: 61,500 | T68: 61,500 | U68: 39,769 | V68: 43,742 | W68: 45,929 | X68: 46,333 | Y68: 46,921 | Z68: 48,360 | AA68: 49,981 | AB68: 51,785 | AC68: 53,591 | AD68: 55,696 | AE68: 58,042 | AF68: 60,563 | AG68: 63,101 | AH68: 66,019 | AI68: 69,415 | AJ68: 73,778 | AK68: 78,539 | AL68: 83,200 | AM68: 88,304 | AN68: 89,001 | AO68: 116,327 | AP68: =+AP277 -> 113,759 | AQ68: 109,489 | AR68: 104,208 | AS68: 104,486 | AT68: 181,127 | AU68: 255,667 | AV68: 256,650 | AW68: 257,121 | AX68: 265,831 | AY68: 275,778 | AZ68: 275,630 | BA68: 275,164 | BB68: 274,833 | BC68: 274,484 | BD68: 138,920 | BE68: 0 | BF68: 0 | BG68: 0 | BH68: 0 | BI68: 0 | BJ68: 0 | BK68: 0 | BL68: 0 | BM68: 0 | BN68: 0 | BO68: 0 | BP68: 0 | BQ68: 0 | BR68: 0 | BS68: 0 | BT68: 0 | BU68: 0
C69: TIFIA Cash Trapped | R69: =R307 -> 52,505 | S69: 98,595 | T69: 165,131 | U69: 0 | V69: 0 | W69: 0 | X69: 0 | Y69: 0 | Z69: 0 | AA69: 0 | AB69: 0 | AC69: 0 | AD69: 0 | AE69: 0 | AF69: 0 | AG69: 0 | AH69: 0 | AI69: 0 | AJ69: 0 | AK69: 0 | AL69: 0 | AM69: 0 | AN69: 0 | AO69: 0 | AP69: =AP307 -> 0 | AQ69: 0 | AR69: 0 | AS69: 0 | AT69: 0 | AU69: 0 | AV69: 0 | AW69: 0 | AX69: 0 | AY69: 0 | AZ69: 0 | BA69: 0 | BB69: 0 | BC69: 0 | BD69: 0 | BE69: 0 | BF69: 0 | BG69: 0 | BH69: 0 | BI69: 0 | BJ69: 0 | BK69: 0 | BL69: 0 | BM69: 0 | BN69: 0 | BO69: 0 | BP69: 0 | BQ69: 0 | BR69: 0 | BS69: 0 | BT69: 0 | BU69: 0
C70: Operating Cash Account | R70: =R317 -> 1,983 | S70: 1,983 | T70: 1,983 | U70: 1,983 | V70: 1,983 | W70: 1,983 | X70: 1,983 | Y70: 1,983 | Z70: 1,983 | AA70: 1,983 | AB70: 1,983 | AC70: 1,983 | AD70: 1,983 | AE70: 1,983 | AF70: 1,983 | AG70: 1,983 | AH70: 1,983 | AI70: 1,983 | AJ70: 1,983 | AK70: 1,983 | AL70: 1,983 | AM70: 1,983 | AN70: 1,983 | AO70: 1,983 | AP70: =AP317 -> 1,983 | AQ70: 1,983 | AR70: 1,983 | AS70: 1,983 | AT70: 1,983 | AU70: 1,983 | AV70: 1,983 | AW70: 1,983 | AX70: 1,983 | AY70: 1,983 | AZ70: 1,983 | BA70: 1,983 | BB70: 1,983 | BC70: 1,983 | BD70: 1,983 | BE70: 1,983 | BF70: 1,983 | BG70: 1,983 | BH70: 1,983 | BI70: 1,983 | BJ70: 0 | BK70: 0 | BL70: 0 | BM70: 0 | BN70: 0 | BO70: 0 | BP70: 0 | BQ70: 0 | BR70: 0 | BS70: 0 | BT70: 0 | BU70: 0
C71: Handback | R71: =R291 -> 0 | S71: 0 | T71: 0 | U71: 0 | V71: 0 | W71: 0 | X71: 0 | Y71: 0 | Z71: 0 | AA71: 0 | AB71: 0 | AC71: 0 | AD71: 0 | AE71: 0 | AF71: 0 | AG71: 0 | AH71: 0 | AI71: 0 | AJ71: 0 | AK71: 0 | AL71: 0 | AM71: 0 | AN71: 0 | AO71: 0 | AP71: =AP291 -> 0 | AQ71: 0 | AR71: 0 | AS71: 0 | AT71: 0 | AU71: 0 | AV71: 0 | AW71: 0 | AX71: 0 | AY71: 0 | AZ71: 0 | BA71: 0 | BB71: 0 | BC71: 0 | BD71: 0 | BE71: 225,723 | BF71: 191,349 | BG71: 152,277 | BH71: 107,865 | BI71: 57,382 | BJ71: =BJ291 -> (133,569) | BK71: (133,569) | BL71: (133,569) | BM71: (133,569) | BN71: (133,569) | BO71: (133,569) | BP71: (133,569) | BQ71: (133,569) | BR71: (133,569) | BS71: (133,569) | BT71: (133,569) | BU71: (133,569)
C72: Total Cash Balances | R72: =SUM(R67:R71) -> 135,988 | S72: 182,077 | T72: 248,613 | U72: 51,630 | V72: 58,341 | W72: 63,565 | X72: 66,813 | Y72: 69,469 | Z72: 71,501 | AA72: 71,388 | AB72: 71,964 | AC72: 73,626 | AD72: 77,419 | AE72: 84,268 | AF72: 95,418 | AG72: 107,057 | AH72: 117,096 | AI72: 123,151 | AJ72: 122,920 | AK72: 112,442 | AL72: 107,174 | AM72: 106,612 | AN72: 105,455 | AO72: 134,791 | AP72: =SUM(AP67:AP71) -> 138,637 | AQ72: 142,137 | AR72: 145,005 | AS72: 152,479 | AT72: 233,542 | AU72: 307,222 | AV72: 307,711 | AW72: 308,561 | AX72: 319,081 | AY72: 332,886 | AZ72: 339,326 | BA72: 346,314 | BB72: 354,520 | BC72: 364,051 | BD72: 240,018 | BE72: 227,705 | BF72: 193,332 | BG72: 154,260 | BH72: 109,848 | BI72: 59,365 | BJ72: (133,569) | BK72: (133,569) | BL72: (133,569) | BM72: (133,569) | BN72: (133,569) | BO72: (133,569) | BP72: (133,569) | BQ72: (133,569) | BR72: (133,569) | BS72: (133,569) | BT72: (133,569) | BU72: (133,569)
B74: Interest income | R74: =+R340 -> 0 | S74: 0 | T74: 2,692 | U74: 3,887 | V74: 1,369 | W74: 1,585 | X74: 1,826 | Y74: 2,091 | Z74: 2,235 | AA74: 2,483 | AB74: 2,702 | AC74: 2,954 | AD74: 3,106 | AE74: 3,357 | AF74: 3,734 | AG74: 4,032 | AH74: 4,408 | AI74: 4,835 | AJ74: 5,183 | AK74: 5,398 | AL74: 5,152 | AM74: 5,153 | AN74: 5,579 | AO74: 5,604 | AP74: =+AP340 -> 6,498 | AQ74: 6,694 | AR74: 6,954 | AS74: 7,274 | AT74: 7,704 | AU74: 9,675 | AV74: 11,196 | AW74: 11,354 | AX74: 11,666 | AY74: 12,186 | AZ74: 12,785 | BA74: 13,266 | BB74: 13,776 | BC74: 14,331 | BD74: 14,933 | BE74: 12,982 | BF74: 13,266 | BG74: 13,210 | BH74: 13,149 | BI74: 13,043 | BJ74: 8,605 | BK74: 0 | BL74: 0 | BM74: 0 | BN74: 0 | BO74: 0 | BP74: 0 | BQ74: 0 | BR74: 0 | BS74: 0 | BT74: 0 | BU74: 0
B76: Bond Facility (PABs)
B78: Setup
B80: Refinancing Date | K80: =Inputs!L154 -> 2020-06-30 | Q80: =+Q166 -> 0 | R80: =+R166 -> 0 | S80: 0 | T80: 0 | U80: 1 | V80: 0 | W80: 0 | X80: 0 | Y80: 0 | Z80: 0 | AA80: 0 | AB80: 0 | AC80: 0 | AD80: 0 | AE80: 0 | AF80: 0 | AG80: 0 | AH80: 0 | AI80: 0 | AJ80: 0 | AK80: 0 | AL80: 0 | AM80: 0 | AN80: 0 | AO80: 0 | AP80: 0 | AQ80: 0 | AR80: 0 | AS80: 0 | AT80: 0 | AU80: 0 | AV80: 0 | AW80: 0 | AX80: 0 | AY80: 0 | AZ80: 0 | BA80: 0 | BB80: 0 | BC80: 0 | BD80: 0 | BE80: 0 | BF80: 0 | BG80: 0 | BH80: 0 | BI80: 0 | BJ80: 0 | BK80: =+BK166 -> 0 | BL80: 0 | BM80: 0 | BN80: 0 | BO80: 0 | BP80: 0 | BQ80: 0 | BR80: 0 | BS80: 0 | BT80: 0 | BU80: 0
C82: % Full Period | K82: % | Q82: =+IF(AND($K$80>=Q8,$K$80<=Q9),0.5,IF(AND($K$80>=Q8,$K$80>=Q9),1,0)) -> 100% | R82: 100% | S82: 100% | T82: 100% | U82: 50% | V82: 0% | W82: 0% | X82: 0% | Y82: 0% | Z82: 0% | AA82: 0% | AB82: 0% | AC82: 0% | AD82: 0% | AE82: 0% | AF82: 0% | AG82: 0% | AH82: 0% | AI82: 0% | AJ82: 0% | AK82: 0% | AL82: 0% | AM82: 0% | AN82: 0% | AO82: 0% | AP82: 0% | AQ82: 0% | AR82: 0% | AS82: 0% | AT82: 0% | AU82: 0% | AV82: 0% | AW82: =+IF(AND($K$80>=AW8,$K$80<=AW9),0.5,IF(AND($K$80>=AW8,$K$80>=AW9),1,0)) -> 0% | AX82: 0% | AY82: 0% | AZ82: 0% | BA82: 0% | BB82: 0% | BC82: 0% | BD82: 0% | BE82: 0% | BF82: 0% | BG82: 0% | BH82: 0% | BI82: 0% | BJ82: 0% | BK82: 0% | BL82: 0% | BM82: 0% | BN82: 0% | BO82: 0% | BP82: 0% | BQ82: 0% | BR82: 0% | BS82: 0% | BT82: 0% | BU82: 0%
B84: Interest
